Workbook

Sheet Table S1
A1: Table S1: General ASV table with total reads per sample. CC = Callyspongia crassa; SC = Stylissa carteri; SW = seawater; C = control; 1X = BMC1x; 3X = BMC3x; T0 = before the experiment; T1 = after the 4-week experiment; R = replica; TOP = top part of the sponge body; MID = middle part of the sponge body; BAS = base part of the sponge body
B3: Callyspongia crassa - Control - T0 - Sponge | Q3: Callyspongia crassa - BMC 1x - T0 - Sponge | AF3: Callyspongia crassa - BMC 3x - T0 - Sponge | AU3: Callyspongia crassa - Control - T1 - Sponge | BJ3: Callyspongia crassa - BMC 1x - T1 - Sponge | BY3: Callyspongia crassa - BMC 3x - T1 - Sponge | CN3: Callyspongia crassa - Control - T0 - Seawater | CS3: Callyspongia crassa - BMC 1x - T0 - Seawater | CX3: Callyspongia crassa - BMC 3x - T0 - Seawater | DC3: Callyspongia crassa - Control - T1 - Seawater | DH3: Callyspongia crassa - BMC 1x - T1 - Seawater | DM3: Callyspongia crassa - BMC 3x - T1 - Seawater | DR3: Stylissa carteri - Control - T0 - Sponge | EB3: Stylissa carteri - BMC 1x - T0 - Sponge | EL3: Stylissa carteri - BMC 3x - T0 - Sponge | EV3: Stylissa carteri - Control - T1 - Sponge | FF3: Stylissa carteri - BMC 1x - T1 - Sponge | FP3: Stylissa carteri - BMC 3x - T1 - Sponge | FZ3: Stylissa carteri - Control - T0 - Seawater | GE3: Stylissa carteri - BMC 1x - T0 - Seawater | GJ3: Stylissa carteri - BMC 3x - T0 - Seawater | GO3: Stylissa carteri - Control - T1 - Seawater | GT3: Stylissa carteri - BMC 1x - T1 - Seawater | GY3: Stylissa carteri - BMC 3x - T1 - Seawater
B4: CCCT0R1TOP | C4: CCCT0R1MID | D4: CCCT0R1BAS | E4: CCCT0R2TOP | F4: CCCT0R2MID | G4: CCCT0R2BAS | H4: CCCT0R3TOP | I4: CCCT0R3MID | J4: CCCT0R3BAS | K4: CCCT0R4TOP | L4: CCCT0R4MID | M4: CCCT0R4BAS | N4: CCCT0R5TOP | O4: CCCT0R5MID | P4: CCCT0R5BAS | Q4: CC1xT0R1TOP | R4: CC1xT0R1MID | S4: CC1xT0R1BAS | T4: CC1xT0R2TOP | U4: CC1xT0R2MID | V4: CC1xT0R2BAS | W4: CC1xT0R3TOP | X4: CC1xT0R3MID | Y4: CC1xT0R3BAS | Z4: CC1xT0R4TOP | AA4: CC1xT0R4MID | AB4: CC1xT0R4BAS | AC4: CC1xT0R5TOP | AD4: CC1xT0R5MID | AE4: CC1xT0R5BAS | AF4: CC3xT0R1TOP | AG4: CC3xT0R1MID | AH4: CC3xT0R1BAS | AI4: CC3xT0R2TOP | AJ4: CC3xT0R2MID | AK4: CC3xT0R2BAS | AL4: CC3xT0R3TOP | AM4: CC3xT0R3MID | AN4: CC3xT0R3BAS | AO4: CC3xT0R4TOP | AP4: CC3xT0R4MID | AQ4: CC3xT0R4BAS | AR4: CC3xT0R5TOP | AS4: CC3xT0R5MID | AT4: CC3xT0R5BAS | AU4: CCCT1R1TOP | AV4: CCCT1R1MID | AW4: CCCT1R1BAS | AX4: CCCT1R2TOP | AY4: CCCT1R2MID | AZ4: CCCT1R2BAS | BA4: CCCT1R3TOP | BB4: CCCT1R3MID | BC4: CCCT1R3BAS | BD4: CCCT1R4TOP | BE4: CCCT1R4MID | BF4: CCCT1R4BAS | BG4: CCCT1R5TOP | BH4: CCCT1R5MID | BI4: CCCT1R5BAS | BJ4: CC1xT1R1TOP | BK4: CC1xT1R1MID | BL4: CC1xT1R1BAS | BM4: CC1xT1R2TOP | BN4: CC1xT1R2MID | BO4: CC1xT1R2BAS | BP4: CC1xT1R3TOP | BQ4: CC1xT1R3MID | BR4: CC1xT1R3BAS | BS4: CC1xT1R4TOP | BT4: CC1xT1R4MID | BU4: CC1xT1R4BAS | BV4: CC1xT1R5TOP | BW4: CC1xT1R5MID | BX4: CC1xT1R5BAS | BY4: CC3xT1R1TOP | BZ4: CC3xT1R1MID | CA4: CC3xT1R1BAS | CB4: CC3xT1R2TOP | CC4: CC3xT1R2MID | CD4: CC3xT1R2BAS | CE4: CC3xT1R3TOP | CF4: CC3xT1R3MID | CG4: CC3xT1R3BAS | CH4: CC3xT1R4TOP | CI4: CC3xT1R4MID | CJ4: CC3xT1R4BAS | CK4: CC3xT1R5TOP | CL4: CC3xT1R5MID | CM4: CC3xT1R5BAS | CN4: CCCT0R1SW | CO4: CCCT0R2SW | CP4: CCCT0R3SW | CQ4: CCCT0R4SW | CR4: CCCT0R5SW | CS4: CC1xT0R1SW | CT4: CC1xT0R2SW | CU4: CC1xT0R3SW | CV4: CC1xT0R4SW | CW4: CC1xT0R5SW | CX4: CC3xT0R1SW | CY4: CC3xT0R2SW | CZ4: CC3xT0R3SW | DA4: CC3xT0R4SW | DB4: CC3xT0R5SW | DC4: CCCT1R1SW | DD4: CCCT1R2SW | DE4: CCCT1R3SW | DF4: CCCT1R4SW | DG4: CCCT1R5SW | DH4: CC1xT1R1SW | DI4: CC1xT1R2SW | DJ4: CC1xT1R3SW | DK4: CC1xT1R4SW | DL4: CC1xT1R5SW | DM4: CC3xT1R1SW | DN4: CC3xT1R2SW | DO4: CC3xT1R3SW | DP4: CC3xT1R4SW | DQ4: CC3xT1R5SW | DR4: SCCT0R1TOP | DS4: SCCT0R1MID | DT4: SCCT0R2TOP | DU4: SCCT0R2MID | DV4: SCCT0R3TOP | DW4: SCCT0R3MID | DX4: SCCT0R4TOP | DY4: SCCT0R4MID | DZ4: SCCT0R5TOP | EA4: SCCT0R5MID | EB4: SC1xT0R1TOP | EC4: SC1xT0R1MID | ED4: SC1xT0R2TOP | EE4: SC1xT0R2MID | EF4: SC1xT0R3TOP | EG4: SC1xT0R3MID | EH4: SC1xT0R4TOP | EI4: SC1xT0R4MID | EJ4: SC1xT0R5TOP | EK4: SC1xT0R5MID | EL4: SC3xT0R1TOP | EM4: SC3xT0R1MID | EN4: SC3xT0R2TOP | EO4: SC3xT0R2MID | EP4: SC3xT0R3TOP | EQ4: SC3xT0R3MID | ER4: SC3xT0R4TOP | ES4: SC3xT0R4MID | ET4: SC3xT0R5TOP | EU4: SC3xT0R5MID | EV4: SCCT1R1TOP | EW4: SCCT1R1MID | EX4: SCCT1R2TOP | EY4: SCCT1R2MID | EZ4: SCCT1R3TOP | FA4: SCCT1R3MID | FB4: SCCT1R4TOP | FC4: SCCT1R4MID | FD4: SCCT1R5TOP | FE4: SCCT1R5MID | FF4: SC1xT1R1TOP | FG4: SC1xT1R1MID | FH4: SC1xT1R2TOP | FI4: SC1xT1R2MID | FJ4: SC1xT1R3TOP | FK4: SC1xT1R3MID | FL4: SC1xT1R4TOP | FM4: SC1xT1R4MID | FN4: SC1xT1R5TOP | FO4: SC1xT1R5MID | FP4: SC3xT1R1TOP | FQ4: SC3xT1R1MID | FR4: SC3xT1R2TOP | FS4: SC3xT1R2MID | FT4: SC3xT1R3TOP | FU4: SC3xT1R3MID | FV4: SC3xT1R4TOP | FW4: SC3xT1R4MID | FX4: SC3xT1R5TOP | FY4: SC3xT1R5MID | FZ4: SCCT0R1SW | GA4: SCCT0R2SW | GB4: SCCT0R3SW | GC4: SCCT0R4SW | GD4: SCCT0R5SW | GE4: SC1xT0R1SW | GF4: SC1xT0R2SW | GG4: SC1xT0R3SW | GH4: SC1xT0R4SW | GI4: SC1xT0R5SW | GJ4: SC3xT0R1SW | GK4: SC3xT0R2SW | GL4: SC3xT0R3SW | GM4: SC3xT0R4SW | GN4: SC3xT0R5SW | GO4: SCCT1R1SW | GP4: SCCT1R2SW | GQ4: SCCT1R3SW | GR4: SCCT1R4SW | GS4: SCCT1R5SW | GT4: SC1xT1R1SW | GU4: SC1xT1R2SW | GV4: SC1xT1R3SW | GW4: SC1xT1R4SW | GX4: SC1xT1R5SW | GY4: SC3xT1R1SW | GZ4: SC3xT1R2SW | HA4: SC3xT1R3SW | HB4: SC3xT1R5SW
A5: TOTAL READS | B5: 91490 | C5: 100073 | D5: 75664 | E5: 75931 | F5: 85363 | G5: 78650 | H5: 77202 | I5: 98294 | J5: 97166 | K5: 97296 | L5: 90984 | M5: 80166 | N5: 77290 | O5: 85309 | P5: 78690 | Q5: 84816 | R5: 87040 | S5: 82703 | T5: 72851 | U5: 95267 | V5: 85281 | W5: 95415 | X5: 87695 | Y5: 80184 | Z5: 85719 | AA5: 73184 | AB5: 73910 | AC5: 93626 | AD5: 83529 | AE5: 93126 | AF5: 84241 | AG5: 78961 | AH5: 80203 | AI5: 88464 | AJ5: 98155 | AK5: 97846 | AL5: 84203 | AM5: 89425 | AN5: 95562 | AO5: 89013 | AP5: 95450 | AQ5: 94600 | AR5: 88597 | AS5: 76284 | AT5: 94277 | AU5: 86967 | AV5: 88672 | AW5: 83827 | AX5: 84351 | AY5: 92605 | AZ5: 82951 | BA5: 85153 | BB5: 90202 | BC5: 101988 | BD5: 82819 | BE5: 87786 | BF5: 84485 | BG5: 76351 | BH5: 93877 | BI5: 97969 | BJ5: 100986 | BK5: 91059 | BL5: 99428 | BM5: 93482 | BN5: 82480 | BO5: 96218 | BP5: 101708 | BQ5: 109091 | BR5: 97673 | BS5: 93699 | BT5: 88685 | BU5: 88121 | BV5: 100601 | BW5: 90072 | BX5: 92421 | BY5: 91982 | BZ5: 81967 | CA5: 98993 | CB5: 106755 | CC5: 102824 | CD5: 109460 | CE5: 103126 | CF5: 89413 | CG5: 99596 | CH5: 92977 | CI5: 80986 | CJ5: 91043 | CK5: 79764 | CL5: 79849 | CM5: 82801 | CN5: 81602 | CO5: 49394 | CP5: 89006 | CQ5: 102453 | CR5: 63103 | CS5: 72678 | CT5: 39452 | CU5: 68448 | CV5: 40224 | CW5: 65261 | CX5: 60804 | CY5: 74692 | CZ5: 48303 | DA5: 30719 | DB5: 76305 | DC5: 66715 | DD5: 69198 | DE5: 75818 | DF5: 73191 | DG5: 72712 | DH5: 73504 | DI5: 64398 | DJ5: 67620 | DK5: 79693 | DL5: 78780 | DM5: 51233 | DN5: 81433 | DO5: 59555 | DP5: 71096 | DQ5: 77921 | DR5: 86831 | DS5: 83985 | DT5: 62662 | DU5: 91837 | DV5: 66260 | DW5: 73867 | DX5: 82447 | DY5: 81553 | DZ5: 72342 | EA5: 71732 | EB5: 71845 | EC5: 64995 | ED5: 68918 | EE5: 73958 | EF5: 67246 | EG5: 87337 | EH5: 70935 | EI5: 75524 | EJ5: 73144 | EK5: 83012 | EL5: 81884 | EM5: 63060 | EN5: 88943 | EO5: 75593 | EP5: 81509 | EQ5: 84146 | ER5: 84241 | ES5: 78784 | ET5: 80977 | EU5: 74083 | EV5: 80839 | EW5: 83969 | EX5: 92213 | EY5: 85198 | EZ5: 83782 | FA5: 84848 | FB5: 74843 | FC5: 71621 | FD5: 79332 | FE5: 79644 | FF5: 72811 | FG5: 62813 | FH5: 84714 | FI5: 79335 | FJ5: 88785 | FK5: 86020 | FL5: 63552 | FM5: 89500 | FN5: 81085 | FO5: 75492 | FP5: 92018 | FQ5: 98207 | FR5: 83802 | FS5: 79453 | FT5: 82885 | FU5: 92181 | FV5: 89891 | FW5: 80062 | FX5: 82524 | FY5: 84457 | FZ5: 78663 | GA5: 77401 | GB5: 69843 | GC5: 80498 | GD5: 72578 | GE5: 96910 | GF5: 80305 | GG5: 105474 | GH5: 90047 | GI5: 110303 | GJ5: 88230 | GK5: 82016 | GL5: 76902 | GM5: 109540 | GN5: 83063 | GO5: 113150 | GP5: 109239 | GQ5: 75245 | GR5: 91655 | GS5: 111907 | GT5: 90736 | GU5: 90256 | GV5: 91814 | GW5: 100953 | GX5: 106340 | GY5: 92396 | GZ5: 102677 | HA5: 110255 | HB5: 82843
A6: ASV_ID | B6: S1 | C6: S2 | D6: S3 | E6: S4 | F6: S5 | G6: S6 | H6: S7 | I6: S8 | J6: S9 | K6: S10 | L6: S11 | M6: S12 | N6: S13 | O6: S14 | P6: S15 | Q6: S16 | R6: S17 | S6: S18 | T6: S19 | U6: S20 | V6: S21 | W6: S22 | X6: S23 | Y6: S24 | Z6: S25 | AA6: S26 | AB6: S27 | AC6: S28 | AD6: S29 | AE6: S30 | AF6: S31 | AG6: S32 | AH6: S33 | AI6: S34 | AJ6: S35 | AK6: S36 | AL6: S37 | AM6: S38 | AN6: S39 | AO6: S40 | AP6: S41 | AQ6: S42 | AR6: S43 | AS6: S44 | AT6: S45 | AU6: S46 | AV6: S47 | AW6: S49 | AX6: S50 | AY6: S51 | AZ6: S52 | BA6: S53 | BB6: S54 | BC6: S55 | BD6: S56 | BE6: S57 | BF6: S58 | BG6: S59 | BH6: S60 | BI6: S61 | BJ6: S62 | BK6: S63 | BL6: S64 | BM6: S65 | BN6: S66 | BO6: S67 | BP6: S68 | BQ6: S69 | BR6: S70 | BS6: S71 | BT6: S72 | BU6: S73 | BV6: S74 | BW6: S75 | BX6: S76 | BY6: S77 | BZ6: S78 | CA6: S79 | CB6: S80 | CC6: S81 | CD6: S82 | CE6: S83 | CF6: S84 | CG6: S85 | CH6: S86 | CI6: S87 | CJ6: S88 | CK6: S89 | CL6: S90 | CM6: S91 | CN6: S92 | CO6: S93 | CP6: S94 | CQ6: S95 | CR6: S96 | CS6: S97 | CT6: S98 | CU6: S99 | CV6: S100 | CW6: S101 | CX6: S102 | CY6: S103 | CZ6: S104 | DA6: S105 | DB6: S106 | DC6: S169 | DD6: S170 | DE6: S171 | DF6: S172 | DG6: S173 | DH6: S174 | DI6: S175 | DJ6: S176 | DK6: S177 | DL6: S178 | DM6: S179 | DN6: S180 | DO6: S181 | DP6: S182 | DQ6: S183 | DR6: S108 | DS6: S109 | DT6: S110 | DU6: S111 | DV6: S112 | DW6: S113 | DX6: S114 | DY6: S115 | DZ6: S116 | EA6: S117 | EB6: S118 | EC6: S119 | ED6: S120 | EE6: S121 | EF6: S122 | EG6: S123 | EH6: S124 | EI6: S125 | EJ6: S126 | EK6: S127 | EL6: S128 | EM6: S129 | EN6: S130 | EO6: S131 | EP6: S132 | EQ6: S133 | ER6: S134 | ES6: S135 | ET6: S136 | EU6: S137 | EV6: S138 | EW6: S139 | EX6: S140 | EY6: S141 | EZ6: S142 | FA6: S143 | FB6: S145 | FC6: S146 | FD6: S147 | FE6: S148 | FF6: S149 | FG6: S150 | FH6: S151 | FI6: S152 | FJ6: S153 | FK6: S154 | FL6: S155 | FM6: S156 | FN6: S157 | FO6: S158 | FP6: S159 | FQ6: S160 | FR6: S161 | FS6: S162 | FT6: S163 | FU6: S164 | FV6: S165 | FW6: S166 | FX6: S167 | FY6: S168 | FZ6: S184 | GA6: S185 | GB6: S186 | GC6: S187 | GD6: S188 | GE6: S189 | GF6: S190 | GG6: S191 | GH6: S192 | GI6: S193 | GJ6: S194 | GK6: S195 | GL6: S196 | GM6: S197 | GN6: S198 | GO6: S199 | GP6: S200 | GQ6: S201 | GR6: S202 | GS6: S203 | GT6: S205 | GU6: S206 | GV6: S207 | GW6: S208 | GX6: S209 | GY6: S210 | GZ6: S211 | HA6: S212 | HB6: S214 | HC6: Kingdom | HD6: Phylum | HE6: Class | HF6: Order | HG6: Family | HH6: Genus | HI6: Species
A7: Zotu1 | B7: 0 | C7: 0 | D7: 0 | E7: 0 | F7: 0 | G7: 0 | H7: 0 | I7: 0 | J7: 0 | K7: 0 | L7: 0 | M7: 0 | N7: 1 | O7: 0 | P7: 1 | Q7: 0 | R7: 0 | S7: 0 | T7: 1 | U7: 0 | V7: 0 | W7: 0 | X7: 0 | Y7: 0 | Z7: 0 | AA7: 0 | AB7: 0 | AC7: 2 | AD7: 2 | AE7: 1 | AF7: 1 | AG7: 1 | AH7: 0 | AI7: 0 | AJ7: 0 | AK7: 0 | AL7: 0 | AM7: 0 | AN7: 0 | AO7: 0 | AP7: 0 | AQ7: 0 | AR7: 3 | AS7: 0 | AT7: 0 | AU7: 1 | AV7: 0 | AW7: 1 | AX7: 3911 | AY7: 0 | AZ7: 1 | BA7: 1 | BB7: 0 | BC7: 0 | BD7: 2 | BE7: 3 | BF7: 0 | BG7: 0 | BH7: 0 | BI7: 0 | BJ7: 1 | BK7: 0 | BL7: 0 | BM7: 1 | BN7: 0 | BO7: 1 | BP7: 0 | BQ7: 5 | BR7: 0 | BS7: 0 | BT7: 0 | BU7: 0 | BV7: 0 | BW7: 0 | BX7: 0 | BY7: 0 | BZ7: 0 | CA7: 0 | CB7: 0 | CC7: 2 | CD7: 0 | CE7: 0 | CF7: 0 | CG7: 0 | CH7: 0 | CI7: 0 | CJ7: 0 | CK7: 0 | CL7: 0 | CM7: 0 | CN7: 0 | CO7: 0 | CP7: 0 | CQ7: 0 | CR7: 511 | CS7: 415 | CT7: 337 | CU7: 293 | CV7: 358 | CW7: 328 | CX7: 624 | CY7: 966 | CZ7: 417 | DA7: 773 | DB7: 252 | DC7: 1013 | DD7: 659 | DE7: 381 | DF7: 768 | DG7: 530 | DH7: 402 | DI7: 741 | DJ7: 1122 | DK7: 607 | DL7: 648 | DM7: 1495 | DN7: 547 | DO7: 737 | DP7: 622 | DQ7: 273 | DR7: 69206 | DS7: 53929 | DT7: 37783 | DU7: 57820 | DV7: 25149 | DW7: 32406 | DX7: 46143 | DY7: 46528 | DZ7: 37515 | EA7: 36225 | EB7: 30042 | EC7: 35319 | ED7: 37053 | EE7: 59276 | EF7: 37477 | EG7: 48564 | EH7: 47343 | EI7: 31642 | EJ7: 43545 | EK7: 68646 | EL7: 59294 | EM7: 42468 | EN7: 47676 | EO7: 45091 | EP7: 52293 | EQ7: 58540 | ER7: 38747 | ES7: 32807 | ET7: 59556 | EU7: 56682 | EV7: 52042 | EW7: 57654 | EX7: 74012 | EY7: 59182 | EZ7: 43925 | FA7: 53741 | FB7: 40349 | FC7: 34323 | FD7: 24808 | FE7: 43452 | FF7: 11899 | FG7: 6501 | FH7: 58950 | FI7: 54722 | FJ7: 52441 | FK7: 53041 | FL7: 35852 | FM7: 40846 | FN7: 61320 | FO7: 59723 | FP7: 53424 | FQ7: 79150 | FR7: 59085 | FS7: 48180 | FT7: 57817 | FU7: 77058 | FV7: 47795 | FW7: 49714 | FX7: 76983 | FY7: 66674 | FZ7: 526 | GA7: 285 | GB7: 270 | GC7: 747 | GD7: 1133 | GE7: 253 | GF7: 438 | GG7: 0 | GH7: 0 | GI7: 1 | GJ7: 6 | GK7: 1 | GL7: 0 | GM7: 0 | GN7: 89 | GO7: 2 | GP7: 15 | GQ7: 0 | GR7: 5 | GS7: 0 | GT7: 0 | GU7: 0 | GV7: 0 | GW7: 2 | GX7: 0 | GY7: 6 | GZ7: 0 | HA7: 0 | HB7: 6 | HC7: Archaea | HD7: Thermoproteota | HE7: Nitrososphaeria | HF7: Nitrososphaerales | HG7: Nitrosopumilaceae | HH7: Cenarchaeum | HI7: Cenarchaeum sp003724275
A8: Zotu10 | B8: 2409 | C8: 1566 | D8: 4598 | E8: 1938 | F8: 1154 | G8: 3639 | H8: 2507 | I8: 6309 | J8: 1063 | K8: 3944 | L8: 1460 | M8: 4955 | N8: 2307 | O8: 1386 | P8: 1635 | Q8: 2068 | R8: 4262 | S8: 3100 | T8: 1796 | U8: 1413 | V8: 971 | W8: 1686 | X8: 961 | Y8: 754 | Z8: 3686 | AA8: 1620 | AB8: 3539 | AC8: 3872 | AD8: 10317 | AE8: 7587 | AF8: 2826 | AG8: 2133 | AH8: 1363 | AI8: 2525 | AJ8: 1093 | AK8: 1699 | AL8: 2350 | AM8: 836 | AN8: 1727 | AO8: 2378 | AP8: 1172 | AQ8: 1580 | AR8: 1592 | AS8: 719 | AT8: 878 | AU8: 8532 | AV8: 1854 | AW8: 944 | AX8: 1071 | AY8: 3107 | AZ8: 1158 | BA8: 2707 | BB8: 1261 | BC8: 1039 | BD8: 2055 | BE8: 3443 | BF8: 2837 | BG8: 3780 | BH8: 2192 | BI8: 1499 | BJ8: 3277 | BK8: 1376 | BL8: 1770 | BM8: 2488 | BN8: 1283 | BO8: 2428 | BP8: 3058 | BQ8: 2710 | BR8: 3102 | BS8: 3940 | BT8: 2079 | BU8: 648 | BV8: 1800 | BW8: 2917 | BX8: 2022 | BY8: 1712 | BZ8: 2727 | CA8: 2592 | CB8: 2823 | CC8: 4146 | CD8: 2965 | CE8: 2353 | CF8: 2610 | CG8: 3740 | CH8: 3409 | CI8: 8211 | CJ8: 3686 | CK8: 2260 | CL8: 4326 | CM8: 2713 | CN8: 387 | CO8: 1383 | CP8: 448 | CQ8: 685 | CR8: 667 | CS8: 394 | CT8: 615 | CU8: 418 | CV8: 108 | CW8: 287 | CX8: 541 | CY8: 11898 | CZ8: 752 | DA8: 380 | DB8: 2465 | DC8: 345 | DD8: 189 | DE8: 1712 | DF8: 1228 | DG8: 5294 | DH8: 165 | DI8: 134 | DJ8: 86 | DK8: 87 | DL8: 152 | DM8: 620 | DN8: 5 | DO8: 572 | DP8: 28 | DQ8: 212 | DR8: 39 | DS8: 27 | DT8: 64 | DU8: 33 | DV8: 4 | DW8: 20 | DX8: 13 | DY8: 753 | DZ8: 41 | EA8: 13 | EB8: 90 | EC8: 0 | ED8: 101 | EE8: 14 | EF8: 38 | EG8: 37 | EH8: 2 | EI8: 7 | EJ8: 10 | EK8: 414 | EL8: 42 | EM8: 10 | EN8: 164 | EO8: 2 | EP8: 73 | EQ8: 36 | ER8: 63 | ES8: 59 | ET8: 0 | EU8: 14 | EV8: 11 | EW8: 393 | EX8: 54 | EY8: 19 | EZ8: 251 | FA8: 0 | FB8: 26 | FC8: 22 | FD8: 146 | FE8: 15 | FF8: 228 | FG8: 0 | FH8: 16 | FI8: 2 | FJ8: 2 | FK8: 3 | FL8: 5 | FM8: 0 | FN8: 54 | FO8: 11 | FP8: 155 | FQ8: 66 | FR8: 319 | FS8: 3 | FT8: 13 | FU8: 0 | FV8: 5 | FW8: 0 | FX8: 27 | FY8: 65 | FZ8: 91 | GA8: 223 | GB8: 20 | GC8: 19 | GD8: 20 | GE8: 3 | GF8: 13 | GG8: 0 | GH8: 0 | GI8: 2 | GJ8: 1 | GK8: 1 | GL8: 0 | GM8: 2 | GN8: 0 | GO8: 0 | GP8: 1 | GQ8: 0 | GR8: 5 | GS8: 0 | GT8: 0 | GU8: 0 | GV8: 0 | GW8: 0 | GX8: 2 | GY8: 0 | GZ8: 1 | HA8: 1 | HB8: 1 | HC8: Bacteria | HD8: Actinobacteriota | HE8: Acidimicrobiia | HF8: Acidimicrobiales | HG8: TK06 | HH8: WTFX01 | HI8: WTFX01 sp009843525
A9: Zotu100 | B9: 60 | C9: 81 | D9: 389 | E9: 67 | F9: 52 | G9: 154 | H9: 129 | I9: 126 | J9: 60 | K9: 33 | L9: 28 | M9: 187 | N9: 28 | O9: 31 | P9: 111 | Q9: 157 | R9: 140 | S9: 179 | T9: 251 | U9: 67 | V9: 76 | W9: 89 | X9: 93 | Y9: 184 | Z9: 9 | AA9: 11 | AB9: 17 | AC9: 41 | AD9: 73 | AE9: 373 | AF9: 30 | AG9: 28 | AH9: 14 | AI9: 15 | AJ9: 19 | AK9: 22 | AL9: 68 | AM9: 29 | AN9: 96 | AO9: 7 | AP9: 19 | AQ9: 45 | AR9: 26 | AS9: 11 | AT9: 16 | AU9: 52 | AV9: 33 | AW9: 48 | AX9: 8 | AY9: 30 | AZ9: 100 | BA9: 24 | BB9: 60 | BC9: 90 | BD9: 23 | BE9: 85 | BF9: 87 | BG9: 25 | BH9: 30 | BI9: 51 | BJ9: 115 | BK9: 175 | BL9: 583 | BM9: 78 | BN9: 47 | BO9: 123 | BP9: 161 | BQ9: 219 | BR9: 715 | BS9: 21 | BT9: 8 | BU9: 4 | BV9: 17 | BW9: 40 | BX9: 65 | BY9: 10 | BZ9: 13 | CA9: 30 | CB9: 24 | CC9: 71 | CD9: 97 | CE9: 85 | CF9: 43 | CG9: 97 | CH9: 37 | CI9: 56 | CJ9: 174 | CK9: 36 | CL9: 50 | CM9: 79 | CN9: 19 | CO9: 290 | CP9: 10 | CQ9: 21 | CR9: 212 | CS9: 330 | CT9: 287 | CU9: 258 | CV9: 10 | CW9: 34 | CX9: 58 | CY9: 1072 | CZ9: 129 | DA9: 37 | DB9: 230 | DC9: 46 | DD9: 13 | DE9: 656 | DF9: 177 | DG9: 456 | DH9: 13 | DI9: 11 | DJ9: 9 | DK9: 11 | DL9: 17 | DM9: 61 | DN9: 0 | DO9: 93 | DP9: 0 | DQ9: 26 | DR9: 3 | DS9: 20 | DT9: 9 | DU9: 16 | DV9: 0 | DW9: 0 | DX9: 0 | DY9: 32 | DZ9: 0 | EA9: 2 | EB9: 7 | EC9: 0 | ED9: 16 | EE9: 9 | EF9: 3 | EG9: 2 | EH9: 0 | EI9: 5 | EJ9: 2 | EK9: 15 | EL9: 6 | EM9: 2 | EN9: 9 | EO9: 0 | EP9: 10 | EQ9: 18 | ER9: 15 | ES9: 16 | ET9: 0 | EU9: 2 | EV9: 0 | EW9: 19 | EX9: 3 | EY9: 2 | EZ9: 11 | FA9: 0 | FB9: 0 | FC9: 0 | FD9: 30 | FE9: 2 | FF9: 10 | FG9: 1 | FH9: 0 | FI9: 0 | FJ9: 0 | FK9: 0 | FL9: 0 | FM9: 0 | FN9: 3 | FO9: 0 | FP9: 19 | FQ9: 8 | FR9: 9 | FS9: 0 | FT9: 2 | FU9: 0 | FV9: 0 | FW9: 0 | FX9: 2 | FY9: 5 | FZ9: 6 | GA9: 22 | GB9: 2 | GC9: 4 | GD9: 2 | GE9: 0 | GF9: 1 | GG9: 0 | GH9: 0 | GI9: 0 | GJ9: 0 | GK9: 0 | GL9: 0 | GM9: 0 | GN9: 0 | GO9: 0 | GP9: 1 | GQ9: 0 | GR9: 0 | GS9: 0 | GT9: 0 | GU9: 0 | GV9: 0 | GW9: 0 | GX9: 0 | GY9: 0 | GZ9: 0 | HA9: 1 | HB9: 1 | HC9: Bacteria | HD9: Verrucomicrobiota | HE9: Verrucomicrobiae | HF9: Verrucomicrobiales | HG9: DEV007 | HH9: CACIUL01 | HI9: CACIUL01 sp902589825
A10: Zotu1000 | B10: 0 | C10: 0 | D10: 0 | E10: 0 | F10: 0 | G10: 0 | H10: 0 | I10: 0 | J10: 0 | K10: 0 | L10: 0 | M10: 0 | N10: 0 | O10: 0 | P10: 0 | Q10: 0 | R10: 0 | S10: 0 | T10: 0 | U10: 0 | V10: 0 | W10: 0 | X10: 0 | Y10: 0 | Z10: 0 | AA10: 0 | AB10: 0 | AC10: 0 | AD10: 0 | AE10: 0 | AF10: 0 | AG10: 0 | AH10: 0 | AI10: 0 | AJ10: 0 | AK10: 0 | AL10: 0 | AM10: 0 | AN10: 0 | AO10: 0 | AP10: 0 | AQ10: 0 | AR10: 0 | AS10: 0 | AT10: 0 | AU10: 0 | AV10: 0 | AW10: 0 | AX10: 0 | AY10: 0 | AZ10: 0 | BA10: 0 | BB10: 0 | BC10: 0 | BD10: 0 | BE10: 0 | BF10: 0 | BG10: 0 | BH10: 0 | BI10: 0 | BJ10: 0 | BK10: 0 | BL10: 0 | BM10: 0 | BN10: 0 | BO10: 0 | BP10: 0 | BQ10: 0 | BR10: 0 | BS10: 0 | BT10: 0 | BU10: 0 | BV10: 0 | BW10: 0 | BX10: 0 | BY10: 0 | BZ10: 0 | CA10: 0 | CB10: 0 | CC10: 0 | CD10: 0 | CE10: 0 | CF10: 0 | CG10: 0 | CH10: 0 | CI10: 0 | CJ10: 0 | CK10: 0 | CL10: 0 | CM10: 0 | CN10: 0 | CO10: 0 | CP10: 0 | CQ10: 1 | CR10: 0 | CS10: 1 | CT10: 1 | CU10: 3 | CV10: 0 | CW10: 7 | CX10: 0 | CY10: 0 | CZ10: 0 | DA10: 0 | DB10: 0 | DC10: 24 | DD10: 18 | DE10: 10 | DF10: 24 | DG10: 8 | DH10: 4 | DI10: 6 | DJ10: 7 | DK10: 46 | DL10: 16 | DM10: 10 | DN10: 24 | DO10: 23 | DP10: 28 | DQ10: 13 | DR10: 0 | DS10: 0 | DT10: 0 | DU10: 2 | DV10: 0 | DW10: 0 | DX10: 0 | DY10: 0 | DZ10: 2 | EA10: 0 | EB10: 1 | EC10: 0 | ED10: 0 | EE10: 2 | EF10: 0 | EG10: 0 | EH10: 0 | EI10: 0 | EJ10: 0 | EK10: 0 | EL10: 0 | EM10: 0 | EN10: 0 | EO10: 0 | EP10: 0 | EQ10: 0 | ER10: 0 | ES10: 0 | ET10: 0 | EU10: 0 | EV10: 0 | EW10: 0 | EX10: 0 | EY10: 0 | EZ10: 0 | FA10: 0 | FB10: 2 | FC10: 0 | FD10: 0 | FE10: 0 | FF10: 0 | FG10: 0 | FH10: 0 | FI10: 0 | FJ10: 0 | FK10: 0 | FL10: 0 | FM10: 0 | FN10: 0 | FO10: 2 | FP10: 2 | FQ10: 0 | FR10: 0 | FS10: 0 | FT10: 3 | FU10: 0 | FV10: 0 | FW10: 0 | FX10: 0 | FY10: 3 | FZ10: 6 | GA10: 7 | GB10: 3 | GC10: 1 | GD10: 5 | GE10: 2 | GF10: 12 | GG10: 0 | GH10: 0 | GI10: 2 | GJ10: 0 | GK10: 1 | GL10: 1 | GM10: 2 | GN10: 1 | GO10: 0 | GP10: 0 | GQ10: 0 | GR10: 0 | GS10: 0 | GT10: 2 | GU10: 0 | GV10: 0 | GW10: 0 | GX10: 0 | GY10: 0 | GZ10: 0 | HA10: 0 | HB10: 0 | HC10: Bacteria | HD10: Bacteroidota | HE10: Bacteroidia | HF10: Flavobacteriales | HG10: UA16 | HH10: UA16 | HI10: UA16 sp002863125
A11: Zotu1001 | B11: 0 | C11: 0 | D11: 0 | E11: 0 | F11: 0 | G11: 0 | H11: 0 | I11: 0 | J11: 0 | K11: 1 | L11: 0 | M11: 0 | N11: 0 | O11: 0 | P11: 0 | Q11: 0 | R11: 0 | S11: 0 | T11: 0 | U11: 0 | V11: 0 | W11: 0 | X11: 0 | Y11: 0 | Z11: 0 | AA11: 0 | AB11: 0 | AC11: 0 | AD11: 0 | AE11: 0 | AF11: 0 | AG11: 0 | AH11: 0 | AI11: 0 | AJ11: 0 | AK11: 0 | AL11: 0 | AM11: 0 | AN11: 0 | AO11: 0 | AP11: 0 | AQ11: 0 | AR11: 0 | AS11: 0 | AT11: 0 | AU11: 0 | AV11: 0 | AW11: 0 | AX11: 0 | AY11: 0 | AZ11: 0 | BA11: 0 | BB11: 0 | BC11: 0 | BD11: 0 | BE11: 0 | BF11: 0 | BG11: 0 | BH11: 0 | BI11: 0 | BJ11: 0 | BK11: 0 | BL11: 0 | BM11: 0 | BN11: 0 | BO11: 0 | BP11: 0 | BQ11: 0 | BR11: 0 | BS11: 0 | BT11: 0 | BU11: 0 | BV11: 0 | BW11: 0 | BX11: 0 | BY11: 0 | BZ11: 0 | CA11: 0 | CB11: 0 | CC11: 0 | CD11: 0 | CE11: 0 | CF11: 0 | CG11: 0 | CH11: 2 | CI11: 0 | CJ11: 0 | CK11: 0 | CL11: 2 | CM11: 0 | CN11: 1 | CO11: 0 | CP11: 1 | CQ11: 3 | CR11: 1 | CS11: 1 | CT11: 4 | CU11: 3 | CV11: 0 | CW11: 4 | CX11: 0 | CY11: 2 | CZ11: 0 | DA11: 0 | DB11: 0 | DC11: 2 | DD11: 1 | DE11: 0 | DF11: 0 | DG11: 0 | DH11: 0 | DI11: 0 | DJ11: 2 | DK11: 1 | DL11: 1 | DM11: 0 | DN11: 1 | DO11: 1 | DP11: 1 | DQ11: 0 | DR11: 0 | DS11: 3 | DT11: 0 | DU11: 0 | DV11: 0 | DW11: 3 | DX11: 0 | DY11: 2 | DZ11: 0 | EA11: 0 | EB11: 0 | EC11: 0 | ED11: 0 | EE11: 2 | EF11: 0 | EG11: 0 | EH11: 0 | EI11: 0 | EJ11: 0 | EK11: 2 | EL11: 0 | EM11: 0 | EN11: 2 | EO11: 0 | EP11: 2 | EQ11: 0 | ER11: 0 | ES11: 3 | ET11: 2 | EU11: 0 | EV11: 0 | EW11: 0 | EX11: 2 | EY11: 0 | EZ11: 0 | FA11: 0 | FB11: 0 | FC11: 2 | FD11: 0 | FE11: 0 | FF11: 2 | FG11: 0 | FH11: 0 | FI11: 0 | FJ11: 2 | FK11: 0 | FL11: 0 | FM11: 2 | FN11: 0 | FO11: 2 | FP11: 0 | FQ11: 2 | FR11: 0 | FS11: 0 | FT11: 0 | FU11: 0 | FV11: 0 | FW11: 0 | FX11: 0 | FY11: 0 | FZ11: 0 | GA11: 4 | GB11: 0 | GC11: 2 | GD11: 0 | GE11: 0 | GF11: 0 | GG11: 6 | GH11: 1 | GI11: 3 | GJ11: 2 | GK11: 6 | GL11: 2 | GM11: 3 | GN11: 1 | GO11: 10 | GP11: 4 | GQ11: 9 | GR11: 4 | GS11: 11 | GT11: 13 | GU11: 5 | GV11: 5 | GW11: 13 | GX11: 16 | GY11: 8 | GZ11: 12 | HA11: 13 | HB11: 11 | HC11: Bacteria | HD11: Proteobacteria | HE11: Gammaproteobacteria | HF11: Burkholderiales | HG11: Burkholderiaceae_A | HH11: UBA7377 | HI11: UBA7377 sp902586195
A12: Zotu1002 | B12: 0 | C12: 0 | D12: 0 | E12: 0 | F12: 0 | G12: 0 | H12: 0 | I12: 0 | J12: 0 | K12: 0 | L12: 0 | M12: 0 | N12: 0 | O12: 0 | P12: 0 | Q12: 0 | R12: 0 | S12: 0 | T12: 0 | U12: 0 | V12: 0 | W12: 0 | X12: 0 | Y12: 0 | Z12: 0 | AA12: 0 | AB12: 0 | AC12: 0 | AD12: 0 | AE12: 0 | AF12: 0 | AG12: 0 | AH12: 0 | AI12: 0 | AJ12: 0 | AK12: 0 | AL12: 0 | AM12: 0 | AN12: 0 | AO12: 0 | AP12: 0 | AQ12: 0 | AR12: 0 | AS12: 0 | AT12: 0 | AU12: 0 | AV12: 0 | AW12: 0 | AX12: 0 | AY12: 0 | AZ12: 0 | BA12: 0 | BB12: 0 | BC12: 0 | BD12: 0 | BE12: 0 | BF12: 0 | BG12: 0 | BH12: 0 | BI12: 0 | BJ12: 0 | BK12: 0 | BL12: 0 | BM12: 0 | BN12: 0 | BO12: 0 | BP12: 0 | BQ12: 0 | BR12: 0 | BS12: 0 | BT12: 0 | BU12: 0 | BV12: 0 | BW12: 0 | BX12: 0 | BY12: 0 | BZ12: 0 | CA12: 0 | CB12: 0 | CC12: 0 | CD12: 0 | CE12: 0 | CF12: 0 | CG12: 0 | CH12: 3 | CI12: 3 | CJ12: 2 | CK12: 0 | CL12: 0 | CM12: 0 | CN12: 2 | CO12: 0 | CP12: 6 | CQ12: 1 | CR12: 5 | CS12: 4 | CT12: 6 | CU12: 3 | CV12: 2 | CW12: 2 | CX12: 0 | CY12: 0 | CZ12: 4 | DA12: 2 | DB12: 3 | DC12: 1 | DD12: 4 | DE12: 1 | DF12: 0 | DG12: 3 | DH12: 0 | DI12: 1 | DJ12: 5 | DK12: 1 | DL12: 3 | DM12: 1 | DN12: 2 | DO12: 1 | DP12: 0 | DQ12: 2 | DR12: 0 | DS12: 0 | DT12: 2 | DU12: 0 | DV12: 1 | DW12: 0 | DX12: 0 | DY12: 0 | DZ12: 0 | EA12: 0 | EB12: 0 | EC12: 0 | ED12: 3 | EE12: 0 | EF12: 0 | EG12: 3 | EH12: 0 | EI12: 0 | EJ12: 0 | EK12: 0 | EL12: 0 | EM12: 3 | EN12: 0 | EO12: 0 | EP12: 2 | EQ12: 0 | ER12: 0 | ES12: 0 | ET12: 2 | EU12: 0 | EV12: 0 | EW12: 0 | EX12: 0 | EY12: 0 | EZ12: 0 | FA12: 0 | FB12: 2 | FC12: 0 | FD12: 6 | FE12: 0 | FF12: 2 | FG12: 0 | FH12: 0 | FI12: 0 | FJ12: 0 | FK12: 0 | FL12: 0 | FM12: 0 | FN12: 0 | FO12: 2 | FP12: 0 | FQ12: 0 | FR12: 0 | FS12: 0 | FT12: 0 | FU12: 0 | FV12: 0 | FW12: 0 | FX12: 0 | FY12: 2 | FZ12: 4 | GA12: 0 | GB12: 0 | GC12: 0 | GD12: 4 | GE12: 2 | GF12: 0 | GG12: 1 | GH12: 1 | GI12: 12 | GJ12: 2 | GK12: 5 | GL12: 5 | GM12: 10 | GN12: 23 | GO12: 7 | GP12: 3 | GQ12: 2 | GR12: 6 | GS12: 3 | GT12: 1 | GU12: 1 | GV12: 2 | GW12: 4 | GX12: 3 | GY12: 6 | GZ12: 0 | HA12: 0 | HB12: 6 | HC12: Bacteria | HD12: Proteobacteria | HE12: Alphaproteobacteria | HF12: Rhodobacterales | HG12: Rhodobacteraceae | HH12: Roseovarius | HI12: Roseovarius indicus
A13: Zotu1003 | B13: 0 | C13: 0 | D13: 0 | E13: 0 | F13: 0 | G13: 0 | H13: 0 | I13: 0 | J13: 0 | K13: 0 | L13: 0 | M13: 0 | N13: 0 | O13: 0 | P13: 0 | Q13: 0 | R13: 0 | S13: 0 | T13: 0 | U13: 0 | V13: 0 | W13: 0 | X13: 0 | Y13: 0 | Z13: 0 | AA13: 0 | AB13: 0 | AC13: 0 | AD13: 0 | AE13: 0 | AF13: 0 | AG13: 0 | AH13: 0 | AI13: 0 | AJ13: 0 | AK13: 0 | AL13: 0 | AM13: 0 | AN13: 0 | AO13: 0 | AP13: 0 | AQ13: 0 | AR13: 0 | AS13: 0 | AT13: 0 | AU13: 0 | AV13: 0 | AW13: 0 | AX13: 0 | AY13: 0 | AZ13: 0 | BA13: 0 | BB13: 0 | BC13: 0 | BD13: 0 | BE13: 0 | BF13: 0 | BG13: 0 | BH13: 0 | BI13: 0 | BJ13: 0 | BK13: 0 | BL13: 0 | BM13: 0 | BN13: 0 | BO13: 0 | BP13: 0 | BQ13: 0 | BR13: 0 | BS13: 0 | BT13: 0 | BU13: 0 | BV13: 0 | BW13: 0 | BX13: 0 | BY13: 0 | BZ13: 0 | CA13: 0 | CB13: 0 | CC13: 0 | CD13: 0 | CE13: 0 | CF13: 0 | CG13: 0 | CH13: 0 | CI13: 0 | CJ13: 0 | CK13: 0 | CL13: 0 | CM13: 0 | CN13: 1 | CO13: 3 | CP13: 2 | CQ13: 1 | CR13: 0 | CS13: 0 | CT13: 0 | CU13: 0 | CV13: 1 | CW13: 1 | CX13: 0 | CY13: 0 | CZ13: 0 | DA13: 0 | DB13: 0 | DC13: 4 | DD13: 2 | DE13: 0 | DF13: 1 | DG13: 3 | DH13: 1 | DI13: 1 | DJ13: 1 | DK13: 2 | DL13: 3 | DM13: 1 | DN13: 6 | DO13: 15 | DP13: 8 | DQ13: 2 | DR13: 0 | DS13: 2 | DT13: 3 | DU13: 0 | DV13: 4 | DW13: 0 | DX13: 3 | DY13: 2 | DZ13: 0 | EA13: 0 | EB13: 0 | EC13: 0 | ED13: 0 | EE13: 0 | EF13: 0 | EG13: 0 | EH13: 2 | EI13: 0 | EJ13: 0 | EK13: 0 | EL13: 0 | EM13: 0 | EN13: 0 | EO13: 0 | EP13: 0 | EQ13: 0 | ER13: 0 | ES13: 0 | ET13: 0 | EU13: 0 | EV13: 0 | EW13: 0 | EX13: 0 | EY13: 0 | EZ13: 0 | FA13: 0 | FB13: 2 | FC13: 0 | FD13: 0 | FE13: 0 | FF13: 0 | FG13: 1 | FH13: 3 | FI13: 5 | FJ13: 0 | FK13: 2 | FL13: 2 | FM13: 0 | FN13: 0 | FO13: 0 | FP13: 0 | FQ13: 0 | FR13: 0 | FS13: 3 | FT13: 0 | FU13: 2 | FV13: 5 | FW13: 0 | FX13: 0 | FY13: 2 | FZ13: 2 | GA13: 4 | GB13: 3 | GC13: 5 | GD13: 3 | GE13: 2 | GF13: 4 | GG13: 3 | GH13: 1 | GI13: 4 | GJ13: 1 | GK13: 2 | GL13: 2 | GM13: 1 | GN13: 1 | GO13: 8 | GP13: 2 | GQ13: 5 | GR13: 8 | GS13: 11 | GT13: 15 | GU13: 6 | GV13: 1 | GW13: 9 | GX13: 8 | GY13: 12 | GZ13: 13 | HA13: 6 | HB13: 3 | HC13: Bacteria | HD13: Bacteroidota | HE13: Bacteroidia | HF13: Flavobacteriales | HG13: Schleiferiaceae | HH13: UBA10364 | HI13: UBA10364 sp003385605
A14: Zotu1007 | B14: 0 | C14: 0 | D14: 0 | E14: 0 | F14: 0 | G14: 0 | H14: 0 | I14: 0 | J14: 0 | K14: 0 | L14: 0 | M14: 0 | N14: 0 | O14: 0 | P14: 0 | Q14: 0 | R14: 0 | S14: 0 | T14: 0 | U14: 0 | V14: 0 | W14: 0 | X14: 0 | Y14: 0 | Z14: 0 | AA14: 0 | AB14: 0 | AC14: 0 | AD14: 0 | AE14: 0 | AF14: 0 | AG14: 0 | AH14: 0 | AI14: 0 | AJ14: 0 | AK14: 0 | AL14: 0 | AM14: 0 | AN14: 0 | AO14: 0 | AP14: 0 | AQ14: 0 | AR14: 0 | AS14: 0 | AT14: 0 | AU14: 0 | AV14: 0 | AW14: 0 | AX14: 0 | AY14: 0 | AZ14: 0 | BA14: 0 | BB14: 0 | BC14: 0 | BD14: 0 | BE14: 0 | BF14: 0 | BG14: 0 | BH14: 0 | BI14: 0 | BJ14: 0 | BK14: 0 | BL14: 0 | BM14: 0 | BN14: 0 | BO14: 0 | BP14: 0 | BQ14: 0 | BR14: 0 | BS14: 0 | BT14: 0 | BU14: 0 | BV14: 0 | BW14: 0 | BX14: 0 | BY14: 0 | BZ14: 0 | CA14: 0 | CB14: 0 | CC14: 0 | CD14: 0 | CE14: 0 | CF14: 0 | CG14: 0 | CH14: 0 | CI14: 0 | CJ14: 0 | CK14: 0 | CL14: 0 | CM14: 0 | CN14: 0 | CO14: 0 | CP14: 0 | CQ14: 0 | CR14: 1 | CS14: 0 | CT14: 0 | CU14: 2 | CV14: 0 | CW14: 0 | CX14: 0 | CY14: 0 | CZ14: 1 | DA14: 0 | DB14: 1 | DC14: 1 | DD14: 1 | DE14: 1 | DF14: 1 | DG14: 0 | DH14: 0 | DI14: 0 | DJ14: 0 | DK14: 0 | DL14: 0 | DM14: 1 | DN14: 0 | DO14: 0 | DP14: 0 | DQ14: 0 | DR14: 0 | DS14: 0 | DT14: 0 | DU14: 0 | DV14: 0 | DW14: 0 | DX14: 0 | DY14: 0 | DZ14: 0 | EA14: 0 | EB14: 0 | EC14: 0 | ED14: 0 | EE14: 0 | EF14: 0 | EG14: 0 | EH14: 0 | EI14: 0 | EJ14: 0 | EK14: 0 | EL14: 0 | EM14: 0 | EN14: 0 | EO14: 0 | EP14: 0 | EQ14: 0 | ER14: 0 | ES14: 0 | ET14: 0 | EU14: 0 | EV14: 0 | EW14: 0 | EX14: 0 | EY14: 0 | EZ14: 0 | FA14: 0 | FB14: 0 | FC14: 0 | FD14: 0 | FE14: 0 | FF14: 0 | FG14: 0 | FH14: 0 | FI14: 0 | FJ14: 0 | FK14: 0 | FL14: 0 | FM14: 0 | FN14: 0 | FO14: 0 | FP14: 0 | FQ14: 0 | FR14: 0 | FS14: 0 | FT14: 0 | FU14: 0 | FV14: 0 | FW14: 0 | FX14: 0 | FY14: 0 | FZ14: 0 | GA14: 0 | GB14: 1 | GC14: 0 | GD14: 0 | GE14: 0 | GF14: 0 | GG14: 0 | GH14: 0 | GI14: 2 | GJ14: 0 | GK14: 0 | GL14: 0 | GM14: 0 | GN14: 0 | GO14: 1 | GP14: 1 | GQ14: 1 | GR14: 40 | GS14: 3 | GT14: 4 | GU14: 2 | GV14: 0 | GW14: 2 | GX14: 2 | GY14: 4 | GZ14: 0 | HA14: 2 | HB14: 92 | HC14: Bacteria | HD14: Proteobacteria | HE14: Gammaproteobacteria | HF14: Enterobacterales | HG14: Vibrionaceae | HH14: Vibrio | HI14: Vibrio aquimaris
A15: Zotu1008 | B15: 1 | C15: 2 | D15: 0 | E15: 0 | F15: 1 | G15: 0 | H15: 3 | I15: 1 | J15: 1 | K15: 3 | L15: 1 | M15: 0 | N15: 1 | O15: 0 | P15: 0 | Q15: 1 | R15: 2 | S15: 1 | T15: 1 | U15: 0 | V15: 0 | W15: 0 | X15: 1 | Y15: 0 | Z15: 1 | AA15: 0 | AB15: 0 | AC15: 0 | AD15: 4 | AE15: 2 | AF15: 2 | AG15: 0 | AH15: 0 | AI15: 1 | AJ15: 0 | AK15: 2 | AL15: 0 | AM15: 0 | AN15: 0 | AO15: 0 | AP15: 0 | AQ15: 1 | AR15: 1 | AS15: 0 | AT15: 0 | AU15: 1 | AV15: 1 | AW15: 2 | AX15: 0 | AY15: 2 | AZ15: 0 | BA15: 2 | BB15: 0 | BC15: 3 | BD15: 2 | BE15: 3 | BF15: 2 | BG15: 2 | BH15: 2 | BI15: 2 | BJ15: 3 | BK15: 5 | BL15: 8 | BM15: 2 | BN15: 2 | BO15: 2 | BP15: 2 | BQ15: 0 | BR15: 2 | BS15: 3 | BT15: 2 | BU15: 1 | BV15: 3 | BW15: 10 | BX15: 5 | BY15: 3 | BZ15: 0 | CA15: 4 | CB15: 3 | CC15: 2 | CD15: 2 | CE15: 4 | CF15: 2 | CG15: 3 | CH15: 0 | CI15: 0 | CJ15: 0 | CK15: 10 | CL15: 7 | CM15: 21 | CN15: 0 | CO15: 2 | CP15: 1 | CQ15: 2 | CR15: 1 | CS15: 0 | CT15: 2 | CU15: 1 | CV15: 0 | CW15: 0 | CX15: 0 | CY15: 0 | CZ15: 0 | DA15: 0 | DB15: 1 | DC15: 0 | DD15: 1 | DE15: 2 | DF15: 1 | DG15: 0 | DH15: 0 | DI15: 0 | DJ15: 0 | DK15: 0 | DL15: 0 | DM15: 0 | DN15: 0 | DO15: 0 | DP15: 0 | DQ15: 0 | DR15: 0 | DS15: 0 | DT15: 0 | DU15: 0 | DV15: 0 | DW15: 0 | DX15: 0 | DY15: 0 | DZ15: 0 | EA15: 0 | EB15: 0 | EC15: 0 | ED15: 0 | EE15: 0 | EF15: 0 | EG15: 0 | EH15: 0 | EI15: 0 | EJ15: 0 | EK15: 0 | EL15: 0 | EM15: 0 | EN15: 0 | EO15: 0 | EP15: 0 | EQ15: 0 | ER15: 0 | ES15: 0 | ET15: 0 | EU15: 0 | EV15: 0 | EW15: 0 | EX15: 0 | EY15: 0 | EZ15: 0 | FA15: 0 | FB15: 0 | FC15: 0 | FD15: 0 | FE15: 0 | FF15: 0 | FG15: 0 | FH15: 0 | FI15: 0 | FJ15: 0 | FK15: 0 | FL15: 0 | FM15: 0 | FN15: 0 | FO15: 0 | FP15: 0 | FQ15: 0 | FR15: 0 | FS15: 0 | FT15: 0 | FU15: 0 | FV15: 0 | FW15: 0 | FX15: 0 | FY15: 0 | FZ15: 1 | GA15: 0 | GB15: 0 | GC15: 1 | GD15: 0 | GE15: 0 | GF15: 0 | GG15: 0 | GH15: 0 | GI15: 0 | GJ15: 0 | GK15: 0 | GL15: 0 | GM15: 0 | GN15: 0 | GO15: 0 | GP15: 0 | GQ15: 0 | GR15: 0 | GS15: 0 | GT15: 0 | GU15: 0 | GV15: 0 | GW15: 0 | GX15: 0 | GY15: 0 | GZ15: 0 | HA15: 0 | HB15: 0 | HC15: Bacteria | HD15: Latescibacterota | HE15: UBA2968 | HF15: UBA2968 | HG15: UBA2968 | HH15: UBA2968 | HI15: UBA2968 sp002714465
A16: Zotu1009 | B16: 0 | C16: 0 | D16: 0 | E16: 0 | F16: 0 | G16: 0 | H16: 0 | I16: 0 | J16: 0 | K16: 0 | L16: 0 | M16: 0 | N16: 0 | O16: 0 | P16: 0 | Q16: 0 | R16: 0 | S16: 0 | T16: 0 | U16: 0 | V16: 0 | W16: 0 | X16: 0 | Y16: 0 | Z16: 0 | AA16: 0 | AB16: 0 | AC16: 0 | AD16: 0 | AE16: 0 | AF16: 0 | AG16: 0 | AH16: 0 | AI16: 0 | AJ16: 0 | AK16: 0 | AL16: 0 | AM16: 0 | AN16: 0 | AO16: 0 | AP16: 0 | AQ16: 0 | AR16: 0 | AS16: 0 | AT16: 0 | AU16: 0 | AV16: 0 | AW16: 0 | AX16: 0 | AY16: 0 | AZ16: 0 | BA16: 0 | BB16: 0 | BC16: 0 | BD16: 0 | BE16: 0 | BF16: 0 | BG16: 0 | BH16: 0 | BI16: 0 | BJ16: 0 | BK16: 0 | BL16: 0 | BM16: 1 | BN16: 0 | BO16: 0 | BP16: 2 | BQ16: 0 | BR16: 0 | BS16: 0 | BT16: 0 | BU16: 0 | BV16: 0 | BW16: 0 | BX16: 0 | BY16: 0 | BZ16: 0 | CA16: 1 | CB16: 0 | CC16: 5 | CD16: 2 | CE16: 0 | CF16: 0 | CG16: 0 | CH16: 0 | CI16: 0 | CJ16: 0 | CK16: 0 | CL16: 0 | CM16: 0 | CN16: 0 | CO16: 2 | CP16: 2 | CQ16: 0 | CR16: 2 | CS16: 4 | CT16: 0 | CU16: 2 | CV16: 2 | CW16: 1 | CX16: 0 | CY16: 2 | CZ16: 3 | DA16: 2 | DB16: 1 | DC16: 0 | DD16: 3 | DE16: 1 | DF16: 5 | DG16: 0 | DH16: 0 | DI16: 3 | DJ16: 3 | DK16: 1 | DL16: 2 | DM16: 3 | DN16: 1 | DO16: 0 | DP16: 2 | DQ16: 1 | DR16: 0 | DS16: 0 | DT16: 0 | DU16: 0 | DV16: 0 | DW16: 0 | DX16: 0 | DY16: 0 | DZ16: 0 | EA16: 0 | EB16: 0 | EC16: 0 | ED16: 3 | EE16: 0 | EF16: 5 | EG16: 0 | EH16: 0 | EI16: 0 | EJ16: 0 | EK16: 0 | EL16: 0 | EM16: 0 | EN16: 0 | EO16: 0 | EP16: 0 | EQ16: 2 | ER16: 2 | ES16: 2 | ET16: 2 | EU16: 0 | EV16: 0 | EW16: 0 | EX16: 2 | EY16: 0 | EZ16: 0 | FA16: 0 | FB16: 2 | FC16: 0 | FD16: 0 | FE16: 0 | FF16: 5 | FG16: 1 | FH16: 2 | FI16: 0 | FJ16: 0 | FK16: 0 | FL16: 0 | FM16: 3 | FN16: 0 | FO16: 0 | FP16: 2 | FQ16: 0 | FR16: 0 | FS16: 0 | FT16: 0 | FU16: 2 | FV16: 0 | FW16: 0 | FX16: 0 | FY16: 0 | FZ16: 4 | GA16: 2 | GB16: 0 | GC16: 1 | GD16: 5 | GE16: 1 | GF16: 1 | GG16: 1 | GH16: 1 | GI16: 13 | GJ16: 9 | GK16: 7 | GL16: 1 | GM16: 11 | GN16: 3 | GO16: 8 | GP16: 6 | GQ16: 5 | GR16: 5 | GS16: 1 | GT16: 7 | GU16: 6 | GV16: 3 | GW16: 7 | GX16: 5 | GY16: 2 | GZ16: 7 | HA16: 4 | HB16: 2 | HC16: Bacteria | HD16: Proteobacteria | HE16: Gammaproteobacteria | HF16: Enterobacterales | HG16: Vibrionaceae | HH16: Vibrio | HI16: Vibrio taketomensis
A17: Zotu101 | B17: 217 | C17: 232 | D17: 122 | E17: 90 | F17: 62 | G17: 139 | H17: 78 | I17: 115 | J17: 76 | K17: 172 | L17: 137 | M17: 251 | N17: 99 | O17: 99 | P17: 106 | Q17: 74 | R17: 67 | S17: 116 | T17: 105 | U17: 116 | V17: 88 | W17: 96 | X17: 128 | Y17: 134 | Z17: 80 | AA17: 62 | AB17: 71 | AC17: 128 | AD17: 68 | AE17: 90 | AF17: 26 | AG17: 43 | AH17: 38 | AI17: 70 | AJ17: 94 | AK17: 105 | AL17: 112 | AM17: 94 | AN17: 88 | AO17: 72 | AP17: 73 | AQ17: 80 | AR17: 94 | AS17: 66 | AT17: 100 | AU17: 141 | AV17: 213 | AW17: 173 | AX17: 56 | AY17: 128 | AZ17: 106 | BA17: 90 | BB17: 73 | BC17: 100 | BD17: 190 | BE17: 299 | BF17: 396 | BG17: 225 | BH17: 126 | BI17: 136 | BJ17: 166 | BK17: 158 | BL17: 206 | BM17: 140 | BN17: 95 | BO17: 145 | BP17: 312 | BQ17: 452 | BR17: 301 | BS17: 208 | BT17: 59 | BU17: 74 | BV17: 119 | BW17: 188 | BX17: 217 | BY17: 39 | BZ17: 67 | CA17: 64 | CB17: 204 | CC17: 458 | CD17: 527 | CE17: 212 | CF17: 214 | CG17: 312 | CH17: 187 | CI17: 349 | CJ17: 405 | CK17: 138 | CL17: 229 | CM17: 409 | CN17: 43 | CO17: 173 | CP17: 62 | CQ17: 70 | CR17: 51 | CS17: 30 | CT17: 24 | CU17: 51 | CV17: 6 | CW17: 19 | CX17: 11 | CY17: 134 | CZ17: 47 | DA17: 22 | DB17: 97 | DC17: 27 | DD17: 14 | DE17: 80 | DF17: 88 | DG17: 92 | DH17: 9 | DI17: 7 | DJ17: 7 | DK17: 12 | DL17: 12 | DM17: 8 | DN17: 1 | DO17: 15 | DP17: 1 | DQ17: 13 | DR17: 2 | DS17: 3 | DT17: 5 | DU17: 5 | DV17: 0 | DW17: 0 | DX17: 0 | DY17: 5 | DZ17: 3 | EA17: 0 | EB17: 9 | EC17: 0 | ED17: 6 | EE17: 7 | EF17: 2 | EG17: 16 | EH17: 0 | EI17: 0 | EJ17: 0 | EK17: 7 | EL17: 5 | EM17: 0 | EN17: 13 | EO17: 0 | EP17: 5 | EQ17: 6 | ER17: 2 | ES17: 13 | ET17: 0 | EU17: 0 | EV17: 0 | EW17: 11 | EX17: 15 | EY17: 0 | EZ17: 29 | FA17: 0 | FB17: 2 | FC17: 0 | FD17: 14 | FE17: 0 | FF17: 6 | FG17: 0 | FH17: 0 | FI17: 0 | FJ17: 0 | FK17: 0 | FL17: 0 | FM17: 0 | FN17: 8 | FO17: 3 | FP17: 6 | FQ17: 14 | FR17: 9 | FS17: 0 | FT17: 0 | FU17: 0 | FV17: 0 | FW17: 2 | FX17: 0 | FY17: 3 | FZ17: 12 | GA17: 8 | GB17: 1 | GC17: 4 | GD17: 2 | GE17: 3 | GF17: 1 | GG17: 0 | GH17: 0 | GI17: 0 | GJ17: 0 | GK17: 1 | GL17: 0 | GM17: 1 | GN17: 0 | GO17: 0 | GP17: 1 | GQ17: 0 | GR17: 0 | GS17: 0 | GT17: 0 | GU17: 0 | GV17: 0 | GW17: 0 | GX17: 1 | GY17: 0 | GZ17: 0 | HA17: 0 | HB17: 0 | HC17: Bacteria | HD17: Proteobacteria | HE17: Gammaproteobacteria | HF17: Pseudomonadales | HG17: HTCC2089 | HH17: UBA2168 | HI17: UBA2168 sp009843635
A18: Zotu1010 | B18: 0 | C18: 0 | D18: 0 | E18: 0 | F18: 0 | G18: 0 | H18: 0 | I18: 0 | J18: 0 | K18: 0 | L18: 0 | M18: 0 | N18: 0 | O18: 0 | P18: 0 | Q18: 0 | R18: 0 | S18: 0 | T18: 0 | U18: 0 | V18: 0 | W18: 0 | X18: 0 | Y18: 0 | Z18: 0 | AA18: 0 | AB18: 0 | AC18: 0 | AD18: 0 | AE18: 0 | AF18: 0 | AG18: 0 | AH18: 0 | AI18: 0 | AJ18: 0 | AK18: 0 | AL18: 0 | AM18: 0 | AN18: 0 | AO18: 0 | AP18: 0 | AQ18: 0 | AR18: 0 | AS18: 0 | AT18: 0 | AU18: 0 | AV18: 0 | AW18: 0 | AX18: 0 | AY18: 0 | AZ18: 0 | BA18: 0 | BB18: 0 | BC18: 0 | BD18: 0 | BE18: 0 | BF18: 0 | BG18: 0 | BH18: 0 | BI18: 0 | BJ18: 0 | BK18: 0 | BL18: 0 | BM18: 0 | BN18: 0 | BO18: 0 | BP18: 0 | BQ18: 0 | BR18: 0 | BS18: 0 | BT18: 0 | BU18: 0 | BV18: 0 | BW18: 0 | BX18: 0 | BY18: 0 | BZ18: 0 | CA18: 0 | CB18: 0 | CC18: 0 | CD18: 0 | CE18: 0 | CF18: 0 | CG18: 0 | CH18: 0 | CI18: 2 | CJ18: 0 | CK18: 2 | CL18: 0 | CM18: 0 | CN18: 9 | CO18: 0 | CP18: 7 | CQ18: 8 | CR18: 31 | CS18: 4 | CT18: 0 | CU18: 12 | CV18: 5 | CW18: 1 | CX18: 0 | CY18: 2 | CZ18: 16 | DA18: 0 | DB18: 6 | DC18: 0 | DD18: 2 | DE18: 1 | DF18: 2 | DG18: 0 | DH18: 0 | DI18: 0 | DJ18: 1 | DK18: 0 | DL18: 8 | DM18: 3 | DN18: 4 | DO18: 0 | DP18: 2 | DQ18: 0 | DR18: 2 | DS18: 0 | DT18: 0 | DU18: 0 | DV18: 0 | DW18: 0 | DX18: 0 | DY18: 0 | DZ18: 0 | EA18: 0 | EB18: 0 | EC18: 0 | ED18: 2 | EE18: 0 | EF18: 0 | EG18: 0 | EH18: 0 | EI18: 0 | EJ18: 0 | EK18: 0 | EL18: 0 | EM18: 0 | EN18: 0 | EO18: 0 | EP18: 0 | EQ18: 0 | ER18: 0 | ES18: 3 | ET18: 2 | EU18: 2 | EV18: 0 | EW18: 0 | EX18: 2 | EY18: 0 | EZ18: 0 | FA18: 0 | FB18: 0 | FC18: 0 | FD18: 0 | FE18: 0 | FF18: 0 | FG18: 0 | FH18: 0 | FI18: 0 | FJ18: 0 | FK18: 0 | FL18: 0 | FM18: 2 | FN18: 0 | FO18: 0 | FP18: 0 | FQ18: 0 | FR18: 0 | FS18: 0 | FT18: 0 | FU18: 0 | FV18: 0 | FW18: 0 | FX18: 0 | FY18: 2 | FZ18: 2 | GA18: 1 | GB18: 0 | GC18: 2 | GD18: 3 | GE18: 0 | GF18: 0 | GG18: 1 | GH18: 0 | GI18: 2 | GJ18: 3 | GK18: 1 | GL18: 2 | GM18: 0 | GN18: 4 | GO18: 4 | GP18: 3 | GQ18: 4 | GR18: 1 | GS18: 4 | GT18: 4 | GU18: 9 | GV18: 2 | GW18: 1 | GX18: 2 | GY18: 6 | GZ18: 10 | HA18: 6 | HB18: 12 | HC18: Bacteria | HD18: Cyanobacteria | HE18: Cyanobacteriia | HF18: Cyanobacteriales | HG18: Cyanobacteriaceae | HH18: Limnothrix | HI18: PCC-7407 sp000317045
A19: Zotu1011 | B19: 3 | C19: 0 | D19: 1 | E19: 1 | F19: 1 | G19: 0 | H19: 0 | I19: 1 | J19: 0 | K19: 0 | L19: 1 | M19: 0 | N19: 2 | O19: 4 | P19: 1 | Q19: 1 | R19: 1 | S19: 1 | T19: 14 | U19: 3 | V19: 1 | W19: 3 | X19: 1 | Y19: 1 | Z19: 2 | AA19: 2 | AB19: 0 | AC19: 2 | AD19: 2 | AE19: 0 | AF19: 5 | AG19: 1 | AH19: 0 | AI19: 0 | AJ19: 0 | AK19: 1 | AL19: 2 | AM19: 1 | AN19: 0 | AO19: 4 | AP19: 1 | AQ19: 0 | AR19: 1 | AS19: 1 | AT19: 0 | AU19: 0 | AV19: 1 | AW19: 2 | AX19: 1 | AY19: 1 | AZ19: 2 | BA19: 2 | BB19: 1 | BC19: 3 | BD19: 7 | BE19: 3 | BF19: 2 | BG19: 5 | BH19: 0 | BI19: 1 | BJ19: 1 | BK19: 2 | BL19: 0 | BM19: 2 | BN19: 2 | BO19: 5 | BP19: 5 | BQ19: 2 | BR19: 0 | BS19: 2 | BT19: 1 | BU19: 0 | BV19: 5 | BW19: 3 | BX19: 1 | BY19: 2 | BZ19: 4 | CA19: 5 | CB19: 6 | CC19: 7 | CD19: 3 | CE19: 6 | CF19: 0 | CG19: 0 | CH19: 8 | CI19: 3 | CJ19: 10 | CK19: 0 | CL19: 0 | CM19: 0 | CN19: 0 | CO19: 0 | CP19: 0 | CQ19: 2 | CR19: 0 | CS19: 0 | CT19: 0 | CU19: 0 | CV19: 0 | CW19: 0 | CX19: 0 | CY19: 0 | CZ19: 0 | DA19: 0 | DB19: 0 | DC19: 0 | DD19: 0 | DE19: 0 | DF19: 0 | DG19: 0 | DH19: 0 | DI19: 0 | DJ19: 0 | DK19: 0 | DL19: 0 | DM19: 0 | DN19: 0 | DO19: 0 | DP19: 0 | DQ19: 0 | DR19: 0 | DS19: 0 | DT19: 0 | DU19: 0 | DV19: 0 | DW19: 0 | DX19: 0 | DY19: 0 | DZ19: 0 | EA19: 0 | EB19: 0 | EC19: 0 | ED19: 0 | EE19: 0 | EF19: 0 | EG19: 0 | EH19: 0 | EI19: 0 | EJ19: 0 | EK19: 0 | EL19: 0 | EM19: 0 | EN19: 0 | EO19: 0 | EP19: 0 | EQ19: 0 | ER19: 0 | ES19: 0 | ET19: 0 | EU19: 0 | EV19: 0 | EW19: 0 | EX19: 0 | EY19: 0 | EZ19: 0 | FA19: 0 | FB19: 0 | FC19: 0 | FD19: 0 | FE19: 0 | FF19: 0 | FG19: 0 | FH19: 0 | FI19: 0 | FJ19: 0 | FK19: 0 | FL19: 0 | FM19: 0 | FN19: 0 | FO19: 0 | FP19: 0 | FQ19: 0 | FR19: 0 | FS19: 0 | FT19: 0 | FU19: 0 | FV19: 0 | FW19: 0 | FX19: 0 | FY19: 0 | FZ19: 0 | GA19: 0 | GB19: 0 | GC19: 0 | GD19: 0 | GE19: 0 | GF19: 0 | GG19: 0 | GH19: 0 | GI19: 0 | GJ19: 0 | GK19: 0 | GL19: 0 | GM19: 0 | GN19: 0 | GO19: 0 | GP19: 0 | GQ19: 0 | GR19: 0 | GS19: 0 | GT19: 0 | GU19: 0 | GV19: 0 | GW19: 0 | GX19: 0 | GY19: 0 | GZ19: 0 | HA19: 0 | HB19: 0 | HC19: Archaea | HD19: Thermoproteota | HE19: Nitrososphaeria | HF19: Nitrososphaerales | HG19: Nitrosopumilaceae | HH19: PXYB01 | HI19: PXYB01 sp003352285
A20: Zotu1012 | B20: 0 | C20: 0 | D20: 0 | E20: 0 | F20: 0 | G20: 0 | H20: 0 | I20: 0 | J20: 0 | K20: 0 | L20: 0 | M20: 0 | N20: 0 | O20: 0 | P20: 0 | Q20: 0 | R20: 0 | S20: 0 | T20: 0 | U20: 0 | V20: 0 | W20: 0 | X20: 0 | Y20: 0 | Z20: 0 | AA20: 0 | AB20: 0 | AC20: 0 | AD20: 0 | AE20: 0 | AF20: 1 | AG20: 0 | AH20: 0 | AI20: 0 | AJ20: 0 | AK20: 0 | AL20: 0 | AM20: 0 | AN20: 0 | AO20: 0 | AP20: 0 | AQ20: 0 | AR20: 0 | AS20: 0 | AT20: 0 | AU20: 0 | AV20: 0 | AW20: 0 | AX20: 62 | AY20: 0 | AZ20: 0 | BA20: 0 | BB20: 0 | BC20: 0 | BD20: 0 | BE20: 0 | BF20: 0 | BG20: 0 | BH20: 0 | BI20: 0 | BJ20: 0 | BK20: 0 | BL20: 0 | BM20: 0 | BN20: 0 | BO20: 0 | BP20: 0 | BQ20: 0 | BR20: 0 | BS20: 0 | BT20: 0 | BU20: 0 | BV20: 0 | BW20: 0 | BX20: 0 | BY20: 0 | BZ20: 0 | CA20: 1 | CB20: 0 | CC20: 0 | CD20: 0 | CE20: 0 | CF20: 0 | CG20: 0 | CH20: 0 | CI20: 0 | CJ20: 0 | CK20: 0 | CL20: 0 | CM20: 0 | CN20: 0 | CO20: 0 | CP20: 0 | CQ20: 0 | CR20: 0 | CS20: 0 | CT20: 1 | CU20: 1 | CV20: 0 | CW20: 0 | CX20: 2 | CY20: 0 | CZ20: 1 | DA20: 3 | DB20: 1 | DC20: 0 | DD20: 0 | DE20: 1 | DF20: 2 | DG20: 0 | DH20: 1 | DI20: 1 | DJ20: 0 | DK20: 0 | DL20: 2 | DM20: 0 | DN20: 0 | DO20: 5 | DP20: 0 | DQ20: 0 | DR20: 0 | DS20: 0 | DT20: 0 | DU20: 0 | DV20: 0 | DW20: 0 | DX20: 3 | DY20: 0 | DZ20: 73 | EA20: 0 | EB20: 103 | EC20: 0 | ED20: 0 | EE20: 0 | EF20: 0 | EG20: 0 | EH20: 0 | EI20: 0 | EJ20: 0 | EK20: 0 | EL20: 0 | EM20: 0 | EN20: 0 | EO20: 0 | EP20: 0 | EQ20: 0 | ER20: 3 | ES20: 0 | ET20: 2 | EU20: 0 | EV20: 2 | EW20: 0 | EX20: 2 | EY20: 0 | EZ20: 0 | FA20: 0 | FB20: 2 | FC20: 45 | FD20: 0 | FE20: 3 | FF20: 0 | FG20: 0 | FH20: 0 | FI20: 2 | FJ20: 0 | FK20: 0 | FL20: 0 | FM20: 0 | FN20: 8 | FO20: 0 | FP20: 0 | FQ20: 0 | FR20: 0 | FS20: 0 | FT20: 0 | FU20: 0 | FV20: 0 | FW20: 0 | FX20: 0 | FY20: 0 | FZ20: 0 | GA20: 0 | GB20: 0 | GC20: 0 | GD20: 0 | GE20: 0 | GF20: 0 | GG20: 0 | GH20: 1 | GI20: 0 | GJ20: 0 | GK20: 0 | GL20: 0 | GM20: 1 | GN20: 0 | GO20: 0 | GP20: 1 | GQ20: 11 | GR20: 3 | GS20: 0 | GT20: 0 | GU20: 0 | GV20: 0 | GW20: 0 | GX20: 3 | GY20: 0 | GZ20: 0 | HA20: 0 | HB20: 1 | HC20: Bacteria | HD20: Proteobacteria | HE20: Alphaproteobacteria | HF20: Rhizobiales | HG20: Methyloligellaceae | HH20: Methyloceanibacter | HI20: Methyloceanibacter marginalis
A21: Zotu1013 | B21: 0 | C21: 0 | D21: 0 | E21: 0 | F21: 0 | G21: 0 | H21: 0 | I21: 0 | J21: 0 | K21: 0 | L21: 0 | M21: 0 | N21: 0 | O21: 0 | P21: 0 | Q21: 0 | R21: 0 | S21: 0 | T21: 0 | U21: 0 | V21: 0 | W21: 0 | X21: 0 | Y21: 0 | Z21: 0 | AA21: 0 | AB21: 0 | AC21: 0 | AD21: 0 | AE21: 0 | AF21: 0 | AG21: 0 | AH21: 0 | AI21: 0 | AJ21: 0 | AK21: 0 | AL21: 0 | AM21: 0 | AN21: 0 | AO21: 0 | AP21: 0 | AQ21: 0 | AR21: 0 | AS21: 0 | AT21: 0 | AU21: 0 | AV21: 0 | AW21: 0 | AX21: 0 | AY21: 0 | AZ21: 0 | BA21: 0 | BB21: 0 | BC21: 0 | BD21: 0 | BE21: 0 | BF21: 0 | BG21: 0 | BH21: 0 | BI21: 0 | BJ21: 0 | BK21: 0 | BL21: 0 | BM21: 0 | BN21: 0 | BO21: 0 | BP21: 3 | BQ21: 0 | BR21: 0 | BS21: 0 | BT21: 0 | BU21: 0 | BV21: 0 | BW21: 0 | BX21: 0 | BY21: 0 | BZ21: 0 | CA21: 0 | CB21: 0 | CC21: 0 | CD21: 0 | CE21: 0 | CF21: 0 | CG21: 0 | CH21: 0 | CI21: 0 | CJ21: 0 | CK21: 0 | CL21: 0 | CM21: 0 | CN21: 9 | CO21: 0 | CP21: 1 | CQ21: 8 | CR21: 1 | CS21: 4 | CT21: 0 | CU21: 2 | CV21: 0 | CW21: 16 | CX21: 0 | CY21: 2 | CZ21: 2 | DA21: 0 | DB21: 1 | DC21: 2 | DD21: 3 | DE21: 1 | DF21: 2 | DG21: 1 | DH21: 4 | DI21: 1 | DJ21: 3 | DK21: 1 | DL21: 3 | DM21: 1 | DN21: 3 | DO21: 1 | DP21: 1 | DQ21: 0 | DR21: 0 | DS21: 0 | DT21: 0 | DU21: 2 | DV21: 2 | DW21: 0 | DX21: 0 | DY21: 5 | DZ21: 0 | EA21: 0 | EB21: 0 | EC21: 0 | ED21: 0 | EE21: 0 | EF21: 0 | EG21: 0 | EH21: 2 | EI21: 0 | EJ21: 0 | EK21: 0 | EL21: 0 | EM21: 0 | EN21: 0 | EO21: 0 | EP21: 0 | EQ21: 0 | ER21: 0 | ES21: 0 | ET21: 0 | EU21: 2 | EV21: 3 | EW21: 2 | EX21: 2 | EY21: 0 | EZ21: 0 | FA21: 0 | FB21: 0 | FC21: 2 | FD21: 0 | FE21: 0 | FF21: 2 | FG21: 1 | FH21: 0 | FI21: 0 | FJ21: 0 | FK21: 0 | FL21: 2 | FM21: 6 | FN21: 0 | FO21: 0 | FP21: 0 | FQ21: 0 | FR21: 0 | FS21: 0 | FT21: 2 | FU21: 0 | FV21: 0 | FW21: 0 | FX21: 2 | FY21: 0 | FZ21: 6 | GA21: 8 | GB21: 7 | GC21: 7 | GD21: 3 | GE21: 8 | GF21: 3 | GG21: 1 | GH21: 6 | GI21: 2 | GJ21: 1 | GK21: 5 | GL21: 3 | GM21: 1 | GN21: 1 | GO21: 10 | GP21: 3 | GQ21: 3 | GR21: 5 | GS21: 3 | GT21: 8 | GU21: 8 | GV21: 4 | GW21: 8 | GX21: 13 | GY21: 8 | GZ21: 10 | HA21: 9 | HB21: 4 | HC21: Archaea | HD21: Thermoplasmatota | HE21: Poseidoniia | HF21: Poseidoniales | HG21: Poseidoniaceae | HH21: Poseidonia | HI21: Poseidonia sp902625885
A22: Zotu1014 | B22: 0 | C22: 0 | D22: 0 | E22: 0 | F22: 0 | G22: 0 | H22: 0 | I22: 0 | J22: 0 | K22: 0 | L22: 0 | M22: 0 | N22: 0 | O22: 0 | P22: 0 | Q22: 0 | R22: 0 | S22: 0 | T22: 0 | U22: 0 | V22: 0 | W22: 0 | X22: 0 | Y22: 0 | Z22: 0 | AA22: 0 | AB22: 0 | AC22: 0 | AD22: 0 | AE22: 0 | AF22: 0 | AG22: 0 | AH22: 0 | AI22: 0 | AJ22: 0 | AK22: 0 | AL22: 0 | AM22: 0 | AN22: 0 | AO22: 0 | AP22: 0 | AQ22: 0 | AR22: 0 | AS22: 0 | AT22: 0 | AU22: 0 | AV22: 0 | AW22: 0 | AX22: 1 | AY22: 0 | AZ22: 0 | BA22: 0 | BB22: 0 | BC22: 0 | BD22: 0 | BE22: 0 | BF22: 0 | BG22: 0 | BH22: 0 | BI22: 0 | BJ22: 0 | BK22: 0 | BL22: 0 | BM22: 0 | BN22: 0 | BO22: 0 | BP22: 0 | BQ22: 0 | BR22: 0 | BS22: 0 | BT22: 0 | BU22: 0 | BV22: 0 | BW22: 0 | BX22: 0 | BY22: 0 | BZ22: 0 | CA22: 0 | CB22: 0 | CC22: 0 | CD22: 0 | CE22: 0 | CF22: 0 | CG22: 0 | CH22: 0 | CI22: 0 | CJ22: 0 | CK22: 0 | CL22: 0 | CM22: 0 | CN22: 0 | CO22: 0 | CP22: 0 | CQ22: 2 | CR22: 2 | CS22: 7 | CT22: 9 | CU22: 4 | CV22: 5 | CW22: 7 | CX22: 6 | CY22: 6 | CZ22: 3 | DA22: 323 | DB22: 3 | DC22: 0 | DD22: 0 | DE22: 0 | DF22: 0 | DG22: 0 | DH22: 0 | DI22: 0 | DJ22: 3 | DK22: 0 | DL22: 0 | DM22: 0 | DN22: 0 | DO22: 0 | DP22: 0 | DQ22: 0 | DR22: 0 | DS22: 2 | DT22: 0 | DU22: 0 | DV22: 0 | DW22: 0 | DX22: 0 | DY22: 0 | DZ22: 0 | EA22: 26 | EB22: 0 | EC22: 0 | ED22: 0 | EE22: 0 | EF22: 0 | EG22: 0 | EH22: 0 | EI22: 0 | EJ22: 0 | EK22: 0 | EL22: 0 | EM22: 39 | EN22: 0 | EO22: 0 | EP22: 0 | EQ22: 0 | ER22: 2 | ES22: 0 | ET22: 0 | EU22: 0 | EV22: 0 | EW22: 0 | EX22: 0 | EY22: 37 | EZ22: 0 | FA22: 0 | FB22: 2 | FC22: 0 | FD22: 0 | FE22: 0 | FF22: 0 | FG22: 0 | FH22: 0 | FI22: 0 | FJ22: 0 | FK22: 0 | FL22: 0 | FM22: 0 | FN22: 0 | FO22: 0 | FP22: 0 | FQ22: 0 | FR22: 0 | FS22: 0 | FT22: 0 | FU22: 0 | FV22: 0 | FW22: 0 | FX22: 0 | FY22: 0 | FZ22: 0 | GA22: 0 | GB22: 0 | GC22: 0 | GD22: 2 | GE22: 0 | GF22: 0 | GG22: 0 | GH22: 0 | GI22: 0 | GJ22: 0 | GK22: 0 | GL22: 0 | GM22: 0 | GN22: 0 | GO22: 0 | GP22: 0 | GQ22: 0 | GR22: 0 | GS22: 0 | GT22: 0 | GU22: 0 | GV22: 0 | GW22: 0 | GX22: 0 | GY22: 0 | GZ22: 0 | HA22: 0 | HB22: 2 | HC22: Bacteria | HD22: Firmicutes_A | HE22: Clostridia | HF22: Lachnospirales | HG22: Lachnospiraceae | HH22: Anaerobutyricum | HI22: Anaerobutyricum hallii
A23: Zotu1015 | B23: 0 | C23: 0 | D23: 0 | E23: 0 | F23: 0 | G23: 0 | H23: 0 | I23: 0 | J23: 0 | K23: 0 | L23: 0 | M23: 0 | N23: 0 | O23: 0 | P23: 0 | Q23: 0 | R23: 0 | S23: 1 | T23: 0 | U23: 0 | V23: 0 | W23: 0 | X23: 0 | Y23: 0 | Z23: 0 | AA23: 0 | AB23: 0 | AC23: 0 | AD23: 0 | AE23: 0 | AF23: 0 | AG23: 0 | AH23: 0 | AI23: 0 | AJ23: 0 | AK23: 0 | AL23: 0 | AM23: 0 | AN23: 0 | AO23: 0 | AP23: 0 | AQ23: 0 | AR23: 0 | AS23: 0 | AT23: 0 | AU23: 0 | AV23: 0 | AW23: 0 | AX23: 0 | AY23: 0 | AZ23: 0 | BA23: 0 | BB23: 0 | BC23: 0 | BD23: 0 | BE23: 0 | BF23: 0 | BG23: 0 | BH23: 0 | BI23: 0 | BJ23: 0 | BK23: 0 | BL23: 0 | BM23: 0 | BN23: 0 | BO23: 0 | BP23: 0 | BQ23: 0 | BR23: 0 | BS23: 0 | BT23: 0 | BU23: 0 | BV23: 0 | BW23: 0 | BX23: 0 | BY23: 0 | BZ23: 0 | CA23: 0 | CB23: 0 | CC23: 0 | CD23: 0 | CE23: 0 | CF23: 0 | CG23: 0 | CH23: 0 | CI23: 0 | CJ23: 0 | CK23: 0 | CL23: 0 | CM23: 0 | CN23: 1 | CO23: 0 | CP23: 1 | CQ23: 2 | CR23: 0 | CS23: 0 | CT23: 0 | CU23: 0 | CV23: 0 | CW23: 0 | CX23: 0 | CY23: 2 | CZ23: 1 | DA23: 0 | DB23: 0 | DC23: 0 | DD23: 1 | DE23: 0 | DF23: 0 | DG23: 0 | DH23: 0 | DI23: 0 | DJ23: 0 | DK23: 0 | DL23: 0 | DM23: 0 | DN23: 0 | DO23: 0 | DP23: 0 | DQ23: 0 | DR23: 0 | DS23: 0 | DT23: 0 | DU23: 0 | DV23: 0 | DW23: 0 | DX23: 0 | DY23: 0 | DZ23: 0 | EA23: 0 | EB23: 0 | EC23: 0 | ED23: 0 | EE23: 0 | EF23: 0 | EG23: 0 | EH23: 2 | EI23: 0 | EJ23: 0 | EK23: 0 | EL23: 0 | EM23: 0 | EN23: 0 | EO23: 0 | EP23: 0 | EQ23: 0 | ER23: 0 | ES23: 0 | ET23: 0 | EU23: 0 | EV23: 0 | EW23: 0 | EX23: 2 | EY23: 0 | EZ23: 0 | FA23: 0 | FB23: 0 | FC23: 2 | FD23: 0 | FE23: 2 | FF23: 0 | FG23: 0 | FH23: 0 | FI23: 0 | FJ23: 2 | FK23: 0 | FL23: 0 | FM23: 0 | FN23: 0 | FO23: 0 | FP23: 0 | FQ23: 0 | FR23: 0 | FS23: 0 | FT23: 0 | FU23: 0 | FV23: 3 | FW23: 0 | FX23: 0 | FY23: 0 | FZ23: 0 | GA23: 0 | GB23: 0 | GC23: 0 | GD23: 0 | GE23: 0 | GF23: 0 | GG23: 1 | GH23: 0 | GI23: 2 | GJ23: 4 | GK23: 1 | GL23: 4 | GM23: 2 | GN23: 1 | GO23: 10 | GP23: 7 | GQ23: 8 | GR23: 3 | GS23: 12 | GT23: 7 | GU23: 7 | GV23: 4 | GW23: 15 | GX23: 5 | GY23: 6 | GZ23: 10 | HA23: 14 | HB23: 6 | HC23: Bacteria | HD23: Myxococcota_A | HE23: UBA796 | HF23: UBA796 | HG23: UBA2385 | HH23: BH17 | HI23: BH17 sp016845285
A24: Zotu1016 | B24: 3 | C24: 0 | D24: 0 | E24: 0 | F24: 0 | G24: 1 | H24: 0 | I24: 0 | J24: 4 | K24: 3 | L24: 1 | M24: 0 | N24: 1 | O24: 0 | P24: 0 | Q24: 0 | R24: 0 | S24: 0 | T24: 0 | U24: 0 | V24: 1 | W24: 1 | X24: 0 | Y24: 0 | Z24: 1 | AA24: 4 | AB24: 0 | AC24: 0 | AD24: 0 | AE24: 0 | AF24: 0 | AG24: 0 | AH24: 0 | AI24: 1 | AJ24: 0 | AK24: 0 | AL24: 1 | AM24: 1 | AN24: 0 | AO24: 0 | AP24: 0 | AQ24: 1 | AR24: 0 | AS24: 0 | AT24: 1 | AU24: 0 | AV24: 0 | AW24: 1 | AX24: 0 | AY24: 1 | AZ24: 1 | BA24: 1 | BB24: 2 | BC24: 4 | BD24: 3 | BE24: 2 | BF24: 17 | BG24: 3 | BH24: 5 | BI24: 3 | BJ24: 1 | BK24: 0 | BL24: 1 | BM24: 1 | BN24: 0 | BO24: 0 | BP24: 3 | BQ24: 2 | BR24: 3 | BS24: 7 | BT24: 3 | BU24: 3 | BV24: 0 | BW24: 0 | BX24: 2 | BY24: 1 | BZ24: 0 | CA24: 1 | CB24: 0 | CC24: 2 | CD24: 3 | CE24: 0 | CF24: 2 | CG24: 3 | CH24: 3 | CI24: 6 | CJ24: 32 | CK24: 3 | CL24: 2 | CM24: 3 | CN24: 0 | CO24: 0 | CP24: 1 | CQ24: 1 | CR24: 0 | CS24: 0 | CT24: 0 | CU24: 0 | CV24: 0 | CW24: 0 | CX24: 0 | CY24: 0 | CZ24: 1 | DA24: 0 | DB24: 0 | DC24: 0 | DD24: 3 | DE24: 0 | DF24: 0 | DG24: 0 | DH24: 0 | DI24: 0 | DJ24: 0 | DK24: 0 | DL24: 0 | DM24: 1 | DN24: 0 | DO24: 0 | DP24: 0 | DQ24: 0 | DR24: 0 | DS24: 0 | DT24: 0 | DU24: 0 | DV24: 0 | DW24: 0 | DX24: 0 | DY24: 0 | DZ24: 0 | EA24: 0 | EB24: 0 | EC24: 0 | ED24: 0 | EE24: 0 | EF24: 0 | EG24: 0 | EH24: 0 | EI24: 0 | EJ24: 0 | EK24: 0 | EL24: 0 | EM24: 0 | EN24: 3 | EO24: 0 | EP24: 0 | EQ24: 0 | ER24: 0 | ES24: 0 | ET24: 0 | EU24: 0 | EV24: 0 | EW24: 0 | EX24: 0 | EY24: 0 | EZ24: 0 | FA24: 0 | FB24: 0 | FC24: 0 | FD24: 2 | FE24: 0 | FF24: 0 | FG24: 0 | FH24: 0 | FI24: 0 | FJ24: 0 | FK24: 0 | FL24: 0 | FM24: 0 | FN24: 0 | FO24: 0 | FP24: 2 | FQ24: 0 | FR24: 0 | FS24: 0 | FT24: 0 | FU24: 0 | FV24: 0 | FW24: 0 | FX24: 0 | FY24: 0 | FZ24: 0 | GA24: 0 | GB24: 0 | GC24: 0 | GD24: 0 | GE24: 0 | GF24: 0 | GG24: 0 | GH24: 0 | GI24: 0 | GJ24: 0 | GK24: 0 | GL24: 0 | GM24: 0 | GN24: 0 | GO24: 0 | GP24: 0 | GQ24: 0 | GR24: 0 | GS24: 0 | GT24: 1 | GU24: 0 | GV24: 0 | GW24: 1 | GX24: 0 | GY24: 0 | GZ24: 0 | HA24: 0 | HB24: 0 | HC24: Bacteria | HD24: Proteobacteria | HE24: Gammaproteobacteria | HF24: Pseudomonadales | HG24: Endozoicomonadaceae | HH24: Endozoicomonas | HI24: Endozoicomonas elysicola
A25: Zotu1017 | B25: 0 | C25: 0 | D25: 0 | E25: 0 | F25: 0 | G25: 0 | H25: 0 | I25: 0 | J25: 0 | K25: 0 | L25: 0 | M25: 0 | N25: 0 | O25: 0 | P25: 0 | Q25: 0 | R25: 0 | S25: 0 | T25: 0 | U25: 0 | V25: 0 | W25: 0 | X25: 0 | Y25: 0 | Z25: 0 | AA25: 0 | AB25: 0 | AC25: 0 | AD25: 0 | AE25: 0 | AF25: 0 | AG25: 0 | AH25: 0 | AI25: 0 | AJ25: 0 | AK25: 0 | AL25: 0 | AM25: 0 | AN25: 0 | AO25: 0 | AP25: 0 | AQ25: 0 | AR25: 0 | AS25: 0 | AT25: 0 | AU25: 0 | AV25: 0 | AW25: 0 | AX25: 0 | AY25: 0 | AZ25: 0 | BA25: 0 | BB25: 0 | BC25: 0 | BD25: 0 | BE25: 0 | BF25: 0 | BG25: 0 | BH25: 0 | BI25: 0 | BJ25: 0 | BK25: 0 | BL25: 0 | BM25: 0 | BN25: 0 | BO25: 0 | BP25: 0 | BQ25: 0 | BR25: 0 | BS25: 0 | BT25: 0 | BU25: 0 | BV25: 0 | BW25: 0 | BX25: 0 | BY25: 0 | BZ25: 0 | CA25: 0 | CB25: 5 | CC25: 0 | CD25: 0 | CE25: 0 | CF25: 2 | CG25: 0 | CH25: 0 | CI25: 0 | CJ25: 0 | CK25: 0 | CL25: 0 | CM25: 0 | CN25: 3 | CO25: 0 | CP25: 1 | CQ25: 3 | CR25: 1 | CS25: 2 | CT25: 0 | CU25: 2 | CV25: 1 | CW25: 3 | CX25: 0 | CY25: 0 | CZ25: 0 | DA25: 0 | DB25: 0 | DC25: 12 | DD25: 5 | DE25: 4 | DF25: 7 | DG25: 4 | DH25: 4 | DI25: 4 | DJ25: 7 | DK25: 15 | DL25: 6 | DM25: 3 | DN25: 11 | DO25: 5 | DP25: 10 | DQ25: 17 | DR25: 0 | DS25: 0 | DT25: 0 | DU25: 2 | DV25: 0 | DW25: 3 | DX25: 0 | DY25: 0 | DZ25: 0 | EA25: 0 | EB25: 0 | EC25: 0 | ED25: 3 | EE25: 0 | EF25: 2 | EG25: 0 | EH25: 0 | EI25: 0 | EJ25: 0 | EK25: 0 | EL25: 0 | EM25: 0 | EN25: 0 | EO25: 0 | EP25: 0 | EQ25: 0 | ER25: 0 | ES25: 0 | ET25: 0 | EU25: 0 | EV25: 0 | EW25: 0 | EX25: 0 | EY25: 0 | EZ25: 0 | FA25: 0 | FB25: 2 | FC25: 0 | FD25: 0 | FE25: 0 | FF25: 0 | FG25: 0 | FH25: 0 | FI25: 0 | FJ25: 3 | FK25: 0 | FL25: 0 | FM25: 0 | FN25: 2 | FO25: 0 | FP25: 0 | FQ25: 2 | FR25: 0 | FS25: 0 | FT25: 0 | FU25: 0 | FV25: 0 | FW25: 0 | FX25: 0 | FY25: 2 | FZ25: 2 | GA25: 1 | GB25: 2 | GC25: 1 | GD25: 1 | GE25: 4 | GF25: 1 | GG25: 7 | GH25: 3 | GI25: 3 | GJ25: 6 | GK25: 2 | GL25: 2 | GM25: 2 | GN25: 2 | GO25: 12 | GP25: 4 | GQ25: 3 | GR25: 5 | GS25: 18 | GT25: 8 | GU25: 7 | GV25: 6 | GW25: 7 | GX25: 8 | GY25: 4 | GZ25: 10 | HA25: 9 | HB25: 12 | HC25: Bacteria | HD25: Bacteroidota | HE25: Bacteroidia | HF25: Flavobacteriales | HG25: UA16 | HH25: UBA8752 | HI25: UBA8752 sp902535565
A26: Zotu1018 | B26: 0 | C26: 0 | D26: 0 | E26: 0 | F26: 0 | G26: 0 | H26: 0 | I26: 0 | J26: 0 | K26: 0 | L26: 0 | M26: 0 | N26: 0 | O26: 0 | P26: 0 | Q26: 0 | R26: 0 | S26: 0 | T26: 0 | U26: 0 | V26: 0 | W26: 0 | X26: 0 | Y26: 0 | Z26: 0 | AA26: 0 | AB26: 0 | AC26: 0 | AD26: 0 | AE26: 0 | AF26: 0 | AG26: 0 | AH26: 0 | AI26: 0 | AJ26: 0 | AK26: 0 | AL26: 0 | AM26: 0 | AN26: 0 | AO26: 0 | AP26: 0 | AQ26: 0 | AR26: 0 | AS26: 0 | AT26: 0 | AU26: 0 | AV26: 0 | AW26: 0 | AX26: 0 | AY26: 0 | AZ26: 0 | BA26: 0 | BB26: 0 | BC26: 0 | BD26: 0 | BE26: 0 | BF26: 0 | BG26: 0 | BH26: 0 | BI26: 0 | BJ26: 0 | BK26: 0 | BL26: 0 | BM26: 0 | BN26: 0 | BO26: 0 | BP26: 0 | BQ26: 0 | BR26: 0 | BS26: 0 | BT26: 0 | BU26: 0 | BV26: 0 | BW26: 0 | BX26: 0 | BY26: 0 | BZ26: 0 | CA26: 0 | CB26: 0 | CC26: 0 | CD26: 0 | CE26: 2 | CF26: 0 | CG26: 0 | CH26: 0 | CI26: 0 | CJ26: 0 | CK26: 0 | CL26: 2 | CM26: 0 | CN26: 5 | CO26: 0 | CP26: 0 | CQ26: 2 | CR26: 1 | CS26: 2 | CT26: 0 | CU26: 1 | CV26: 0 | CW26: 1 | CX26: 4 | CY26: 3 | CZ26: 0 | DA26: 0 | DB26: 0 | DC26: 2 | DD26: 1 | DE26: 0 | DF26: 0 | DG26: 0 | DH26: 1 | DI26: 0 | DJ26: 3 | DK26: 0 | DL26: 0 | DM26: 0 | DN26: 1 | DO26: 0 | DP26: 1 | DQ26: 0 | DR26: 3 | DS26: 0 | DT26: 2 | DU26: 3 | DV26: 0 | DW26: 0 | DX26: 0 | DY26: 0 | DZ26: 2 | EA26: 0 | EB26: 0 | EC26: 0 | ED26: 0 | EE26: 0 | EF26: 0 | EG26: 2 | EH26: 0 | EI26: 0 | EJ26: 0 | EK26: 0 | EL26: 0 | EM26: 0 | EN26: 0 | EO26: 0 | EP26: 0 | EQ26: 0 | ER26: 2 | ES26: 0 | ET26: 0 | EU26: 0 | EV26: 0 | EW26: 0 | EX26: 0 | EY26: 0 | EZ26: 0 | FA26: 2 | FB26: 2 | FC26: 2 | FD26: 0 | FE26: 0 | FF26: 0 | FG26: 0 | FH26: 0 | FI26: 0 | FJ26: 2 | FK26: 0 | FL26: 0 | FM26: 0 | FN26: 0 | FO26: 0 | FP26: 0 | FQ26: 0 | FR26: 0 | FS26: 2 | FT26: 0 | FU26: 0 | FV26: 0 | FW26: 0 | FX26: 0 | FY26: 0 | FZ26: 2 | GA26: 0 | GB26: 1 | GC26: 0 | GD26: 2 | GE26: 0 | GF26: 0 | GG26: 0 | GH26: 1 | GI26: 1 | GJ26: 4 | GK26: 2 | GL26: 4 | GM26: 2 | GN26: 2 | GO26: 9 | GP26: 5 | GQ26: 6 | GR26: 8 | GS26: 19 | GT26: 10 | GU26: 9 | GV26: 10 | GW26: 5 | GX26: 17 | GY26: 3 | GZ26: 19 | HA26: 15 | HB26: 8 | HC26: Bacteria | HD26: Verrucomicrobiota | HE26: Verrucomicrobiae | HF26: Opitutales | HG26: MB11C04 | HH26: MB11C04 | HI26: MB11C04 sp902612125
A27: Zotu102 | B27: 0 | C27: 1 | D27: 0 | E27: 0 | F27: 0 | G27: 0 | H27: 1 | I27: 0 | J27: 0 | K27: 0 | L27: 1 | M27: 0 | N27: 0 | O27: 0 | P27: 0 | Q27: 0 | R27: 0 | S27: 0 | T27: 0 | U27: 0 | V27: 0 | W27: 0 | X27: 0 | Y27: 0 | Z27: 0 | AA27: 0 | AB27: 0 | AC27: 2 | AD27: 0 | AE27: 0 | AF27: 0 | AG27: 1 | AH27: 0 | AI27: 0 | AJ27: 0 | AK27: 0 | AL27: 0 | AM27: 0 | AN27: 0 | AO27: 0 | AP27: 0 | AQ27: 0 | AR27: 0 | AS27: 0 | AT27: 0 | AU27: 0 | AV27: 0 | AW27: 1 | AX27: 6 | AY27: 1 | AZ27: 1 | BA27: 0 | BB27: 0 | BC27: 0 | BD27: 3 | BE27: 0 | BF27: 2 | BG27: 5 | BH27: 0 | BI27: 0 | BJ27: 2 | BK27: 0 | BL27: 0 | BM27: 0 | BN27: 1 | BO27: 0 | BP27: 10 | BQ27: 2 | BR27: 2 | BS27: 7 | BT27: 0 | BU27: 0 | BV27: 2 | BW27: 0 | BX27: 0 | BY27: 1 | BZ27: 2 | CA27: 1 | CB27: 14 | CC27: 3 | CD27: 13 | CE27: 6 | CF27: 5 | CG27: 3 | CH27: 3 | CI27: 11 | CJ27: 6 | CK27: 2 | CL27: 7 | CM27: 5 | CN27: 136 | CO27: 56 | CP27: 82 | CQ27: 93 | CR27: 17 | CS27: 61 | CT27: 33 | CU27: 129 | CV27: 53 | CW27: 419 | CX27: 15 | CY27: 8 | CZ27: 27 | DA27: 12 | DB27: 63 | DC27: 501 | DD27: 356 | DE27: 287 | DF27: 325 | DG27: 206 | DH27: 244 | DI27: 263 | DJ27: 331 | DK27: 607 | DL27: 360 | DM27: 436 | DN27: 551 | DO27: 517 | DP27: 659 | DQ27: 573 | DR27: 3 | DS27: 8 | DT27: 19 | DU27: 42 | DV27: 22 | DW27: 31 | DX27: 21 | DY27: 21 | DZ27: 2 | EA27: 2 | EB27: 36 | EC27: 16 | ED27: 2 | EE27: 3 | EF27: 25 | EG27: 20 | EH27: 18 | EI27: 47 | EJ27: 0 | EK27: 7 | EL27: 2 | EM27: 0 | EN27: 2 | EO27: 0 | EP27: 3 | EQ27: 2 | ER27: 3 | ES27: 8 | ET27: 2 | EU27: 3 | EV27: 3 | EW27: 5 | EX27: 10 | EY27: 6 | EZ27: 0 | FA27: 0 | FB27: 34 | FC27: 19 | FD27: 34 | FE27: 11 | FF27: 22 | FG27: 13 | FH27: 22 | FI27: 17 | FJ27: 38 | FK27: 19 | FL27: 22 | FM27: 28 | FN27: 25 | FO27: 18 | FP27: 33 | FQ27: 8 | FR27: 12 | FS27: 9 | FT27: 24 | FU27: 24 | FV27: 32 | FW27: 32 | FX27: 11 | FY27: 84 | FZ27: 216 | GA27: 150 | GB27: 92 | GC27: 158 | GD27: 163 | GE27: 167 | GF27: 927 | GG27: 337 | GH27: 102 | GI27: 923 | GJ27: 160 | GK27: 161 | GL27: 839 | GM27: 1108 | GN27: 53 | GO27: 89 | GP27: 86 | GQ27: 67 | GR27: 111 | GS27: 99 | GT27: 122 | GU27: 60 | GV27: 41 | GW27: 122 | GX27: 171 | GY27: 39 | GZ27: 34 | HA27: 47 | HB27: 63 | HC27: Bacteria | HD27: Bacteroidota | HE27: Bacteroidia | HF27: Flavobacteriales | HG27: UA16 | HH27: UBA11663 | HI27: UBA11663 sp002313415
A28: Zotu1020 | B28: 0 | C28: 0 | D28: 0 | E28: 0 | F28: 0 | G28: 0 | H28: 0 | I28: 0 | J28: 0 | K28: 0 | L28: 0 | M28: 0 | N28: 0 | O28: 0 | P28: 0 | Q28: 0 | R28: 0 | S28: 0 | T28: 0 | U28: 0 | V28: 0 | W28: 0 | X28: 0 | Y28: 0 | Z28: 0 | AA28: 0 | AB28: 0 | AC28: 0 | AD28: 0 | AE28: 0 | AF28: 0 | AG28: 0 | AH28: 0 | AI28: 0 | AJ28: 0 | AK28: 0 | AL28: 0 | AM28: 0 | AN28: 0 | AO28: 0 | AP28: 0 | AQ28: 0 | AR28: 0 | AS28: 0 | AT28: 0 | AU28: 0 | AV28: 0 | AW28: 0 | AX28: 0 | AY28: 0 | AZ28: 0 | BA28: 0 | BB28: 0 | BC28: 0 | BD28: 0 | BE28: 0 | BF28: 2 | BG28: 0 | BH28: 0 | BI28: 0 | BJ28: 0 | BK28: 0 | BL28: 0 | BM28: 0 | BN28: 0 | BO28: 0 | BP28: 0 | BQ28: 0 | BR28: 2 | BS28: 0 | BT28: 0 | BU28: 0 | BV28: 0 | BW28: 0 | BX28: 0 | BY28: 0 | BZ28: 0 | CA28: 0 | CB28: 2 | CC28: 0 | CD28: 0 | CE28: 2 | CF28: 0 | CG28: 0 | CH28: 0 | CI28: 0 | CJ28: 0 | CK28: 0 | CL28: 0 | CM28: 2 | CN28: 13 | CO28: 5 | CP28: 12 | CQ28: 6 | CR28: 4 | CS28: 19 | CT28: 4 | CU28: 21 | CV28: 11 | CW28: 9 | CX28: 4 | CY28: 2 | CZ28: 5 | DA28: 2 | DB28: 6 | DC28: 1 | DD28: 0 | DE28: 0 | DF28: 0 | DG28: 0 | DH28: 1 | DI28: 0 | DJ28: 0 | DK28: 4 | DL28: 2 | DM28: 5 | DN28: 0 | DO28: 4 | DP28: 3 | DQ28: 0 | DR28: 0 | DS28: 5 | DT28: 0 | DU28: 0 | DV28: 1 | DW28: 0 | DX28: 0 | DY28: 0 | DZ28: 0 | EA28: 0 | EB28: 0 | EC28: 2 | ED28: 0 | EE28: 2 | EF28: 2 | EG28: 0 | EH28: 0 | EI28: 2 | EJ28: 0 | EK28: 0 | EL28: 2 | EM28: 0 | EN28: 0 | EO28: 0 | EP28: 0 | EQ28: 0 | ER28: 0 | ES28: 0 | ET28: 0 | EU28: 0 | EV28: 0 | EW28: 0 | EX28: 0 | EY28: 0 | EZ28: 0 | FA28: 0 | FB28: 2 | FC28: 0 | FD28: 0 | FE28: 0 | FF28: 0 | FG28: 0 | FH28: 0 | FI28: 0 | FJ28: 3 | FK28: 0 | FL28: 0 | FM28: 0 | FN28: 0 | FO28: 0 | FP28: 0 | FQ28: 0 | FR28: 0 | FS28: 0 | FT28: 0 | FU28: 0 | FV28: 0 | FW28: 0 | FX28: 0 | FY28: 0 | FZ28: 1 | GA28: 6 | GB28: 8 | GC28: 11 | GD28: 0 | GE28: 9 | GF28: 1 | GG28: 1 | GH28: 2 | GI28: 2 | GJ28: 4 | GK28: 0 | GL28: 1 | GM28: 0 | GN28: 1 | GO28: 1 | GP28: 6 | GQ28: 0 | GR28: 5 | GS28: 3 | GT28: 0 | GU28: 4 | GV28: 1 | GW28: 1 | GX28: 0 | GY28: 2 | GZ28: 1 | HA28: 7 | HB28: 0 | HC28: Bacteria | HD28: Cyanobacteria | HE28: Cyanobacteriia | HF28: PCC-6307 | HG28: Cyanobiaceae | HH28: Synechococcus_E | HI28: Synechococcus_E sp000737575
A29: Zotu1021 | B29: 0 | C29: 0 | D29: 0 | E29: 0 | F29: 0 | G29: 0 | H29: 0 | I29: 0 | J29: 0 | K29: 0 | L29: 0 | M29: 0 | N29: 0 | O29: 0 | P29: 0 | Q29: 0 | R29: 0 | S29: 0 | T29: 0 | U29: 0 | V29: 0 | W29: 0 | X29: 0 | Y29: 0 | Z29: 0 | AA29: 0 | AB29: 0 | AC29: 0 | AD29: 0 | AE29: 0 | AF29: 0 | AG29: 0 | AH29: 0 | AI29: 0 | AJ29: 0 | AK29: 0 | AL29: 0 | AM29: 0 | AN29: 0 | AO29: 0 | AP29: 0 | AQ29: 0 | AR29: 0 | AS29: 0 | AT29: 0 | AU29: 0 | AV29: 0 | AW29: 0 | AX29: 0 | AY29: 0 | AZ29: 0 | BA29: 0 | BB29: 0 | BC29: 0 | BD29: 0 | BE29: 0 | BF29: 0 | BG29: 0 | BH29: 1 | BI29: 0 | BJ29: 0 | BK29: 0 | BL29: 0 | BM29: 0 | BN29: 0 | BO29: 0 | BP29: 0 | BQ29: 0 | BR29: 0 | BS29: 0 | BT29: 0 | BU29: 0 | BV29: 0 | BW29: 0 | BX29: 0 | BY29: 0 | BZ29: 0 | CA29: 0 | CB29: 0 | CC29: 0 | CD29: 0 | CE29: 0 | CF29: 0 | CG29: 0 | CH29: 0 | CI29: 0 | CJ29: 0 | CK29: 0 | CL29: 0 | CM29: 0 | CN29: 0 | CO29: 2 | CP29: 0 | CQ29: 1 | CR29: 2 | CS29: 5 | CT29: 0 | CU29: 3 | CV29: 0 | CW29: 2 | CX29: 1 | CY29: 0 | CZ29: 1 | DA29: 0 | DB29: 0 | DC29: 0 | DD29: 2 | DE29: 0 | DF29: 1 | DG29: 4 | DH29: 1 | DI29: 3 | DJ29: 2 | DK29: 0 | DL29: 3 | DM29: 1 | DN29: 1 | DO29: 1 | DP29: 1 | DQ29: 1 | DR29: 0 | DS29: 0 | DT29: 0 | DU29: 0 | DV29: 0 | DW29: 0 | DX29: 0 | DY29: 0 | DZ29: 0 | EA29: 0 | EB29: 1 | EC29: 0 | ED29: 0 | EE29: 0 | EF29: 0 | EG29: 0 | EH29: 0 | EI29: 0 | EJ29: 0 | EK29: 2 | EL29: 0 | EM29: 0 | EN29: 0 | EO29: 0 | EP29: 0 | EQ29: 0 | ER29: 0 | ES29: 0 | ET29: 0 | EU29: 0 | EV29: 0 | EW29: 2 | EX29: 0 | EY29: 0 | EZ29: 0 | FA29: 0 | FB29: 0 | FC29: 3 | FD29: 0 | FE29: 0 | FF29: 0 | FG29: 1 | FH29: 0 | FI29: 0 | FJ29: 0 | FK29: 2 | FL29: 0 | FM29: 0 | FN29: 2 | FO29: 0 | FP29: 0 | FQ29: 0 | FR29: 0 | FS29: 0 | FT29: 0 | FU29: 0 | FV29: 0 | FW29: 0 | FX29: 0 | FY29: 2 | FZ29: 6 | GA29: 0 | GB29: 0 | GC29: 1 | GD29: 2 | GE29: 0 | GF29: 4 | GG29: 3 | GH29: 4 | GI29: 2 | GJ29: 19 | GK29: 5 | GL29: 4 | GM29: 5 | GN29: 12 | GO29: 10 | GP29: 1 | GQ29: 2 | GR29: 4 | GS29: 3 | GT29: 1 | GU29: 4 | GV29: 4 | GW29: 3 | GX29: 2 | GY29: 2 | GZ29: 19 | HA29: 2 | HB29: 2 | HC29: Bacteria | HD29: Bacteroidota | HE29: Bacteroidia | HF29: Flavobacteriales | HG29: BACL11 | HH29: GCA-2716345 | HI29: GCA-2716345 sp902587125
A30: Zotu1022 | B30: 0 | C30: 0 | D30: 0 | E30: 0 | F30: 0 | G30: 0 | H30: 0 | I30: 0 | J30: 0 | K30: 0 | L30: 0 | M30: 0 | N30: 0 | O30: 0 | P30: 0 | Q30: 0 | R30: 0 | S30: 0 | T30: 0 | U30: 0 | V30: 0 | W30: 0 | X30: 0 | Y30: 0 | Z30: 0 | AA30: 0 | AB30: 0 | AC30: 0 | AD30: 0 | AE30: 0 | AF30: 0 | AG30: 0 | AH30: 0 | AI30: 0 | AJ30: 0 | AK30: 0 | AL30: 0 | AM30: 0 | AN30: 0 | AO30: 0 | AP30: 0 | AQ30: 0 | AR30: 0 | AS30: 0 | AT30: 0 | AU30: 0 | AV30: 0 | AW30: 0 | AX30: 0 | AY30: 0 | AZ30: 0 | BA30: 0 | BB30: 0 | BC30: 0 | BD30: 0 | BE30: 0 | BF30: 0 | BG30: 0 | BH30: 0 | BI30: 0 | BJ30: 0 | BK30: 0 | BL30: 0 | BM30: 0 | BN30: 0 | BO30: 0 | BP30: 2 | BQ30: 0 | BR30: 0 | BS30: 0 | BT30: 0 | BU30: 0 | BV30: 0 | BW30: 0 | BX30: 0 | BY30: 0 | BZ30: 0 | CA30: 0 | CB30: 0 | CC30: 0 | CD30: 2 | CE30: 0 | CF30: 0 | CG30: 0 | CH30: 0 | CI30: 0 | CJ30: 5 | CK30: 0 | CL30: 2 | CM30: 0 | CN30: 2 | CO30: 2 | CP30: 2 | CQ30: 5 | CR30: 7 | CS30: 3 | CT30: 4 | CU30: 3 | CV30: 1 | CW30: 0 | CX30: 0 | CY30: 3 | CZ30: 1 | DA30: 0 | DB30: 3 | DC30: 2 | DD30: 1 | DE30: 4 | DF30: 0 | DG30: 3 | DH30: 2 | DI30: 4 | DJ30: 1 | DK30: 2 | DL30: 2 | DM30: 1 | DN30: 1 | DO30: 0 | DP30: 0 | DQ30: 4 | DR30: 3 | DS30: 2 | DT30: 3 | DU30: 0 | DV30: 0 | DW30: 0 | DX30: 1 | DY30: 2 | DZ30: 0 | EA30: 0 | EB30: 0 | EC30: 0 | ED30: 0 | EE30: 2 | EF30: 0 | EG30: 2 | EH30: 5 | EI30: 0 | EJ30: 0 | EK30: 0 | EL30: 2 | EM30: 0 | EN30: 0 | EO30: 0 | EP30: 0 | EQ30: 2 | ER30: 2 | ES30: 5 | ET30: 2 | EU30: 3 | EV30: 0 | EW30: 3 | EX30: 3 | EY30: 0 | EZ30: 2 | FA30: 0 | FB30: 2 | FC30: 2 | FD30: 5 | FE30: 0 | FF30: 0 | FG30: 0 | FH30: 0 | FI30: 0 | FJ30: 2 | FK30: 0 | FL30: 0 | FM30: 0 | FN30: 0 | FO30: 0 | FP30: 3 | FQ30: 2 | FR30: 2 | FS30: 0 | FT30: 0 | FU30: 0 | FV30: 0 | FW30: 0 | FX30: 0 | FY30: 2 | FZ30: 2 | GA30: 0 | GB30: 1 | GC30: 2 | GD30: 1 | GE30: 1 | GF30: 2 | GG30: 1 | GH30: 4 | GI30: 1 | GJ30: 1 | GK30: 2 | GL30: 1 | GM30: 5 | GN30: 7 | GO30: 4 | GP30: 13 | GQ30: 10 | GR30: 6 | GS30: 5 | GT30: 4 | GU30: 0 | GV30: 8 | GW30: 6 | GX30: 5 | GY30: 5 | GZ30: 2 | HA30: 2 | HB30: 3 | HC30: Bacteria | HD30: Proteobacteria | HE30: Alphaproteobacteria | HF30: Rhodobacterales | HG30: Rhodobacteraceae | HH30: Rhodovulum | HI30: Amaricoccus solimangrovi
A31: Zotu1023 | B31: 0 | C31: 0 | D31: 0 | E31: 0 | F31: 0 | G31: 0 | H31: 0 | I31: 0 | J31: 0 | K31: 0 | L31: 0 | M31: 0 | N31: 0 | O31: 0 | P31: 0 | Q31: 0 | R31: 0 | S31: 0 | T31: 0 | U31: 0 | V31: 0 | W31: 0 | X31: 0 | Y31: 0 | Z31: 0 | AA31: 0 | AB31: 0 | AC31: 0 | AD31: 0 | AE31: 0 | AF31: 0 | AG31: 0 | AH31: 0 | AI31: 0 | AJ31: 0 | AK31: 0 | AL31: 0 | AM31: 0 | AN31: 0 | AO31: 0 | AP31: 0 | AQ31: 0 | AR31: 0 | AS31: 0 | AT31: 0 | AU31: 0 | AV31: 0 | AW31: 0 | AX31: 0 | AY31: 0 | AZ31: 2 | BA31: 0 | BB31: 0 | BC31: 0 | BD31: 0 | BE31: 0 | BF31: 0 | BG31: 0 | BH31: 0 | BI31: 0 | BJ31: 0 | BK31: 0 | BL31: 0 | BM31: 0 | BN31: 0 | BO31: 0 | BP31: 0 | BQ31: 0 | BR31: 0 | BS31: 0 | BT31: 0 | BU31: 0 | BV31: 0 | BW31: 0 | BX31: 0 | BY31: 1 | BZ31: 0 | CA31: 0 | CB31: 0 | CC31: 0 | CD31: 2 | CE31: 0 | CF31: 0 | CG31: 2 | CH31: 0 | CI31: 0 | CJ31: 0 | CK31: 0 | CL31: 0 | CM31: 0 | CN31: 1 | CO31: 0 | CP31: 2 | CQ31: 0 | CR31: 1 | CS31: 0 | CT31: 1 | CU31: 2 | CV31: 1 | CW31: 1 | CX31: 0 | CY31: 3 | CZ31: 1 | DA31: 3 | DB31: 1 | DC31: 1 | DD31: 2 | DE31: 1 | DF31: 3 | DG31: 3 | DH31: 1 | DI31: 1 | DJ31: 1 | DK31: 0 | DL31: 0 | DM31: 4 | DN31: 1 | DO31: 3 | DP31: 2 | DQ31: 1 | DR31: 0 | DS31: 0 | DT31: 2 | DU31: 0 | DV31: 0 | DW31: 0 | DX31: 0 | DY31: 0 | DZ31: 0 | EA31: 0 | EB31: 0 | EC31: 0 | ED31: 0 | EE31: 0 | EF31: 0 | EG31: 0 | EH31: 0 | EI31: 1 | EJ31: 0 | EK31: 2 | EL31: 0 | EM31: 0 | EN31: 0 | EO31: 0 | EP31: 2 | EQ31: 0 | ER31: 0 | ES31: 2 | ET31: 0 | EU31: 2 | EV31: 2 | EW31: 2 | EX31: 0 | EY31: 0 | EZ31: 0 | FA31: 0 | FB31: 2 | FC31: 2 | FD31: 2 | FE31: 0 | FF31: 3 | FG31: 3 | FH31: 2 | FI31: 2 | FJ31: 2 | FK31: 0 | FL31: 3 | FM31: 0 | FN31: 2 | FO31: 2 | FP31: 2 | FQ31: 3 | FR31: 0 | FS31: 0 | FT31: 5 | FU31: 3 | FV31: 0 | FW31: 0 | FX31: 2 | FY31: 0 | FZ31: 0 | GA31: 1 | GB31: 1 | GC31: 0 | GD31: 0 | GE31: 0 | GF31: 1 | GG31: 0 | GH31: 0 | GI31: 2 | GJ31: 3 | GK31: 0 | GL31: 1 | GM31: 2 | GN31: 2 | GO31: 6 | GP31: 1 | GQ31: 10 | GR31: 4 | GS31: 1 | GT31: 2 | GU31: 2 | GV31: 4 | GW31: 4 | GX31: 6 | GY31: 2 | GZ31: 5 | HA31: 7 | HB31: 5 | HC31: Bacteria | HD31: Desulfobacterota_D | HE31: UBA1144 | HF31: UBA1144 | HG31: UBA1144 | HH31: TMED126 | HI31: TMED126 sp002701605
A32: Zotu1024 | B32: 0 | C32: 0 | D32: 0 | E32: 0 | F32: 0 | G32: 0 | H32: 1 | I32: 0 | J32: 0 | K32: 0 | L32: 0 | M32: 0 | N32: 0 | O32: 0 | P32: 0 | Q32: 0 | R32: 0 | S32: 0 | T32: 0 | U32: 0 | V32: 0 | W32: 0 | X32: 0 | Y32: 0 | Z32: 0 | AA32: 0 | AB32: 0 | AC32: 0 | AD32: 0 | AE32: 0 | AF32: 0 | AG32: 0 | AH32: 0 | AI32: 0 | AJ32: 0 | AK32: 0 | AL32: 0 | AM32: 0 | AN32: 0 | AO32: 0 | AP32: 0 | AQ32: 0 | AR32: 1 | AS32: 0 | AT32: 0 | AU32: 0 | AV32: 0 | AW32: 0 | AX32: 0 | AY32: 0 | AZ32: 0 | BA32: 0 | BB32: 0 | BC32: 3 | BD32: 0 | BE32: 0 | BF32: 0 | BG32: 0 | BH32: 1 | BI32: 0 | BJ32: 0 | BK32: 0 | BL32: 0 | BM32: 0 | BN32: 0 | BO32: 3 | BP32: 0 | BQ32: 0 | BR32: 0 | BS32: 0 | BT32: 1 | BU32: 0 | BV32: 0 | BW32: 0 | BX32: 0 | BY32: 0 | BZ32: 0 | CA32: 2 | CB32: 0 | CC32: 0 | CD32: 0 | CE32: 0 | CF32: 0 | CG32: 0 | CH32: 0 | CI32: 0 | CJ32: 0 | CK32: 0 | CL32: 0 | CM32: 2 | CN32: 0 | CO32: 0 | CP32: 0 | CQ32: 0 | CR32: 2 | CS32: 5 | CT32: 2 | CU32: 2 | CV32: 2 | CW32: 0 | CX32: 136 | CY32: 8 | CZ32: 3 | DA32: 2 | DB32: 5 | DC32: 0 | DD32: 0 | DE32: 0 | DF32: 0 | DG32: 0 | DH32: 1 | DI32: 0 | DJ32: 0 | DK32: 0 | DL32: 0 | DM32: 0 | DN32: 0 | DO32: 0 | DP32: 0 | DQ32: 0 | DR32: 2 | DS32: 0 | DT32: 0 | DU32: 0 | DV32: 0 | DW32: 0 | DX32: 15 | DY32: 2 | DZ32: 0 | EA32: 0 | EB32: 0 | EC32: 2 | ED32: 2 | EE32: 0 | EF32: 3 | EG32: 2 | EH32: 0 | EI32: 0 | EJ32: 8 | EK32: 0 | EL32: 2 | EM32: 2 | EN32: 2 | EO32: 0 | EP32: 2 | EQ32: 3 | ER32: 2 | ES32: 3 | ET32: 0 | EU32: 0 | EV32: 12 | EW32: 3 | EX32: 0 | EY32: 5 | EZ32: 2 | FA32: 2 | FB32: 0 | FC32: 0 | FD32: 0 | FE32: 0 | FF32: 2 | FG32: 6 | FH32: 0 | FI32: 0 | FJ32: 2 | FK32: 0 | FL32: 0 | FM32: 0 | FN32: 0 | FO32: 0 | FP32: 0 | FQ32: 0 | FR32: 0 | FS32: 2 | FT32: 0 | FU32: 2 | FV32: 0 | FW32: 0 | FX32: 0 | FY32: 0 | FZ32: 0 | GA32: 0 | GB32: 0 | GC32: 0 | GD32: 0 | GE32: 0 | GF32: 0 | GG32: 0 | GH32: 0 | GI32: 0 | GJ32: 0 | GK32: 0 | GL32: 0 | GM32: 0 | GN32: 0 | GO32: 0 | GP32: 0 | GQ32: 0 | GR32: 0 | GS32: 0 | GT32: 0 | GU32: 0 | GV32: 0 | GW32: 0 | GX32: 0 | GY32: 0 | GZ32: 0 | HA32: 0 | HB32: 0 | HC32: Bacteria | HD32: Gemmatimonadota | HE32: Gemmatimonadetes | HF32: Gemmatimonadales | HG32: Gemmatimonadaceae | HH32: Gemmatimonas | HI32: Gemmatimonas aurantiaca
A33: Zotu1026 | B33: 0 | C33: 0 | D33: 0 | E33: 0 | F33: 0 | G33: 0 | H33: 0 | I33: 0 | J33: 0 | K33: 0 | L33: 0 | M33: 0 | N33: 0 | O33: 0 | P33: 0 | Q33: 0 | R33: 0 | S33: 0 | T33: 0 | U33: 0 | V33: 0 | W33: 0 | X33: 0 | Y33: 0 | Z33: 0 | AA33: 0 | AB33: 0 | AC33: 0 | AD33: 0 | AE33: 0 | AF33: 0 | AG33: 0 | AH33: 0 | AI33: 0 | AJ33: 0 | AK33: 0 | AL33: 0 | AM33: 0 | AN33: 0 | AO33: 0 | AP33: 0 | AQ33: 0 | AR33: 0 | AS33: 0 | AT33: 0 | AU33: 0 | AV33: 0 | AW33: 0 | AX33: 0 | AY33: 0 | AZ33: 0 | BA33: 0 | BB33: 0 | BC33: 0 | BD33: 0 | BE33: 0 | BF33: 0 | BG33: 0 | BH33: 0 | BI33: 0 | BJ33: 0 | BK33: 0 | BL33: 0 | BM33: 0 | BN33: 0 | BO33: 0 | BP33: 0 | BQ33: 0 | BR33: 0 | BS33: 3 | BT33: 0 | BU33: 0 | BV33: 0 | BW33: 0 | BX33: 0 | BY33: 0 | BZ33: 0 | CA33: 0 | CB33: 0 | CC33: 0 | CD33: 0 | CE33: 0 | CF33: 0 | CG33: 0 | CH33: 0 | CI33: 0 | CJ33: 0 | CK33: 0 | CL33: 0 | CM33: 0 | CN33: 1 | CO33: 0 | CP33: 1 | CQ33: 2 | CR33: 1 | CS33: 1 | CT33: 0 | CU33: 0 | CV33: 2 | CW33: 0 | CX33: 1 | CY33: 0 | CZ33: 0 | DA33: 2 | DB33: 0 | DC33: 5 | DD33: 2 | DE33: 1 | DF33: 5 | DG33: 1 | DH33: 4 | DI33: 10 | DJ33: 5 | DK33: 5 | DL33: 5 | DM33: 3 | DN33: 9 | DO33: 1 | DP33: 4 | DQ33: 4 | DR33: 0 | DS33: 0 | DT33: 0 | DU33: 0 | DV33: 0 | DW33: 0 | DX33: 0 | DY33: 0 | DZ33: 0 | EA33: 0 | EB33: 0 | EC33: 0 | ED33: 0 | EE33: 0 | EF33: 0 | EG33: 0 | EH33: 0 | EI33: 0 | EJ33: 0 | EK33: 2 | EL33: 0 | EM33: 0 | EN33: 0 | EO33: 0 | EP33: 0 | EQ33: 0 | ER33: 0 | ES33: 0 | ET33: 0 | EU33: 0 | EV33: 0 | EW33: 0 | EX33: 0 | EY33: 0 | EZ33: 0 | FA33: 0 | FB33: 0 | FC33: 0 | FD33: 3 | FE33: 0 | FF33: 0 | FG33: 0 | FH33: 0 | FI33: 0 | FJ33: 2 | FK33: 2 | FL33: 0 | FM33: 2 | FN33: 0 | FO33: 0 | FP33: 3 | FQ33: 0 | FR33: 0 | FS33: 3 | FT33: 0 | FU33: 2 | FV33: 0 | FW33: 0 | FX33: 2 | FY33: 3 | FZ33: 11 | GA33: 1 | GB33: 1 | GC33: 4 | GD33: 7 | GE33: 3 | GF33: 4 | GG33: 4 | GH33: 2 | GI33: 9 | GJ33: 1 | GK33: 4 | GL33: 5 | GM33: 3 | GN33: 6 | GO33: 5 | GP33: 8 | GQ33: 5 | GR33: 2 | GS33: 0 | GT33: 2 | GU33: 4 | GV33: 1 | GW33: 3 | GX33: 2 | GY33: 0 | GZ33: 0 | HA33: 4 | HB33: 0 | HC33: Bacteria | HD33: Proteobacteria | HE33: Alphaproteobacteria | HF33: Rhodobacterales | HG33: Rhodobacteraceae | HH33: Leisingera | HI33: Leisingera sp000813725
A34: Zotu1028 | B34: 0 | C34: 0 | D34: 0 | E34: 0 | F34: 0 | G34: 0 | H34: 0 | I34: 0 | J34: 0 | K34: 0 | L34: 0 | M34: 0 | N34: 0 | O34: 0 | P34: 0 | Q34: 0 | R34: 0 | S34: 0 | T34: 0 | U34: 0 | V34: 0 | W34: 0 | X34: 0 | Y34: 0 | Z34: 0 | AA34: 0 | AB34: 0 | AC34: 0 | AD34: 0 | AE34: 0 | AF34: 0 | AG34: 0 | AH34: 0 | AI34: 0 | AJ34: 0 | AK34: 0 | AL34: 0 | AM34: 0 | AN34: 0 | AO34: 0 | AP34: 0 | AQ34: 0 | AR34: 0 | AS34: 0 | AT34: 0 | AU34: 0 | AV34: 0 | AW34: 0 | AX34: 2 | AY34: 0 | AZ34: 0 | BA34: 0 | BB34: 0 | BC34: 0 | BD34: 0 | BE34: 0 | BF34: 0 | BG34: 0 | BH34: 0 | BI34: 0 | BJ34: 0 | BK34: 0 | BL34: 0 | BM34: 0 | BN34: 0 | BO34: 0 | BP34: 0 | BQ34: 0 | BR34: 0 | BS34: 0 | BT34: 0 | BU34: 0 | BV34: 0 | BW34: 0 | BX34: 0 | BY34: 0 | BZ34: 0 | CA34: 0 | CB34: 0 | CC34: 0 | CD34: 0 | CE34: 0 | CF34: 0 | CG34: 0 | CH34: 0 | CI34: 0 | CJ34: 0 | CK34: 0 | CL34: 0 | CM34: 0 | CN34: 0 | CO34: 0 | CP34: 0 | CQ34: 0 | CR34: 0 | CS34: 0 | CT34: 0 | CU34: 0 | CV34: 0 | CW34: 1 | CX34: 0 | CY34: 0 | CZ34: 0 | DA34: 0 | DB34: 0 | DC34: 0 | DD34: 0 | DE34: 4 | DF34: 1 | DG34: 0 | DH34: 0 | DI34: 0 | DJ34: 0 | DK34: 0 | DL34: 1 | DM34: 0 | DN34: 0 | DO34: 0 | DP34: 0 | DQ34: 6 | DR34: 0 | DS34: 0 | DT34: 0 | DU34: 0 | DV34: 0 | DW34: 0 | DX34: 0 | DY34: 0 | DZ34: 20 | EA34: 0 | EB34: 5 | EC34: 0 | ED34: 2 | EE34: 3 | EF34: 0 | EG34: 0 | EH34: 0 | EI34: 0 | EJ34: 0 | EK34: 0 | EL34: 2 | EM34: 0 | EN34: 0 | EO34: 0 | EP34: 0 | EQ34: 0 | ER34: 0 | ES34: 0 | ET34: 0 | EU34: 0 | EV34: 0 | EW34: 0 | EX34: 2 | EY34: 0 | EZ34: 0 | FA34: 0 | FB34: 5 | FC34: 0 | FD34: 151 | FE34: 22 | FF34: 2 | FG34: 3 | FH34: 3 | FI34: 2 | FJ34: 0 | FK34: 11 | FL34: 2 | FM34: 0 | FN34: 0 | FO34: 0 | FP34: 3 | FQ34: 0 | FR34: 0 | FS34: 0 | FT34: 0 | FU34: 0 | FV34: 0 | FW34: 0 | FX34: 0 | FY34: 0 | FZ34: 0 | GA34: 0 | GB34: 0 | GC34: 0 | GD34: 0 | GE34: 0 | GF34: 0 | GG34: 0 | GH34: 0 | GI34: 0 | GJ34: 0 | GK34: 0 | GL34: 0 | GM34: 0 | GN34: 0 | GO34: 0 | GP34: 0 | GQ34: 0 | GR34: 0 | GS34: 0 | GT34: 1 | GU34: 1 | GV34: 1 | GW34: 0 | GX34: 0 | GY34: 2 | GZ34: 0 | HA34: 0 | HB34: 0 | HC34: Bacteria | HD34: Cyanobacteria | HE34: Cyanobacteriia | HF34: Cyanobacteriales | HG34: Cyanobacteriaceae | HH34: PCC-10605 | HI34: PCC-10605 sp000317675
A35: Zotu1029 | B35: 0 | C35: 0 | D35: 0 | E35: 0 | F35: 0 | G35: 0 | H35: 0 | I35: 0 | J35: 0 | K35: 0 | L35: 0 | M35: 0 | N35: 0 | O35: 0 | P35: 0 | Q35: 0 | R35: 0 | S35: 0 | T35: 0 | U35: 0 | V35: 0 | W35: 0 | X35: 0 | Y35: 0 | Z35: 0 | AA35: 0 | AB35: 0 | AC35: 0 | AD35: 0 | AE35: 0 | AF35: 0 | AG35: 0 | AH35: 0 | AI35: 0 | AJ35: 0 | AK35: 0 | AL35: 0 | AM35: 0 | AN35: 0 | AO35: 0 | AP35: 0 | AQ35: 0 | AR35: 0 | AS35: 0 | AT35: 0 | AU35: 0 | AV35: 0 | AW35: 0 | AX35: 0 | AY35: 0 | AZ35: 0 | BA35: 0 | BB35: 0 | BC35: 0 | BD35: 0 | BE35: 0 | BF35: 0 | BG35: 2 | BH35: 0 | BI35: 0 | BJ35: 0 | BK35: 0 | BL35: 0 | BM35: 0 | BN35: 0 | BO35: 0 | BP35: 0 | BQ35: 0 | BR35: 0 | BS35: 0 | BT35: 0 | BU35: 0 | BV35: 0 | BW35: 0 | BX35: 0 | BY35: 0 | BZ35: 0 | CA35: 0 | CB35: 0 | CC35: 0 | CD35: 0 | CE35: 0 | CF35: 0 | CG35: 2 | CH35: 5 | CI35: 0 | CJ35: 0 | CK35: 0 | CL35: 0 | CM35: 3 | CN35: 1 | CO35: 2 | CP35: 0 | CQ35: 3 | CR35: 3 | CS35: 0 | CT35: 4 | CU35: 3 | CV35: 5 | CW35: 7 | CX35: 4 | CY35: 0 | CZ35: 4 | DA35: 0 | DB35: 4 | DC35: 3 | DD35: 4 | DE35: 3 | DF35: 5 | DG35: 1 | DH35: 4 | DI35: 4 | DJ35: 4 | DK35: 1 | DL35: 3 | DM35: 3 | DN35: 2 | DO35: 5 | DP35: 1 | DQ35: 2 | DR35: 0 | DS35: 0 | DT35: 0 | DU35: 0 | DV35: 0 | DW35: 0 | DX35: 0 | DY35: 0 | DZ35: 0 | EA35: 0 | EB35: 0 | EC35: 0 | ED35: 2 | EE35: 0 | EF35: 0 | EG35: 0 | EH35: 0 | EI35: 0 | EJ35: 0 | EK35: 0 | EL35: 0 | EM35: 0 | EN35: 2 | EO35: 0 | EP35: 0 | EQ35: 0 | ER35: 0 | ES35: 3 | ET35: 0 | EU35: 0 | EV35: 0 | EW35: 2 | EX35: 0 | EY35: 0 | EZ35: 2 | FA35: 0 | FB35: 2 | FC35: 2 | FD35: 2 | FE35: 0 | FF35: 0 | FG35: 0 | FH35: 3 | FI35: 0 | FJ35: 0 | FK35: 0 | FL35: 0 | FM35: 0 | FN35: 0 | FO35: 0 | FP35: 0 | FQ35: 0 | FR35: 0 | FS35: 2 | FT35: 0 | FU35: 0 | FV35: 0 | FW35: 0 | FX35: 0 | FY35: 0 | FZ35: 3 | GA35: 1 | GB35: 1 | GC35: 1 | GD35: 5 | GE35: 1 | GF35: 2 | GG35: 3 | GH35: 2 | GI35: 4 | GJ35: 5 | GK35: 2 | GL35: 1 | GM35: 6 | GN35: 7 | GO35: 4 | GP35: 6 | GQ35: 2 | GR35: 3 | GS35: 2 | GT35: 2 | GU35: 2 | GV35: 5 | GW35: 0 | GX35: 4 | GY35: 4 | GZ35: 2 | HA35: 5 | HB35: 5 | HC35: Bacteria | HD35: Proteobacteria | HE35: Alphaproteobacteria | HF35: Rhizobiales | HG35: Stappiaceae | HH35: Roseibium | HI35: Roseibium sp000148725
A36: Zotu103 | B36: 0 | C36: 0 | D36: 0 | E36: 0 | F36: 0 | G36: 0 | H36: 0 | I36: 0 | J36: 0 | K36: 0 | L36: 0 | M36: 0 | N36: 0 | O36: 0 | P36: 0 | Q36: 0 | R36: 0 | S36: 0 | T36: 2 | U36: 0 | V36: 0 | W36: 0 | X36: 0 | Y36: 0 | Z36: 0 | AA36: 0 | AB36: 0 | AC36: 0 | AD36: 0 | AE36: 0 | AF36: 0 | AG36: 0 | AH36: 0 | AI36: 0 | AJ36: 0 | AK36: 0 | AL36: 0 | AM36: 0 | AN36: 0 | AO36: 0 | AP36: 0 | AQ36: 0 | AR36: 0 | AS36: 0 | AT36: 0 | AU36: 0 | AV36: 0 | AW36: 0 | AX36: 3 | AY36: 0 | AZ36: 1 | BA36: 0 | BB36: 0 | BC36: 0 | BD36: 5 | BE36: 0 | BF36: 2 | BG36: 15 | BH36: 0 | BI36: 0 | BJ36: 1 | BK36: 0 | BL36: 0 | BM36: 1 | BN36: 0 | BO36: 0 | BP36: 14 | BQ36: 0 | BR36: 2 | BS36: 8 | BT36: 0 | BU36: 0 | BV36: 1 | BW36: 0 | BX36: 0 | BY36: 0 | BZ36: 1 | CA36: 0 | CB36: 16 | CC36: 2 | CD36: 7 | CE36: 11 | CF36: 0 | CG36: 2 | CH36: 0 | CI36: 6 | CJ36: 2 | CK36: 2 | CL36: 3 | CM36: 3 | CN36: 280 | CO36: 69 | CP36: 126 | CQ36: 326 | CR36: 49 | CS36: 140 | CT36: 74 | CU36: 124 | CV36: 96 | CW36: 523 | CX36: 25 | CY36: 9 | CZ36: 75 | DA36: 3 | DB36: 34 | DC36: 354 | DD36: 278 | DE36: 216 | DF36: 155 | DG36: 94 | DH36: 359 | DI36: 452 | DJ36: 341 | DK36: 144 | DL36: 512 | DM36: 137 | DN36: 254 | DO36: 260 | DP36: 107 | DQ36: 301 | DR36: 2 | DS36: 17 | DT36: 33 | DU36: 54 | DV36: 105 | DW36: 63 | DX36: 18 | DY36: 53 | DZ36: 5 | EA36: 0 | EB36: 15 | EC36: 5 | ED36: 5 | EE36: 9 | EF36: 36 | EG36: 51 | EH36: 17 | EI36: 37 | EJ36: 2 | EK36: 0 | EL36: 10 | EM36: 2 | EN36: 8 | EO36: 13 | EP36: 2 | EQ36: 6 | ER36: 11 | ES36: 11 | ET36: 0 | EU36: 12 | EV36: 19 | EW36: 46 | EX36: 7 | EY36: 19 | EZ36: 2 | FA36: 9 | FB36: 48 | FC36: 37 | FD36: 34 | FE36: 35 | FF36: 19 | FG36: 37 | FH36: 25 | FI36: 11 | FJ36: 28 | FK36: 73 | FL36: 63 | FM36: 73 | FN36: 30 | FO36: 22 | FP36: 36 | FQ36: 35 | FR36: 16 | FS36: 34 | FT36: 28 | FU36: 29 | FV36: 39 | FW36: 37 | FX36: 15 | FY36: 16 | FZ36: 203 | GA36: 316 | GB36: 263 | GC36: 423 | GD36: 222 | GE36: 393 | GF36: 211 | GG36: 236 | GH36: 438 | GI36: 101 | GJ36: 146 | GK36: 163 | GL36: 62 | GM36: 87 | GN36: 55 | GO36: 448 | GP36: 305 | GQ36: 458 | GR36: 250 | GS36: 178 | GT36: 235 | GU36: 495 | GV36: 312 | GW36: 254 | GX36: 334 | GY36: 539 | GZ36: 471 | HA36: 486 | HB36: 257 | HC36: Archaea | HD36: Thermoplasmatota | HE36: Poseidoniia | HF36: Poseidoniales | HG36: Poseidoniaceae | HH36: MGIIa-L2 | HI36: MGIIa-L2 sp002726845
A37: Zotu1030 | B37: 0 | C37: 0 | D37: 0 | E37: 0 | F37: 0 | G37: 0 | H37: 0 | I37: 0 | J37: 0 | K37: 0 | L37: 0 | M37: 0 | N37: 0 | O37: 0 | P37: 0 | Q37: 0 | R37: 0 | S37: 0 | T37: 0 | U37: 0 | V37: 0 | W37: 0 | X37: 0 | Y37: 0 | Z37: 0 | AA37: 0 | AB37: 0 | AC37: 0 | AD37: 0 | AE37: 0 | AF37: 0 | AG37: 0 | AH37: 0 | AI37: 0 | AJ37: 0 | AK37: 0 | AL37: 0 | AM37: 0 | AN37: 0 | AO37: 0 | AP37: 0 | AQ37: 0 | AR37: 0 | AS37: 0 | AT37: 0 | AU37: 0 | AV37: 0 | AW37: 0 | AX37: 0 | AY37: 0 | AZ37: 0 | BA37: 0 | BB37: 0 | BC37: 0 | BD37: 0 | BE37: 0 | BF37: 0 | BG37: 0 | BH37: 0 | BI37: 0 | BJ37: 0 | BK37: 0 | BL37: 0 | BM37: 0 | BN37: 0 | BO37: 0 | BP37: 0 | BQ37: 0 | BR37: 0 | BS37: 0 | BT37: 0 | BU37: 0 | BV37: 0 | BW37: 0 | BX37: 0 | BY37: 0 | BZ37: 0 | CA37: 0 | CB37: 0 | CC37: 0 | CD37: 0 | CE37: 0 | CF37: 0 | CG37: 0 | CH37: 0 | CI37: 0 | CJ37: 0 | CK37: 0 | CL37: 0 | CM37: 0 | CN37: 0 | CO37: 0 | CP37: 0 | CQ37: 0 | CR37: 0 | CS37: 0 | CT37: 0 | CU37: 0 | CV37: 0 | CW37: 0 | CX37: 0 | CY37: 0 | CZ37: 0 | DA37: 0 | DB37: 0 | DC37: 0 | DD37: 1 | DE37: 0 | DF37: 0 | DG37: 0 | DH37: 0 | DI37: 0 | DJ37: 0 | DK37: 0 | DL37: 0 | DM37: 0 | DN37: 0 | DO37: 0 | DP37: 1 | DQ37: 0 | DR37: 0 | DS37: 0 | DT37: 0 | DU37: 0 | DV37: 0 | DW37: 0 | DX37: 0 | DY37: 0 | DZ37: 0 | EA37: 0 | EB37: 1 | EC37: 0 | ED37: 0 | EE37: 0 | EF37: 0 | EG37: 0 | EH37: 0 | EI37: 0 | EJ37: 0 | EK37: 0 | EL37: 0 | EM37: 0 | EN37: 0 | EO37: 0 | EP37: 0 | EQ37: 0 | ER37: 0 | ES37: 0 | ET37: 0 | EU37: 0 | EV37: 0 | EW37: 0 | EX37: 0 | EY37: 0 | EZ37: 0 | FA37: 0 | FB37: 0 | FC37: 0 | FD37: 0 | FE37: 377 | FF37: 0 | FG37: 0 | FH37: 0 | FI37: 0 | FJ37: 0 | FK37: 0 | FL37: 0 | FM37: 0 | FN37: 0 | FO37: 0 | FP37: 0 | FQ37: 0 | FR37: 0 | FS37: 0 | FT37: 0 | FU37: 0 | FV37: 0 | FW37: 0 | FX37: 0 | FY37: 0 | FZ37: 0 | GA37: 0 | GB37: 0 | GC37: 0 | GD37: 0 | GE37: 0 | GF37: 0 | GG37: 0 | GH37: 0 | GI37: 0 | GJ37: 0 | GK37: 0 | GL37: 0 | GM37: 0 | GN37: 0 | GO37: 0 | GP37: 0 | GQ37: 0 | GR37: 0 | GS37: 0 | GT37: 0 | GU37: 0 | GV37: 0 | GW37: 0 | GX37: 0 | GY37: 0 | GZ37: 0 | HA37: 0 | HB37: 0 | HC37: Bacteria | HD37: Firmicutes | HE37: Bacilli | HF37: Lactobacillales | HG37: Lactobacillaceae | HH37: Lactiplantibacillus | HI37: Lactiplantibacillus plantarum
A38: Zotu1031 | B38: 0 | C38: 0 | D38: 0 | E38: 0 | F38: 0 | G38: 0 | H38: 0 | I38: 0 | J38: 0 | K38: 0 | L38: 0 | M38: 0 | N38: 0 | O38: 0 | P38: 0 | Q38: 0 | R38: 0 | S38: 0 | T38: 0 | U38: 0 | V38: 0 | W38: 0 | X38: 0 | Y38: 0 | Z38: 0 | AA38: 0 | AB38: 0 | AC38: 0 | AD38: 0 | AE38: 0 | AF38: 0 | AG38: 0 | AH38: 0 | AI38: 0 | AJ38: 0 | AK38: 0 | AL38: 0 | AM38: 0 | AN38: 0 | AO38: 0 | AP38: 0 | AQ38: 0 | AR38: 0 | AS38: 0 | AT38: 0 | AU38: 0 | AV38: 0 | AW38: 0 | AX38: 0 | AY38: 0 | AZ38: 0 | BA38: 0 | BB38: 0 | BC38: 0 | BD38: 0 | BE38: 0 | BF38: 0 | BG38: 0 | BH38: 0 | BI38: 0 | BJ38: 0 | BK38: 0 | BL38: 0 | BM38: 0 | BN38: 0 | BO38: 0 | BP38: 0 | BQ38: 0 | BR38: 0 | BS38: 0 | BT38: 0 | BU38: 0 | BV38: 1 | BW38: 0 | BX38: 0 | BY38: 0 | BZ38: 0 | CA38: 0 | CB38: 3 | CC38: 0 | CD38: 0 | CE38: 0 | CF38: 0 | CG38: 0 | CH38: 0 | CI38: 0 | CJ38: 0 | CK38: 2 | CL38: 0 | CM38: 0 | CN38: 3 | CO38: 0 | CP38: 2 | CQ38: 1 | CR38: 5 | CS38: 4 | CT38: 6 | CU38: 4 | CV38: 1 | CW38: 0 | CX38: 0 | CY38: 2 | CZ38: 3 | DA38: 0 | DB38: 1 | DC38: 2 | DD38: 4 | DE38: 4 | DF38: 4 | DG38: 0 | DH38: 1 | DI38: 2 | DJ38: 4 | DK38: 1 | DL38: 1 | DM38: 1 | DN38: 0 | DO38: 3 | DP38: 2 | DQ38: 0 | DR38: 0 | DS38: 0 | DT38: 0 | DU38: 0 | DV38: 1 | DW38: 0 | DX38: 0 | DY38: 0 | DZ38: 0 | EA38: 0 | EB38: 0 | EC38: 0 | ED38: 2 | EE38: 0 | EF38: 3 | EG38: 0 | EH38: 0 | EI38: 0 | EJ38: 0 | EK38: 0 | EL38: 0 | EM38: 0 | EN38: 3 | EO38: 2 | EP38: 0 | EQ38: 0 | ER38: 0 | ES38: 0 | ET38: 2 | EU38: 0 | EV38: 0 | EW38: 0 | EX38: 0 | EY38: 0 | EZ38: 3 | FA38: 0 | FB38: 0 | FC38: 0 | FD38: 2 | FE38: 2 | FF38: 0 | FG38: 0 | FH38: 0 | FI38: 3 | FJ38: 3 | FK38: 0 | FL38: 0 | FM38: 2 | FN38: 0 | FO38: 0 | FP38: 0 | FQ38: 2 | FR38: 0 | FS38: 0 | FT38: 0 | FU38: 3 | FV38: 2 | FW38: 0 | FX38: 0 | FY38: 0 | FZ38: 2 | GA38: 0 | GB38: 3 | GC38: 0 | GD38: 2 | GE38: 0 | GF38: 0 | GG38: 4 | GH38: 5 | GI38: 2 | GJ38: 4 | GK38: 5 | GL38: 5 | GM38: 7 | GN38: 9 | GO38: 5 | GP38: 5 | GQ38: 3 | GR38: 9 | GS38: 5 | GT38: 5 | GU38: 2 | GV38: 4 | GW38: 7 | GX38: 8 | GY38: 6 | GZ38: 3 | HA38: 11 | HB38: 6 | HC38: Bacteria | HD38: Proteobacteria | HE38: Gammaproteobacteria | HF38: Enterobacterales | HG38: Vibrionaceae | HH38: Vibrio | HI38: Vibrio nigripulchritudo
A39: Zotu1033 | B39: 0 | C39: 0 | D39: 0 | E39: 0 | F39: 0 | G39: 0 | H39: 0 | I39: 0 | J39: 0 | K39: 0 | L39: 0 | M39: 0 | N39: 0 | O39: 0 | P39: 0 | Q39: 0 | R39: 0 | S39: 0 | T39: 0 | U39: 0 | V39: 0 | W39: 0 | X39: 0 | Y39: 0 | Z39: 0 | AA39: 0 | AB39: 0 | AC39: 0 | AD39: 0 | AE39: 0 | AF39: 0 | AG39: 0 | AH39: 0 | AI39: 0 | AJ39: 0 | AK39: 0 | AL39: 0 | AM39: 0 | AN39: 0 | AO39: 0 | AP39: 0 | AQ39: 0 | AR39: 0 | AS39: 0 | AT39: 0 | AU39: 0 | AV39: 0 | AW39: 0 | AX39: 0 | AY39: 0 | AZ39: 0 | BA39: 0 | BB39: 0 | BC39: 0 | BD39: 0 | BE39: 0 | BF39: 0 | BG39: 0 | BH39: 0 | BI39: 0 | BJ39: 0 | BK39: 0 | BL39: 0 | BM39: 0 | BN39: 0 | BO39: 0 | BP39: 0 | BQ39: 0 | BR39: 0 | BS39: 0 | BT39: 0 | BU39: 0 | BV39: 0 | BW39: 0 | BX39: 0 | BY39: 0 | BZ39: 0 | CA39: 0 | CB39: 0 | CC39: 0 | CD39: 0 | CE39: 0 | CF39: 0 | CG39: 0 | CH39: 0 | CI39: 0 | CJ39: 0 | CK39: 0 | CL39: 0 | CM39: 0 | CN39: 0 | CO39: 0 | CP39: 0 | CQ39: 0 | CR39: 2 | CS39: 3 | CT39: 46 | CU39: 2 | CV39: 4 | CW39: 1 | CX39: 7 | CY39: 2 | CZ39: 4 | DA39: 26 | DB39: 0 | DC39: 0 | DD39: 0 | DE39: 0 | DF39: 0 | DG39: 0 | DH39: 0 | DI39: 0 | DJ39: 0 | DK39: 0 | DL39: 0 | DM39: 0 | DN39: 0 | DO39: 0 | DP39: 0 | DQ39: 0 | DR39: 0 | DS39: 0 | DT39: 2 | DU39: 0 | DV39: 0 | DW39: 0 | DX39: 0 | DY39: 0 | DZ39: 0 | EA39: 0 | EB39: 0 | EC39: 0 | ED39: 0 | EE39: 0 | EF39: 8 | EG39: 0 | EH39: 0 | EI39: 0 | EJ39: 0 | EK39: 0 | EL39: 0 | EM39: 2 | EN39: 0 | EO39: 0 | EP39: 0 | EQ39: 0 | ER39: 11 | ES39: 0 | ET39: 3 | EU39: 0 | EV39: 0 | EW39: 0 | EX39: 0 | EY39: 5 | EZ39: 0 | FA39: 0 | FB39: 0 | FC39: 0 | FD39: 0 | FE39: 0 | FF39: 0 | FG39: 0 | FH39: 0 | FI39: 0 | FJ39: 0 | FK39: 0 | FL39: 0 | FM39: 0 | FN39: 0 | FO39: 0 | FP39: 0 | FQ39: 0 | FR39: 0 | FS39: 0 | FT39: 0 | FU39: 0 | FV39: 0 | FW39: 0 | FX39: 0 | FY39: 0 | FZ39: 0 | GA39: 0 | GB39: 0 | GC39: 0 | GD39: 0 | GE39: 0 | GF39: 0 | GG39: 0 | GH39: 0 | GI39: 39 | GJ39: 0 | GK39: 1 | GL39: 0 | GM39: 0 | GN39: 1 | GO39: 0 | GP39: 0 | GQ39: 0 | GR39: 0 | GS39: 1 | GT39: 26 | GU39: 0 | GV39: 1 | GW39: 0 | GX39: 0 | GY39: 3 | GZ39: 0 | HA39: 0 | HB39: 0 | HC39: Bacteria | HD39: Proteobacteria | HE39: Alphaproteobacteria | HF39: Rhizobiales | HG39: Xanthobacteraceae | HH39: Tardiphaga | HI39: Tardiphaga sp018279705
A40: Zotu1035 | B40: 0 | C40: 0 | D40: 0 | E40: 0 | F40: 0 | G40: 0 | H40: 0 | I40: 0 | J40: 0 | K40: 0 | L40: 0 | M40: 0 | N40: 0 | O40: 0 | P40: 0 | Q40: 0 | R40: 0 | S40: 0 | T40: 0 | U40: 0 | V40: 0 | W40: 0 | X40: 0 | Y40: 0 | Z40: 0 | AA40: 0 | AB40: 0 | AC40: 0 | AD40: 0 | AE40: 0 | AF40: 0 | AG40: 0 | AH40: 0 | AI40: 0 | AJ40: 0 | AK40: 0 | AL40: 0 | AM40: 0 | AN40: 0 | AO40: 0 | AP40: 0 | AQ40: 0 | AR40: 0 | AS40: 0 | AT40: 0 | AU40: 0 | AV40: 0 | AW40: 0 | AX40: 0 | AY40: 0 | AZ40: 0 | BA40: 0 | BB40: 0 | BC40: 0 | BD40: 0 | BE40: 0 | BF40: 0 | BG40: 0 | BH40: 0 | BI40: 0 | BJ40: 0 | BK40: 0 | BL40: 0 | BM40: 0 | BN40: 0 | BO40: 0 | BP40: 0 | BQ40: 0 | BR40: 0 | BS40: 0 | BT40: 0 | BU40: 0 | BV40: 0 | BW40: 0 | BX40: 0 | BY40: 0 | BZ40: 0 | CA40: 0 | CB40: 0 | CC40: 0 | CD40: 0 | CE40: 0 | CF40: 0 | CG40: 0 | CH40: 0 | CI40: 0 | CJ40: 0 | CK40: 0 | CL40: 0 | CM40: 0 | CN40: 0 | CO40: 0 | CP40: 0 | CQ40: 0 | CR40: 6 | CS40: 8 | CT40: 37 | CU40: 3 | CV40: 89 | CW40: 3 | CX40: 11 | CY40: 19 | CZ40: 4 | DA40: 33 | DB40: 9 | DC40: 0 | DD40: 0 | DE40: 0 | DF40: 0 | DG40: 0 | DH40: 0 | DI40: 0 | DJ40: 0 | DK40: 0 | DL40: 0 | DM40: 0 | DN40: 0 | DO40: 0 | DP40: 0 | DQ40: 0 | DR40: 0 | DS40: 0 | DT40: 3 | DU40: 0 | DV40: 18 | DW40: 0 | DX40: 0 | DY40: 0 | DZ40: 0 | EA40: 0 | EB40: 0 | EC40: 0 | ED40: 0 | EE40: 0 | EF40: 5 | EG40: 0 | EH40: 32 | EI40: 0 | EJ40: 2 | EK40: 0 | EL40: 0 | EM40: 2 | EN40: 0 | EO40: 0 | EP40: 0 | EQ40: 0 | ER40: 3 | ES40: 0 | ET40: 19 | EU40: 0 | EV40: 0 | EW40: 0 | EX40: 0 | EY40: 5 | EZ40: 0 | FA40: 0 | FB40: 0 | FC40: 0 | FD40: 0 | FE40: 3 | FF40: 0 | FG40: 0 | FH40: 0 | FI40: 0 | FJ40: 0 | FK40: 0 | FL40: 0 | FM40: 0 | FN40: 0 | FO40: 0 | FP40: 0 | FQ40: 2 | FR40: 0 | FS40: 0 | FT40: 0 | FU40: 0 | FV40: 0 | FW40: 0 | FX40: 0 | FY40: 0 | FZ40: 0 | GA40: 0 | GB40: 0 | GC40: 0 | GD40: 0 | GE40: 0 | GF40: 0 | GG40: 0 | GH40: 1 | GI40: 0 | GJ40: 0 | GK40: 2 | GL40: 0 | GM40: 0 | GN40: 1 | GO40: 1 | GP40: 0 | GQ40: 6 | GR40: 1 | GS40: 0 | GT40: 0 | GU40: 0 | GV40: 1 | GW40: 0 | GX40: 0 | GY40: 0 | GZ40: 0 | HA40: 0 | HB40: 0 | HC40: Bacteria | HD40: Proteobacteria | HE40: Alphaproteobacteria | HF40: Rhizobiales | HG40: Devosiaceae | HH40: Devosia_A | HI40: Tolypothrix_B campylonemoides
A41: Zotu1036 | B41: 0 | C41: 0 | D41: 0 | E41: 0 | F41: 0 | G41: 0 | H41: 0 | I41: 0 | J41: 0 | K41: 0 | L41: 0 | M41: 0 | N41: 0 | O41: 0 | P41: 0 | Q41: 0 | R41: 0 | S41: 0 | T41: 0 | U41: 0 | V41: 0 | W41: 0 | X41: 0 | Y41: 0 | Z41: 0 | AA41: 0 | AB41: 0 | AC41: 0 | AD41: 0 | AE41: 0 | AF41: 0 | AG41: 0 | AH41: 0 | AI41: 0 | AJ41: 0 | AK41: 0 | AL41: 0 | AM41: 0 | AN41: 0 | AO41: 0 | AP41: 0 | AQ41: 0 | AR41: 0 | AS41: 0 | AT41: 0 | AU41: 0 | AV41: 0 | AW41: 0 | AX41: 0 | AY41: 0 | AZ41: 0 | BA41: 0 | BB41: 0 | BC41: 0 | BD41: 2 | BE41: 0 | BF41: 0 | BG41: 0 | BH41: 0 | BI41: 0 | BJ41: 0 | BK41: 0 | BL41: 0 | BM41: 0 | BN41: 0 | BO41: 0 | BP41: 0 | BQ41: 0 | BR41: 2 | BS41: 0 | BT41: 0 | BU41: 0 | BV41: 0 | BW41: 0 | BX41: 0 | BY41: 0 | BZ41: 0 | CA41: 0 | CB41: 0 | CC41: 0 | CD41: 2 | CE41: 0 | CF41: 0 | CG41: 0 | CH41: 0 | CI41: 0 | CJ41: 0 | CK41: 0 | CL41: 2 | CM41: 0 | CN41: 4 | CO41: 3 | CP41: 2 | CQ41: 2 | CR41: 9 | CS41: 1 | CT41: 0 | CU41: 4 | CV41: 0 | CW41: 0 | CX41: 4 | CY41: 0 | CZ41: 3 | DA41: 5 | DB41: 0 | DC41: 1 | DD41: 5 | DE41: 7 | DF41: 4 | DG41: 0 | DH41: 0 | DI41: 1 | DJ41: 3 | DK41: 3 | DL41: 5 | DM41: 1 | DN41: 2 | DO41: 0 | DP41: 3 | DQ41: 0 | DR41: 2 | DS41: 0 | DT41: 0 | DU41: 0 | DV41: 0 | DW41: 0 | DX41: 0 | DY41: 2 | DZ41: 0 | EA41: 3 | EB41: 0 | EC41: 0 | ED41: 8 | EE41: 0 | EF41: 0 | EG41: 2 | EH41: 2 | EI41: 0 | EJ41: 0 | EK41: 0 | EL41: 0 | EM41: 0 | EN41: 0 | EO41: 0 | EP41: 0 | EQ41: 0 | ER41: 0 | ES41: 0 | ET41: 0 | EU41: 0 | EV41: 0 | EW41: 0 | EX41: 0 | EY41: 0 | EZ41: 0 | FA41: 0 | FB41: 2 | FC41: 2 | FD41: 0 | FE41: 2 | FF41: 0 | FG41: 0 | FH41: 0 | FI41: 0 | FJ41: 0 | FK41: 0 | FL41: 0 | FM41: 0 | FN41: 3 | FO41: 0 | FP41: 0 | FQ41: 0 | FR41: 0 | FS41: 0 | FT41: 0 | FU41: 0 | FV41: 0 | FW41: 0 | FX41: 0 | FY41: 2 | FZ41: 9 | GA41: 1 | GB41: 1 | GC41: 1 | GD41: 0 | GE41: 1 | GF41: 1 | GG41: 4 | GH41: 6 | GI41: 5 | GJ41: 9 | GK41: 5 | GL41: 4 | GM41: 9 | GN41: 11 | GO41: 6 | GP41: 4 | GQ41: 2 | GR41: 14 | GS41: 2 | GT41: 9 | GU41: 2 | GV41: 5 | GW41: 1 | GX41: 2 | GY41: 3 | GZ41: 2 | HA41: 6 | HB41: 5 | HC41: Bacteria | HD41: Proteobacteria | HE41: Gammaproteobacteria | HF41: Pseudomonadales | HG41: Halieaceae | HH41: Congregibacter | HI41: Congregibacter litoralis
A42: Zotu1037 | B42: 0 | C42: 0 | D42: 0 | E42: 0 | F42: 0 | G42: 0 | H42: 0 | I42: 0 | J42: 0 | K42: 0 | L42: 0 | M42: 0 | N42: 0 | O42: 0 | P42: 0 | Q42: 0 | R42: 0 | S42: 0 | T42: 0 | U42: 0 | V42: 0 | W42: 0 | X42: 0 | Y42: 0 | Z42: 0 | AA42: 0 | AB42: 0 | AC42: 0 | AD42: 0 | AE42: 0 | AF42: 0 | AG42: 0 | AH42: 0 | AI42: 0 | AJ42: 0 | AK42: 0 | AL42: 0 | AM42: 0 | AN42: 0 | AO42: 0 | AP42: 0 | AQ42: 0 | AR42: 0 | AS42: 0 | AT42: 0 | AU42: 0 | AV42: 0 | AW42: 0 | AX42: 0 | AY42: 0 | AZ42: 0 | BA42: 0 | BB42: 0 | BC42: 0 | BD42: 0 | BE42: 0 | BF42: 0 | BG42: 0 | BH42: 0 | BI42: 0 | BJ42: 0 | BK42: 0 | BL42: 0 | BM42: 0 | BN42: 0 | BO42: 0 | BP42: 0 | BQ42: 0 | BR42: 0 | BS42: 0 | BT42: 0 | BU42: 0 | BV42: 0 | BW42: 0 | BX42: 0 | BY42: 0 | BZ42: 0 | CA42: 0 | CB42: 2 | CC42: 0 | CD42: 0 | CE42: 0 | CF42: 0 | CG42: 0 | CH42: 0 | CI42: 0 | CJ42: 2 | CK42: 0 | CL42: 0 | CM42: 0 | CN42: 4 | CO42: 0 | CP42: 1 | CQ42: 0 | CR42: 7 | CS42: 1 | CT42: 0 | CU42: 0 | CV42: 2 | CW42: 0 | CX42: 4 | CY42: 2 | CZ42: 3 | DA42: 0 | DB42: 0 | DC42: 1 | DD42: 3 | DE42: 4 | DF42: 5 | DG42: 1 | DH42: 4 | DI42: 1 | DJ42: 1 | DK42: 3 | DL42: 1 | DM42: 0 | DN42: 11 | DO42: 1 | DP42: 3 | DQ42: 1 | DR42: 2 | DS42: 0 | DT42: 0 | DU42: 0 | DV42: 0 | DW42: 0 | DX42: 0 | DY42: 0 | DZ42: 0 | EA42: 0 | EB42: 0 | EC42: 0 | ED42: 0 | EE42: 0 | EF42: 0 | EG42: 2 | EH42: 0 | EI42: 0 | EJ42: 0 | EK42: 2 | EL42: 0 | EM42: 0 | EN42: 0 | EO42: 0 | EP42: 2 | EQ42: 0 | ER42: 2 | ES42: 0 | ET42: 0 | EU42: 0 | EV42: 0 | EW42: 0 | EX42: 0 | EY42: 2 | EZ42: 0 | FA42: 0 | FB42: 0 | FC42: 2 | FD42: 3 | FE42: 0 | FF42: 0 | FG42: 1 | FH42: 0 | FI42: 0 | FJ42: 0 | FK42: 0 | FL42: 0 | FM42: 0 | FN42: 0 | FO42: 2 | FP42: 0 | FQ42: 0 | FR42: 2 | FS42: 0 | FT42: 0 | FU42: 0 | FV42: 0 | FW42: 0 | FX42: 0 | FY42: 0 | FZ42: 2 | GA42: 1 | GB42: 1 | GC42: 2 | GD42: 1 | GE42: 2 | GF42: 5 | GG42: 1 | GH42: 3 | GI42: 3 | GJ42: 5 | GK42: 6 | GL42: 6 | GM42: 5 | GN42: 20 | GO42: 3 | GP42: 6 | GQ42: 5 | GR42: 2 | GS42: 0 | GT42: 2 | GU42: 4 | GV42: 1 | GW42: 4 | GX42: 2 | GY42: 2 | GZ42: 2 | HA42: 4 | HB42: 1 | HC42: Bacteria | HD42: Proteobacteria | HE42: Alphaproteobacteria | HF42: Rhodobacterales | HG42: Rhodobacteraceae | HH42: Roseovarius | HI42: Roseovarius aestuariivivens
A43: Zotu1038 | B43: 0 | C43: 0 | D43: 0 | E43: 0 | F43: 0 | G43: 0 | H43: 0 | I43: 0 | J43: 0 | K43: 0 | L43: 0 | M43: 0 | N43: 0 | O43: 0 | P43: 0 | Q43: 0 | R43: 0 | S43: 0 | T43: 0 | U43: 0 | V43: 0 | W43: 0 | X43: 0 | Y43: 0 | Z43: 0 | AA43: 0 | AB43: 0 | AC43: 0 | AD43: 0 | AE43: 0 | AF43: 0 | AG43: 0 | AH43: 0 | AI43: 0 | AJ43: 0 | AK43: 0 | AL43: 0 | AM43: 0 | AN43: 0 | AO43: 0 | AP43: 0 | AQ43: 0 | AR43: 0 | AS43: 0 | AT43: 0 | AU43: 0 | AV43: 0 | AW43: 0 | AX43: 0 | AY43: 0 | AZ43: 0 | BA43: 0 | BB43: 0 | BC43: 0 | BD43: 0 | BE43: 0 | BF43: 0 | BG43: 2 | BH43: 0 | BI43: 0 | BJ43: 0 | BK43: 0 | BL43: 0 | BM43: 0 | BN43: 1 | BO43: 0 | BP43: 0 | BQ43: 0 | BR43: 0 | BS43: 0 | BT43: 0 | BU43: 0 | BV43: 0 | BW43: 0 | BX43: 0 | BY43: 0 | BZ43: 0 | CA43: 0 | CB43: 0 | CC43: 0 | CD43: 0 | CE43: 0 | CF43: 0 | CG43: 2 | CH43: 0 | CI43: 0 | CJ43: 0 | CK43: 0 | CL43: 0 | CM43: 0 | CN43: 6 | CO43: 2 | CP43: 4 | CQ43: 0 | CR43: 1 | CS43: 2 | CT43: 0 | CU43: 1 | CV43: 0 | CW43: 0 | CX43: 1 | CY43: 0 | CZ43: 0 | DA43: 2 | DB43: 0 | DC43: 1 | DD43: 1 | DE43: 2 | DF43: 0 | DG43: 3 | DH43: 0 | DI43: 1 | DJ43: 3 | DK43: 3 | DL43: 1 | DM43: 0 | DN43: 2 | DO43: 1 | DP43: 2 | DQ43: 1 | DR43: 0 | DS43: 0 | DT43: 0 | DU43: 0 | DV43: 0 | DW43: 0 | DX43: 0 | DY43: 0 | DZ43: 0 | EA43: 0 | EB43: 1 | EC43: 0 | ED43: 0 | EE43: 0 | EF43: 0 | EG43: 0 | EH43: 0 | EI43: 0 | EJ43: 0 | EK43: 0 | EL43: 2 | EM43: 0 | EN43: 0 | EO43: 0 | EP43: 0 | EQ43: 0 | ER43: 0 | ES43: 2 | ET43: 0 | EU43: 0 | EV43: 0 | EW43: 2 | EX43: 2 | EY43: 0 | EZ43: 3 | FA43: 0 | FB43: 2 | FC43: 0 | FD43: 2 | FE43: 5 | FF43: 0 | FG43: 0 | FH43: 0 | FI43: 0 | FJ43: 3 | FK43: 0 | FL43: 0 | FM43: 3 | FN43: 2 | FO43: 2 | FP43: 0 | FQ43: 2 | FR43: 0 | FS43: 0 | FT43: 0 | FU43: 0 | FV43: 0 | FW43: 0 | FX43: 0 | FY43: 0 | FZ43: 2 | GA43: 0 | GB43: 0 | GC43: 1 | GD43: 3 | GE43: 0 | GF43: 7 | GG43: 8 | GH43: 4 | GI43: 4 | GJ43: 6 | GK43: 6 | GL43: 6 | GM43: 7 | GN43: 5 | GO43: 2 | GP43: 3 | GQ43: 1 | GR43: 3 | GS43: 5 | GT43: 2 | GU43: 2 | GV43: 6 | GW43: 6 | GX43: 5 | GY43: 7 | GZ43: 12 | HA43: 2 | HB43: 5 | HC43: Bacteria | HD43: Proteobacteria | HE43: Alphaproteobacteria | HF43: HIMB59 | HG43: GCA-002718135 | HH43: AG-337-I02 | HI43: AG-337-I02 sp902628645
A44: Zotu1039 | B44: 0 | C44: 0 | D44: 0 | E44: 0 | F44: 0 | G44: 0 | H44: 0 | I44: 0 | J44: 0 | K44: 0 | L44: 0 | M44: 0 | N44: 0 | O44: 0 | P44: 0 | Q44: 0 | R44: 0 | S44: 0 | T44: 0 | U44: 0 | V44: 0 | W44: 0 | X44: 0 | Y44: 0 | Z44: 0 | AA44: 0 | AB44: 0 | AC44: 0 | AD44: 0 | AE44: 0 | AF44: 0 | AG44: 0 | AH44: 0 | AI44: 0 | AJ44: 0 | AK44: 0 | AL44: 0 | AM44: 0 | AN44: 0 | AO44: 0 | AP44: 0 | AQ44: 0 | AR44: 0 | AS44: 0 | AT44: 0 | AU44: 0 | AV44: 0 | AW44: 0 | AX44: 0 | AY44: 0 | AZ44: 0 | BA44: 0 | BB44: 0 | BC44: 0 | BD44: 0 | BE44: 0 | BF44: 0 | BG44: 0 | BH44: 0 | BI44: 0 | BJ44: 0 | BK44: 0 | BL44: 0 | BM44: 0 | BN44: 0 | BO44: 0 | BP44: 0 | BQ44: 0 | BR44: 0 | BS44: 0 | BT44: 0 | BU44: 0 | BV44: 0 | BW44: 0 | BX44: 0 | BY44: 0 | BZ44: 0 | CA44: 0 | CB44: 0 | CC44: 0 | CD44: 0 | CE44: 0 | CF44: 0 | CG44: 0 | CH44: 0 | CI44: 0 | CJ44: 0 | CK44: 0 | CL44: 0 | CM44: 0 | CN44: 0 | CO44: 0 | CP44: 0 | CQ44: 1 | CR44: 3 | CS44: 1 | CT44: 5 | CU44: 2 | CV44: 2 | CW44: 2 | CX44: 4 | CY44: 5 | CZ44: 4 | DA44: 329 | DB44: 6 | DC44: 0 | DD44: 0 | DE44: 0 | DF44: 0 | DG44: 1 | DH44: 0 | DI44: 0 | DJ44: 0 | DK44: 0 | DL44: 0 | DM44: 1 | DN44: 0 | DO44: 0 | DP44: 0 | DQ44: 1 | DR44: 2 | DS44: 0 | DT44: 0 | DU44: 0 | DV44: 0 | DW44: 0 | DX44: 0 | DY44: 0 | DZ44: 2 | EA44: 21 | EB44: 1 | EC44: 0 | ED44: 0 | EE44: 0 | EF44: 0 | EG44: 0 | EH44: 0 | EI44: 0 | EJ44: 2 | EK44: 0 | EL44: 0 | EM44: 18 | EN44: 3 | EO44: 0 | EP44: 0 | EQ44: 0 | ER44: 0 | ES44: 0 | ET44: 0 | EU44: 0 | EV44: 0 | EW44: 0 | EX44: 0 | EY44: 32 | EZ44: 0 | FA44: 0 | FB44: 0 | FC44: 0 | FD44: 0 | FE44: 2 | FF44: 0 | FG44: 0 | FH44: 0 | FI44: 0 | FJ44: 0 | FK44: 0 | FL44: 0 | FM44: 0 | FN44: 0 | FO44: 0 | FP44: 0 | FQ44: 0 | FR44: 0 | FS44: 0 | FT44: 0 | FU44: 0 | FV44: 0 | FW44: 2 | FX44: 0 | FY44: 0 | FZ44: 0 | GA44: 0 | GB44: 0 | GC44: 0 | GD44: 0 | GE44: 0 | GF44: 1 | GG44: 0 | GH44: 0 | GI44: 2 | GJ44: 0 | GK44: 0 | GL44: 0 | GM44: 0 | GN44: 1 | GO44: 12 | GP44: 0 | GQ44: 1 | GR44: 1 | GS44: 0 | GT44: 0 | GU44: 0 | GV44: 1 | GW44: 0 | GX44: 0 | GY44: 0 | GZ44: 19 | HA44: 0 | HB44: 0 | HC44: Bacteria | HD44: Firmicutes_A | HE44: Clostridia | HF44: Lachnospirales | HG44: Lachnospiraceae | HH44: Ruminococcus_B | HI44: Ruminococcus_B gnavus
A45: Zotu104 | B45: 103 | C45: 39 | D45: 54 | E45: 379 | F45: 185 | G45: 229 | H45: 373 | I45: 343 | J45: 218 | K45: 101 | L45: 50 | M45: 23 | N45: 58 | O45: 45 | P45: 17 | Q45: 387 | R45: 249 | S45: 395 | T45: 79 | U45: 36 | V45: 68 | W45: 38 | X45: 37 | Y45: 15 | Z45: 41 | AA45: 26 | AB45: 12 | AC45: 632 | AD45: 307 | AE45: 254 | AF45: 53 | AG45: 54 | AH45: 64 | AI45: 9 | AJ45: 10 | AK45: 14 | AL45: 2 | AM45: 1 | AN45: 1 | AO45: 69 | AP45: 66 | AQ45: 34 | AR45: 23 | AS45: 18 | AT45: 49 | AU45: 0 | AV45: 2 | AW45: 33 | AX45: 302 | AY45: 411 | AZ45: 231 | BA45: 414 | BB45: 224 | BC45: 230 | BD45: 80 | BE45: 95 | BF45: 60 | BG45: 192 | BH45: 45 | BI45: 40 | BJ45: 610 | BK45: 308 | BL45: 521 | BM45: 54 | BN45: 49 | BO45: 56 | BP45: 71 | BQ45: 66 | BR45: 40 | BS45: 106 | BT45: 15 | BU45: 7 | BV45: 388 | BW45: 428 | BX45: 406 | BY45: 37 | BZ45: 64 | CA45: 49 | CB45: 19 | CC45: 57 | CD45: 25 | CE45: 13 | CF45: 17 | CG45: 7 | CH45: 82 | CI45: 178 | CJ45: 253 | CK45: 43 | CL45: 33 | CM45: 47 | CN45: 0 | CO45: 99 | CP45: 2 | CQ45: 6 | CR45: 2 | CS45: 42 | CT45: 3 | CU45: 2 | CV45: 1 | CW45: 11 | CX45: 2 | CY45: 5 | CZ45: 2 | DA45: 8 | DB45: 5 | DC45: 7 | DD45: 20 | DE45: 128 | DF45: 4 | DG45: 7 | DH45: 6 | DI45: 4 | DJ45: 5 | DK45: 6 | DL45: 9 | DM45: 9 | DN45: 0 | DO45: 0 | DP45: 3 | DQ45: 13 | DR45: 0 | DS45: 5 | DT45: 0 | DU45: 0 | DV45: 0 | DW45: 2 | DX45: 0 | DY45: 0 | DZ45: 16 | EA45: 0 | EB45: 22 | EC45: 0 | ED45: 0 | EE45: 5 | EF45: 0 | EG45: 0 | EH45: 0 | EI45: 7 | EJ45: 0 | EK45: 0 | EL45: 0 | EM45: 0 | EN45: 0 | EO45: 0 | EP45: 0 | EQ45: 26 | ER45: 0 | ES45: 0 | ET45: 0 | EU45: 10 | EV45: 0 | EW45: 0 | EX45: 0 | EY45: 0 | EZ45: 0 | FA45: 0 | FB45: 0 | FC45: 16 | FD45: 25 | FE45: 0 | FF45: 0 | FG45: 0 | FH45: 0 | FI45: 0 | FJ45: 2 | FK45: 0 | FL45: 3 | FM45: 0 | FN45: 0 | FO45: 5 | FP45: 24 | FQ45: 0 | FR45: 0 | FS45: 0 | FT45: 0 | FU45: 0 | FV45: 0 | FW45: 3 | FX45: 0 | FY45: 5 | FZ45: 0 | GA45: 0 | GB45: 0 | GC45: 0 | GD45: 0 | GE45: 0 | GF45: 0 | GG45: 0 | GH45: 0 | GI45: 0 | GJ45: 0 | GK45: 0 | GL45: 0 | GM45: 0 | GN45: 0 | GO45: 0 | GP45: 0 | GQ45: 0 | GR45: 0 | GS45: 0 | GT45: 0 | GU45: 0 | GV45: 0 | GW45: 0 | GX45: 0 | GY45: 0 | GZ45: 0 | HA45: 0 | HB45: 0 | HC45: Bacteria | HD45: Proteobacteria | HE45: Gammaproteobacteria | HF45: RKRP01 | HG45: RKRP01 | HH45: RKRP01 | HI45: RKRP01 sp009844425
A46: Zotu1041 | B46: 0 | C46: 0 | D46: 0 | E46: 0 | F46: 0 | G46: 0 | H46: 0 | I46: 0 | J46: 0 | K46: 0 | L46: 0 | M46: 0 | N46: 0 | O46: 0 | P46: 0 | Q46: 0 | R46: 0 | S46: 0 | T46: 0 | U46: 0 | V46: 0 | W46: 0 | X46: 0 | Y46: 0 | Z46: 0 | AA46: 0 | AB46: 0 | AC46: 0 | AD46: 0 | AE46: 0 | AF46: 0 | AG46: 0 | AH46: 0 | AI46: 0 | AJ46: 0 | AK46: 0 | AL46: 0 | AM46: 0 | AN46: 0 | AO46: 0 | AP46: 0 | AQ46: 0 | AR46: 0 | AS46: 0 | AT46: 0 | AU46: 0 | AV46: 0 | AW46: 0 | AX46: 3 | AY46: 0 | AZ46: 0 | BA46: 0 | BB46: 0 | BC46: 0 | BD46: 0 | BE46: 0 | BF46: 0 | BG46: 0 | BH46: 0 | BI46: 0 | BJ46: 0 | BK46: 0 | BL46: 0 | BM46: 0 | BN46: 0 | BO46: 0 | BP46: 0 | BQ46: 0 | BR46: 0 | BS46: 0 | BT46: 0 | BU46: 0 | BV46: 0 | BW46: 0 | BX46: 0 | BY46: 0 | BZ46: 0 | CA46: 0 | CB46: 0 | CC46: 0 | CD46: 0 | CE46: 0 | CF46: 0 | CG46: 0 | CH46: 0 | CI46: 0 | CJ46: 0 | CK46: 0 | CL46: 0 | CM46: 0 | CN46: 0 | CO46: 0 | CP46: 0 | CQ46: 0 | CR46: 5 | CS46: 5 | CT46: 5 | CU46: 3 | CV46: 7 | CW46: 3 | CX46: 5 | CY46: 6 | CZ46: 1 | DA46: 335 | DB46: 5 | DC46: 0 | DD46: 0 | DE46: 0 | DF46: 0 | DG46: 0 | DH46: 1 | DI46: 0 | DJ46: 0 | DK46: 0 | DL46: 0 | DM46: 0 | DN46: 0 | DO46: 0 | DP46: 0 | DQ46: 0 | DR46: 0 | DS46: 0 | DT46: 2 | DU46: 0 | DV46: 0 | DW46: 0 | DX46: 1 | DY46: 0 | DZ46: 2 | EA46: 16 | EB46: 3 | EC46: 0 | ED46: 0 | EE46: 0 | EF46: 0 | EG46: 0 | EH46: 0 | EI46: 0 | EJ46: 0 | EK46: 0 | EL46: 0 | EM46: 11 | EN46: 0 | EO46: 0 | EP46: 0 | EQ46: 0 | ER46: 0 | ES46: 0 | ET46: 0 | EU46: 0 | EV46: 0 | EW46: 0 | EX46: 0 | EY46: 17 | EZ46: 0 | FA46: 0 | FB46: 0 | FC46: 0 | FD46: 5 | FE46: 0 | FF46: 0 | FG46: 1 | FH46: 0 | FI46: 0 | FJ46: 0 | FK46: 0 | FL46: 0 | FM46: 0 | FN46: 0 | FO46: 0 | FP46: 0 | FQ46: 0 | FR46: 0 | FS46: 0 | FT46: 0 | FU46: 0 | FV46: 0 | FW46: 0 | FX46: 0 | FY46: 0 | FZ46: 0 | GA46: 0 | GB46: 0 | GC46: 0 | GD46: 0 | GE46: 0 | GF46: 0 | GG46: 0 | GH46: 0 | GI46: 1 | GJ46: 0 | GK46: 0 | GL46: 0 | GM46: 0 | GN46: 0 | GO46: 0 | GP46: 0 | GQ46: 0 | GR46: 0 | GS46: 0 | GT46: 0 | GU46: 0 | GV46: 0 | GW46: 0 | GX46: 1 | GY46: 0 | GZ46: 0 | HA46: 0 | HB46: 1 | HC46: Bacteria | HD46: Firmicutes_A | HE46: Clostridia | HF46: Lachnospirales | HG46: Lachnospiraceae | HH46: Blautia_A | HI46: Blautia_A obeum
A47: Zotu1042 | B47: 0 | C47: 0 | D47: 0 | E47: 0 | F47: 0 | G47: 0 | H47: 0 | I47: 0 | J47: 0 | K47: 0 | L47: 0 | M47: 0 | N47: 0 | O47: 0 | P47: 0 | Q47: 0 | R47: 0 | S47: 0 | T47: 0 | U47: 0 | V47: 0 | W47: 0 | X47: 0 | Y47: 0 | Z47: 0 | AA47: 0 | AB47: 0 | AC47: 0 | AD47: 0 | AE47: 0 | AF47: 0 | AG47: 0 | AH47: 0 | AI47: 0 | AJ47: 0 | AK47: 0 | AL47: 0 | AM47: 0 | AN47: 0 | AO47: 0 | AP47: 0 | AQ47: 0 | AR47: 0 | AS47: 0 | AT47: 0 | AU47: 0 | AV47: 0 | AW47: 0 | AX47: 0 | AY47: 0 | AZ47: 0 | BA47: 0 | BB47: 0 | BC47: 0 | BD47: 0 | BE47: 0 | BF47: 0 | BG47: 0 | BH47: 0 | BI47: 0 | BJ47: 0 | BK47: 0 | BL47: 0 | BM47: 0 | BN47: 0 | BO47: 0 | BP47: 0 | BQ47: 0 | BR47: 0 | BS47: 0 | BT47: 0 | BU47: 0 | BV47: 0 | BW47: 0 | BX47: 0 | BY47: 0 | BZ47: 0 | CA47: 0 | CB47: 2 | CC47: 0 | CD47: 0 | CE47: 0 | CF47: 0 | CG47: 0 | CH47: 0 | CI47: 0 | CJ47: 0 | CK47: 0 | CL47: 0 | CM47: 0 | CN47: 3 | CO47: 2 | CP47: 0 | CQ47: 3 | CR47: 5 | CS47: 7 | CT47: 0 | CU47: 0 | CV47: 0 | CW47: 1 | CX47: 0 | CY47: 2 | CZ47: 1 | DA47: 0 | DB47: 0 | DC47: 0 | DD47: 4 | DE47: 0 | DF47: 7 | DG47: 0 | DH47: 0 | DI47: 5 | DJ47: 2 | DK47: 1 | DL47: 0 | DM47: 1 | DN47: 6 | DO47: 0 | DP47: 1 | DQ47: 3 | DR47: 0 | DS47: 0 | DT47: 0 | DU47: 2 | DV47: 0 | DW47: 0 | DX47: 0 | DY47: 0 | DZ47: 2 | EA47: 0 | EB47: 0 | EC47: 0 | ED47: 0 | EE47: 0 | EF47: 0 | EG47: 0 | EH47: 0 | EI47: 0 | EJ47: 0 | EK47: 0 | EL47: 2 | EM47: 0 | EN47: 0 | EO47: 0 | EP47: 0 | EQ47: 0 | ER47: 2 | ES47: 0 | ET47: 0 | EU47: 0 | EV47: 0 | EW47: 0 | EX47: 0 | EY47: 0 | EZ47: 0 | FA47: 0 | FB47: 0 | FC47: 0 | FD47: 2 | FE47: 2 | FF47: 0 | FG47: 0 | FH47: 0 | FI47: 0 | FJ47: 0 | FK47: 0 | FL47: 0 | FM47: 2 | FN47: 0 | FO47: 0 | FP47: 0 | FQ47: 0 | FR47: 0 | FS47: 0 | FT47: 0 | FU47: 0 | FV47: 3 | FW47: 0 | FX47: 0 | FY47: 0 | FZ47: 5 | GA47: 0 | GB47: 0 | GC47: 1 | GD47: 2 | GE47: 0 | GF47: 0 | GG47: 1 | GH47: 6 | GI47: 3 | GJ47: 1 | GK47: 4 | GL47: 6 | GM47: 28 | GN47: 12 | GO47: 3 | GP47: 4 | GQ47: 4 | GR47: 8 | GS47: 2 | GT47: 3 | GU47: 1 | GV47: 2 | GW47: 3 | GX47: 5 | GY47: 0 | GZ47: 3 | HA47: 3 | HB47: 4 | HC47: Bacteria | HD47: Proteobacteria | HE47: Alphaproteobacteria | HF47: Rhodobacterales | HG47: Rhodobacteraceae | HH47: Celeribacter | HI47: Celeribacter indicus
A48: Zotu1043 | B48: 0 | C48: 0 | D48: 0 | E48: 0 | F48: 0 | G48: 0 | H48: 0 | I48: 0 | J48: 0 | K48: 0 | L48: 0 | M48: 0 | N48: 0 | O48: 0 | P48: 0 | Q48: 0 | R48: 0 | S48: 0 | T48: 0 | U48: 0 | V48: 0 | W48: 0 | X48: 0 | Y48: 0 | Z48: 0 | AA48: 0 | AB48: 0 | AC48: 0 | AD48: 0 | AE48: 0 | AF48: 0 | AG48: 0 | AH48: 0 | AI48: 0 | AJ48: 0 | AK48: 0 | AL48: 0 | AM48: 0 | AN48: 0 | AO48: 0 | AP48: 0 | AQ48: 0 | AR48: 0 | AS48: 0 | AT48: 0 | AU48: 0 | AV48: 0 | AW48: 0 | AX48: 9 | AY48: 0 | AZ48: 0 | BA48: 0 | BB48: 0 | BC48: 0 | BD48: 0 | BE48: 0 | BF48: 0 | BG48: 0 | BH48: 0 | BI48: 0 | BJ48: 0 | BK48: 0 | BL48: 0 | BM48: 0 | BN48: 0 | BO48: 0 | BP48: 0 | BQ48: 0 | BR48: 0 | BS48: 0 | BT48: 0 | BU48: 0 | BV48: 0 | BW48: 0 | BX48: 0 | BY48: 0 | BZ48: 0 | CA48: 0 | CB48: 0 | CC48: 0 | CD48: 0 | CE48: 0 | CF48: 0 | CG48: 0 | CH48: 0 | CI48: 0 | CJ48: 0 | CK48: 0 | CL48: 0 | CM48: 0 | CN48: 0 | CO48: 0 | CP48: 0 | CQ48: 0 | CR48: 6 | CS48: 1 | CT48: 12 | CU48: 3 | CV48: 5 | CW48: 3 | CX48: 10 | CY48: 2 | CZ48: 5 | DA48: 252 | DB48: 9 | DC48: 0 | DD48: 0 | DE48: 0 | DF48: 0 | DG48: 0 | DH48: 0 | DI48: 0 | DJ48: 0 | DK48: 0 | DL48: 0 | DM48: 0 | DN48: 0 | DO48: 0 | DP48: 0 | DQ48: 0 | DR48: 0 | DS48: 0 | DT48: 0 | DU48: 0 | DV48: 0 | DW48: 0 | DX48: 0 | DY48: 0 | DZ48: 17 | EA48: 40 | EB48: 9 | EC48: 0 | ED48: 0 | EE48: 0 | EF48: 0 | EG48: 0 | EH48: 0 | EI48: 0 | EJ48: 2 | EK48: 0 | EL48: 0 | EM48: 43 | EN48: 0 | EO48: 0 | EP48: 0 | EQ48: 0 | ER48: 0 | ES48: 0 | ET48: 0 | EU48: 0 | EV48: 0 | EW48: 0 | EX48: 0 | EY48: 26 | EZ48: 0 | FA48: 0 | FB48: 0 | FC48: 9 | FD48: 0 | FE48: 0 | FF48: 0 | FG48: 0 | FH48: 0 | FI48: 0 | FJ48: 0 | FK48: 0 | FL48: 0 | FM48: 0 | FN48: 0 | FO48: 0 | FP48: 0 | FQ48: 0 | FR48: 0 | FS48: 0 | FT48: 0 | FU48: 0 | FV48: 0 | FW48: 0 | FX48: 0 | FY48: 0 | FZ48: 0 | GA48: 0 | GB48: 0 | GC48: 0 | GD48: 0 | GE48: 0 | GF48: 0 | GG48: 0 | GH48: 0 | GI48: 0 | GJ48: 1 | GK48: 0 | GL48: 0 | GM48: 0 | GN48: 0 | GO48: 0 | GP48: 0 | GQ48: 0 | GR48: 0 | GS48: 2 | GT48: 0 | GU48: 0 | GV48: 1 | GW48: 0 | GX48: 0 | GY48: 0 | GZ48: 0 | HA48: 0 | HB48: 0 | HC48: Bacteria | HD48: Firmicutes_A | HE48: Clostridia | HF48: Lachnospirales | HG48: Lachnospiraceae | HH48: Lachnospira | HI48: Lachnospira rogosae_A
A49: Zotu1044 | B49: 0 | C49: 0 | D49: 0 | E49: 0 | F49: 0 | G49: 0 | H49: 0 | I49: 0 | J49: 0 | K49: 0 | L49: 0 | M49: 0 | N49: 0 | O49: 0 | P49: 0 | Q49: 0 | R49: 0 | S49: 0 | T49: 0 | U49: 0 | V49: 0 | W49: 0 | X49: 0 | Y49: 0 | Z49: 0 | AA49: 0 | AB49: 0 | AC49: 0 | AD49: 0 | AE49: 0 | AF49: 0 | AG49: 0 | AH49: 0 | AI49: 0 | AJ49: 0 | AK49: 0 | AL49: 0 | AM49: 0 | AN49: 0 | AO49: 0 | AP49: 0 | AQ49: 0 | AR49: 0 | AS49: 0 | AT49: 0 | AU49: 0 | AV49: 0 | AW49: 0 | AX49: 0 | AY49: 0 | AZ49: 0 | BA49: 0 | BB49: 0 | BC49: 0 | BD49: 0 | BE49: 0 | BF49: 0 | BG49: 0 | BH49: 0 | BI49: 0 | BJ49: 0 | BK49: 0 | BL49: 0 | BM49: 0 | BN49: 0 | BO49: 0 | BP49: 0 | BQ49: 0 | BR49: 0 | BS49: 2 | BT49: 0 | BU49: 0 | BV49: 0 | BW49: 0 | BX49: 0 | BY49: 0 | BZ49: 0 | CA49: 0 | CB49: 2 | CC49: 3 | CD49: 0 | CE49: 0 | CF49: 0 | CG49: 0 | CH49: 0 | CI49: 0 | CJ49: 0 | CK49: 0 | CL49: 0 | CM49: 0 | CN49: 3 | CO49: 3 | CP49: 2 | CQ49: 1 | CR49: 4 | CS49: 2 | CT49: 0 | CU49: 3 | CV49: 0 | CW49: 1 | CX49: 0 | CY49: 0 | CZ49: 0 | DA49: 2 | DB49: 0 | DC49: 6 | DD49: 2 | DE49: 4 | DF49: 2 | DG49: 3 | DH49: 3 | DI49: 4 | DJ49: 6 | DK49: 6 | DL49: 3 | DM49: 0 | DN49: 4 | DO49: 0 | DP49: 4 | DQ49: 3 | DR49: 0 | DS49: 0 | DT49: 2 | DU49: 2 | DV49: 0 | DW49: 2 | DX49: 0 | DY49: 0 | DZ49: 0 | EA49: 0 | EB49: 0 | EC49: 0 | ED49: 0 | EE49: 0 | EF49: 0 | EG49: 0 | EH49: 0 | EI49: 0 | EJ49: 0 | EK49: 2 | EL49: 0 | EM49: 0 | EN49: 0 | EO49: 0 | EP49: 0 | EQ49: 0 | ER49: 0 | ES49: 0 | ET49: 0 | EU49: 0 | EV49: 0 | EW49: 2 | EX49: 0 | EY49: 2 | EZ49: 0 | FA49: 0 | FB49: 0 | FC49: 2 | FD49: 0 | FE49: 0 | FF49: 0 | FG49: 0 | FH49: 3 | FI49: 0 | FJ49: 0 | FK49: 0 | FL49: 2 | FM49: 0 | FN49: 0 | FO49: 0 | FP49: 0 | FQ49: 0 | FR49: 0 | FS49: 0 | FT49: 2 | FU49: 0 | FV49: 0 | FW49: 0 | FX49: 0 | FY49: 0 | FZ49: 6 | GA49: 2 | GB49: 1 | GC49: 0 | GD49: 3 | GE49: 0 | GF49: 5 | GG49: 3 | GH49: 1 | GI49: 3 | GJ49: 2 | GK49: 16 | GL49: 1 | GM49: 6 | GN49: 7 | GO49: 2 | GP49: 2 | GQ49: 1 | GR49: 1 | GS49: 1 | GT49: 6 | GU49: 2 | GV49: 2 | GW49: 4 | GX49: 2 | GY49: 6 | GZ49: 2 | HA49: 7 | HB49: 1 | HC49: Bacteria | HD49: Proteobacteria | HE49: Alphaproteobacteria | HF49: Rhodobacterales | HG49: Rhodobacteraceae | HH49: Pseudoruegeria | HI49: Pseudoruegeria aquimaris
A50: Zotu1045 | B50: 0 | C50: 0 | D50: 0 | E50: 0 | F50: 0 | G50: 0 | H50: 0 | I50: 0 | J50: 0 | K50: 0 | L50: 0 | M50: 0 | N50: 0 | O50: 0 | P50: 0 | Q50: 0 | R50: 0 | S50: 0 | T50: 0 | U50: 0 | V50: 0 | W50: 0 | X50: 0 | Y50: 0 | Z50: 0 | AA50: 0 | AB50: 0 | AC50: 0 | AD50: 0 | AE50: 0 | AF50: 0 | AG50: 0 | AH50: 0 | AI50: 0 | AJ50: 0 | AK50: 0 | AL50: 0 | AM50: 0 | AN50: 0 | AO50: 0 | AP50: 0 | AQ50: 0 | AR50: 0 | AS50: 0 | AT50: 0 | AU50: 0 | AV50: 0 | AW50: 0 | AX50: 0 | AY50: 0 | AZ50: 0 | BA50: 0 | BB50: 0 | BC50: 0 | BD50: 0 | BE50: 0 | BF50: 0 | BG50: 0 | BH50: 0 | BI50: 0 | BJ50: 0 | BK50: 0 | BL50: 0 | BM50: 0 | BN50: 0 | BO50: 0 | BP50: 0 | BQ50: 0 | BR50: 0 | BS50: 0 | BT50: 0 | BU50: 0 | BV50: 0 | BW50: 0 | BX50: 0 | BY50: 0 | BZ50: 0 | CA50: 0 | CB50: 0 | CC50: 0 | CD50: 0 | CE50: 0 | CF50: 0 | CG50: 0 | CH50: 0 | CI50: 0 | CJ50: 0 | CK50: 0 | CL50: 0 | CM50: 0 | CN50: 0 | CO50: 0 | CP50: 0 | CQ50: 0 | CR50: 0 | CS50: 0 | CT50: 0 | CU50: 0 | CV50: 0 | CW50: 0 | CX50: 0 | CY50: 0 | CZ50: 0 | DA50: 0 | DB50: 0 | DC50: 0 | DD50: 0 | DE50: 0 | DF50: 0 | DG50: 0 | DH50: 0 | DI50: 0 | DJ50: 0 | DK50: 0 | DL50: 0 | DM50: 0 | DN50: 0 | DO50: 0 | DP50: 0 | DQ50: 0 | DR50: 0 | DS50: 0 | DT50: 0 | DU50: 0 | DV50: 0 | DW50: 0 | DX50: 0 | DY50: 0 | DZ50: 0 | EA50: 0 | EB50: 0 | EC50: 0 | ED50: 0 | EE50: 0 | EF50: 0 | EG50: 0 | EH50: 0 | EI50: 0 | EJ50: 0 | EK50: 0 | EL50: 0 | EM50: 0 | EN50: 0 | EO50: 0 | EP50: 0 | EQ50: 0 | ER50: 0 | ES50: 0 | ET50: 0 | EU50: 0 | EV50: 0 | EW50: 0 | EX50: 0 | EY50: 0 | EZ50: 0 | FA50: 0 | FB50: 0 | FC50: 0 | FD50: 0 | FE50: 0 | FF50: 0 | FG50: 0 | FH50: 0 | FI50: 0 | FJ50: 0 | FK50: 0 | FL50: 0 | FM50: 0 | FN50: 0 | FO50: 0 | FP50: 0 | FQ50: 0 | FR50: 0 | FS50: 0 | FT50: 0 | FU50: 0 | FV50: 0 | FW50: 0 | FX50: 0 | FY50: 0 | FZ50: 0 | GA50: 0 | GB50: 0 | GC50: 0 | GD50: 0 | GE50: 0 | GF50: 0 | GG50: 0 | GH50: 1 | GI50: 0 | GJ50: 1 | GK50: 2 | GL50: 0 | GM50: 1 | GN50: 1 | GO50: 10 | GP50: 7 | GQ50: 8 | GR50: 10 | GS50: 16 | GT50: 8 | GU50: 6 | GV50: 5 | GW50: 11 | GX50: 8 | GY50: 6 | GZ50: 10 | HA50: 15 | HB50: 18 | HC50: Archaea | HD50: Asgardarchaeota | HE50: Lokiarchaeia | HF50: CR-4 | HG50: SOKP01 | HH50: SOKP01 | HI50: SOKP01 sp013375475
A51: Zotu1047 | B51: 1 | C51: 0 | D51: 2 | E51: 2 | F51: 0 | G51: 2 | H51: 2 | I51: 2 | J51: 19 | K51: 2 | L51: 0 | M51: 0 | N51: 0 | O51: 0 | P51: 0 | Q51: 0 | R51: 0 | S51: 0 | T51: 0 | U51: 0 | V51: 2 | W51: 0 | X51: 0 | Y51: 0 | Z51: 0 | AA51: 0 | AB51: 0 | AC51: 2 | AD51: 0 | AE51: 1 | AF51: 0 | AG51: 0 | AH51: 1 | AI51: 0 | AJ51: 0 | AK51: 0 | AL51: 0 | AM51: 0 | AN51: 0 | AO51: 1 | AP51: 1 | AQ51: 1 | AR51: 0 | AS51: 0 | AT51: 6 | AU51: 0 | AV51: 0 | AW51: 0 | AX51: 1 | AY51: 3 | AZ51: 3 | BA51: 5 | BB51: 2 | BC51: 14 | BD51: 0 | BE51: 3 | BF51: 0 | BG51: 3 | BH51: 0 | BI51: 0 | BJ51: 1 | BK51: 0 | BL51: 0 | BM51: 0 | BN51: 1 | BO51: 0 | BP51: 0 | BQ51: 0 | BR51: 0 | BS51: 2 | BT51: 0 | BU51: 0 | BV51: 2 | BW51: 4 | BX51: 14 | BY51: 0 | BZ51: 2 | CA51: 0 | CB51: 0 | CC51: 0 | CD51: 2 | CE51: 0 | CF51: 0 | CG51: 2 | CH51: 2 | CI51: 3 | CJ51: 18 | CK51: 0 | CL51: 3 | CM51: 2 | CN51: 0 | CO51: 0 | CP51: 0 | CQ51: 1 | CR51: 0 | CS51: 0 | CT51: 0 | CU51: 0 | CV51: 0 | CW51: 0 | CX51: 0 | CY51: 0 | CZ51: 0 | DA51: 0 | DB51: 0 | DC51: 0 | DD51: 0 | DE51: 0 | DF51: 0 | DG51: 0 | DH51: 0 | DI51: 0 | DJ51: 0 | DK51: 1 | DL51: 0 | DM51: 0 | DN51: 0 | DO51: 0 | DP51: 0 | DQ51: 0 | DR51: 0 | DS51: 0 | DT51: 0 | DU51: 0 | DV51: 0 | DW51: 0 | DX51: 0 | DY51: 0 | DZ51: 0 | EA51: 0 | EB51: 0 | EC51: 0 | ED51: 0 | EE51: 0 | EF51: 0 | EG51: 0 | EH51: 0 | EI51: 0 | EJ51: 0 | EK51: 0 | EL51: 0 | EM51: 0 | EN51: 0 | EO51: 0 | EP51: 0 | EQ51: 0 | ER51: 0 | ES51: 0 | ET51: 0 | EU51: 0 | EV51: 0 | EW51: 0 | EX51: 0 | EY51: 0 | EZ51: 0 | FA51: 0 | FB51: 0 | FC51: 0 | FD51: 0 | FE51: 0 | FF51: 0 | FG51: 0 | FH51: 0 | FI51: 0 | FJ51: 0 | FK51: 0 | FL51: 0 | FM51: 0 | FN51: 0 | FO51: 0 | FP51: 0 | FQ51: 0 | FR51: 0 | FS51: 0 | FT51: 0 | FU51: 0 | FV51: 0 | FW51: 0 | FX51: 0 | FY51: 0 | FZ51: 0 | GA51: 0 | GB51: 0 | GC51: 0 | GD51: 0 | GE51: 0 | GF51: 0 | GG51: 0 | GH51: 0 | GI51: 0 | GJ51: 0 | GK51: 0 | GL51: 0 | GM51: 0 | GN51: 0 | GO51: 0 | GP51: 0 | GQ51: 0 | GR51: 0 | GS51: 0 | GT51: 0 | GU51: 0 | GV51: 0 | GW51: 0 | GX51: 0 | GY51: 0 | GZ51: 0 | HA51: 0 | HB51: 0 | HC51: Bacteria | HD51: Proteobacteria | HE51: Gammaproteobacteria | HF51: Pseudomonadales | HG51: Endozoicomonadaceae | HH51: Endozoicomonas | HI51: Endozoicomonas montiporae
A52: Zotu1048 | B52: 0 | C52: 0 | D52: 0 | E52: 0 | F52: 0 | G52: 0 | H52: 0 | I52: 0 | J52: 0 | K52: 0 | L52: 0 | M52: 0 | N52: 0 | O52: 0 | P52: 0 | Q52: 0 | R52: 0 | S52: 0 | T52: 0 | U52: 0 | V52: 0 | W52: 0 | X52: 0 | Y52: 0 | Z52: 0 | AA52: 0 | AB52: 0 | AC52: 0 | AD52: 0 | AE52: 0 | AF52: 0 | AG52: 0 | AH52: 0 | AI52: 0 | AJ52: 0 | AK52: 0 | AL52: 0 | AM52: 0 | AN52: 0 | AO52: 0 | AP52: 0 | AQ52: 0 | AR52: 0 | AS52: 0 | AT52: 0 | AU52: 0 | AV52: 0 | AW52: 0 | AX52: 0 | AY52: 0 | AZ52: 0 | BA52: 0 | BB52: 0 | BC52: 0 | BD52: 0 | BE52: 0 | BF52: 0 | BG52: 0 | BH52: 0 | BI52: 0 | BJ52: 0 | BK52: 0 | BL52: 0 | BM52: 0 | BN52: 0 | BO52: 0 | BP52: 0 | BQ52: 0 | BR52: 0 | BS52: 0 | BT52: 0 | BU52: 0 | BV52: 0 | BW52: 0 | BX52: 0 | BY52: 0 | BZ52: 0 | CA52: 0 | CB52: 0 | CC52: 0 | CD52: 0 | CE52: 0 | CF52: 0 | CG52: 0 | CH52: 0 | CI52: 0 | CJ52: 0 | CK52: 0 | CL52: 0 | CM52: 0 | CN52: 0 | CO52: 0 | CP52: 0 | CQ52: 0 | CR52: 5 | CS52: 2 | CT52: 6 | CU52: 5 | CV52: 5 | CW52: 1 | CX52: 5 | CY52: 11 | CZ52: 3 | DA52: 376 | DB52: 3 | DC52: 0 | DD52: 0 | DE52: 0 | DF52: 1 | DG52: 0 | DH52: 0 | DI52: 0 | DJ52: 0 | DK52: 0 | DL52: 0 | DM52: 0 | DN52: 0 | DO52: 0 | DP52: 0 | DQ52: 0 | DR52: 0 | DS52: 0 | DT52: 2 | DU52: 0 | DV52: 0 | DW52: 0 | DX52: 0 | DY52: 0 | DZ52: 0 | EA52: 27 | EB52: 16 | EC52: 0 | ED52: 0 | EE52: 0 | EF52: 2 | EG52: 0 | EH52: 0 | EI52: 0 | EJ52: 0 | EK52: 0 | EL52: 0 | EM52: 21 | EN52: 0 | EO52: 0 | EP52: 0 | EQ52: 0 | ER52: 0 | ES52: 0 | ET52: 0 | EU52: 0 | EV52: 0 | EW52: 0 | EX52: 0 | EY52: 26 | EZ52: 0 | FA52: 0 | FB52: 0 | FC52: 0 | FD52: 0 | FE52: 0 | FF52: 0 | FG52: 0 | FH52: 0 | FI52: 0 | FJ52: 0 | FK52: 0 | FL52: 0 | FM52: 0 | FN52: 0 | FO52: 0 | FP52: 0 | FQ52: 0 | FR52: 0 | FS52: 0 | FT52: 0 | FU52: 0 | FV52: 0 | FW52: 0 | FX52: 0 | FY52: 0 | FZ52: 0 | GA52: 0 | GB52: 0 | GC52: 0 | GD52: 0 | GE52: 0 | GF52: 0 | GG52: 0 | GH52: 0 | GI52: 0 | GJ52: 0 | GK52: 0 | GL52: 0 | GM52: 0 | GN52: 0 | GO52: 3 | GP52: 0 | GQ52: 0 | GR52: 0 | GS52: 0 | GT52: 0 | GU52: 0 | GV52: 0 | GW52: 0 | GX52: 0 | GY52: 0 | GZ52: 2 | HA52: 0 | HB52: 0 | HC52: Bacteria | HD52: Firmicutes_A | HE52: Clostridia | HF52: Lachnospirales | HG52: Lachnospiraceae | HH52: Blautia_A | HI52: Blautia_A faecis
A53: Zotu1049 | B53: 0 | C53: 0 | D53: 0 | E53: 0 | F53: 0 | G53: 0 | H53: 0 | I53: 0 | J53: 0 | K53: 0 | L53: 0 | M53: 0 | N53: 0 | O53: 0 | P53: 0 | Q53: 0 | R53: 0 | S53: 0 | T53: 0 | U53: 0 | V53: 0 | W53: 0 | X53: 0 | Y53: 0 | Z53: 0 | AA53: 0 | AB53: 0 | AC53: 0 | AD53: 0 | AE53: 0 | AF53: 0 | AG53: 0 | AH53: 0 | AI53: 0 | AJ53: 0 | AK53: 0 | AL53: 0 | AM53: 0 | AN53: 0 | AO53: 0 | AP53: 0 | AQ53: 0 | AR53: 0 | AS53: 0 | AT53: 0 | AU53: 0 | AV53: 0 | AW53: 0 | AX53: 0 | AY53: 0 | AZ53: 0 | BA53: 0 | BB53: 0 | BC53: 0 | BD53: 0 | BE53: 0 | BF53: 0 | BG53: 0 | BH53: 0 | BI53: 0 | BJ53: 0 | BK53: 0 | BL53: 0 | BM53: 0 | BN53: 0 | BO53: 0 | BP53: 0 | BQ53: 0 | BR53: 0 | BS53: 0 | BT53: 0 | BU53: 0 | BV53: 0 | BW53: 0 | BX53: 0 | BY53: 0 | BZ53: 0 | CA53: 0 | CB53: 0 | CC53: 0 | CD53: 0 | CE53: 0 | CF53: 0 | CG53: 0 | CH53: 0 | CI53: 0 | CJ53: 0 | CK53: 0 | CL53: 0 | CM53: 0 | CN53: 0 | CO53: 2 | CP53: 1 | CQ53: 3 | CR53: 0 | CS53: 2 | CT53: 1 | CU53: 0 | CV53: 0 | CW53: 3 | CX53: 1 | CY53: 0 | CZ53: 0 | DA53: 0 | DB53: 0 | DC53: 2 | DD53: 1 | DE53: 1 | DF53: 4 | DG53: 3 | DH53: 1 | DI53: 4 | DJ53: 2 | DK53: 2 | DL53: 2 | DM53: 0 | DN53: 1 | DO53: 0 | DP53: 1 | DQ53: 0 | DR53: 0 | DS53: 2 | DT53: 2 | DU53: 2 | DV53: 0 | DW53: 0 | DX53: 0 | DY53: 0 | DZ53: 0 | EA53: 0 | EB53: 0 | EC53: 0 | ED53: 0 | EE53: 2 | EF53: 0 | EG53: 0 | EH53: 0 | EI53: 1 | EJ53: 2 | EK53: 0 | EL53: 2 | EM53: 0 | EN53: 2 | EO53: 2 | EP53: 0 | EQ53: 0 | ER53: 5 | ES53: 2 | ET53: 0 | EU53: 0 | EV53: 3 | EW53: 0 | EX53: 2 | EY53: 0 | EZ53: 0 | FA53: 0 | FB53: 5 | FC53: 0 | FD53: 0 | FE53: 0 | FF53: 2 | FG53: 0 | FH53: 3 | FI53: 0 | FJ53: 0 | FK53: 0 | FL53: 3 | FM53: 2 | FN53: 0 | FO53: 0 | FP53: 3 | FQ53: 2 | FR53: 0 | FS53: 0 | FT53: 2 | FU53: 0 | FV53: 0 | FW53: 0 | FX53: 0 | FY53: 0 | FZ53: 1 | GA53: 0 | GB53: 1 | GC53: 2 | GD53: 1 | GE53: 0 | GF53: 0 | GG53: 4 | GH53: 1 | GI53: 1 | GJ53: 10 | GK53: 3 | GL53: 0 | GM53: 2 | GN53: 4 | GO53: 6 | GP53: 6 | GQ53: 8 | GR53: 5 | GS53: 8 | GT53: 1 | GU53: 4 | GV53: 5 | GW53: 4 | GX53: 10 | GY53: 4 | GZ53: 3 | HA53: 6 | HB53: 7 | HC53: Bacteria | HD53: Proteobacteria | HE53: Alphaproteobacteria | HF53: Pelagibacterales | HG53: Pelagibacteraceae | HH53: Pelagibacter_A | HI53: Pelagibacter_A sp902604055
A54: Zotu105 | B54: 0 | C54: 0 | D54: 0 | E54: 0 | F54: 0 | G54: 0 | H54: 0 | I54: 0 | J54: 0 | K54: 0 | L54: 0 | M54: 0 | N54: 0 | O54: 0 | P54: 0 | Q54: 0 | R54: 0 | S54: 0 | T54: 0 | U54: 0 | V54: 0 | W54: 0 | X54: 0 | Y54: 0 | Z54: 0 | AA54: 0 | AB54: 0 | AC54: 0 | AD54: 0 | AE54: 0 | AF54: 0 | AG54: 1 | AH54: 0 | AI54: 0 | AJ54: 0 | AK54: 0 | AL54: 0 | AM54: 0 | AN54: 0 | AO54: 0 | AP54: 0 | AQ54: 0 | AR54: 0 | AS54: 0 | AT54: 0 | AU54: 0 | AV54: 0 | AW54: 0 | AX54: 0 | AY54: 0 | AZ54: 0 | BA54: 0 | BB54: 0 | BC54: 0 | BD54: 0 | BE54: 2 | BF54: 2 | BG54: 0 | BH54: 0 | BI54: 0 | BJ54: 0 | BK54: 0 | BL54: 0 | BM54: 0 | BN54: 0 | BO54: 0 | BP54: 2 | BQ54: 0 | BR54: 0 | BS54: 2 | BT54: 0 | BU54: 0 | BV54: 0 | BW54: 0 | BX54: 0 | BY54: 0 | BZ54: 0 | CA54: 0 | CB54: 2 | CC54: 0 | CD54: 5 | CE54: 2 | CF54: 0 | CG54: 2 | CH54: 0 | CI54: 3 | CJ54: 2 | CK54: 2 | CL54: 2 | CM54: 5 | CN54: 30 | CO54: 9 | CP54: 110 | CQ54: 96 | CR54: 378 | CS54: 34 | CT54: 21 | CU54: 77 | CV54: 27 | CW54: 593 | CX54: 27 | CY54: 17 | CZ54: 59 | DA54: 25 | DB54: 58 | DC54: 49 | DD54: 103 | DE54: 97 | DF54: 77 | DG54: 85 | DH54: 21 | DI54: 74 | DJ54: 268 | DK54: 72 | DL54: 222 | DM54: 21 | DN54: 45 | DO54: 32 | DP54: 25 | DQ54: 60 | DR54: 39 | DS54: 9 | DT54: 8 | DU54: 11 | DV54: 7 | DW54: 51 | DX54: 10 | DY54: 9 | DZ54: 8 | EA54: 8 | EB54: 17 | EC54: 5 | ED54: 41 | EE54: 10 | EF54: 3 | EG54: 3 | EH54: 5 | EI54: 29 | EJ54: 3 | EK54: 7 | EL54: 31 | EM54: 10 | EN54: 13 | EO54: 11 | EP54: 346 | EQ54: 34 | ER54: 14 | ES54: 19 | ET54: 17 | EU54: 43 | EV54: 19 | EW54: 41 | EX54: 3 | EY54: 5 | EZ54: 5 | FA54: 4 | FB54: 51 | FC54: 42 | FD54: 36 | FE54: 6 | FF54: 11 | FG54: 11 | FH54: 11 | FI54: 36 | FJ54: 14 | FK54: 27 | FL54: 5 | FM54: 19 | FN54: 6 | FO54: 10 | FP54: 33 | FQ54: 9 | FR54: 26 | FS54: 3 | FT54: 203 | FU54: 40 | FV54: 17 | FW54: 19 | FX54: 2 | FY54: 25 | FZ54: 38 | GA54: 57 | GB54: 63 | GC54: 75 | GD54: 77 | GE54: 52 | GF54: 119 | GG54: 378 | GH54: 195 | GI54: 151 | GJ54: 251 | GK54: 127 | GL54: 285 | GM54: 171 | GN54: 176 | GO54: 629 | GP54: 235 | GQ54: 468 | GR54: 552 | GS54: 1271 | GT54: 358 | GU54: 614 | GV54: 458 | GW54: 615 | GX54: 659 | GY54: 496 | GZ54: 1079 | HA54: 769 | HB54: 685 | HC54: Archaea | HD54: Asgardarchaeota | HE54: Lokiarchaeia | HF54: CR-4 | HG54: SOKP01 | HH54: SOKP01 | HI54: SOKP01 sp013375475
A55: Zotu1050 | B55: 0 | C55: 0 | D55: 0 | E55: 0 | F55: 0 | G55: 0 | H55: 0 | I55: 0 | J55: 0 | K55: 0 | L55: 0 | M55: 0 | N55: 0 | O55: 0 | P55: 0 | Q55: 0 | R55: 0 | S55: 0 | T55: 0 | U55: 0 | V55: 0 | W55: 0 | X55: 0 | Y55: 0 | Z55: 0 | AA55: 0 | AB55: 0 | AC55: 0 | AD55: 0 | AE55: 0 | AF55: 0 | AG55: 0 | AH55: 0 | AI55: 0 | AJ55: 0 | AK55: 0 | AL55: 0 | AM55: 0 | AN55: 0 | AO55: 0 | AP55: 0 | AQ55: 0 | AR55: 0 | AS55: 0 | AT55: 0 | AU55: 0 | AV55: 0 | AW55: 0 | AX55: 0 | AY55: 0 | AZ55: 0 | BA55: 0 | BB55: 0 | BC55: 0 | BD55: 0 | BE55: 0 | BF55: 0 | BG55: 0 | BH55: 0 | BI55: 0 | BJ55: 0 | BK55: 0 | BL55: 0 | BM55: 0 | BN55: 0 | BO55: 0 | BP55: 0 | BQ55: 0 | BR55: 0 | BS55: 0 | BT55: 0 | BU55: 0 | BV55: 0 | BW55: 0 | BX55: 0 | BY55: 0 | BZ55: 0 | CA55: 0 | CB55: 0 | CC55: 0 | CD55: 2 | CE55: 0 | CF55: 0 | CG55: 0 | CH55: 3 | CI55: 0 | CJ55: 2 | CK55: 2 | CL55: 0 | CM55: 0 | CN55: 0 | CO55: 5 | CP55: 2 | CQ55: 0 | CR55: 2 | CS55: 1 | CT55: 1 | CU55: 4 | CV55: 0 | CW55: 1 | CX55: 1 | CY55: 2 | CZ55: 1 | DA55: 0 | DB55: 3 | DC55: 1 | DD55: 2 | DE55: 1 | DF55: 6 | DG55: 3 | DH55: 0 | DI55: 0 | DJ55: 1 | DK55: 1 | DL55: 1 | DM55: 0 | DN55: 2 | DO55: 7 | DP55: 2 | DQ55: 5 | DR55: 0 | DS55: 0 | DT55: 0 | DU55: 2 | DV55: 0 | DW55: 0 | DX55: 3 | DY55: 0 | DZ55: 0 | EA55: 0 | EB55: 0 | EC55: 0 | ED55: 0 | EE55: 0 | EF55: 0 | EG55: 0 | EH55: 0 | EI55: 0 | EJ55: 0 | EK55: 0 | EL55: 0 | EM55: 0 | EN55: 0 | EO55: 0 | EP55: 0 | EQ55: 0 | ER55: 0 | ES55: 0 | ET55: 2 | EU55: 0 | EV55: 0 | EW55: 0 | EX55: 0 | EY55: 0 | EZ55: 0 | FA55: 0 | FB55: 0 | FC55: 0 | FD55: 0 | FE55: 0 | FF55: 0 | FG55: 0 | FH55: 0 | FI55: 0 | FJ55: 0 | FK55: 0 | FL55: 0 | FM55: 0 | FN55: 0 | FO55: 0 | FP55: 0 | FQ55: 3 | FR55: 0 | FS55: 0 | FT55: 0 | FU55: 0 | FV55: 0 | FW55: 0 | FX55: 0 | FY55: 0 | FZ55: 6 | GA55: 0 | GB55: 0 | GC55: 1 | GD55: 2 | GE55: 0 | GF55: 1 | GG55: 1 | GH55: 0 | GI55: 8 | GJ55: 2 | GK55: 5 | GL55: 1 | GM55: 13 | GN55: 6 | GO55: 5 | GP55: 1 | GQ55: 1 | GR55: 5 | GS55: 2 | GT55: 4 | GU55: 1 | GV55: 1 | GW55: 1 | GX55: 2 | GY55: 3 | GZ55: 2 | HA55: 4 | HB55: 4 | HC55: Bacteria | HD55: Proteobacteria | HE55: Gammaproteobacteria | HF55: Burkholderiales | HG55: Methylophilaceae | HH55: BACL14 | HI55: BACL14 sp010023085
A56: Zotu1051 | B56: 0 | C56: 0 | D56: 0 | E56: 0 | F56: 0 | G56: 0 | H56: 0 | I56: 0 | J56: 0 | K56: 0 | L56: 0 | M56: 0 | N56: 0 | O56: 0 | P56: 0 | Q56: 0 | R56: 0 | S56: 0 | T56: 0 | U56: 0 | V56: 0 | W56: 0 | X56: 0 | Y56: 0 | Z56: 0 | AA56: 0 | AB56: 0 | AC56: 0 | AD56: 0 | AE56: 0 | AF56: 0 | AG56: 0 | AH56: 0 | AI56: 0 | AJ56: 0 | AK56: 0 | AL56: 0 | AM56: 0 | AN56: 0 | AO56: 0 | AP56: 0 | AQ56: 0 | AR56: 0 | AS56: 0 | AT56: 0 | AU56: 0 | AV56: 0 | AW56: 0 | AX56: 0 | AY56: 0 | AZ56: 0 | BA56: 0 | BB56: 0 | BC56: 0 | BD56: 0 | BE56: 0 | BF56: 0 | BG56: 0 | BH56: 0 | BI56: 0 | BJ56: 0 | BK56: 0 | BL56: 0 | BM56: 0 | BN56: 0 | BO56: 0 | BP56: 0 | BQ56: 0 | BR56: 0 | BS56: 2 | BT56: 0 | BU56: 0 | BV56: 0 | BW56: 0 | BX56: 0 | BY56: 0 | BZ56: 0 | CA56: 0 | CB56: 0 | CC56: 0 | CD56: 0 | CE56: 0 | CF56: 0 | CG56: 0 | CH56: 0 | CI56: 0 | CJ56: 0 | CK56: 0 | CL56: 0 | CM56: 0 | CN56: 5 | CO56: 0 | CP56: 0 | CQ56: 2 | CR56: 1 | CS56: 1 | CT56: 0 | CU56: 0 | CV56: 2 | CW56: 3 | CX56: 0 | CY56: 0 | CZ56: 1 | DA56: 0 | DB56: 0 | DC56: 4 | DD56: 6 | DE56: 3 | DF56: 3 | DG56: 3 | DH56: 4 | DI56: 5 | DJ56: 1 | DK56: 10 | DL56: 5 | DM56: 1 | DN56: 9 | DO56: 4 | DP56: 2 | DQ56: 2 | DR56: 0 | DS56: 0 | DT56: 0 | DU56: 0 | DV56: 0 | DW56: 0 | DX56: 0 | DY56: 0 | DZ56: 0 | EA56: 0 | EB56: 0 | EC56: 2 | ED56: 0 | EE56: 0 | EF56: 0 | EG56: 0 | EH56: 0 | EI56: 0 | EJ56: 0 | EK56: 0 | EL56: 0 | EM56: 0 | EN56: 0 | EO56: 0 | EP56: 0 | EQ56: 0 | ER56: 0 | ES56: 0 | ET56: 0 | EU56: 0 | EV56: 0 | EW56: 0 | EX56: 0 | EY56: 0 | EZ56: 0 | FA56: 0 | FB56: 2 | FC56: 0 | FD56: 3 | FE56: 0 | FF56: 0 | FG56: 3 | FH56: 0 | FI56: 0 | FJ56: 0 | FK56: 2 | FL56: 0 | FM56: 0 | FN56: 0 | FO56: 0 | FP56: 0 | FQ56: 0 | FR56: 0 | FS56: 0 | FT56: 0 | FU56: 0 | FV56: 0 | FW56: 0 | FX56: 0 | FY56: 5 | FZ56: 6 | GA56: 2 | GB56: 2 | GC56: 1 | GD56: 7 | GE56: 0 | GF56: 1 | GG56: 1 | GH56: 3 | GI56: 7 | GJ56: 10 | GK56: 5 | GL56: 3 | GM56: 4 | GN56: 4 | GO56: 6 | GP56: 3 | GQ56: 7 | GR56: 1 | GS56: 1 | GT56: 3 | GU56: 2 | GV56: 2 | GW56: 1 | GX56: 3 | GY56: 3 | GZ56: 1 | HA56: 5 | HB56: 4 | HC56: Bacteria | HD56: Proteobacteria | HE56: Alphaproteobacteria | HF56: Rhodobacterales | HG56: Rhodobacteraceae | HH56: Thalassobacter | HI56: Thalassobacter stenotrophicus
A57: Zotu1052 | B57: 0 | C57: 0 | D57: 0 | E57: 0 | F57: 0 | G57: 0 | H57: 0 | I57: 0 | J57: 0 | K57: 0 | L57: 0 | M57: 0 | N57: 0 | O57: 0 | P57: 0 | Q57: 0 | R57: 0 | S57: 0 | T57: 0 | U57: 0 | V57: 0 | W57: 0 | X57: 0 | Y57: 0 | Z57: 0 | AA57: 0 | AB57: 0 | AC57: 0 | AD57: 0 | AE57: 0 | AF57: 0 | AG57: 0 | AH57: 0 | AI57: 0 | AJ57: 0 | AK57: 0 | AL57: 0 | AM57: 0 | AN57: 0 | AO57: 0 | AP57: 0 | AQ57: 0 | AR57: 0 | AS57: 0 | AT57: 0 | AU57: 0 | AV57: 0 | AW57: 0 | AX57: 0 | AY57: 0 | AZ57: 0 | BA57: 0 | BB57: 0 | BC57: 0 | BD57: 0 | BE57: 0 | BF57: 0 | BG57: 0 | BH57: 0 | BI57: 0 | BJ57: 0 | BK57: 0 | BL57: 0 | BM57: 0 | BN57: 0 | BO57: 0 | BP57: 0 | BQ57: 0 | BR57: 0 | BS57: 0 | BT57: 0 | BU57: 0 | BV57: 0 | BW57: 0 | BX57: 0 | BY57: 0 | BZ57: 0 | CA57: 0 | CB57: 0 | CC57: 0 | CD57: 0 | CE57: 0 | CF57: 0 | CG57: 0 | CH57: 0 | CI57: 0 | CJ57: 0 | CK57: 0 | CL57: 0 | CM57: 0 | CN57: 2 | CO57: 2 | CP57: 2 | CQ57: 1 | CR57: 3 | CS57: 0 | CT57: 0 | CU57: 5 | CV57: 1 | CW57: 0 | CX57: 1 | CY57: 0 | CZ57: 8 | DA57: 0 | DB57: 1 | DC57: 2 | DD57: 3 | DE57: 4 | DF57: 4 | DG57: 1 | DH57: 4 | DI57: 3 | DJ57: 1 | DK57: 1 | DL57: 3 | DM57: 3 | DN57: 4 | DO57: 3 | DP57: 3 | DQ57: 2 | DR57: 2 | DS57: 0 | DT57: 0 | DU57: 0 | DV57: 0 | DW57: 0 | DX57: 0 | DY57: 0 | DZ57: 2 | EA57: 0 | EB57: 0 | EC57: 0 | ED57: 0 | EE57: 0 | EF57: 0 | EG57: 0 | EH57: 0 | EI57: 0 | EJ57: 0 | EK57: 0 | EL57: 0 | EM57: 0 | EN57: 0 | EO57: 0 | EP57: 0 | EQ57: 0 | ER57: 0 | ES57: 0 | ET57: 0 | EU57: 0 | EV57: 0 | EW57: 0 | EX57: 2 | EY57: 2 | EZ57: 0 | FA57: 0 | FB57: 2 | FC57: 0 | FD57: 3 | FE57: 2 | FF57: 0 | FG57: 3 | FH57: 3 | FI57: 0 | FJ57: 0 | FK57: 0 | FL57: 0 | FM57: 0 | FN57: 0 | FO57: 0 | FP57: 0 | FQ57: 0 | FR57: 0 | FS57: 0 | FT57: 0 | FU57: 0 | FV57: 0 | FW57: 0 | FX57: 0 | FY57: 0 | FZ57: 2 | GA57: 0 | GB57: 1 | GC57: 2 | GD57: 5 | GE57: 0 | GF57: 1 | GG57: 4 | GH57: 3 | GI57: 8 | GJ57: 5 | GK57: 4 | GL57: 7 | GM57: 5 | GN57: 8 | GO57: 7 | GP57: 2 | GQ57: 8 | GR57: 5 | GS57: 4 | GT57: 8 | GU57: 2 | GV57: 7 | GW57: 9 | GX57: 3 | GY57: 6 | GZ57: 0 | HA57: 6 | HB57: 2 | HC57: Bacteria | HD57: Bacteroidota | HE57: Bacteroidia | HF57: Flavobacteriales | HG57: Flavobacteriaceae | HH57: Aureicoccus | HI57: Aureicoccus marinus
A58: Zotu1053 | B58: 0 | C58: 0 | D58: 0 | E58: 0 | F58: 0 | G58: 0 | H58: 0 | I58: 0 | J58: 0 | K58: 0 | L58: 0 | M58: 0 | N58: 0 | O58: 0 | P58: 0 | Q58: 0 | R58: 0 | S58: 0 | T58: 0 | U58: 0 | V58: 0 | W58: 0 | X58: 0 | Y58: 0 | Z58: 0 | AA58: 0 | AB58: 0 | AC58: 0 | AD58: 0 | AE58: 0 | AF58: 0 | AG58: 0 | AH58: 0 | AI58: 0 | AJ58: 0 | AK58: 0 | AL58: 0 | AM58: 0 | AN58: 0 | AO58: 0 | AP58: 0 | AQ58: 0 | AR58: 0 | AS58: 0 | AT58: 0 | AU58: 0 | AV58: 0 | AW58: 0 | AX58: 0 | AY58: 0 | AZ58: 0 | BA58: 0 | BB58: 0 | BC58: 0 | BD58: 0 | BE58: 0 | BF58: 0 | BG58: 0 | BH58: 0 | BI58: 0 | BJ58: 0 | BK58: 0 | BL58: 0 | BM58: 0 | BN58: 0 | BO58: 0 | BP58: 0 | BQ58: 0 | BR58: 0 | BS58: 0 | BT58: 0 | BU58: 0 | BV58: 0 | BW58: 0 | BX58: 0 | BY58: 0 | BZ58: 0 | CA58: 0 | CB58: 0 | CC58: 0 | CD58: 0 | CE58: 0 | CF58: 0 | CG58: 0 | CH58: 0 | CI58: 0 | CJ58: 0 | CK58: 0 | CL58: 0 | CM58: 0 | CN58: 3 | CO58: 3 | CP58: 2 | CQ58: 2 | CR58: 17 | CS58: 0 | CT58: 2 | CU58: 0 | CV58: 1 | CW58: 0 | CX58: 0 | CY58: 2 | CZ58: 9 | DA58: 0 | DB58: 1 | DC58: 0 | DD58: 0 | DE58: 1 | DF58: 0 | DG58: 0 | DH58: 0 | DI58: 1 | DJ58: 0 | DK58: 0 | DL58: 3 | DM58: 0 | DN58: 1 | DO58: 0 | DP58: 0 | DQ58: 0 | DR58: 2 | DS58: 0 | DT58: 0 | DU58: 0 | DV58: 0 | DW58: 0 | DX58: 0 | DY58: 0 | DZ58: 0 | EA58: 0 | EB58: 0 | EC58: 0 | ED58: 3 | EE58: 0 | EF58: 0 | EG58: 0 | EH58: 0 | EI58: 0 | EJ58: 0 | EK58: 0 | EL58: 2 | EM58: 0 | EN58: 0 | EO58: 0 | EP58: 3 | EQ58: 0 | ER58: 0 | ES58: 0 | ET58: 0 | EU58: 0 | EV58: 0 | EW58: 0 | EX58: 0 | EY58: 0 | EZ58: 0 | FA58: 0 | FB58: 0 | FC58: 0 | FD58: 0 | FE58: 0 | FF58: 0 | FG58: 0 | FH58: 0 | FI58: 0 | FJ58: 0 | FK58: 0 | FL58: 0 | FM58: 0 | FN58: 0 | FO58: 0 | FP58: 0 | FQ58: 0 | FR58: 0 | FS58: 0 | FT58: 0 | FU58: 0 | FV58: 0 | FW58: 0 | FX58: 0 | FY58: 0 | FZ58: 1 | GA58: 0 | GB58: 0 | GC58: 0 | GD58: 1 | GE58: 0 | GF58: 0 | GG58: 1 | GH58: 3 | GI58: 0 | GJ58: 2 | GK58: 2 | GL58: 0 | GM58: 2 | GN58: 65 | GO58: 3 | GP58: 2 | GQ58: 4 | GR58: 7 | GS58: 0 | GT58: 2 | GU58: 0 | GV58: 0 | GW58: 2 | GX58: 2 | GY58: 10 | GZ58: 0 | HA58: 2 | HB58: 0 | HC58: Archaea | HD58: Asgardarchaeota | HE58: Lokiarchaeia | HF58: CR-4 | HG58: SOKP01 | HH58: SOKP01 | HI58: SOKP01 sp013375475
A59: Zotu1054 | B59: 0 | C59: 0 | D59: 0 | E59: 0 | F59: 0 | G59: 0 | H59: 0 | I59: 0 | J59: 0 | K59: 0 | L59: 0 | M59: 0 | N59: 0 | O59: 0 | P59: 0 | Q59: 0 | R59: 0 | S59: 0 | T59: 0 | U59: 0 | V59: 0 | W59: 0 | X59: 0 | Y59: 0 | Z59: 0 | AA59: 0 | AB59: 0 | AC59: 0 | AD59: 0 | AE59: 0 | AF59: 0 | AG59: 0 | AH59: 0 | AI59: 0 | AJ59: 0 | AK59: 0 | AL59: 0 | AM59: 0 | AN59: 0 | AO59: 0 | AP59: 0 | AQ59: 0 | AR59: 0 | AS59: 0 | AT59: 0 | AU59: 0 | AV59: 0 | AW59: 0 | AX59: 0 | AY59: 0 | AZ59: 0 | BA59: 0 | BB59: 0 | BC59: 0 | BD59: 0 | BE59: 0 | BF59: 0 | BG59: 0 | BH59: 0 | BI59: 0 | BJ59: 0 | BK59: 0 | BL59: 0 | BM59: 0 | BN59: 0 | BO59: 0 | BP59: 0 | BQ59: 0 | BR59: 0 | BS59: 0 | BT59: 0 | BU59: 0 | BV59: 0 | BW59: 0 | BX59: 0 | BY59: 0 | BZ59: 0 | CA59: 0 | CB59: 0 | CC59: 0 | CD59: 0 | CE59: 0 | CF59: 0 | CG59: 0 | CH59: 0 | CI59: 0 | CJ59: 0 | CK59: 0 | CL59: 0 | CM59: 0 | CN59: 1 | CO59: 0 | CP59: 0 | CQ59: 0 | CR59: 0 | CS59: 3 | CT59: 1 | CU59: 1 | CV59: 1 | CW59: 0 | CX59: 0 | CY59: 0 | CZ59: 1 | DA59: 0 | DB59: 0 | DC59: 1 | DD59: 0 | DE59: 1 | DF59: 0 | DG59: 1 | DH59: 0 | DI59: 2 | DJ59: 1 | DK59: 0 | DL59: 3 | DM59: 0 | DN59: 1 | DO59: 0 | DP59: 0 | DQ59: 1 | DR59: 0 | DS59: 3 | DT59: 0 | DU59: 3 | DV59: 0 | DW59: 0 | DX59: 1 | DY59: 0 | DZ59: 0 | EA59: 2 | EB59: 1 | EC59: 0 | ED59: 0 | EE59: 0 | EF59: 0 | EG59: 0 | EH59: 0 | EI59: 0 | EJ59: 0 | EK59: 0 | EL59: 0 | EM59: 0 | EN59: 0 | EO59: 2 | EP59: 0 | EQ59: 2 | ER59: 3 | ES59: 2 | ET59: 0 | EU59: 0 | EV59: 2 | EW59: 0 | EX59: 0 | EY59: 2 | EZ59: 0 | FA59: 0 | FB59: 0 | FC59: 0 | FD59: 0 | FE59: 0 | FF59: 2 | FG59: 0 | FH59: 0 | FI59: 2 | FJ59: 0 | FK59: 0 | FL59: 0 | FM59: 3 | FN59: 0 | FO59: 0 | FP59: 0 | FQ59: 2 | FR59: 0 | FS59: 3 | FT59: 5 | FU59: 0 | FV59: 2 | FW59: 0 | FX59: 0 | FY59: 0 | FZ59: 1 | GA59: 0 | GB59: 0 | GC59: 1 | GD59: 2 | GE59: 1 | GF59: 2 | GG59: 7 | GH59: 4 | GI59: 2 | GJ59: 7 | GK59: 2 | GL59: 2 | GM59: 4 | GN59: 6 | GO59: 6 | GP59: 2 | GQ59: 0 | GR59: 4 | GS59: 5 | GT59: 4 | GU59: 5 | GV59: 4 | GW59: 3 | GX59: 12 | GY59: 3 | GZ59: 2 | HA59: 2 | HB59: 5 | HC59: Bacteria | HD59: Proteobacteria | HE59: Alphaproteobacteria | HF59: HIMB59 | HG59: GCA-002718135 | HH59: AG-337-I02 | HI59: AG-337-I02 sp902577905
A60: Zotu1055 | B60: 0 | C60: 0 | D60: 0 | E60: 0 | F60: 0 | G60: 0 | H60: 0 | I60: 0 | J60: 0 | K60: 0 | L60: 0 | M60: 0 | N60: 0 | O60: 0 | P60: 0 | Q60: 0 | R60: 0 | S60: 0 | T60: 0 | U60: 0 | V60: 0 | W60: 0 | X60: 0 | Y60: 0 | Z60: 0 | AA60: 0 | AB60: 0 | AC60: 0 | AD60: 0 | AE60: 0 | AF60: 0 | AG60: 0 | AH60: 0 | AI60: 0 | AJ60: 0 | AK60: 0 | AL60: 0 | AM60: 0 | AN60: 0 | AO60: 0 | AP60: 0 | AQ60: 0 | AR60: 2 | AS60: 0 | AT60: 0 | AU60: 0 | AV60: 0 | AW60: 0 | AX60: 1 | AY60: 0 | AZ60: 0 | BA60: 0 | BB60: 0 | BC60: 0 | BD60: 0 | BE60: 0 | BF60: 0 | BG60: 0 | BH60: 0 | BI60: 0 | BJ60: 0 | BK60: 0 | BL60: 0 | BM60: 0 | BN60: 1 | BO60: 5 | BP60: 0 | BQ60: 0 | BR60: 0 | BS60: 0 | BT60: 0 | BU60: 0 | BV60: 0 | BW60: 0 | BX60: 0 | BY60: 0 | BZ60: 0 | CA60: 3 | CB60: 0 | CC60: 0 | CD60: 0 | CE60: 0 | CF60: 0 | CG60: 0 | CH60: 0 | CI60: 0 | CJ60: 0 | CK60: 0 | CL60: 0 | CM60: 2 | CN60: 0 | CO60: 0 | CP60: 0 | CQ60: 0 | CR60: 0 | CS60: 1 | CT60: 1 | CU60: 1 | CV60: 0 | CW60: 1 | CX60: 109 | CY60: 2 | CZ60: 2 | DA60: 0 | DB60: 1 | DC60: 0 | DD60: 1 | DE60: 6 | DF60: 2 | DG60: 0 | DH60: 41 | DI60: 1 | DJ60: 1 | DK60: 3 | DL60: 3 | DM60: 0 | DN60: 0 | DO60: 0 | DP60: 0 | DQ60: 0 | DR60: 0 | DS60: 0 | DT60: 2 | DU60: 0 | DV60: 0 | DW60: 2 | DX60: 11 | DY60: 0 | DZ60: 5 | EA60: 0 | EB60: 1 | EC60: 0 | ED60: 2 | EE60: 0 | EF60: 0 | EG60: 0 | EH60: 0 | EI60: 0 | EJ60: 8 | EK60: 0 | EL60: 3 | EM60: 0 | EN60: 0 | EO60: 0 | EP60: 0 | EQ60: 2 | ER60: 2 | ES60: 0 | ET60: 0 | EU60: 0 | EV60: 26 | EW60: 3 | EX60: 3 | EY60: 0 | EZ60: 0 | FA60: 0 | FB60: 0 | FC60: 0 | FD60: 0 | FE60: 2 | FF60: 0 | FG60: 21 | FH60: 0 | FI60: 2 | FJ60: 2 | FK60: 2 | FL60: 0 | FM60: 2 | FN60: 0 | FO60: 3 | FP60: 5 | FQ60: 0 | FR60: 0 | FS60: 19 | FT60: 0 | FU60: 0 | FV60: 0 | FW60: 0 | FX60: 0 | FY60: 0 | FZ60: 0 | GA60: 0 | GB60: 10 | GC60: 1 | GD60: 0 | GE60: 0 | GF60: 0 | GG60: 0 | GH60: 0 | GI60: 0 | GJ60: 0 | GK60: 0 | GL60: 0 | GM60: 0 | GN60: 0 | GO60: 0 | GP60: 0 | GQ60: 0 | GR60: 1 | GS60: 0 | GT60: 0 | GU60: 0 | GV60: 0 | GW60: 0 | GX60: 0 | GY60: 0 | GZ60: 0 | HA60: 0 | HB60: 0 | HC60: Bacteria | HD60: Proteobacteria | HE60: Gammaproteobacteria | HF60: Burkholderiales | HG60: Usitatibacteraceae | HH60: Usitatibacter | HI60: Usitatibacter palustris
A61: Zotu1056 | B61: 0 | C61: 0 | D61: 0 | E61: 0 | F61: 0 | G61: 0 | H61: 0 | I61: 0 | J61: 0 | K61: 0 | L61: 0 | M61: 0 | N61: 0 | O61: 0 | P61: 0 | Q61: 0 | R61: 0 | S61: 0 | T61: 0 | U61: 0 | V61: 0 | W61: 0 | X61: 0 | Y61: 0 | Z61: 0 | AA61: 0 | AB61: 0 | AC61: 0 | AD61: 0 | AE61: 0 | AF61: 0 | AG61: 0 | AH61: 0 | AI61: 0 | AJ61: 0 | AK61: 0 | AL61: 0 | AM61: 0 | AN61: 0 | AO61: 0 | AP61: 0 | AQ61: 0 | AR61: 0 | AS61: 0 | AT61: 0 | AU61: 0 | AV61: 0 | AW61: 0 | AX61: 0 | AY61: 0 | AZ61: 0 | BA61: 0 | BB61: 0 | BC61: 0 | BD61: 0 | BE61: 0 | BF61: 0 | BG61: 0 | BH61: 0 | BI61: 0 | BJ61: 0 | BK61: 0 | BL61: 0 | BM61: 0 | BN61: 0 | BO61: 0 | BP61: 0 | BQ61: 0 | BR61: 0 | BS61: 0 | BT61: 0 | BU61: 0 | BV61: 0 | BW61: 0 | BX61: 0 | BY61: 0 | BZ61: 0 | CA61: 0 | CB61: 0 | CC61: 0 | CD61: 0 | CE61: 0 | CF61: 0 | CG61: 0 | CH61: 0 | CI61: 0 | CJ61: 0 | CK61: 0 | CL61: 0 | CM61: 0 | CN61: 0 | CO61: 2 | CP61: 0 | CQ61: 0 | CR61: 0 | CS61: 0 | CT61: 0 | CU61: 0 | CV61: 0 | CW61: 0 | CX61: 0 | CY61: 0 | CZ61: 0 | DA61: 0 | DB61: 0 | DC61: 0 | DD61: 0 | DE61: 0 | DF61: 0 | DG61: 0 | DH61: 0 | DI61: 0 | DJ61: 0 | DK61: 0 | DL61: 0 | DM61: 0 | DN61: 0 | DO61: 1 | DP61: 0 | DQ61: 0 | DR61: 0 | DS61: 0 | DT61: 0 | DU61: 0 | DV61: 0 | DW61: 0 | DX61: 0 | DY61: 0 | DZ61: 0 | EA61: 0 | EB61: 0 | EC61: 0 | ED61: 0 | EE61: 0 | EF61: 0 | EG61: 0 | EH61: 0 | EI61: 0 | EJ61: 0 | EK61: 0 | EL61: 0 | EM61: 0 | EN61: 0 | EO61: 0 | EP61: 0 | EQ61: 0 | ER61: 0 | ES61: 0 | ET61: 0 | EU61: 0 | EV61: 0 | EW61: 0 | EX61: 0 | EY61: 0 | EZ61: 0 | FA61: 0 | FB61: 0 | FC61: 0 | FD61: 0 | FE61: 0 | FF61: 0 | FG61: 0 | FH61: 0 | FI61: 0 | FJ61: 0 | FK61: 0 | FL61: 0 | FM61: 0 | FN61: 0 | FO61: 0 | FP61: 0 | FQ61: 0 | FR61: 0 | FS61: 0 | FT61: 0 | FU61: 0 | FV61: 0 | FW61: 0 | FX61: 0 | FY61: 0 | FZ61: 1 | GA61: 0 | GB61: 1 | GC61: 0 | GD61: 0 | GE61: 0 | GF61: 1 | GG61: 0 | GH61: 1 | GI61: 0 | GJ61: 0 | GK61: 7 | GL61: 16 | GM61: 0 | GN61: 0 | GO61: 0 | GP61: 0 | GQ61: 0 | GR61: 0 | GS61: 0 | GT61: 1 | GU61: 0 | GV61: 5 | GW61: 4 | GX61: 0 | GY61: 0 | GZ61: 0 | HA61: 0 | HB61: 0 | HC61: Bacteria | HD61: Proteobacteria | HE61: Alphaproteobacteria | HF61: Rhizobiales | HG61: Devosiaceae | HH61: Devosia | HI61: Devosia sp000735585
A62: Zotu1057 | B62: 0 | C62: 0 | D62: 0 | E62: 0 | F62: 0 | G62: 0 | H62: 0 | I62: 0 | J62: 0 | K62: 0 | L62: 0 | M62: 0 | N62: 0 | O62: 0 | P62: 0 | Q62: 0 | R62: 0 | S62: 0 | T62: 0 | U62: 0 | V62: 0 | W62: 0 | X62: 0 | Y62: 0 | Z62: 0 | AA62: 0 | AB62: 0 | AC62: 0 | AD62: 0 | AE62: 0 | AF62: 0 | AG62: 0 | AH62: 0 | AI62: 0 | AJ62: 0 | AK62: 0 | AL62: 0 | AM62: 0 | AN62: 0 | AO62: 0 | AP62: 0 | AQ62: 0 | AR62: 0 | AS62: 0 | AT62: 0 | AU62: 0 | AV62: 0 | AW62: 0 | AX62: 1 | AY62: 0 | AZ62: 0 | BA62: 0 | BB62: 0 | BC62: 0 | BD62: 0 | BE62: 0 | BF62: 0 | BG62: 0 | BH62: 0 | BI62: 0 | BJ62: 0 | BK62: 0 | BL62: 0 | BM62: 0 | BN62: 0 | BO62: 0 | BP62: 0 | BQ62: 0 | BR62: 0 | BS62: 2 | BT62: 0 | BU62: 0 | BV62: 0 | BW62: 0 | BX62: 0 | BY62: 0 | BZ62: 0 | CA62: 0 | CB62: 0 | CC62: 0 | CD62: 2 | CE62: 0 | CF62: 0 | CG62: 0 | CH62: 0 | CI62: 0 | CJ62: 0 | CK62: 0 | CL62: 0 | CM62: 0 | CN62: 12 | CO62: 3 | CP62: 6 | CQ62: 11 | CR62: 2 | CS62: 5 | CT62: 1 | CU62: 6 | CV62: 4 | CW62: 18 | CX62: 2 | CY62: 0 | CZ62: 3 | DA62: 0 | DB62: 0 | DC62: 7 | DD62: 6 | DE62: 0 | DF62: 0 | DG62: 0 | DH62: 2 | DI62: 1 | DJ62: 0 | DK62: 1 | DL62: 3 | DM62: 0 | DN62: 0 | DO62: 1 | DP62: 0 | DQ62: 1 | DR62: 0 | DS62: 0 | DT62: 0 | DU62: 2 | DV62: 1 | DW62: 2 | DX62: 3 | DY62: 0 | DZ62: 0 | EA62: 0 | EB62: 0 | EC62: 0 | ED62: 0 | EE62: 2 | EF62: 3 | EG62: 3 | EH62: 0 | EI62: 0 | EJ62: 0 | EK62: 0 | EL62: 2 | EM62: 0 | EN62: 0 | EO62: 0 | EP62: 0 | EQ62: 0 | ER62: 0 | ES62: 2 | ET62: 0 | EU62: 0 | EV62: 0 | EW62: 0 | EX62: 0 | EY62: 2 | EZ62: 0 | FA62: 0 | FB62: 0 | FC62: 3 | FD62: 0 | FE62: 0 | FF62: 0 | FG62: 0 | FH62: 0 | FI62: 0 | FJ62: 0 | FK62: 3 | FL62: 0 | FM62: 3 | FN62: 0 | FO62: 0 | FP62: 0 | FQ62: 2 | FR62: 0 | FS62: 0 | FT62: 0 | FU62: 2 | FV62: 2 | FW62: 0 | FX62: 0 | FY62: 0 | FZ62: 9 | GA62: 10 | GB62: 9 | GC62: 13 | GD62: 4 | GE62: 11 | GF62: 0 | GG62: 6 | GH62: 2 | GI62: 2 | GJ62: 26 | GK62: 9 | GL62: 2 | GM62: 1 | GN62: 1 | GO62: 3 | GP62: 3 | GQ62: 9 | GR62: 0 | GS62: 3 | GT62: 1 | GU62: 3 | GV62: 11 | GW62: 2 | GX62: 13 | GY62: 11 | GZ62: 1 | HA62: 4 | HB62: 1 | HC62: Archaea | HD62: Thermoplasmatota | HE62: Poseidoniia | HF62: Poseidoniales | HG62: Poseidoniaceae | HH62: MGIIa-L1 | HI62: MGIIa-L1 sp9354u
A63: Zotu1058 | B63: 0 | C63: 0 | D63: 0 | E63: 0 | F63: 0 | G63: 0 | H63: 2 | I63: 0 | J63: 0 | K63: 0 | L63: 0 | M63: 0 | N63: 0 | O63: 0 | P63: 0 | Q63: 0 | R63: 0 | S63: 0 | T63: 2 | U63: 0 | V63: 0 | W63: 0 | X63: 0 | Y63: 0 | Z63: 0 | AA63: 0 | AB63: 0 | AC63: 0 | AD63: 0 | AE63: 0 | AF63: 1 | AG63: 0 | AH63: 0 | AI63: 0 | AJ63: 0 | AK63: 0 | AL63: 0 | AM63: 0 | AN63: 0 | AO63: 0 | AP63: 0 | AQ63: 0 | AR63: 3 | AS63: 0 | AT63: 0 | AU63: 0 | AV63: 0 | AW63: 0 | AX63: 0 | AY63: 0 | AZ63: 0 | BA63: 0 | BB63: 0 | BC63: 1 | BD63: 0 | BE63: 0 | BF63: 0 | BG63: 0 | BH63: 1 | BI63: 0 | BJ63: 0 | BK63: 0 | BL63: 0 | BM63: 0 | BN63: 0 | BO63: 2 | BP63: 0 | BQ63: 0 | BR63: 0 | BS63: 0 | BT63: 0 | BU63: 0 | BV63: 0 | BW63: 2 | BX63: 0 | BY63: 0 | BZ63: 0 | CA63: 1 | CB63: 0 | CC63: 0 | CD63: 0 | CE63: 0 | CF63: 0 | CG63: 0 | CH63: 0 | CI63: 0 | CJ63: 2 | CK63: 0 | CL63: 0 | CM63: 3 | CN63: 0 | CO63: 0 | CP63: 0 | CQ63: 0 | CR63: 1 | CS63: 1 | CT63: 1 | CU63: 2 | CV63: 0 | CW63: 0 | CX63: 120 | CY63: 0 | CZ63: 2 | DA63: 2 | DB63: 0 | DC63: 0 | DD63: 1 | DE63: 2 | DF63: 1 | DG63: 1 | DH63: 31 | DI63: 1 | DJ63: 1 | DK63: 0 | DL63: 1 | DM63: 3 | DN63: 0 | DO63: 0 | DP63: 0 | DQ63: 0 | DR63: 3 | DS63: 0 | DT63: 2 | DU63: 0 | DV63: 0 | DW63: 0 | DX63: 11 | DY63: 0 | DZ63: 0 | EA63: 0 | EB63: 0 | EC63: 0 | ED63: 0 | EE63: 0 | EF63: 0 | EG63: 0 | EH63: 0 | EI63: 0 | EJ63: 19 | EK63: 0 | EL63: 0 | EM63: 0 | EN63: 0 | EO63: 0 | EP63: 2 | EQ63: 0 | ER63: 5 | ES63: 0 | ET63: 2 | EU63: 2 | EV63: 12 | EW63: 0 | EX63: 2 | EY63: 3 | EZ63: 2 | FA63: 0 | FB63: 0 | FC63: 0 | FD63: 2 | FE63: 0 | FF63: 2 | FG63: 23 | FH63: 2 | FI63: 0 | FJ63: 2 | FK63: 0 | FL63: 0 | FM63: 2 | FN63: 0 | FO63: 0 | FP63: 0 | FQ63: 0 | FR63: 0 | FS63: 32 | FT63: 0 | FU63: 0 | FV63: 0 | FW63: 0 | FX63: 0 | FY63: 2 | FZ63: 0 | GA63: 0 | GB63: 14 | GC63: 0 | GD63: 0 | GE63: 0 | GF63: 0 | GG63: 0 | GH63: 0 | GI63: 0 | GJ63: 0 | GK63: 0 | GL63: 0 | GM63: 0 | GN63: 0 | GO63: 0 | GP63: 0 | GQ63: 0 | GR63: 0 | GS63: 0 | GT63: 0 | GU63: 0 | GV63: 1 | GW63: 0 | GX63: 0 | GY63: 0 | GZ63: 0 | HA63: 0 | HB63: 0 | HC63: Bacteria | HD63: Proteobacteria | HE63: Gammaproteobacteria | HF63: Burkholderiales | HG63: Burkholderiaceae | HH63: Quisquiliibacterium | HI63: Quisquiliibacterium transsilvanicum
A64: Zotu1059 | B64: 0 | C64: 0 | D64: 0 | E64: 0 | F64: 0 | G64: 0 | H64: 0 | I64: 0 | J64: 0 | K64: 0 | L64: 0 | M64: 0 | N64: 0 | O64: 0 | P64: 0 | Q64: 0 | R64: 0 | S64: 0 | T64: 0 | U64: 0 | V64: 0 | W64: 0 | X64: 0 | Y64: 0 | Z64: 0 | AA64: 0 | AB64: 0 | AC64: 0 | AD64: 0 | AE64: 0 | AF64: 0 | AG64: 0 | AH64: 0 | AI64: 0 | AJ64: 0 | AK64: 0 | AL64: 0 | AM64: 0 | AN64: 0 | AO64: 0 | AP64: 0 | AQ64: 0 | AR64: 0 | AS64: 0 | AT64: 0 | AU64: 0 | AV64: 0 | AW64: 0 | AX64: 0 | AY64: 0 | AZ64: 0 | BA64: 0 | BB64: 0 | BC64: 0 | BD64: 2 | BE64: 0 | BF64: 0 | BG64: 0 | BH64: 0 | BI64: 0 | BJ64: 0 | BK64: 0 | BL64: 0 | BM64: 0 | BN64: 0 | BO64: 0 | BP64: 0 | BQ64: 0 | BR64: 0 | BS64: 0 | BT64: 0 | BU64: 0 | BV64: 0 | BW64: 0 | BX64: 0 | BY64: 0 | BZ64: 0 | CA64: 0 | CB64: 2 | CC64: 0 | CD64: 0 | CE64: 0 | CF64: 0 | CG64: 0 | CH64: 2 | CI64: 0 | CJ64: 0 | CK64: 0 | CL64: 0 | CM64: 0 | CN64: 0 | CO64: 2 | CP64: 2 | CQ64: 1 | CR64: 2 | CS64: 0 | CT64: 2 | CU64: 3 | CV64: 0 | CW64: 0 | CX64: 0 | CY64: 3 | CZ64: 4 | DA64: 3 | DB64: 5 | DC64: 0 | DD64: 2 | DE64: 2 | DF64: 0 | DG64: 0 | DH64: 0 | DI64: 1 | DJ64: 1 | DK64: 1 | DL64: 3 | DM64: 0 | DN64: 2 | DO64: 0 | DP64: 1 | DQ64: 0 | DR64: 2 | DS64: 2 | DT64: 0 | DU64: 2 | DV64: 0 | DW64: 0 | DX64: 0 | DY64: 0 | DZ64: 0 | EA64: 2 | EB64: 1 | EC64: 0 | ED64: 0 | EE64: 0 | EF64: 0 | EG64: 0 | EH64: 2 | EI64: 0 | EJ64: 0 | EK64: 0 | EL64: 2 | EM64: 0 | EN64: 2 | EO64: 0 | EP64: 0 | EQ64: 0 | ER64: 2 | ES64: 0 | ET64: 0 | EU64: 2 | EV64: 0 | EW64: 0 | EX64: 0 | EY64: 0 | EZ64: 0 | FA64: 0 | FB64: 0 | FC64: 0 | FD64: 0 | FE64: 2 | FF64: 0 | FG64: 0 | FH64: 0 | FI64: 0 | FJ64: 0 | FK64: 0 | FL64: 0 | FM64: 0 | FN64: 0 | FO64: 0 | FP64: 0 | FQ64: 0 | FR64: 0 | FS64: 0 | FT64: 2 | FU64: 0 | FV64: 0 | FW64: 2 | FX64: 0 | FY64: 2 | FZ64: 3 | GA64: 0 | GB64: 0 | GC64: 0 | GD64: 3 | GE64: 0 | GF64: 3 | GG64: 0 | GH64: 3 | GI64: 2 | GJ64: 2 | GK64: 8 | GL64: 3 | GM64: 5 | GN64: 6 | GO64: 7 | GP64: 3 | GQ64: 9 | GR64: 6 | GS64: 4 | GT64: 2 | GU64: 8 | GV64: 5 | GW64: 4 | GX64: 6 | GY64: 8 | GZ64: 6 | HA64: 7 | HB64: 4 | HC64: Bacteria | HD64: Proteobacteria | HE64: Gammaproteobacteria | HF64: Enterobacterales | HG64: Alteromonadaceae | HH64: Alteromonas | HI64: Alteromonas sp006538325
A65: Zotu1060 | B65: 2 | C65: 1 | D65: 0 | E65: 0 | F65: 0 | G65: 2 | H65: 0 | I65: 1 | J65: 14 | K65: 0 | L65: 1 | M65: 0 | N65: 0 | O65: 0 | P65: 0 | Q65: 2 | R65: 0 | S65: 0 | T65: 1 | U65: 1 | V65: 1 | W65: 0 | X65: 0 | Y65: 0 | Z65: 0 | AA65: 0 | AB65: 0 | AC65: 1 | AD65: 0 | AE65: 1 | AF65: 0 | AG65: 0 | AH65: 0 | AI65: 0 | AJ65: 0 | AK65: 0 | AL65: 1 | AM65: 0 | AN65: 0 | AO65: 0 | AP65: 6 | AQ65: 1 | AR65: 0 | AS65: 2 | AT65: 5 | AU65: 0 | AV65: 0 | AW65: 1 | AX65: 0 | AY65: 0 | AZ65: 0 | BA65: 2 | BB65: 1 | BC65: 16 | BD65: 0 | BE65: 0 | BF65: 0 | BG65: 2 | BH65: 0 | BI65: 0 | BJ65: 2 | BK65: 0 | BL65: 0 | BM65: 2 | BN65: 0 | BO65: 3 | BP65: 0 | BQ65: 0 | BR65: 0 | BS65: 0 | BT65: 0 | BU65: 0 | BV65: 0 | BW65: 0 | BX65: 0 | BY65: 0 | BZ65: 3 | CA65: 0 | CB65: 0 | CC65: 0 | CD65: 0 | CE65: 0 | CF65: 0 | CG65: 0 | CH65: 2 | CI65: 5 | CJ65: 16 | CK65: 0 | CL65: 0 | CM65: 8 | CN65: 0 | CO65: 0 | CP65: 2 | CQ65: 0 | CR65: 0 | CS65: 0 | CT65: 0 | CU65: 0 | CV65: 0 | CW65: 0 | CX65: 0 | CY65: 0 | CZ65: 0 | DA65: 0 | DB65: 0 | DC65: 0 | DD65: 0 | DE65: 8 | DF65: 0 | DG65: 0 | DH65: 0 | DI65: 0 | DJ65: 0 | DK65: 1 | DL65: 0 | DM65: 0 | DN65: 0 | DO65: 0 | DP65: 0 | DQ65: 2 | DR65: 0 | DS65: 0 | DT65: 0 | DU65: 0 | DV65: 0 | DW65: 0 | DX65: 0 | DY65: 0 | DZ65: 0 | EA65: 0 | EB65: 0 | EC65: 0 | ED65: 0 | EE65: 0 | EF65: 0 | EG65: 0 | EH65: 0 | EI65: 0 | EJ65: 0 | EK65: 0 | EL65: 0 | EM65: 0 | EN65: 0 | EO65: 0 | EP65: 0 | EQ65: 0 | ER65: 0 | ES65: 0 | ET65: 0 | EU65: 0 | EV65: 0 | EW65: 0 | EX65: 0 | EY65: 0 | EZ65: 0 | FA65: 0 | FB65: 0 | FC65: 0 | FD65: 0 | FE65: 0 | FF65: 0 | FG65: 0 | FH65: 0 | FI65: 0 | FJ65: 0 | FK65: 0 | FL65: 0 | FM65: 0 | FN65: 0 | FO65: 0 | FP65: 0 | FQ65: 0 | FR65: 0 | FS65: 0 | FT65: 0 | FU65: 0 | FV65: 0 | FW65: 0 | FX65: 0 | FY65: 0 | FZ65: 0 | GA65: 0 | GB65: 0 | GC65: 0 | GD65: 0 | GE65: 0 | GF65: 0 | GG65: 0 | GH65: 0 | GI65: 0 | GJ65: 0 | GK65: 0 | GL65: 0 | GM65: 0 | GN65: 0 | GO65: 0 | GP65: 0 | GQ65: 0 | GR65: 0 | GS65: 0 | GT65: 0 | GU65: 0 | GV65: 0 | GW65: 0 | GX65: 0 | GY65: 0 | GZ65: 0 | HA65: 0 | HB65: 0 | HC65: Bacteria | HD65: Proteobacteria | HE65: Gammaproteobacteria | HF65: Pseudomonadales | HG65: Endozoicomonadaceae | HH65: Endozoicomonas | HI65: Endozoicomonas montiporae
A66: Zotu1061 | B66: 0 | C66: 0 | D66: 0 | E66: 0 | F66: 0 | G66: 0 | H66: 0 | I66: 0 | J66: 0 | K66: 0 | L66: 0 | M66: 0 | N66: 0 | O66: 0 | P66: 0 | Q66: 0 | R66: 0 | S66: 0 | T66: 0 | U66: 0 | V66: 0 | W66: 0 | X66: 0 | Y66: 0 | Z66: 0 | AA66: 0 | AB66: 0 | AC66: 0 | AD66: 0 | AE66: 0 | AF66: 0 | AG66: 0 | AH66: 0 | AI66: 0 | AJ66: 0 | AK66: 0 | AL66: 0 | AM66: 0 | AN66: 0 | AO66: 0 | AP66: 0 | AQ66: 0 | AR66: 0 | AS66: 0 | AT66: 0 | AU66: 0 | AV66: 0 | AW66: 0 | AX66: 0 | AY66: 0 | AZ66: 0 | BA66: 0 | BB66: 0 | BC66: 0 | BD66: 0 | BE66: 0 | BF66: 0 | BG66: 0 | BH66: 0 | BI66: 0 | BJ66: 0 | BK66: 0 | BL66: 0 | BM66: 0 | BN66: 0 | BO66: 0 | BP66: 0 | BQ66: 0 | BR66: 0 | BS66: 0 | BT66: 0 | BU66: 0 | BV66: 0 | BW66: 0 | BX66: 0 | BY66: 0 | BZ66: 0 | CA66: 0 | CB66: 0 | CC66: 0 | CD66: 0 | CE66: 0 | CF66: 0 | CG66: 0 | CH66: 0 | CI66: 0 | CJ66: 0 | CK66: 0 | CL66: 2 | CM66: 0 | CN66: 0 | CO66: 2 | CP66: 0 | CQ66: 0 | CR66: 1 | CS66: 0 | CT66: 1 | CU66: 1 | CV66: 0 | CW66: 6 | CX66: 0 | CY66: 0 | CZ66: 0 | DA66: 0 | DB66: 0 | DC66: 0 | DD66: 0 | DE66: 1 | DF66: 0 | DG66: 0 | DH66: 0 | DI66: 1 | DJ66: 0 | DK66: 0 | DL66: 0 | DM66: 0 | DN66: 0 | DO66: 3 | DP66: 0 | DQ66: 2 | DR66: 2 | DS66: 0 | DT66: 0 | DU66: 0 | DV66: 0 | DW66: 0 | DX66: 0 | DY66: 0 | DZ66: 0 | EA66: 0 | EB66: 0 | EC66: 0 | ED66: 0 | EE66: 0 | EF66: 0 | EG66: 0 | EH66: 0 | EI66: 0 | EJ66: 0 | EK66: 0 | EL66: 0 | EM66: 0 | EN66: 0 | EO66: 0 | EP66: 0 | EQ66: 0 | ER66: 0 | ES66: 0 | ET66: 0 | EU66: 0 | EV66: 0 | EW66: 0 | EX66: 0 | EY66: 0 | EZ66: 0 | FA66: 0 | FB66: 0 | FC66: 0 | FD66: 0 | FE66: 0 | FF66: 0 | FG66: 0 | FH66: 0 | FI66: 0 | FJ66: 0 | FK66: 0 | FL66: 0 | FM66: 0 | FN66: 0 | FO66: 0 | FP66: 0 | FQ66: 0 | FR66: 0 | FS66: 0 | FT66: 0 | FU66: 2 | FV66: 0 | FW66: 0 | FX66: 0 | FY66: 0 | FZ66: 3 | GA66: 7 | GB66: 5 | GC66: 3 | GD66: 2 | GE66: 6 | GF66: 2 | GG66: 32 | GH66: 23 | GI66: 2 | GJ66: 3 | GK66: 2 | GL66: 4 | GM66: 1 | GN66: 4 | GO66: 8 | GP66: 3 | GQ66: 5 | GR66: 11 | GS66: 13 | GT66: 2 | GU66: 4 | GV66: 0 | GW66: 4 | GX66: 8 | GY66: 1 | GZ66: 4 | HA66: 8 | HB66: 6 | HC66: Bacteria | HD66: Bacteroidota | HE66: Bacteroidia | HF66: Flavobacteriales | HG66: Schleiferiaceae | HH66: UBA10364 | HI66: UBA10364 sp003385605
A67: Zotu1062 | B67: 0 | C67: 0 | D67: 0 | E67: 0 | F67: 0 | G67: 0 | H67: 0 | I67: 0 | J67: 0 | K67: 0 | L67: 0 | M67: 0 | N67: 0 | O67: 0 | P67: 0 | Q67: 0 | R67: 0 | S67: 0 | T67: 0 | U67: 0 | V67: 0 | W67: 0 | X67: 0 | Y67: 0 | Z67: 0 | AA67: 0 | AB67: 0 | AC67: 0 | AD67: 0 | AE67: 0 | AF67: 0 | AG67: 0 | AH67: 0 | AI67: 0 | AJ67: 0 | AK67: 0 | AL67: 0 | AM67: 0 | AN67: 0 | AO67: 0 | AP67: 0 | AQ67: 0 | AR67: 0 | AS67: 0 | AT67: 0 | AU67: 0 | AV67: 0 | AW67: 0 | AX67: 0 | AY67: 0 | AZ67: 0 | BA67: 0 | BB67: 0 | BC67: 0 | BD67: 0 | BE67: 0 | BF67: 0 | BG67: 0 | BH67: 0 | BI67: 0 | BJ67: 0 | BK67: 0 | BL67: 0 | BM67: 0 | BN67: 0 | BO67: 0 | BP67: 0 | BQ67: 0 | BR67: 0 | BS67: 0 | BT67: 0 | BU67: 0 | BV67: 0 | BW67: 0 | BX67: 0 | BY67: 0 | BZ67: 0 | CA67: 0 | CB67: 0 | CC67: 0 | CD67: 0 | CE67: 0 | CF67: 0 | CG67: 0 | CH67: 0 | CI67: 0 | CJ67: 2 | CK67: 0 | CL67: 0 | CM67: 0 | CN67: 2 | CO67: 0 | CP67: 0 | CQ67: 3 | CR67: 8 | CS67: 1 | CT67: 3 | CU67: 4 | CV67: 4 | CW67: 0 | CX67: 2 | CY67: 2 | CZ67: 1 | DA67: 0 | DB67: 3 | DC67: 2 | DD67: 10 | DE67: 8 | DF67: 2 | DG67: 0 | DH67: 3 | DI67: 6 | DJ67: 3 | DK67: 0 | DL67: 3 | DM67: 1 | DN67: 3 | DO67: 1 | DP67: 1 | DQ67: 1 | DR67: 0 | DS67: 0 | DT67: 0 | DU67: 0 | DV67: 1 | DW67: 0 | DX67: 0 | DY67: 2 | DZ67: 0 | EA67: 0 | EB67: 0 | EC67: 0 | ED67: 0 | EE67: 0 | EF67: 0 | EG67: 0 | EH67: 2 | EI67: 0 | EJ67: 0 | EK67: 0 | EL67: 2 | EM67: 0 | EN67: 0 | EO67: 0 | EP67: 2 | EQ67: 0 | ER67: 2 | ES67: 0 | ET67: 2 | EU67: 0 | EV67: 0 | EW67: 0 | EX67: 0 | EY67: 0 | EZ67: 0 | FA67: 0 | FB67: 0 | FC67: 2 | FD67: 0 | FE67: 0 | FF67: 2 | FG67: 1 | FH67: 0 | FI67: 2 | FJ67: 0 | FK67: 0 | FL67: 2 | FM67: 0 | FN67: 0 | FO67: 2 | FP67: 2 | FQ67: 0 | FR67: 0 | FS67: 0 | FT67: 3 | FU67: 0 | FV67: 0 | FW67: 2 | FX67: 0 | FY67: 2 | FZ67: 1 | GA67: 1 | GB67: 1 | GC67: 1 | GD67: 1 | GE67: 0 | GF67: 0 | GG67: 3 | GH67: 0 | GI67: 4 | GJ67: 5 | GK67: 4 | GL67: 4 | GM67: 6 | GN67: 4 | GO67: 7 | GP67: 2 | GQ67: 1 | GR67: 8 | GS67: 13 | GT67: 4 | GU67: 2 | GV67: 2 | GW67: 10 | GX67: 8 | GY67: 6 | GZ67: 8 | HA67: 5 | HB67: 4 | HC67: Bacteria | HD67: Proteobacteria | HE67: Gammaproteobacteria | HF67: Pseudomonadales | HG67: Cellvibrionaceae | HH67: Kangiella | HI67: Kangiella sp009674675
A68: Zotu1063 | B68: 0 | C68: 0 | D68: 0 | E68: 0 | F68: 0 | G68: 0 | H68: 0 | I68: 0 | J68: 0 | K68: 0 | L68: 0 | M68: 0 | N68: 0 | O68: 0 | P68: 0 | Q68: 0 | R68: 0 | S68: 0 | T68: 0 | U68: 0 | V68: 0 | W68: 0 | X68: 0 | Y68: 0 | Z68: 0 | AA68: 0 | AB68: 0 | AC68: 0 | AD68: 0 | AE68: 0 | AF68: 0 | AG68: 0 | AH68: 0 | AI68: 0 | AJ68: 0 | AK68: 0 | AL68: 0 | AM68: 0 | AN68: 0 | AO68: 0 | AP68: 0 | AQ68: 0 | AR68: 0 | AS68: 0 | AT68: 0 | AU68: 0 | AV68: 0 | AW68: 0 | AX68: 1 | AY68: 0 | AZ68: 0 | BA68: 0 | BB68: 0 | BC68: 0 | BD68: 0 | BE68: 0 | BF68: 0 | BG68: 0 | BH68: 0 | BI68: 0 | BJ68: 0 | BK68: 0 | BL68: 0 | BM68: 0 | BN68: 0 | BO68: 1 | BP68: 0 | BQ68: 0 | BR68: 2 | BS68: 0 | BT68: 0 | BU68: 0 | BV68: 0 | BW68: 0 | BX68: 0 | BY68: 0 | BZ68: 0 | CA68: 0 | CB68: 0 | CC68: 0 | CD68: 0 | CE68: 0 | CF68: 0 | CG68: 0 | CH68: 0 | CI68: 0 | CJ68: 2 | CK68: 0 | CL68: 0 | CM68: 0 | CN68: 2 | CO68: 3 | CP68: 5 | CQ68: 3 | CR68: 1 | CS68: 0 | CT68: 0 | CU68: 0 | CV68: 0 | CW68: 0 | CX68: 2 | CY68: 2 | CZ68: 1 | DA68: 5 | DB68: 1 | DC68: 0 | DD68: 0 | DE68: 0 | DF68: 0 | DG68: 0 | DH68: 0 | DI68: 3 | DJ68: 3 | DK68: 1 | DL68: 1 | DM68: 0 | DN68: 0 | DO68: 0 | DP68: 2 | DQ68: 0 | DR68: 0 | DS68: 0 | DT68: 0 | DU68: 0 | DV68: 1 | DW68: 0 | DX68: 0 | DY68: 0 | DZ68: 0 | EA68: 0 | EB68: 1 | EC68: 0 | ED68: 0 | EE68: 0 | EF68: 0 | EG68: 0 | EH68: 0 | EI68: 0 | EJ68: 0 | EK68: 0 | EL68: 0 | EM68: 0 | EN68: 0 | EO68: 0 | EP68: 0 | EQ68: 0 | ER68: 0 | ES68: 0 | ET68: 0 | EU68: 3 | EV68: 0 | EW68: 2 | EX68: 0 | EY68: 5 | EZ68: 0 | FA68: 0 | FB68: 0 | FC68: 0 | FD68: 0 | FE68: 0 | FF68: 2 | FG68: 0 | FH68: 2 | FI68: 0 | FJ68: 0 | FK68: 0 | FL68: 0 | FM68: 2 | FN68: 0 | FO68: 0 | FP68: 0 | FQ68: 0 | FR68: 0 | FS68: 0 | FT68: 0 | FU68: 0 | FV68: 0 | FW68: 0 | FX68: 0 | FY68: 0 | FZ68: 0 | GA68: 0 | GB68: 0 | GC68: 3 | GD68: 2 | GE68: 1 | GF68: 3 | GG68: 4 | GH68: 5 | GI68: 4 | GJ68: 8 | GK68: 1 | GL68: 5 | GM68: 1 | GN68: 2 | GO68: 7 | GP68: 3 | GQ68: 3 | GR68: 5 | GS68: 13 | GT68: 6 | GU68: 7 | GV68: 2 | GW68: 7 | GX68: 3 | GY68: 1 | GZ68: 2 | HA68: 4 | HB68: 6 | HC68: Bacteria | HD68: Proteobacteria | HE68: Alphaproteobacteria | HF68: Pelagibacterales | HG68: Pelagibacteraceae | HH68: GCA-002704185 | HI68: GCA-002704185 sp003280495
A69: Zotu1064 | B69: 0 | C69: 0 | D69: 0 | E69: 0 | F69: 0 | G69: 0 | H69: 0 | I69: 0 | J69: 0 | K69: 0 | L69: 0 | M69: 0 | N69: 0 | O69: 0 | P69: 0 | Q69: 0 | R69: 0 | S69: 0 | T69: 0 | U69: 0 | V69: 0 | W69: 0 | X69: 0 | Y69: 0 | Z69: 0 | AA69: 0 | AB69: 0 | AC69: 0 | AD69: 0 | AE69: 0 | AF69: 0 | AG69: 0 | AH69: 0 | AI69: 0 | AJ69: 0 | AK69: 0 | AL69: 0 | AM69: 0 | AN69: 0 | AO69: 0 | AP69: 0 | AQ69: 0 | AR69: 0 | AS69: 0 | AT69: 0 | AU69: 0 | AV69: 0 | AW69: 0 | AX69: 0 | AY69: 0 | AZ69: 0 | BA69: 0 | BB69: 0 | BC69: 0 | BD69: 0 | BE69: 0 | BF69: 2 | BG69: 0 | BH69: 0 | BI69: 0 | BJ69: 0 | BK69: 0 | BL69: 0 | BM69: 0 | BN69: 0 | BO69: 0 | BP69: 0 | BQ69: 0 | BR69: 0 | BS69: 0 | BT69: 0 | BU69: 0 | BV69: 0 | BW69: 0 | BX69: 0 | BY69: 0 | BZ69: 0 | CA69: 0 | CB69: 2 | CC69: 0 | CD69: 0 | CE69: 0 | CF69: 0 | CG69: 0 | CH69: 0 | CI69: 0 | CJ69: 0 | CK69: 0 | CL69: 0 | CM69: 0 | CN69: 9 | CO69: 0 | CP69: 16 | CQ69: 9 | CR69: 0 | CS69: 6 | CT69: 2 | CU69: 10 | CV69: 4 | CW69: 6 | CX69: 1 | CY69: 0 | CZ69: 9 | DA69: 0 | DB69: 4 | DC69: 2 | DD69: 3 | DE69: 0 | DF69: 2 | DG69: 1 | DH69: 0 | DI69: 0 | DJ69: 0 | DK69: 0 | DL69: 0 | DM69: 1 | DN69: 2 | DO69: 0 | DP69: 0 | DQ69: 0 | DR69: 0 | DS69: 0 | DT69: 2 | DU69: 0 | DV69: 0 | DW69: 3 | DX69: 0 | DY69: 0 | DZ69: 0 | EA69: 0 | EB69: 0 | EC69: 0 | ED69: 0 | EE69: 0 | EF69: 0 | EG69: 0 | EH69: 0 | EI69: 0 | EJ69: 0 | EK69: 0 | EL69: 2 | EM69: 0 | EN69: 0 | EO69: 0 | EP69: 0 | EQ69: 0 | ER69: 0 | ES69: 0 | ET69: 0 | EU69: 0 | EV69: 3 | EW69: 2 | EX69: 0 | EY69: 0 | EZ69: 0 | FA69: 0 | FB69: 3 | FC69: 0 | FD69: 0 | FE69: 2 | FF69: 0 | FG69: 0 | FH69: 0 | FI69: 0 | FJ69: 0 | FK69: 0 | FL69: 0 | FM69: 0 | FN69: 0 | FO69: 0 | FP69: 0 | FQ69: 0 | FR69: 0 | FS69: 0 | FT69: 5 | FU69: 0 | FV69: 2 | FW69: 0 | FX69: 0 | FY69: 0 | FZ69: 2 | GA69: 0 | GB69: 0 | GC69: 0 | GD69: 0 | GE69: 1 | GF69: 0 | GG69: 1 | GH69: 1 | GI69: 0 | GJ69: 0 | GK69: 0 | GL69: 1 | GM69: 0 | GN69: 0 | GO69: 9 | GP69: 3 | GQ69: 2 | GR69: 3 | GS69: 3 | GT69: 2 | GU69: 6 | GV69: 1 | GW69: 3 | GX69: 5 | GY69: 3 | GZ69: 5 | HA69: 12 | HB69: 2 | HC69: Archaea | HD69: Thermoplasmatota | HE69: Poseidoniia | HF69: Poseidoniales | HG69: Thalassarchaeaceae | HH69: MGIIb-N1 | HI69: MGIIb-N1 sp011523055
A70: Zotu1065 | B70: 0 | C70: 0 | D70: 0 | E70: 0 | F70: 0 | G70: 0 | H70: 0 | I70: 0 | J70: 0 | K70: 0 | L70: 0 | M70: 0 | N70: 0 | O70: 0 | P70: 0 | Q70: 0 | R70: 0 | S70: 0 | T70: 0 | U70: 0 | V70: 0 | W70: 0 | X70: 0 | Y70: 0 | Z70: 0 | AA70: 0 | AB70: 0 | AC70: 0 | AD70: 0 | AE70: 0 | AF70: 0 | AG70: 0 | AH70: 0 | AI70: 0 | AJ70: 0 | AK70: 0 | AL70: 0 | AM70: 0 | AN70: 0 | AO70: 0 | AP70: 0 | AQ70: 0 | AR70: 0 | AS70: 0 | AT70: 0 | AU70: 0 | AV70: 0 | AW70: 0 | AX70: 3 | AY70: 0 | AZ70: 0 | BA70: 0 | BB70: 0 | BC70: 0 | BD70: 0 | BE70: 0 | BF70: 0 | BG70: 0 | BH70: 0 | BI70: 0 | BJ70: 0 | BK70: 0 | BL70: 0 | BM70: 0 | BN70: 0 | BO70: 0 | BP70: 0 | BQ70: 0 | BR70: 0 | BS70: 0 | BT70: 0 | BU70: 0 | BV70: 0 | BW70: 0 | BX70: 0 | BY70: 0 | BZ70: 0 | CA70: 0 | CB70: 0 | CC70: 0 | CD70: 0 | CE70: 0 | CF70: 0 | CG70: 0 | CH70: 0 | CI70: 0 | CJ70: 0 | CK70: 0 | CL70: 0 | CM70: 0 | CN70: 0 | CO70: 0 | CP70: 0 | CQ70: 0 | CR70: 4 | CS70: 4 | CT70: 5 | CU70: 3 | CV70: 5 | CW70: 7 | CX70: 9 | CY70: 16 | CZ70: 2 | DA70: 356 | DB70: 4 | DC70: 0 | DD70: 0 | DE70: 0 | DF70: 0 | DG70: 0 | DH70: 0 | DI70: 0 | DJ70: 0 | DK70: 0 | DL70: 0 | DM70: 1 | DN70: 0 | DO70: 0 | DP70: 0 | DQ70: 0 | DR70: 0 | DS70: 0 | DT70: 0 | DU70: 0 | DV70: 0 | DW70: 0 | DX70: 0 | DY70: 0 | DZ70: 9 | EA70: 13 | EB70: 13 | EC70: 0 | ED70: 0 | EE70: 0 | EF70: 0 | EG70: 0 | EH70: 0 | EI70: 0 | EJ70: 0 | EK70: 0 | EL70: 0 | EM70: 26 | EN70: 0 | EO70: 0 | EP70: 0 | EQ70: 0 | ER70: 0 | ES70: 0 | ET70: 0 | EU70: 0 | EV70: 0 | EW70: 0 | EX70: 0 | EY70: 20 | EZ70: 0 | FA70: 0 | FB70: 0 | FC70: 0 | FD70: 0 | FE70: 0 | FF70: 0 | FG70: 0 | FH70: 0 | FI70: 0 | FJ70: 0 | FK70: 0 | FL70: 2 | FM70: 0 | FN70: 0 | FO70: 0 | FP70: 0 | FQ70: 0 | FR70: 0 | FS70: 0 | FT70: 0 | FU70: 0 | FV70: 0 | FW70: 0 | FX70: 0 | FY70: 0 | FZ70: 0 | GA70: 0 | GB70: 0 | GC70: 0 | GD70: 2 | GE70: 0 | GF70: 0 | GG70: 0 | GH70: 0 | GI70: 1 | GJ70: 0 | GK70: 0 | GL70: 0 | GM70: 0 | GN70: 0 | GO70: 0 | GP70: 0 | GQ70: 0 | GR70: 1 | GS70: 0 | GT70: 0 | GU70: 1 | GV70: 0 | GW70: 0 | GX70: 0 | GY70: 0 | GZ70: 2 | HA70: 0 | HB70: 2 | HC70: Bacteria | HD70: Firmicutes_A | HE70: Clostridia | HF70: Lachnospirales | HG70: Lachnospiraceae | HH70: Clostridium_Q | HI70: Clostridium_Q fessum
A71: Zotu1066 | B71: 9 | C71: 33 | D71: 10 | E71: 18 | F71: 23 | G71: 14 | H71: 22 | I71: 13 | J71: 9 | K71: 13 | L71: 22 | M71: 14 | N71: 13 | O71: 17 | P71: 14 | Q71: 32 | R71: 9 | S71: 19 | T71: 15 | U71: 16 | V71: 11 | W71: 9 | X71: 50 | Y71: 15 | Z71: 14 | AA71: 10 | AB71: 9 | AC71: 22 | AD71: 11 | AE71: 9 | AF71: 15 | AG71: 14 | AH71: 8 | AI71: 13 | AJ71: 26 | AK71: 8 | AL71: 12 | AM71: 9 | AN71: 9 | AO71: 10 | AP71: 8 | AQ71: 10 | AR71: 12 | AS71: 13 | AT71: 13 | AU71: 5 | AV71: 33 | AW71: 19 | AX71: 30 | AY71: 34 | AZ71: 47 | BA71: 16 | BB71: 15 | BC71: 25 | BD71: 18 | BE71: 27 | BF71: 53 | BG71: 18 | BH71: 15 | BI71: 23 | BJ71: 23 | BK71: 43 | BL71: 72 | BM71: 32 | BN71: 29 | BO71: 28 | BP71: 27 | BQ71: 78 | BR71: 30 | BS71: 53 | BT71: 22 | BU71: 16 | BV71: 13 | BW71: 12 | BX71: 17 | BY71: 6 | BZ71: 8 | CA71: 19 | CB71: 27 | CC71: 61 | CD71: 41 | CE71: 40 | CF71: 16 | CG71: 32 | CH71: 30 | CI71: 19 | CJ71: 18 | CK71: 15 | CL71: 28 | CM71: 65 | CN71: 1 | CO71: 3 | CP71: 6 | CQ71: 8 | CR71: 0 | CS71: 4 | CT71: 0 | CU71: 1 | CV71: 1 | CW71: 1 | CX71: 1 | CY71: 89 | CZ71: 0 | DA71: 0 | DB71: 3 | DC71: 0 | DD71: 0 | DE71: 2 | DF71: 0 | DG71: 7 | DH71: 0 | DI71: 1 | DJ71: 0 | DK71: 0 | DL71: 0 | DM71: 0 | DN71: 0 | DO71: 0 | DP71: 0 | DQ71: 1 | DR71: 0 | DS71: 0 | DT71: 0 | DU71: 0 | DV71: 0 | DW71: 0 | DX71: 0 | DY71: 5 | DZ71: 2 | EA71: 0 | EB71: 0 | EC71: 0 | ED71: 0 | EE71: 0 | EF71: 0 | EG71: 0 | EH71: 0 | EI71: 0 | EJ71: 0 | EK71: 2 | EL71: 0 | EM71: 0 | EN71: 0 | EO71: 0 | EP71: 0 | EQ71: 0 | ER71: 0 | ES71: 0 | ET71: 0 | EU71: 0 | EV71: 0 | EW71: 2 | EX71: 0 | EY71: 0 | EZ71: 0 | FA71: 0 | FB71: 0 | FC71: 2 | FD71: 0 | FE71: 0 | FF71: 0 | FG71: 0 | FH71: 0 | FI71: 0 | FJ71: 0 | FK71: 0 | FL71: 0 | FM71: 0 | FN71: 0 | FO71: 0 | FP71: 0 | FQ71: 0 | FR71: 0 | FS71: 0 | FT71: 0 | FU71: 0 | FV71: 0 | FW71: 0 | FX71: 0 | FY71: 0 | FZ71: 0 | GA71: 0 | GB71: 0 | GC71: 0 | GD71: 0 | GE71: 0 | GF71: 0 | GG71: 0 | GH71: 0 | GI71: 0 | GJ71: 0 | GK71: 0 | GL71: 0 | GM71: 0 | GN71: 0 | GO71: 0 | GP71: 0 | GQ71: 0 | GR71: 0 | GS71: 0 | GT71: 0 | GU71: 0 | GV71: 0 | GW71: 0 | GX71: 0 | GY71: 0 | GZ71: 0 | HA71: 0 | HB71: 0 | HC71: Bacteria | HD71: Chloroflexota | HE71: Dehalococcoidia | HF71: UBA3495 | HG71: UBA3495 | HH71: Bin87 | HI71: Bin87 sp009837355
A72: Zotu1067 | B72: 0 | C72: 0 | D72: 0 | E72: 0 | F72: 0 | G72: 0 | H72: 0 | I72: 0 | J72: 0 | K72: 0 | L72: 0 | M72: 0 | N72: 0 | O72: 0 | P72: 0 | Q72: 0 | R72: 0 | S72: 0 | T72: 0 | U72: 0 | V72: 0 | W72: 0 | X72: 0 | Y72: 0 | Z72: 0 | AA72: 0 | AB72: 0 | AC72: 0 | AD72: 0 | AE72: 0 | AF72: 0 | AG72: 0 | AH72: 0 | AI72: 0 | AJ72: 0 | AK72: 0 | AL72: 0 | AM72: 0 | AN72: 0 | AO72: 0 | AP72: 0 | AQ72: 0 | AR72: 0 | AS72: 0 | AT72: 0 | AU72: 0 | AV72: 0 | AW72: 0 | AX72: 0 | AY72: 0 | AZ72: 0 | BA72: 0 | BB72: 0 | BC72: 0 | BD72: 0 | BE72: 0 | BF72: 0 | BG72: 0 | BH72: 0 | BI72: 0 | BJ72: 0 | BK72: 0 | BL72: 0 | BM72: 0 | BN72: 0 | BO72: 0 | BP72: 0 | BQ72: 0 | BR72: 0 | BS72: 0 | BT72: 0 | BU72: 0 | BV72: 0 | BW72: 0 | BX72: 0 | BY72: 0 | BZ72: 0 | CA72: 0 | CB72: 0 | CC72: 0 | CD72: 0 | CE72: 0 | CF72: 0 | CG72: 0 | CH72: 0 | CI72: 0 | CJ72: 0 | CK72: 0 | CL72: 0 | CM72: 0 | CN72: 0 | CO72: 0 | CP72: 0 | CQ72: 0 | CR72: 0 | CS72: 0 | CT72: 0 | CU72: 0 | CV72: 0 | CW72: 0 | CX72: 0 | CY72: 0 | CZ72: 0 | DA72: 0 | DB72: 0 | DC72: 0 | DD72: 0 | DE72: 0 | DF72: 0 | DG72: 0 | DH72: 0 | DI72: 0 | DJ72: 0 | DK72: 0 | DL72: 0 | DM72: 0 | DN72: 0 | DO72: 0 | DP72: 0 | DQ72: 0 | DR72: 0 | DS72: 0 | DT72: 0 | DU72: 0 | DV72: 0 | DW72: 0 | DX72: 0 | DY72: 0 | DZ72: 290 | EA72: 0 | EB72: 0 | EC72: 0 | ED72: 0 | EE72: 0 | EF72: 0 | EG72: 0 | EH72: 0 | EI72: 0 | EJ72: 0 | EK72: 0 | EL72: 0 | EM72: 0 | EN72: 0 | EO72: 0 | EP72: 0 | EQ72: 0 | ER72: 0 | ES72: 0 | ET72: 0 | EU72: 0 | EV72: 0 | EW72: 0 | EX72: 0 | EY72: 0 | EZ72: 0 | FA72: 0 | FB72: 0 | FC72: 5 | FD72: 0 | FE72: 2 | FF72: 0 | FG72: 0 | FH72: 0 | FI72: 0 | FJ72: 0 | FK72: 0 | FL72: 0 | FM72: 0 | FN72: 0 | FO72: 0 | FP72: 0 | FQ72: 0 | FR72: 0 | FS72: 0 | FT72: 0 | FU72: 0 | FV72: 0 | FW72: 0 | FX72: 0 | FY72: 0 | FZ72: 0 | GA72: 0 | GB72: 0 | GC72: 0 | GD72: 0 | GE72: 0 | GF72: 0 | GG72: 0 | GH72: 0 | GI72: 0 | GJ72: 0 | GK72: 0 | GL72: 0 | GM72: 0 | GN72: 0 | GO72: 0 | GP72: 0 | GQ72: 0 | GR72: 0 | GS72: 0 | GT72: 0 | GU72: 0 | GV72: 0 | GW72: 0 | GX72: 0 | GY72: 0 | GZ72: 0 | HA72: 0 | HB72: 0 | HC72: Bacteria | HD72: Actinobacteriota | HE72: Actinomycetia | HF72: Actinomycetales | HG72: Actinomycetaceae | HH72: Actinomyces | HI72: Actinomyces graevenitzii
A73: Zotu1068 | B73: 0 | C73: 0 | D73: 0 | E73: 0 | F73: 0 | G73: 0 | H73: 0 | I73: 0 | J73: 0 | K73: 0 | L73: 0 | M73: 1 | N73: 0 | O73: 0 | P73: 0 | Q73: 0 | R73: 0 | S73: 0 | T73: 0 | U73: 0 | V73: 0 | W73: 0 | X73: 0 | Y73: 0 | Z73: 0 | AA73: 0 | AB73: 0 | AC73: 0 | AD73: 0 | AE73: 0 | AF73: 0 | AG73: 0 | AH73: 0 | AI73: 0 | AJ73: 0 | AK73: 0 | AL73: 0 | AM73: 0 | AN73: 0 | AO73: 0 | AP73: 0 | AQ73: 0 | AR73: 0 | AS73: 0 | AT73: 0 | AU73: 1 | AV73: 0 | AW73: 0 | AX73: 0 | AY73: 0 | AZ73: 0 | BA73: 0 | BB73: 0 | BC73: 0 | BD73: 0 | BE73: 0 | BF73: 0 | BG73: 0 | BH73: 0 | BI73: 0 | BJ73: 0 | BK73: 0 | BL73: 0 | BM73: 0 | BN73: 0 | BO73: 0 | BP73: 2 | BQ73: 0 | BR73: 0 | BS73: 0 | BT73: 0 | BU73: 0 | BV73: 0 | BW73: 0 | BX73: 0 | BY73: 0 | BZ73: 0 | CA73: 0 | CB73: 0 | CC73: 0 | CD73: 0 | CE73: 2 | CF73: 0 | CG73: 0 | CH73: 0 | CI73: 2 | CJ73: 0 | CK73: 0 | CL73: 0 | CM73: 0 | CN73: 2 | CO73: 0 | CP73: 2 | CQ73: 3 | CR73: 1 | CS73: 1 | CT73: 3 | CU73: 3 | CV73: 1 | CW73: 0 | CX73: 1 | CY73: 2 | CZ73: 2 | DA73: 2 | DB73: 0 | DC73: 1 | DD73: 1 | DE73: 1 | DF73: 0 | DG73: 1 | DH73: 0 | DI73: 6 | DJ73: 3 | DK73: 3 | DL73: 0 | DM73: 1 | DN73: 3 | DO73: 1 | DP73: 4 | DQ73: 0 | DR73: 2 | DS73: 0 | DT73: 0 | DU73: 0 | DV73: 0 | DW73: 0 | DX73: 0 | DY73: 0 | DZ73: 0 | EA73: 0 | EB73: 0 | EC73: 0 | ED73: 0 | EE73: 0 | EF73: 0 | EG73: 0 | EH73: 0 | EI73: 0 | EJ73: 2 | EK73: 0 | EL73: 0 | EM73: 0 | EN73: 0 | EO73: 0 | EP73: 3 | EQ73: 0 | ER73: 0 | ES73: 0 | ET73: 0 | EU73: 0 | EV73: 0 | EW73: 0 | EX73: 0 | EY73: 0 | EZ73: 0 | FA73: 0 | FB73: 2 | FC73: 0 | FD73: 2 | FE73: 0 | FF73: 0 | FG73: 1 | FH73: 2 | FI73: 0 | FJ73: 3 | FK73: 0 | FL73: 0 | FM73: 2 | FN73: 0 | FO73: 0 | FP73: 0 | FQ73: 0 | FR73: 0 | FS73: 0 | FT73: 2 | FU73: 0 | FV73: 0 | FW73: 2 | FX73: 0 | FY73: 0 | FZ73: 3 | GA73: 1 | GB73: 1 | GC73: 0 | GD73: 1 | GE73: 0 | GF73: 1 | GG73: 1 | GH73: 0 | GI73: 3 | GJ73: 4 | GK73: 8 | GL73: 0 | GM73: 2 | GN73: 2 | GO73: 1 | GP73: 4 | GQ73: 5 | GR73: 5 | GS73: 6 | GT73: 5 | GU73: 6 | GV73: 9 | GW73: 5 | GX73: 5 | GY73: 1 | GZ73: 5 | HA73: 6 | HB73: 6 | HC73: Bacteria | HD73: Proteobacteria | HE73: Gammaproteobacteria | HF73: Enterobacterales | HG73: Vibrionaceae | HH73: Vibrio | HI73: Vibrio coralliilyticus
A74: Zotu1069 | B74: 0 | C74: 0 | D74: 0 | E74: 0 | F74: 0 | G74: 0 | H74: 0 | I74: 0 | J74: 0 | K74: 0 | L74: 0 | M74: 0 | N74: 0 | O74: 0 | P74: 0 | Q74: 0 | R74: 0 | S74: 0 | T74: 0 | U74: 0 | V74: 0 | W74: 0 | X74: 0 | Y74: 0 | Z74: 0 | AA74: 0 | AB74: 0 | AC74: 0 | AD74: 0 | AE74: 0 | AF74: 0 | AG74: 0 | AH74: 0 | AI74: 0 | AJ74: 0 | AK74: 0 | AL74: 0 | AM74: 0 | AN74: 0 | AO74: 0 | AP74: 0 | AQ74: 0 | AR74: 0 | AS74: 0 | AT74: 0 | AU74: 0 | AV74: 0 | AW74: 0 | AX74: 0 | AY74: 0 | AZ74: 0 | BA74: 0 | BB74: 0 | BC74: 0 | BD74: 0 | BE74: 0 | BF74: 0 | BG74: 0 | BH74: 0 | BI74: 0 | BJ74: 0 | BK74: 0 | BL74: 0 | BM74: 0 | BN74: 0 | BO74: 0 | BP74: 0 | BQ74: 0 | BR74: 0 | BS74: 0 | BT74: 0 | BU74: 0 | BV74: 0 | BW74: 0 | BX74: 0 | BY74: 0 | BZ74: 0 | CA74: 0 | CB74: 0 | CC74: 0 | CD74: 0 | CE74: 0 | CF74: 0 | CG74: 0 | CH74: 0 | CI74: 0 | CJ74: 0 | CK74: 0 | CL74: 2 | CM74: 0 | CN74: 2 | CO74: 0 | CP74: 1 | CQ74: 3 | CR74: 1 | CS74: 5 | CT74: 0 | CU74: 3 | CV74: 0 | CW74: 0 | CX74: 1 | CY74: 0 | CZ74: 2 | DA74: 3 | DB74: 4 | DC74: 2 | DD74: 4 | DE74: 3 | DF74: 0 | DG74: 1 | DH74: 3 | DI74: 2 | DJ74: 1 | DK74: 3 | DL74: 0 | DM74: 0 | DN74: 0 | DO74: 4 | DP74: 1 | DQ74: 1 | DR74: 0 | DS74: 0 | DT74: 0 | DU74: 0 | DV74: 1 | DW74: 0 | DX74: 0 | DY74: 3 | DZ74: 0 | EA74: 0 | EB74: 1 | EC74: 0 | ED74: 0 | EE74: 2 | EF74: 0 | EG74: 5 | EH74: 0 | EI74: 0 | EJ74: 0 | EK74: 0 | EL74: 0 | EM74: 0 | EN74: 0 | EO74: 0 | EP74: 0 | EQ74: 0 | ER74: 0 | ES74: 0 | ET74: 0 | EU74: 0 | EV74: 0 | EW74: 0 | EX74: 0 | EY74: 0 | EZ74: 0 | FA74: 0 | FB74: 2 | FC74: 0 | FD74: 0 | FE74: 2 | FF74: 0 | FG74: 0 | FH74: 0 | FI74: 0 | FJ74: 0 | FK74: 5 | FL74: 0 | FM74: 0 | FN74: 0 | FO74: 0 | FP74: 0 | FQ74: 0 | FR74: 0 | FS74: 0 | FT74: 0 | FU74: 0 | FV74: 0 | FW74: 2 | FX74: 0 | FY74: 0 | FZ74: 2 | GA74: 0 | GB74: 2 | GC74: 2 | GD74: 0 | GE74: 0 | GF74: 0 | GG74: 1 | GH74: 1 | GI74: 9 | GJ74: 2 | GK74: 4 | GL74: 5 | GM74: 10 | GN74: 1 | GO74: 4 | GP74: 6 | GQ74: 7 | GR74: 7 | GS74: 4 | GT74: 5 | GU74: 4 | GV74: 7 | GW74: 6 | GX74: 17 | GY74: 7 | GZ74: 7 | HA74: 26 | HB74: 1 | HC74: Bacteria | HD74: Bacteroidota | HE74: Bacteroidia | HF74: Cytophagales | HG74: Cyclobacteriaceae | HH74: Persicobacter | HI74: Persicobacter sp001274635
A75: Zotu107 | B75: 2 | C75: 0 | D75: 0 | E75: 0 | F75: 0 | G75: 1 | H75: 2 | I75: 0 | J75: 0 | K75: 2 | L75: 0 | M75: 0 | N75: 0 | O75: 0 | P75: 0 | Q75: 2 | R75: 0 | S75: 0 | T75: 0 | U75: 0 | V75: 0 | W75: 0 | X75: 0 | Y75: 0 | Z75: 1 | AA75: 0 | AB75: 0 | AC75: 2 | AD75: 0 | AE75: 5 | AF75: 1 | AG75: 0 | AH75: 0 | AI75: 1 | AJ75: 0 | AK75: 0 | AL75: 1 | AM75: 0 | AN75: 0 | AO75: 1 | AP75: 1 | AQ75: 0 | AR75: 0 | AS75: 0 | AT75: 0 | AU75: 1 | AV75: 0 | AW75: 1 | AX75: 3 | AY75: 0 | AZ75: 0 | BA75: 0 | BB75: 0 | BC75: 0 | BD75: 31 | BE75: 8 | BF75: 17 | BG75: 20 | BH75: 1 | BI75: 0 | BJ75: 3 | BK75: 0 | BL75: 0 | BM75: 1 | BN75: 0 | BO75: 0 | BP75: 32 | BQ75: 5 | BR75: 13 | BS75: 20 | BT75: 1 | BU75: 0 | BV75: 2 | BW75: 1 | BX75: 1 | BY75: 1 | BZ75: 0 | CA75: 0 | CB75: 26 | CC75: 15 | CD75: 21 | CE75: 7 | CF75: 0 | CG75: 22 | CH75: 10 | CI75: 19 | CJ75: 29 | CK75: 13 | CL75: 17 | CM75: 14 | CN75: 170 | CO75: 89 | CP75: 189 | CQ75: 176 | CR75: 82 | CS75: 177 | CT75: 93 | CU75: 175 | CV75: 95 | CW75: 195 | CX75: 76 | CY75: 44 | CZ75: 121 | DA75: 59 | DB75: 85 | DC75: 134 | DD75: 86 | DE75: 84 | DF75: 143 | DG75: 68 | DH75: 61 | DI75: 124 | DJ75: 177 | DK75: 154 | DL75: 153 | DM75: 70 | DN75: 74 | DO75: 121 | DP75: 115 | DQ75: 128 | DR75: 22 | DS75: 58 | DT75: 36 | DU75: 70 | DV75: 37 | DW75: 57 | DX75: 20 | DY75: 52 | DZ75: 20 | EA75: 8 | EB75: 48 | EC75: 14 | ED75: 30 | EE75: 28 | EF75: 39 | EG75: 61 | EH75: 37 | EI75: 37 | EJ75: 21 | EK75: 20 | EL75: 26 | EM75: 10 | EN75: 17 | EO75: 11 | EP75: 16 | EQ75: 53 | ER75: 34 | ES75: 62 | ET75: 41 | EU75: 33 | EV75: 31 | EW75: 38 | EX75: 34 | EY75: 19 | EZ75: 31 | FA75: 17 | FB75: 61 | FC75: 58 | FD75: 54 | FE75: 32 | FF75: 37 | FG75: 20 | FH75: 14 | FI75: 40 | FJ75: 36 | FK75: 43 | FL75: 13 | FM75: 28 | FN75: 38 | FO75: 43 | FP75: 28 | FQ75: 36 | FR75: 22 | FS75: 19 | FT75: 43 | FU75: 48 | FV75: 37 | FW75: 41 | FX75: 7 | FY75: 57 | FZ75: 234 | GA75: 146 | GB75: 99 | GC75: 148 | GD75: 214 | GE75: 141 | GF75: 138 | GG75: 748 | GH75: 324 | GI75: 232 | GJ75: 531 | GK75: 383 | GL75: 225 | GM75: 243 | GN75: 245 | GO75: 708 | GP75: 303 | GQ75: 344 | GR75: 495 | GS75: 511 | GT75: 338 | GU75: 435 | GV75: 436 | GW75: 361 | GX75: 424 | GY75: 313 | GZ75: 498 | HA75: 432 | HB75: 349 | HC75: Bacteria | HD75: Proteobacteria | HE75: Alphaproteobacteria | HF75: Puniceispirillales | HG75: AAA536-G10 | HH75: TMED54 | HI75: TMED54 sp902590245
A76: Zotu1070 | B76: 0 | C76: 0 | D76: 0 | E76: 0 | F76: 0 | G76: 0 | H76: 0 | I76: 0 | J76: 0 | K76: 0 | L76: 0 | M76: 0 | N76: 0 | O76: 0 | P76: 0 | Q76: 0 | R76: 0 | S76: 0 | T76: 0 | U76: 0 | V76: 0 | W76: 0 | X76: 0 | Y76: 0 | Z76: 0 | AA76: 0 | AB76: 0 | AC76: 0 | AD76: 0 | AE76: 0 | AF76: 0 | AG76: 0 | AH76: 0 | AI76: 0 | AJ76: 0 | AK76: 0 | AL76: 0 | AM76: 0 | AN76: 0 | AO76: 0 | AP76: 0 | AQ76: 0 | AR76: 0 | AS76: 0 | AT76: 0 | AU76: 0 | AV76: 0 | AW76: 0 | AX76: 0 | AY76: 0 | AZ76: 0 | BA76: 0 | BB76: 0 | BC76: 0 | BD76: 0 | BE76: 0 | BF76: 0 | BG76: 0 | BH76: 0 | BI76: 0 | BJ76: 0 | BK76: 0 | BL76: 0 | BM76: 0 | BN76: 0 | BO76: 0 | BP76: 0 | BQ76: 0 | BR76: 0 | BS76: 0 | BT76: 0 | BU76: 0 | BV76: 0 | BW76: 0 | BX76: 0 | BY76: 0 | BZ76: 0 | CA76: 0 | CB76: 2 | CC76: 0 | CD76: 0 | CE76: 0 | CF76: 0 | CG76: 0 | CH76: 0 | CI76: 0 | CJ76: 0 | CK76: 0 | CL76: 0 | CM76: 0 | CN76: 4 | CO76: 2 | CP76: 7 | CQ76: 10 | CR76: 0 | CS76: 7 | CT76: 1 | CU76: 3 | CV76: 1 | CW76: 13 | CX76: 0 | CY76: 0 | CZ76: 2 | DA76: 0 | DB76: 0 | DC76: 4 | DD76: 13 | DE76: 10 | DF76: 7 | DG76: 3 | DH76: 13 | DI76: 12 | DJ76: 13 | DK76: 14 | DL76: 9 | DM76: 9 | DN76: 7 | DO76: 15 | DP76: 7 | DQ76: 7 | DR76: 0 | DS76: 0 | DT76: 3 | DU76: 0 | DV76: 1 | DW76: 0 | DX76: 0 | DY76: 2 | DZ76: 0 | EA76: 0 | EB76: 0 | EC76: 2 | ED76: 0 | EE76: 0 | EF76: 0 | EG76: 0 | EH76: 0 | EI76: 0 | EJ76: 0 | EK76: 0 | EL76: 0 | EM76: 0 | EN76: 0 | EO76: 0 | EP76: 0 | EQ76: 3 | ER76: 0 | ES76: 0 | ET76: 0 | EU76: 0 | EV76: 0 | EW76: 0 | EX76: 0 | EY76: 0 | EZ76: 0 | FA76: 0 | FB76: 0 | FC76: 0 | FD76: 0 | FE76: 2 | FF76: 0 | FG76: 1 | FH76: 0 | FI76: 0 | FJ76: 5 | FK76: 2 | FL76: 0 | FM76: 0 | FN76: 0 | FO76: 0 | FP76: 0 | FQ76: 2 | FR76: 0 | FS76: 0 | FT76: 2 | FU76: 0 | FV76: 0 | FW76: 2 | FX76: 0 | FY76: 2 | FZ76: 21 | GA76: 18 | GB76: 9 | GC76: 23 | GD76: 11 | GE76: 20 | GF76: 4 | GG76: 0 | GH76: 0 | GI76: 0 | GJ76: 0 | GK76: 2 | GL76: 0 | GM76: 0 | GN76: 0 | GO76: 1 | GP76: 0 | GQ76: 1 | GR76: 1 | GS76: 0 | GT76: 0 | GU76: 0 | GV76: 0 | GW76: 0 | GX76: 0 | GY76: 0 | GZ76: 0 | HA76: 1 | HB76: 0 | HC76: Archaea | HD76: Thermoplasmatota | HE76: Poseidoniia | HF76: Poseidoniales | HG76: Poseidoniaceae | HH76: MGIIa-L1 | HI76: MGIIa-L1 sp9354u
A77: Zotu1071 | B77: 0 | C77: 0 | D77: 0 | E77: 0 | F77: 0 | G77: 0 | H77: 0 | I77: 0 | J77: 0 | K77: 0 | L77: 0 | M77: 0 | N77: 0 | O77: 0 | P77: 0 | Q77: 0 | R77: 0 | S77: 0 | T77: 0 | U77: 0 | V77: 0 | W77: 0 | X77: 0 | Y77: 0 | Z77: 0 | AA77: 0 | AB77: 0 | AC77: 0 | AD77: 0 | AE77: 0 | AF77: 0 | AG77: 0 | AH77: 0 | AI77: 0 | AJ77: 0 | AK77: 0 | AL77: 0 | AM77: 0 | AN77: 0 | AO77: 0 | AP77: 0 | AQ77: 0 | AR77: 0 | AS77: 0 | AT77: 0 | AU77: 0 | AV77: 0 | AW77: 0 | AX77: 0 | AY77: 0 | AZ77: 0 | BA77: 0 | BB77: 0 | BC77: 0 | BD77: 0 | BE77: 0 | BF77: 0 | BG77: 0 | BH77: 0 | BI77: 0 | BJ77: 0 | BK77: 0 | BL77: 0 | BM77: 0 | BN77: 0 | BO77: 0 | BP77: 2 | BQ77: 0 | BR77: 0 | BS77: 0 | BT77: 0 | BU77: 0 | BV77: 0 | BW77: 0 | BX77: 0 | BY77: 0 | BZ77: 0 | CA77: 0 | CB77: 0 | CC77: 0 | CD77: 0 | CE77: 0 | CF77: 0 | CG77: 2 | CH77: 0 | CI77: 0 | CJ77: 0 | CK77: 0 | CL77: 0 | CM77: 0 | CN77: 1 | CO77: 3 | CP77: 2 | CQ77: 6 | CR77: 2 | CS77: 6 | CT77: 0 | CU77: 3 | CV77: 3 | CW77: 3 | CX77: 2 | CY77: 0 | CZ77: 0 | DA77: 0 | DB77: 0 | DC77: 1 | DD77: 1 | DE77: 0 | DF77: 1 | DG77: 0 | DH77: 0 | DI77: 1 | DJ77: 2 | DK77: 3 | DL77: 0 | DM77: 0 | DN77: 0 | DO77: 1 | DP77: 0 | DQ77: 0 | DR77: 0 | DS77: 0 | DT77: 2 | DU77: 0 | DV77: 0 | DW77: 0 | DX77: 3 | DY77: 0 | DZ77: 2 | EA77: 0 | EB77: 0 | EC77: 0 | ED77: 2 | EE77: 0 | EF77: 0 | EG77: 0 | EH77: 0 | EI77: 0 | EJ77: 0 | EK77: 0 | EL77: 2 | EM77: 0 | EN77: 0 | EO77: 0 | EP77: 0 | EQ77: 0 | ER77: 0 | ES77: 3 | ET77: 0 | EU77: 2 | EV77: 0 | EW77: 2 | EX77: 0 | EY77: 2 | EZ77: 0 | FA77: 0 | FB77: 2 | FC77: 3 | FD77: 2 | FE77: 0 | FF77: 0 | FG77: 0 | FH77: 0 | FI77: 0 | FJ77: 0 | FK77: 0 | FL77: 0 | FM77: 0 | FN77: 2 | FO77: 2 | FP77: 2 | FQ77: 0 | FR77: 0 | FS77: 0 | FT77: 0 | FU77: 0 | FV77: 0 | FW77: 3 | FX77: 0 | FY77: 0 | FZ77: 1 | GA77: 1 | GB77: 0 | GC77: 0 | GD77: 0 | GE77: 0 | GF77: 6 | GG77: 3 | GH77: 3 | GI77: 1 | GJ77: 3 | GK77: 9 | GL77: 2 | GM77: 3 | GN77: 2 | GO77: 8 | GP77: 3 | GQ77: 2 | GR77: 3 | GS77: 5 | GT77: 5 | GU77: 3 | GV77: 4 | GW77: 5 | GX77: 6 | GY77: 4 | GZ77: 6 | HA77: 6 | HB77: 5 | HC77: Bacteria | HD77: Proteobacteria | HE77: Alphaproteobacteria | HF77: Pelagibacterales | HG77: Pelagibacteraceae | HH77: GCA-002704185 | HI77: GCA-002704185 sp003280495
A78: Zotu1073 | B78: 0 | C78: 0 | D78: 0 | E78: 0 | F78: 0 | G78: 0 | H78: 0 | I78: 0 | J78: 0 | K78: 0 | L78: 0 | M78: 0 | N78: 0 | O78: 0 | P78: 0 | Q78: 0 | R78: 0 | S78: 0 | T78: 0 | U78: 0 | V78: 0 | W78: 0 | X78: 0 | Y78: 0 | Z78: 0 | AA78: 0 | AB78: 0 | AC78: 0 | AD78: 0 | AE78: 0 | AF78: 0 | AG78: 0 | AH78: 0 | AI78: 0 | AJ78: 0 | AK78: 0 | AL78: 0 | AM78: 0 | AN78: 0 | AO78: 0 | AP78: 0 | AQ78: 0 | AR78: 0 | AS78: 0 | AT78: 0 | AU78: 0 | AV78: 0 | AW78: 0 | AX78: 0 | AY78: 0 | AZ78: 0 | BA78: 0 | BB78: 0 | BC78: 0 | BD78: 0 | BE78: 0 | BF78: 0 | BG78: 0 | BH78: 0 | BI78: 0 | BJ78: 0 | BK78: 0 | BL78: 0 | BM78: 0 | BN78: 0 | BO78: 0 | BP78: 0 | BQ78: 0 | BR78: 0 | BS78: 0 | BT78: 0 | BU78: 0 | BV78: 0 | BW78: 0 | BX78: 0 | BY78: 0 | BZ78: 0 | CA78: 0 | CB78: 0 | CC78: 0 | CD78: 0 | CE78: 0 | CF78: 0 | CG78: 0 | CH78: 0 | CI78: 0 | CJ78: 0 | CK78: 0 | CL78: 0 | CM78: 0 | CN78: 1 | CO78: 0 | CP78: 1 | CQ78: 1 | CR78: 0 | CS78: 1 | CT78: 1 | CU78: 3 | CV78: 0 | CW78: 3 | CX78: 0 | CY78: 0 | CZ78: 0 | DA78: 0 | DB78: 3 | DC78: 0 | DD78: 0 | DE78: 0 | DF78: 0 | DG78: 0 | DH78: 0 | DI78: 0 | DJ78: 0 | DK78: 0 | DL78: 0 | DM78: 0 | DN78: 1 | DO78: 0 | DP78: 0 | DQ78: 2 | DR78: 0 | DS78: 2 | DT78: 0 | DU78: 0 | DV78: 0 | DW78: 0 | DX78: 0 | DY78: 0 | DZ78: 0 | EA78: 0 | EB78: 0 | EC78: 0 | ED78: 0 | EE78: 0 | EF78: 0 | EG78: 0 | EH78: 0 | EI78: 0 | EJ78: 0 | EK78: 0 | EL78: 0 | EM78: 0 | EN78: 0 | EO78: 0 | EP78: 0 | EQ78: 0 | ER78: 0 | ES78: 0 | ET78: 0 | EU78: 0 | EV78: 0 | EW78: 0 | EX78: 0 | EY78: 0 | EZ78: 0 | FA78: 0 | FB78: 0 | FC78: 0 | FD78: 0 | FE78: 0 | FF78: 0 | FG78: 0 | FH78: 0 | FI78: 0 | FJ78: 0 | FK78: 0 | FL78: 0 | FM78: 0 | FN78: 0 | FO78: 0 | FP78: 0 | FQ78: 0 | FR78: 0 | FS78: 0 | FT78: 0 | FU78: 0 | FV78: 0 | FW78: 0 | FX78: 0 | FY78: 0 | FZ78: 1 | GA78: 5 | GB78: 2 | GC78: 3 | GD78: 1 | GE78: 7 | GF78: 4 | GG78: 39 | GH78: 32 | GI78: 0 | GJ78: 10 | GK78: 4 | GL78: 5 | GM78: 2 | GN78: 5 | GO78: 13 | GP78: 6 | GQ78: 12 | GR78: 5 | GS78: 15 | GT78: 3 | GU78: 6 | GV78: 9 | GW78: 4 | GX78: 5 | GY78: 2 | GZ78: 9 | HA78: 5 | HB78: 6 | HC78: Bacteria | HD78: Bacteroidota | HE78: Bacteroidia | HF78: Flavobacteriales | HG78: Schleiferiaceae | HH78: UBA10364 | HI78: UBA10364 sp003385605
A79: Zotu1074 | B79: 0 | C79: 0 | D79: 0 | E79: 1 | F79: 0 | G79: 0 | H79: 0 | I79: 0 | J79: 0 | K79: 0 | L79: 0 | M79: 0 | N79: 0 | O79: 0 | P79: 0 | Q79: 0 | R79: 0 | S79: 0 | T79: 0 | U79: 0 | V79: 0 | W79: 0 | X79: 0 | Y79: 0 | Z79: 0 | AA79: 0 | AB79: 0 | AC79: 0 | AD79: 0 | AE79: 0 | AF79: 0 | AG79: 0 | AH79: 0 | AI79: 0 | AJ79: 0 | AK79: 0 | AL79: 0 | AM79: 0 | AN79: 0 | AO79: 0 | AP79: 0 | AQ79: 0 | AR79: 0 | AS79: 0 | AT79: 0 | AU79: 0 | AV79: 0 | AW79: 0 | AX79: 0 | AY79: 0 | AZ79: 0 | BA79: 0 | BB79: 0 | BC79: 0 | BD79: 0 | BE79: 0 | BF79: 0 | BG79: 0 | BH79: 0 | BI79: 0 | BJ79: 0 | BK79: 0 | BL79: 0 | BM79: 0 | BN79: 0 | BO79: 0 | BP79: 0 | BQ79: 0 | BR79: 0 | BS79: 0 | BT79: 0 | BU79: 0 | BV79: 0 | BW79: 0 | BX79: 0 | BY79: 0 | BZ79: 0 | CA79: 0 | CB79: 3 | CC79: 0 | CD79: 0 | CE79: 0 | CF79: 0 | CG79: 0 | CH79: 0 | CI79: 0 | CJ79: 0 | CK79: 0 | CL79: 0 | CM79: 0 | CN79: 2 | CO79: 0 | CP79: 0 | CQ79: 1 | CR79: 2 | CS79: 1 | CT79: 1 | CU79: 0 | CV79: 1 | CW79: 2 | CX79: 0 | CY79: 0 | CZ79: 1 | DA79: 0 | DB79: 0 | DC79: 1 | DD79: 1 | DE79: 2 | DF79: 1 | DG79: 1 | DH79: 3 | DI79: 1 | DJ79: 2 | DK79: 3 | DL79: 3 | DM79: 0 | DN79: 2 | DO79: 0 | DP79: 4 | DQ79: 1 | DR79: 0 | DS79: 3 | DT79: 0 | DU79: 2 | DV79: 1 | DW79: 0 | DX79: 0 | DY79: 0 | DZ79: 0 | EA79: 0 | EB79: 0 | EC79: 0 | ED79: 0 | EE79: 0 | EF79: 0 | EG79: 2 | EH79: 0 | EI79: 0 | EJ79: 0 | EK79: 3 | EL79: 0 | EM79: 0 | EN79: 0 | EO79: 0 | EP79: 0 | EQ79: 0 | ER79: 0 | ES79: 0 | ET79: 0 | EU79: 0 | EV79: 0 | EW79: 0 | EX79: 0 | EY79: 0 | EZ79: 0 | FA79: 0 | FB79: 0 | FC79: 3 | FD79: 2 | FE79: 0 | FF79: 2 | FG79: 0 | FH79: 0 | FI79: 5 | FJ79: 0 | FK79: 0 | FL79: 0 | FM79: 2 | FN79: 2 | FO79: 0 | FP79: 3 | FQ79: 2 | FR79: 0 | FS79: 0 | FT79: 0 | FU79: 0 | FV79: 0 | FW79: 0 | FX79: 0 | FY79: 0 | FZ79: 8 | GA79: 2 | GB79: 2 | GC79: 3 | GD79: 5 | GE79: 0 | GF79: 1 | GG79: 4 | GH79: 0 | GI79: 1 | GJ79: 5 | GK79: 9 | GL79: 2 | GM79: 2 | GN79: 2 | GO79: 9 | GP79: 4 | GQ79: 2 | GR79: 4 | GS79: 3 | GT79: 2 | GU79: 2 | GV79: 3 | GW79: 3 | GX79: 2 | GY79: 2 | GZ79: 5 | HA79: 7 | HB79: 4 | HC79: Bacteria | HD79: Proteobacteria | HE79: Gammaproteobacteria | HF79: Pseudomonadales | HG79: Litoricolaceae | HH79: HIMB30 | HI79: HIMB30 sp002691485
A80: Zotu1075 | B80: 0 | C80: 0 | D80: 0 | E80: 0 | F80: 0 | G80: 0 | H80: 0 | I80: 0 | J80: 0 | K80: 0 | L80: 0 | M80: 0 | N80: 0 | O80: 0 | P80: 0 | Q80: 0 | R80: 0 | S80: 0 | T80: 0 | U80: 0 | V80: 0 | W80: 0 | X80: 0 | Y80: 0 | Z80: 0 | AA80: 0 | AB80: 0 | AC80: 0 | AD80: 0 | AE80: 0 | AF80: 0 | AG80: 0 | AH80: 0 | AI80: 0 | AJ80: 0 | AK80: 0 | AL80: 0 | AM80: 0 | AN80: 0 | AO80: 0 | AP80: 0 | AQ80: 0 | AR80: 0 | AS80: 0 | AT80: 0 | AU80: 0 | AV80: 0 | AW80: 0 | AX80: 116 | AY80: 0 | AZ80: 0 | BA80: 0 | BB80: 0 | BC80: 0 | BD80: 0 | BE80: 0 | BF80: 0 | BG80: 0 | BH80: 0 | BI80: 0 | BJ80: 0 | BK80: 0 | BL80: 0 | BM80: 0 | BN80: 0 | BO80: 0 | BP80: 0 | BQ80: 0 | BR80: 0 | BS80: 0 | BT80: 0 | BU80: 0 | BV80: 0 | BW80: 0 | BX80: 0 | BY80: 0 | BZ80: 0 | CA80: 0 | CB80: 0 | CC80: 0 | CD80: 0 | CE80: 0 | CF80: 0 | CG80: 0 | CH80: 0 | CI80: 0 | CJ80: 0 | CK80: 0 | CL80: 0 | CM80: 0 | CN80: 0 | CO80: 0 | CP80: 0 | CQ80: 0 | CR80: 0 | CS80: 0 | CT80: 0 | CU80: 0 | CV80: 0 | CW80: 0 | CX80: 0 | CY80: 0 | CZ80: 0 | DA80: 0 | DB80: 0 | DC80: 0 | DD80: 0 | DE80: 0 | DF80: 0 | DG80: 0 | DH80: 0 | DI80: 0 | DJ80: 0 | DK80: 0 | DL80: 0 | DM80: 0 | DN80: 0 | DO80: 0 | DP80: 0 | DQ80: 0 | DR80: 0 | DS80: 0 | DT80: 0 | DU80: 0 | DV80: 0 | DW80: 0 | DX80: 0 | DY80: 0 | DZ80: 111 | EA80: 0 | EB80: 8 | EC80: 0 | ED80: 0 | EE80: 0 | EF80: 0 | EG80: 0 | EH80: 0 | EI80: 0 | EJ80: 0 | EK80: 0 | EL80: 0 | EM80: 0 | EN80: 0 | EO80: 0 | EP80: 0 | EQ80: 0 | ER80: 0 | ES80: 0 | ET80: 0 | EU80: 0 | EV80: 0 | EW80: 0 | EX80: 0 | EY80: 0 | EZ80: 0 | FA80: 0 | FB80: 0 | FC80: 2 | FD80: 0 | FE80: 25 | FF80: 0 | FG80: 0 | FH80: 0 | FI80: 0 | FJ80: 0 | FK80: 0 | FL80: 0 | FM80: 0 | FN80: 0 | FO80: 0 | FP80: 0 | FQ80: 0 | FR80: 0 | FS80: 0 | FT80: 0 | FU80: 0 | FV80: 0 | FW80: 0 | FX80: 0 | FY80: 0 | FZ80: 0 | GA80: 0 | GB80: 0 | GC80: 0 | GD80: 0 | GE80: 0 | GF80: 0 | GG80: 0 | GH80: 0 | GI80: 0 | GJ80: 0 | GK80: 0 | GL80: 0 | GM80: 0 | GN80: 0 | GO80: 0 | GP80: 0 | GQ80: 0 | GR80: 0 | GS80: 0 | GT80: 0 | GU80: 0 | GV80: 0 | GW80: 0 | GX80: 0 | GY80: 0 | GZ80: 0 | HA80: 0 | HB80: 0 | HC80: Bacteria | HD80: Firmicutes_C | HE80: Negativicutes | HF80: Veillonellales | HG80: Veillonellaceae | HH80: Veillonella | HI80: Veillonella atypica
A81: Zotu1077 | B81: 0 | C81: 0 | D81: 0 | E81: 0 | F81: 0 | G81: 0 | H81: 0 | I81: 0 | J81: 0 | K81: 0 | L81: 0 | M81: 0 | N81: 0 | O81: 0 | P81: 0 | Q81: 0 | R81: 0 | S81: 0 | T81: 0 | U81: 0 | V81: 0 | W81: 0 | X81: 0 | Y81: 0 | Z81: 0 | AA81: 0 | AB81: 0 | AC81: 0 | AD81: 0 | AE81: 0 | AF81: 0 | AG81: 0 | AH81: 0 | AI81: 0 | AJ81: 0 | AK81: 0 | AL81: 0 | AM81: 0 | AN81: 0 | AO81: 0 | AP81: 0 | AQ81: 0 | AR81: 0 | AS81: 0 | AT81: 0 | AU81: 0 | AV81: 0 | AW81: 0 | AX81: 0 | AY81: 0 | AZ81: 0 | BA81: 0 | BB81: 0 | BC81: 0 | BD81: 2 | BE81: 0 | BF81: 0 | BG81: 0 | BH81: 0 | BI81: 0 | BJ81: 0 | BK81: 0 | BL81: 0 | BM81: 0 | BN81: 0 | BO81: 0 | BP81: 0 | BQ81: 0 | BR81: 2 | BS81: 0 | BT81: 0 | BU81: 0 | BV81: 0 | BW81: 0 | BX81: 0 | BY81: 0 | BZ81: 0 | CA81: 0 | CB81: 0 | CC81: 0 | CD81: 0 | CE81: 0 | CF81: 0 | CG81: 2 | CH81: 0 | CI81: 0 | CJ81: 0 | CK81: 2 | CL81: 0 | CM81: 0 | CN81: 8 | CO81: 3 | CP81: 10 | CQ81: 4 | CR81: 4 | CS81: 9 | CT81: 3 | CU81: 3 | CV81: 5 | CW81: 10 | CX81: 1 | CY81: 0 | CZ81: 7 | DA81: 6 | DB81: 11 | DC81: 6 | DD81: 3 | DE81: 4 | DF81: 2 | DG81: 3 | DH81: 4 | DI81: 5 | DJ81: 3 | DK81: 12 | DL81: 5 | DM81: 4 | DN81: 6 | DO81: 5 | DP81: 17 | DQ81: 9 | DR81: 2 | DS81: 0 | DT81: 2 | DU81: 2 | DV81: 0 | DW81: 0 | DX81: 0 | DY81: 2 | DZ81: 0 | EA81: 0 | EB81: 0 | EC81: 0 | ED81: 0 | EE81: 0 | EF81: 2 | EG81: 0 | EH81: 0 | EI81: 0 | EJ81: 0 | EK81: 0 | EL81: 0 | EM81: 0 | EN81: 0 | EO81: 0 | EP81: 0 | EQ81: 0 | ER81: 0 | ES81: 2 | ET81: 0 | EU81: 0 | EV81: 0 | EW81: 0 | EX81: 0 | EY81: 0 | EZ81: 0 | FA81: 0 | FB81: 0 | FC81: 0 | FD81: 0 | FE81: 0 | FF81: 0 | FG81: 0 | FH81: 0 | FI81: 0 | FJ81: 0 | FK81: 0 | FL81: 0 | FM81: 0 | FN81: 0 | FO81: 0 | FP81: 0 | FQ81: 0 | FR81: 0 | FS81: 0 | FT81: 0 | FU81: 0 | FV81: 0 | FW81: 0 | FX81: 0 | FY81: 0 | FZ81: 11 | GA81: 3 | GB81: 6 | GC81: 12 | GD81: 1 | GE81: 15 | GF81: 23 | GG81: 6 | GH81: 5 | GI81: 23 | GJ81: 2 | GK81: 5 | GL81: 3 | GM81: 10 | GN81: 2 | GO81: 4 | GP81: 0 | GQ81: 1 | GR81: 2 | GS81: 0 | GT81: 1 | GU81: 0 | GV81: 2 | GW81: 0 | GX81: 1 | GY81: 0 | GZ81: 0 | HA81: 0 | HB81: 0 | HC81: Bacteria | HD81: Proteobacteria | HE81: Alphaproteobacteria | HF81: Rhodobacterales | HG81: Rhodobacteraceae | HH81: Marivita | HI81: Marivita cryptomonadis
A82: Zotu1078 | B82: 0 | C82: 0 | D82: 0 | E82: 0 | F82: 0 | G82: 0 | H82: 0 | I82: 0 | J82: 0 | K82: 0 | L82: 0 | M82: 0 | N82: 0 | O82: 0 | P82: 0 | Q82: 0 | R82: 0 | S82: 0 | T82: 0 | U82: 0 | V82: 0 | W82: 0 | X82: 0 | Y82: 0 | Z82: 0 | AA82: 0 | AB82: 0 | AC82: 0 | AD82: 0 | AE82: 0 | AF82: 0 | AG82: 0 | AH82: 0 | AI82: 0 | AJ82: 0 | AK82: 0 | AL82: 0 | AM82: 0 | AN82: 0 | AO82: 0 | AP82: 0 | AQ82: 0 | AR82: 0 | AS82: 0 | AT82: 0 | AU82: 0 | AV82: 0 | AW82: 0 | AX82: 0 | AY82: 0 | AZ82: 0 | BA82: 0 | BB82: 0 | BC82: 0 | BD82: 0 | BE82: 0 | BF82: 0 | BG82: 0 | BH82: 0 | BI82: 0 | BJ82: 0 | BK82: 0 | BL82: 0 | BM82: 0 | BN82: 0 | BO82: 0 | BP82: 0 | BQ82: 0 | BR82: 0 | BS82: 0 | BT82: 0 | BU82: 0 | BV82: 0 | BW82: 0 | BX82: 0 | BY82: 0 | BZ82: 0 | CA82: 0 | CB82: 0 | CC82: 0 | CD82: 0 | CE82: 0 | CF82: 0 | CG82: 0 | CH82: 0 | CI82: 0 | CJ82: 0 | CK82: 0 | CL82: 0 | CM82: 0 | CN82: 0 | CO82: 0 | CP82: 0 | CQ82: 0 | CR82: 0 | CS82: 0 | CT82: 0 | CU82: 0 | CV82: 0 | CW82: 0 | CX82: 0 | CY82: 0 | CZ82: 0 | DA82: 0 | DB82: 0 | DC82: 0 | DD82: 0 | DE82: 0 | DF82: 0 | DG82: 0 | DH82: 0 | DI82: 0 | DJ82: 0 | DK82: 0 | DL82: 0 | DM82: 0 | DN82: 0 | DO82: 0 | DP82: 0 | DQ82: 0 | DR82: 0 | DS82: 0 | DT82: 0 | DU82: 0 | DV82: 0 | DW82: 0 | DX82: 0 | DY82: 0 | DZ82: 31 | EA82: 0 | EB82: 0 | EC82: 0 | ED82: 0 | EE82: 0 | EF82: 0 | EG82: 0 | EH82: 0 | EI82: 0 | EJ82: 0 | EK82: 0 | EL82: 0 | EM82: 0 | EN82: 0 | EO82: 0 | EP82: 0 | EQ82: 0 | ER82: 0 | ES82: 0 | ET82: 0 | EU82: 0 | EV82: 0 | EW82: 0 | EX82: 0 | EY82: 0 | EZ82: 0 | FA82: 0 | FB82: 0 | FC82: 2 | FD82: 0 | FE82: 6 | FF82: 0 | FG82: 0 | FH82: 0 | FI82: 0 | FJ82: 0 | FK82: 0 | FL82: 0 | FM82: 0 | FN82: 0 | FO82: 0 | FP82: 0 | FQ82: 0 | FR82: 0 | FS82: 0 | FT82: 0 | FU82: 0 | FV82: 0 | FW82: 0 | FX82: 0 | FY82: 0 | FZ82: 0 | GA82: 0 | GB82: 0 | GC82: 0 | GD82: 0 | GE82: 0 | GF82: 0 | GG82: 0 | GH82: 0 | GI82: 1 | GJ82: 0 | GK82: 7 | GL82: 0 | GM82: 0 | GN82: 34 | GO82: 0 | GP82: 4 | GQ82: 0 | GR82: 49 | GS82: 0 | GT82: 0 | GU82: 0 | GV82: 5 | GW82: 0 | GX82: 0 | GY82: 30 | GZ82: 0 | HA82: 4 | HB82: 22 | HC82: Bacteria | HD82: Fusobacteriota | HE82: Fusobacteriia | HF82: Fusobacteriales | HG82: Fusobacteriaceae | HH82: Fusobacterium | HI82: Fusobacterium polymorphum
A83: Zotu108 | B83: 0 | C83: 0 | D83: 0 | E83: 0 | F83: 0 | G83: 0 | H83: 0 | I83: 0 | J83: 0 | K83: 0 | L83: 0 | M83: 0 | N83: 0 | O83: 0 | P83: 0 | Q83: 0 | R83: 0 | S83: 0 | T83: 0 | U83: 0 | V83: 0 | W83: 0 | X83: 0 | Y83: 0 | Z83: 0 | AA83: 0 | AB83: 0 | AC83: 0 | AD83: 0 | AE83: 0 | AF83: 0 | AG83: 0 | AH83: 0 | AI83: 0 | AJ83: 0 | AK83: 0 | AL83: 0 | AM83: 0 | AN83: 0 | AO83: 0 | AP83: 0 | AQ83: 0 | AR83: 0 | AS83: 0 | AT83: 0 | AU83: 0 | AV83: 0 | AW83: 0 | AX83: 10 | AY83: 0 | AZ83: 0 | BA83: 3 | BB83: 0 | BC83: 0 | BD83: 5 | BE83: 2 | BF83: 7 | BG83: 15 | BH83: 0 | BI83: 0 | BJ83: 0 | BK83: 0 | BL83: 0 | BM83: 0 | BN83: 0 | BO83: 0 | BP83: 19 | BQ83: 3 | BR83: 10 | BS83: 10 | BT83: 0 | BU83: 0 | BV83: 0 | BW83: 0 | BX83: 0 | BY83: 0 | BZ83: 0 | CA83: 0 | CB83: 11 | CC83: 0 | CD83: 18 | CE83: 6 | CF83: 0 | CG83: 12 | CH83: 8 | CI83: 18 | CJ83: 27 | CK83: 13 | CL83: 18 | CM83: 11 | CN83: 729 | CO83: 198 | CP83: 796 | CQ83: 1029 | CR83: 370 | CS83: 817 | CT83: 215 | CU83: 889 | CV83: 323 | CW83: 437 | CX83: 83 | CY83: 48 | CZ83: 330 | DA83: 43 | DB83: 206 | DC83: 379 | DD83: 413 | DE83: 325 | DF83: 420 | DG83: 212 | DH83: 230 | DI83: 267 | DJ83: 445 | DK83: 516 | DL83: 591 | DM83: 251 | DN83: 603 | DO83: 519 | DP83: 367 | DQ83: 525 | DR83: 44 | DS83: 175 | DT83: 54 | DU83: 138 | DV83: 164 | DW83: 113 | DX83: 99 | DY83: 85 | DZ83: 17 | EA83: 8 | EB83: 43 | EC83: 32 | ED83: 35 | EE83: 26 | EF83: 77 | EG83: 121 | EH83: 66 | EI83: 117 | EJ83: 11 | EK83: 17 | EL83: 45 | EM83: 6 | EN83: 89 | EO83: 89 | EP83: 18 | EQ83: 36 | ER83: 42 | ES83: 73 | ET83: 3 | EU83: 12 | EV83: 32 | EW83: 17 | EX83: 16 | EY83: 14 | EZ83: 13 | FA83: 4 | FB83: 211 | FC83: 107 | FD83: 45 | FE83: 46 | FF83: 27 | FG83: 21 | FH83: 14 | FI83: 22 | FJ83: 41 | FK83: 25 | FL83: 68 | FM83: 154 | FN83: 33 | FO83: 40 | FP83: 50 | FQ83: 54 | FR83: 7 | FS83: 12 | FT83: 20 | FU83: 51 | FV83: 43 | FW83: 29 | FX83: 13 | FY83: 55 | FZ83: 1152 | GA83: 273 | GB83: 201 | GC83: 165 | GD83: 489 | GE83: 195 | GF83: 504 | GG83: 57 | GH83: 53 | GI83: 46 | GJ83: 33 | GK83: 47 | GL83: 21 | GM83: 21 | GN83: 20 | GO83: 40 | GP83: 17 | GQ83: 11 | GR83: 22 | GS83: 44 | GT83: 17 | GU83: 27 | GV83: 41 | GW83: 35 | GX83: 20 | GY83: 50 | GZ83: 16 | HA83: 38 | HB83: 10 | HC83: Bacteria | HD83: Cyanobacteria | HE83: Cyanobacteriia | HF83: PCC-6307 | HG83: Cyanobiaceae | HH83: Prochlorococcus_A | HI83: Prochlorococcus_A sp902538225
A84: Zotu1080 | B84: 0 | C84: 0 | D84: 0 | E84: 0 | F84: 0 | G84: 0 | H84: 0 | I84: 0 | J84: 0 | K84: 0 | L84: 0 | M84: 0 | N84: 0 | O84: 0 | P84: 0 | Q84: 0 | R84: 0 | S84: 0 | T84: 0 | U84: 0 | V84: 0 | W84: 0 | X84: 0 | Y84: 0 | Z84: 0 | AA84: 0 | AB84: 0 | AC84: 0 | AD84: 0 | AE84: 0 | AF84: 0 | AG84: 0 | AH84: 0 | AI84: 0 | AJ84: 0 | AK84: 0 | AL84: 0 | AM84: 0 | AN84: 0 | AO84: 0 | AP84: 0 | AQ84: 0 | AR84: 0 | AS84: 0 | AT84: 0 | AU84: 0 | AV84: 0 | AW84: 0 | AX84: 0 | AY84: 0 | AZ84: 0 | BA84: 0 | BB84: 0 | BC84: 0 | BD84: 0 | BE84: 0 | BF84: 0 | BG84: 0 | BH84: 0 | BI84: 0 | BJ84: 0 | BK84: 0 | BL84: 0 | BM84: 0 | BN84: 0 | BO84: 0 | BP84: 0 | BQ84: 0 | BR84: 0 | BS84: 0 | BT84: 0 | BU84: 0 | BV84: 0 | BW84: 0 | BX84: 0 | BY84: 0 | BZ84: 0 | CA84: 0 | CB84: 0 | CC84: 0 | CD84: 2 | CE84: 0 | CF84: 0 | CG84: 0 | CH84: 0 | CI84: 0 | CJ84: 0 | CK84: 0 | CL84: 0 | CM84: 0 | CN84: 0 | CO84: 0 | CP84: 2 | CQ84: 3 | CR84: 0 | CS84: 0 | CT84: 0 | CU84: 3 | CV84: 0 | CW84: 0 | CX84: 0 | CY84: 0 | CZ84: 4 | DA84: 0 | DB84: 0 | DC84: 1 | DD84: 0 | DE84: 0 | DF84: 0 | DG84: 0 | DH84: 0 | DI84: 2 | DJ84: 1 | DK84: 1 | DL84: 0 | DM84: 0 | DN84: 0 | DO84: 0 | DP84: 0 | DQ84: 0 | DR84: 0 | DS84: 0 | DT84: 0 | DU84: 0 | DV84: 0 | DW84: 0 | DX84: 0 | DY84: 0 | DZ84: 0 | EA84: 2 | EB84: 0 | EC84: 0 | ED84: 0 | EE84: 0 | EF84: 0 | EG84: 0 | EH84: 0 | EI84: 0 | EJ84: 0 | EK84: 2 | EL84: 0 | EM84: 0 | EN84: 0 | EO84: 0 | EP84: 0 | EQ84: 0 | ER84: 0 | ES84: 0 | ET84: 0 | EU84: 0 | EV84: 0 | EW84: 0 | EX84: 0 | EY84: 0 | EZ84: 0 | FA84: 0 | FB84: 0 | FC84: 0 | FD84: 2 | FE84: 0 | FF84: 0 | FG84: 0 | FH84: 0 | FI84: 0 | FJ84: 0 | FK84: 0 | FL84: 0 | FM84: 0 | FN84: 0 | FO84: 0 | FP84: 0 | FQ84: 2 | FR84: 0 | FS84: 0 | FT84: 0 | FU84: 0 | FV84: 0 | FW84: 0 | FX84: 0 | FY84: 0 | FZ84: 0 | GA84: 0 | GB84: 0 | GC84: 1 | GD84: 2 | GE84: 0 | GF84: 1 | GG84: 0 | GH84: 0 | GI84: 0 | GJ84: 1 | GK84: 1 | GL84: 2 | GM84: 4 | GN84: 2 | GO84: 16 | GP84: 1 | GQ84: 1 | GR84: 9 | GS84: 7 | GT84: 4 | GU84: 5 | GV84: 9 | GW84: 6 | GX84: 8 | GY84: 7 | GZ84: 23 | HA84: 2 | HB84: 10 | HC84: Bacteria | HD84: Fusobacteriota | HE84: Fusobacteriia | HF84: Fusobacteriales | HG84: Fusobacteriaceae | HH84: Cetobacterium_A | HI84: Cetobacterium_A sp014250675
A85: Zotu1081 | B85: 0 | C85: 0 | D85: 0 | E85: 0 | F85: 0 | G85: 0 | H85: 0 | I85: 0 | J85: 0 | K85: 0 | L85: 0 | M85: 0 | N85: 0 | O85: 0 | P85: 0 | Q85: 0 | R85: 0 | S85: 0 | T85: 0 | U85: 0 | V85: 0 | W85: 0 | X85: 0 | Y85: 0 | Z85: 0 | AA85: 0 | AB85: 0 | AC85: 0 | AD85: 0 | AE85: 0 | AF85: 0 | AG85: 0 | AH85: 0 | AI85: 0 | AJ85: 0 | AK85: 0 | AL85: 0 | AM85: 0 | AN85: 0 | AO85: 0 | AP85: 0 | AQ85: 0 | AR85: 0 | AS85: 0 | AT85: 0 | AU85: 0 | AV85: 0 | AW85: 0 | AX85: 0 | AY85: 0 | AZ85: 1 | BA85: 0 | BB85: 0 | BC85: 0 | BD85: 0 | BE85: 0 | BF85: 0 | BG85: 0 | BH85: 0 | BI85: 0 | BJ85: 0 | BK85: 0 | BL85: 0 | BM85: 0 | BN85: 0 | BO85: 0 | BP85: 0 | BQ85: 2 | BR85: 2 | BS85: 0 | BT85: 0 | BU85: 0 | BV85: 0 | BW85: 0 | BX85: 0 | BY85: 0 | BZ85: 0 | CA85: 0 | CB85: 2 | CC85: 0 | CD85: 0 | CE85: 0 | CF85: 2 | CG85: 0 | CH85: 0 | CI85: 2 | CJ85: 3 | CK85: 0 | CL85: 0 | CM85: 0 | CN85: 2 | CO85: 2 | CP85: 1 | CQ85: 4 | CR85: 0 | CS85: 2 | CT85: 2 | CU85: 2 | CV85: 1 | CW85: 0 | CX85: 1 | CY85: 0 | CZ85: 3 | DA85: 0 | DB85: 5 | DC85: 1 | DD85: 0 | DE85: 1 | DF85: 3 | DG85: 0 | DH85: 1 | DI85: 3 | DJ85: 2 | DK85: 0 | DL85: 3 | DM85: 0 | DN85: 0 | DO85: 3 | DP85: 1 | DQ85: 1 | DR85: 0 | DS85: 2 | DT85: 0 | DU85: 0 | DV85: 0 | DW85: 0 | DX85: 1 | DY85: 0 | DZ85: 0 | EA85: 0 | EB85: 0 | EC85: 5 | ED85: 0 | EE85: 0 | EF85: 2 | EG85: 0 | EH85: 0 | EI85: 0 | EJ85: 0 | EK85: 2 | EL85: 0 | EM85: 0 | EN85: 5 | EO85: 2 | EP85: 0 | EQ85: 0 | ER85: 0 | ES85: 2 | ET85: 3 | EU85: 0 | EV85: 0 | EW85: 0 | EX85: 0 | EY85: 0 | EZ85: 2 | FA85: 0 | FB85: 0 | FC85: 0 | FD85: 0 | FE85: 0 | FF85: 0 | FG85: 0 | FH85: 3 | FI85: 3 | FJ85: 0 | FK85: 3 | FL85: 0 | FM85: 2 | FN85: 0 | FO85: 0 | FP85: 0 | FQ85: 0 | FR85: 0 | FS85: 3 | FT85: 2 | FU85: 0 | FV85: 0 | FW85: 0 | FX85: 0 | FY85: 2 | FZ85: 6 | GA85: 0 | GB85: 1 | GC85: 1 | GD85: 2 | GE85: 1 | GF85: 2 | GG85: 7 | GH85: 2 | GI85: 3 | GJ85: 2 | GK85: 4 | GL85: 4 | GM85: 4 | GN85: 9 | GO85: 7 | GP85: 2 | GQ85: 5 | GR85: 6 | GS85: 5 | GT85: 2 | GU85: 4 | GV85: 3 | GW85: 2 | GX85: 2 | GY85: 6 | GZ85: 3 | HA85: 5 | HB85: 7 | HC85: Bacteria | HD85: Proteobacteria | HE85: Alphaproteobacteria | HF85: TMED109 | HG85: TMED131 | HH85: TMED62 | HI85: TMED62 sp902614225
A86: Zotu1082 | B86: 0 | C86: 0 | D86: 0 | E86: 0 | F86: 0 | G86: 0 | H86: 0 | I86: 0 | J86: 0 | K86: 0 | L86: 0 | M86: 0 | N86: 0 | O86: 0 | P86: 0 | Q86: 0 | R86: 0 | S86: 0 | T86: 0 | U86: 0 | V86: 0 | W86: 0 | X86: 0 | Y86: 0 | Z86: 0 | AA86: 0 | AB86: 0 | AC86: 0 | AD86: 0 | AE86: 0 | AF86: 0 | AG86: 0 | AH86: 0 | AI86: 0 | AJ86: 0 | AK86: 0 | AL86: 0 | AM86: 0 | AN86: 0 | AO86: 0 | AP86: 0 | AQ86: 0 | AR86: 0 | AS86: 0 | AT86: 0 | AU86: 0 | AV86: 0 | AW86: 0 | AX86: 0 | AY86: 0 | AZ86: 0 | BA86: 0 | BB86: 0 | BC86: 0 | BD86: 0 | BE86: 0 | BF86: 0 | BG86: 3 | BH86: 0 | BI86: 0 | BJ86: 0 | BK86: 0 | BL86: 0 | BM86: 0 | BN86: 0 | BO86: 0 | BP86: 0 | BQ86: 0 | BR86: 0 | BS86: 0 | BT86: 0 | BU86: 0 | BV86: 0 | BW86: 1 | BX86: 0 | BY86: 0 | BZ86: 0 | CA86: 0 | CB86: 0 | CC86: 0 | CD86: 0 | CE86: 0 | CF86: 2 | CG86: 0 | CH86: 0 | CI86: 0 | CJ86: 0 | CK86: 2 | CL86: 0 | CM86: 0 | CN86: 2 | CO86: 0 | CP86: 1 | CQ86: 2 | CR86: 2 | CS86: 3 | CT86: 0 | CU86: 6 | CV86: 2 | CW86: 1 | CX86: 2 | CY86: 2 | CZ86: 2 | DA86: 0 | DB86: 0 | DC86: 2 | DD86: 2 | DE86: 6 | DF86: 4 | DG86: 0 | DH86: 3 | DI86: 6 | DJ86: 6 | DK86: 5 | DL86: 4 | DM86: 4 | DN86: 6 | DO86: 5 | DP86: 7 | DQ86: 3 | DR86: 0 | DS86: 3 | DT86: 0 | DU86: 3 | DV86: 0 | DW86: 0 | DX86: 0 | DY86: 0 | DZ86: 0 | EA86: 0 | EB86: 3 | EC86: 0 | ED86: 0 | EE86: 2 | EF86: 0 | EG86: 3 | EH86: 2 | EI86: 0 | EJ86: 2 | EK86: 0 | EL86: 0 | EM86: 0 | EN86: 0 | EO86: 0 | EP86: 0 | EQ86: 2 | ER86: 0 | ES86: 2 | ET86: 0 | EU86: 0 | EV86: 0 | EW86: 0 | EX86: 2 | EY86: 0 | EZ86: 0 | FA86: 0 | FB86: 0 | FC86: 0 | FD86: 0 | FE86: 0 | FF86: 0 | FG86: 0 | FH86: 0 | FI86: 2 | FJ86: 0 | FK86: 0 | FL86: 0 | FM86: 2 | FN86: 2 | FO86: 0 | FP86: 0 | FQ86: 0 | FR86: 0 | FS86: 0 | FT86: 2 | FU86: 2 | FV86: 0 | FW86: 0 | FX86: 2 | FY86: 2 | FZ86: 3 | GA86: 0 | GB86: 2 | GC86: 4 | GD86: 3 | GE86: 1 | GF86: 3 | GG86: 0 | GH86: 0 | GI86: 8 | GJ86: 2 | GK86: 1 | GL86: 3 | GM86: 15 | GN86: 4 | GO86: 2 | GP86: 1 | GQ86: 0 | GR86: 1 | GS86: 3 | GT86: 0 | GU86: 1 | GV86: 2 | GW86: 2 | GX86: 2 | GY86: 1 | GZ86: 5 | HA86: 3 | HB86: 2 | HC86: Bacteria | HD86: Proteobacteria | HE86: Alphaproteobacteria | HF86: Rhodobacterales | HG86: Rhodobacteraceae | HH86: Leisingera | HI86: Leisingera sp000813725
A87: Zotu1083 | B87: 0 | C87: 0 | D87: 0 | E87: 0 | F87: 0 | G87: 0 | H87: 0 | I87: 0 | J87: 0 | K87: 0 | L87: 0 | M87: 0 | N87: 0 | O87: 0 | P87: 0 | Q87: 0 | R87: 0 | S87: 0 | T87: 0 | U87: 0 | V87: 0 | W87: 0 | X87: 0 | Y87: 0 | Z87: 0 | AA87: 0 | AB87: 0 | AC87: 0 | AD87: 0 | AE87: 0 | AF87: 0 | AG87: 0 | AH87: 0 | AI87: 0 | AJ87: 0 | AK87: 0 | AL87: 0 | AM87: 0 | AN87: 0 | AO87: 0 | AP87: 0 | AQ87: 0 | AR87: 0 | AS87: 0 | AT87: 0 | AU87: 0 | AV87: 0 | AW87: 0 | AX87: 0 | AY87: 0 | AZ87: 0 | BA87: 0 | BB87: 0 | BC87: 0 | BD87: 0 | BE87: 0 | BF87: 0 | BG87: 0 | BH87: 0 | BI87: 0 | BJ87: 0 | BK87: 0 | BL87: 0 | BM87: 0 | BN87: 0 | BO87: 0 | BP87: 0 | BQ87: 0 | BR87: 0 | BS87: 2 | BT87: 0 | BU87: 0 | BV87: 0 | BW87: 0 | BX87: 1 | BY87: 0 | BZ87: 0 | CA87: 0 | CB87: 0 | CC87: 0 | CD87: 0 | CE87: 0 | CF87: 0 | CG87: 0 | CH87: 0 | CI87: 0 | CJ87: 0 | CK87: 0 | CL87: 0 | CM87: 0 | CN87: 0 | CO87: 2 | CP87: 3 | CQ87: 0 | CR87: 1 | CS87: 1 | CT87: 0 | CU87: 1 | CV87: 3 | CW87: 0 | CX87: 2 | CY87: 0 | CZ87: 0 | DA87: 2 | DB87: 0 | DC87: 2 | DD87: 2 | DE87: 2 | DF87: 1 | DG87: 0 | DH87: 4 | DI87: 1 | DJ87: 0 | DK87: 1 | DL87: 0 | DM87: 0 | DN87: 2 | DO87: 1 | DP87: 6 | DQ87: 4 | DR87: 0 | DS87: 0 | DT87: 0 | DU87: 0 | DV87: 0 | DW87: 0 | DX87: 3 | DY87: 0 | DZ87: 0 | EA87: 0 | EB87: 0 | EC87: 0 | ED87: 0 | EE87: 0 | EF87: 0 | EG87: 0 | EH87: 0 | EI87: 0 | EJ87: 0 | EK87: 0 | EL87: 0 | EM87: 0 | EN87: 0 | EO87: 0 | EP87: 0 | EQ87: 2 | ER87: 0 | ES87: 2 | ET87: 0 | EU87: 0 | EV87: 0 | EW87: 3 | EX87: 2 | EY87: 0 | EZ87: 0 | FA87: 0 | FB87: 2 | FC87: 0 | FD87: 3 | FE87: 0 | FF87: 0 | FG87: 3 | FH87: 0 | FI87: 0 | FJ87: 0 | FK87: 2 | FL87: 0 | FM87: 2 | FN87: 0 | FO87: 0 | FP87: 0 | FQ87: 0 | FR87: 0 | FS87: 0 | FT87: 0 | FU87: 0 | FV87: 0 | FW87: 0 | FX87: 0 | FY87: 0 | FZ87: 2 | GA87: 2 | GB87: 63 | GC87: 2 | GD87: 5 | GE87: 1 | GF87: 1 | GG87: 1 | GH87: 0 | GI87: 3 | GJ87: 8 | GK87: 5 | GL87: 2 | GM87: 3 | GN87: 2 | GO87: 5 | GP87: 3 | GQ87: 2 | GR87: 3 | GS87: 1 | GT87: 5 | GU87: 4 | GV87: 2 | GW87: 2 | GX87: 2 | GY87: 2 | GZ87: 2 | HA87: 2 | HB87: 5 | HC87: Bacteria | HD87: Proteobacteria | HE87: Gammaproteobacteria | HF87: Enterobacterales | HG87: Vibrionaceae | HH87: Vibrio | HI87: Vibrio tubiashii
A88: Zotu1084 | B88: 0 | C88: 0 | D88: 0 | E88: 0 | F88: 0 | G88: 0 | H88: 0 | I88: 0 | J88: 0 | K88: 0 | L88: 0 | M88: 0 | N88: 0 | O88: 0 | P88: 0 | Q88: 0 | R88: 0 | S88: 0 | T88: 0 | U88: 0 | V88: 0 | W88: 0 | X88: 0 | Y88: 0 | Z88: 0 | AA88: 0 | AB88: 0 | AC88: 0 | AD88: 0 | AE88: 0 | AF88: 0 | AG88: 0 | AH88: 0 | AI88: 0 | AJ88: 0 | AK88: 0 | AL88: 0 | AM88: 0 | AN88: 0 | AO88: 0 | AP88: 0 | AQ88: 0 | AR88: 0 | AS88: 0 | AT88: 0 | AU88: 0 | AV88: 0 | AW88: 0 | AX88: 0 | AY88: 0 | AZ88: 0 | BA88: 0 | BB88: 0 | BC88: 0 | BD88: 2 | BE88: 0 | BF88: 0 | BG88: 0 | BH88: 0 | BI88: 0 | BJ88: 0 | BK88: 0 | BL88: 0 | BM88: 0 | BN88: 0 | BO88: 0 | BP88: 0 | BQ88: 0 | BR88: 0 | BS88: 0 | BT88: 0 | BU88: 0 | BV88: 0 | BW88: 0 | BX88: 0 | BY88: 0 | BZ88: 0 | CA88: 0 | CB88: 0 | CC88: 0 | CD88: 0 | CE88: 0 | CF88: 0 | CG88: 0 | CH88: 0 | CI88: 0 | CJ88: 0 | CK88: 0 | CL88: 0 | CM88: 0 | CN88: 1 | CO88: 2 | CP88: 2 | CQ88: 0 | CR88: 1 | CS88: 2 | CT88: 0 | CU88: 2 | CV88: 0 | CW88: 0 | CX88: 0 | CY88: 0 | CZ88: 1 | DA88: 0 | DB88: 0 | DC88: 4 | DD88: 3 | DE88: 4 | DF88: 5 | DG88: 1 | DH88: 1 | DI88: 4 | DJ88: 2 | DK88: 6 | DL88: 4 | DM88: 3 | DN88: 3 | DO88: 5 | DP88: 2 | DQ88: 4 | DR88: 0 | DS88: 0 | DT88: 0 | DU88: 0 | DV88: 1 | DW88: 0 | DX88: 0 | DY88: 0 | DZ88: 0 | EA88: 0 | EB88: 0 | EC88: 0 | ED88: 0 | EE88: 0 | EF88: 0 | EG88: 0 | EH88: 0 | EI88: 1 | EJ88: 2 | EK88: 0 | EL88: 0 | EM88: 0 | EN88: 0 | EO88: 0 | EP88: 0 | EQ88: 0 | ER88: 0 | ES88: 0 | ET88: 0 | EU88: 0 | EV88: 0 | EW88: 0 | EX88: 0 | EY88: 0 | EZ88: 0 | FA88: 0 | FB88: 0 | FC88: 0 | FD88: 2 | FE88: 0 | FF88: 0 | FG88: 4 | FH88: 2 | FI88: 3 | FJ88: 2 | FK88: 2 | FL88: 0 | FM88: 0 | FN88: 0 | FO88: 0 | FP88: 0 | FQ88: 2 | FR88: 0 | FS88: 0 | FT88: 0 | FU88: 0 | FV88: 0 | FW88: 3 | FX88: 0 | FY88: 3 | FZ88: 5 | GA88: 1 | GB88: 0 | GC88: 4 | GD88: 5 | GE88: 1 | GF88: 3 | GG88: 7 | GH88: 2 | GI88: 4 | GJ88: 1 | GK88: 3 | GL88: 1 | GM88: 5 | GN88: 4 | GO88: 6 | GP88: 4 | GQ88: 0 | GR88: 4 | GS88: 7 | GT88: 2 | GU88: 2 | GV88: 2 | GW88: 2 | GX88: 1 | GY88: 2 | GZ88: 2 | HA88: 4 | HB88: 5 | HC88: Bacteria | HD88: Proteobacteria | HE88: Gammaproteobacteria | HF88: Pseudomonadales | HG88: Halieaceae | HH88: Luminiphilus | HI88: Luminiphilus sp902631395
A89: Zotu1085 | B89: 0 | C89: 0 | D89: 0 | E89: 0 | F89: 0 | G89: 0 | H89: 0 | I89: 0 | J89: 0 | K89: 0 | L89: 0 | M89: 0 | N89: 0 | O89: 0 | P89: 0 | Q89: 0 | R89: 0 | S89: 0 | T89: 0 | U89: 0 | V89: 0 | W89: 0 | X89: 0 | Y89: 0 | Z89: 0 | AA89: 0 | AB89: 0 | AC89: 0 | AD89: 0 | AE89: 0 | AF89: 0 | AG89: 0 | AH89: 0 | AI89: 0 | AJ89: 0 | AK89: 0 | AL89: 0 | AM89: 0 | AN89: 0 | AO89: 0 | AP89: 0 | AQ89: 0 | AR89: 0 | AS89: 0 | AT89: 0 | AU89: 0 | AV89: 0 | AW89: 0 | AX89: 0 | AY89: 0 | AZ89: 0 | BA89: 0 | BB89: 0 | BC89: 0 | BD89: 0 | BE89: 0 | BF89: 0 | BG89: 3 | BH89: 0 | BI89: 0 | BJ89: 0 | BK89: 0 | BL89: 0 | BM89: 0 | BN89: 0 | BO89: 0 | BP89: 0 | BQ89: 0 | BR89: 0 | BS89: 0 | BT89: 0 | BU89: 0 | BV89: 0 | BW89: 0 | BX89: 0 | BY89: 0 | BZ89: 0 | CA89: 0 | CB89: 3 | CC89: 0 | CD89: 0 | CE89: 0 | CF89: 0 | CG89: 0 | CH89: 0 | CI89: 2 | CJ89: 2 | CK89: 2 | CL89: 0 | CM89: 0 | CN89: 18 | CO89: 0 | CP89: 22 | CQ89: 30 | CR89: 0 | CS89: 5 | CT89: 3 | CU89: 11 | CV89: 12 | CW89: 2 | CX89: 2 | CY89: 0 | CZ89: 5 | DA89: 0 | DB89: 0 | DC89: 0 | DD89: 0 | DE89: 0 | DF89: 0 | DG89: 0 | DH89: 0 | DI89: 0 | DJ89: 0 | DK89: 0 | DL89: 1 | DM89: 0 | DN89: 0 | DO89: 0 | DP89: 0 | DQ89: 0 | DR89: 0 | DS89: 0 | DT89: 0 | DU89: 0 | DV89: 0 | DW89: 0 | DX89: 0 | DY89: 0 | DZ89: 0 | EA89: 0 | EB89: 0 | EC89: 0 | ED89: 0 | EE89: 0 | EF89: 0 | EG89: 3 | EH89: 2 | EI89: 0 | EJ89: 0 | EK89: 0 | EL89: 0 | EM89: 0 | EN89: 0 | EO89: 0 | EP89: 0 | EQ89: 0 | ER89: 0 | ES89: 2 | ET89: 0 | EU89: 0 | EV89: 0 | EW89: 0 | EX89: 0 | EY89: 0 | EZ89: 0 | FA89: 0 | FB89: 0 | FC89: 0 | FD89: 0 | FE89: 0 | FF89: 0 | FG89: 0 | FH89: 0 | FI89: 0 | FJ89: 0 | FK89: 0 | FL89: 0 | FM89: 2 | FN89: 0 | FO89: 2 | FP89: 0 | FQ89: 0 | FR89: 0 | FS89: 0 | FT89: 8 | FU89: 2 | FV89: 2 | FW89: 0 | FX89: 0 | FY89: 0 | FZ89: 0 | GA89: 1 | GB89: 0 | GC89: 0 | GD89: 0 | GE89: 0 | GF89: 0 | GG89: 0 | GH89: 1 | GI89: 0 | GJ89: 1 | GK89: 0 | GL89: 0 | GM89: 0 | GN89: 0 | GO89: 5 | GP89: 3 | GQ89: 1 | GR89: 4 | GS89: 2 | GT89: 5 | GU89: 9 | GV89: 5 | GW89: 5 | GX89: 4 | GY89: 6 | GZ89: 2 | HA89: 11 | HB89: 3 | HC89: Archaea | HD89: Thermoplasmatota | HE89: Poseidoniia | HF89: Poseidoniales | HG89: Thalassarchaeaceae | HH89: MGIIb-O1 | HI89: MGIIb-O1 sp002685415
A90: Zotu1086 | B90: 0 | C90: 0 | D90: 0 | E90: 0 | F90: 0 | G90: 0 | H90: 0 | I90: 0 | J90: 0 | K90: 0 | L90: 0 | M90: 0 | N90: 0 | O90: 0 | P90: 0 | Q90: 0 | R90: 0 | S90: 0 | T90: 0 | U90: 0 | V90: 0 | W90: 0 | X90: 0 | Y90: 0 | Z90: 0 | AA90: 0 | AB90: 0 | AC90: 0 | AD90: 0 | AE90: 0 | AF90: 0 | AG90: 0 | AH90: 0 | AI90: 0 | AJ90: 0 | AK90: 0 | AL90: 0 | AM90: 0 | AN90: 0 | AO90: 0 | AP90: 0 | AQ90: 0 | AR90: 0 | AS90: 0 | AT90: 0 | AU90: 0 | AV90: 0 | AW90: 0 | AX90: 0 | AY90: 0 | AZ90: 0 | BA90: 0 | BB90: 0 | BC90: 0 | BD90: 2 | BE90: 0 | BF90: 0 | BG90: 0 | BH90: 0 | BI90: 0 | BJ90: 0 | BK90: 0 | BL90: 0 | BM90: 0 | BN90: 0 | BO90: 0 | BP90: 2 | BQ90: 0 | BR90: 2 | BS90: 0 | BT90: 0 | BU90: 0 | BV90: 0 | BW90: 0 | BX90: 0 | BY90: 0 | BZ90: 0 | CA90: 0 | CB90: 2 | CC90: 0 | CD90: 0 | CE90: 0 | CF90: 0 | CG90: 0 | CH90: 0 | CI90: 0 | CJ90: 0 | CK90: 0 | CL90: 0 | CM90: 0 | CN90: 3 | CO90: 0 | CP90: 5 | CQ90: 7 | CR90: 0 | CS90: 1 | CT90: 2 | CU90: 2 | CV90: 1 | CW90: 12 | CX90: 0 | CY90: 0 | CZ90: 2 | DA90: 0 | DB90: 1 | DC90: 0 | DD90: 0 | DE90: 0 | DF90: 0 | DG90: 0 | DH90: 0 | DI90: 0 | DJ90: 0 | DK90: 0 | DL90: 0 | DM90: 0 | DN90: 0 | DO90: 0 | DP90: 0 | DQ90: 0 | DR90: 0 | DS90: 0 | DT90: 0 | DU90: 0 | DV90: 0 | DW90: 0 | DX90: 0 | DY90: 2 | DZ90: 0 | EA90: 0 | EB90: 0 | EC90: 0 | ED90: 0 | EE90: 0 | EF90: 0 | EG90: 0 | EH90: 0 | EI90: 0 | EJ90: 0 | EK90: 0 | EL90: 0 | EM90: 0 | EN90: 0 | EO90: 0 | EP90: 0 | EQ90: 0 | ER90: 0 | ES90: 0 | ET90: 0 | EU90: 0 | EV90: 0 | EW90: 0 | EX90: 0 | EY90: 0 | EZ90: 0 | FA90: 0 | FB90: 0 | FC90: 2 | FD90: 0 | FE90: 0 | FF90: 0 | FG90: 0 | FH90: 0 | FI90: 0 | FJ90: 0 | FK90: 2 | FL90: 0 | FM90: 0 | FN90: 0 | FO90: 0 | FP90: 0 | FQ90: 0 | FR90: 0 | FS90: 0 | FT90: 0 | FU90: 0 | FV90: 0 | FW90: 0 | FX90: 0 | FY90: 0 | FZ90: 1 | GA90: 1 | GB90: 5 | GC90: 1 | GD90: 0 | GE90: 1 | GF90: 2 | GG90: 1 | GH90: 1 | GI90: 0 | GJ90: 1 | GK90: 2 | GL90: 2 | GM90: 2 | GN90: 0 | GO90: 7 | GP90: 5 | GQ90: 10 | GR90: 3 | GS90: 2 | GT90: 6 | GU90: 3 | GV90: 7 | GW90: 5 | GX90: 5 | GY90: 10 | GZ90: 12 | HA90: 10 | HB90: 4 | HC90: Archaea | HD90: Thermoplasmatota | HE90: Poseidoniia | HF90: Poseidoniales | HG90: Poseidoniaceae | HH90: MGIIa-L2 | HI90: MGIIa-L2 sp002726845
A91: Zotu1087 | B91: 0 | C91: 0 | D91: 0 | E91: 0 | F91: 0 | G91: 0 | H91: 0 | I91: 0 | J91: 0 | K91: 0 | L91: 0 | M91: 0 | N91: 0 | O91: 0 | P91: 0 | Q91: 0 | R91: 0 | S91: 0 | T91: 0 | U91: 0 | V91: 0 | W91: 0 | X91: 0 | Y91: 0 | Z91: 0 | AA91: 0 | AB91: 0 | AC91: 0 | AD91: 0 | AE91: 0 | AF91: 0 | AG91: 0 | AH91: 0 | AI91: 0 | AJ91: 0 | AK91: 0 | AL91: 0 | AM91: 0 | AN91: 0 | AO91: 0 | AP91: 0 | AQ91: 0 | AR91: 0 | AS91: 0 | AT91: 0 | AU91: 0 | AV91: 0 | AW91: 0 | AX91: 0 | AY91: 0 | AZ91: 0 | BA91: 0 | BB91: 0 | BC91: 0 | BD91: 2 | BE91: 0 | BF91: 0 | BG91: 0 | BH91: 0 | BI91: 0 | BJ91: 0 | BK91: 0 | BL91: 0 | BM91: 0 | BN91: 0 | BO91: 0 | BP91: 0 | BQ91: 0 | BR91: 0 | BS91: 0 | BT91: 0 | BU91: 0 | BV91: 0 | BW91: 0 | BX91: 0 | BY91: 0 | BZ91: 0 | CA91: 0 | CB91: 0 | CC91: 0 | CD91: 0 | CE91: 0 | CF91: 0 | CG91: 0 | CH91: 0 | CI91: 0 | CJ91: 2 | CK91: 0 | CL91: 0 | CM91: 3 | CN91: 2 | CO91: 0 | CP91: 2 | CQ91: 1 | CR91: 1 | CS91: 2 | CT91: 1 | CU91: 2 | CV91: 0 | CW91: 1 | CX91: 1 | CY91: 2 | CZ91: 0 | DA91: 2 | DB91: 1 | DC91: 0 | DD91: 1 | DE91: 2 | DF91: 0 | DG91: 1 | DH91: 0 | DI91: 0 | DJ91: 1 | DK91: 0 | DL91: 0 | DM91: 0 | DN91: 0 | DO91: 1 | DP91: 0 | DQ91: 1 | DR91: 0 | DS91: 2 | DT91: 3 | DU91: 0 | DV91: 2 | DW91: 0 | DX91: 0 | DY91: 3 | DZ91: 0 | EA91: 0 | EB91: 0 | EC91: 0 | ED91: 0 | EE91: 3 | EF91: 2 | EG91: 5 | EH91: 0 | EI91: 4 | EJ91: 0 | EK91: 0 | EL91: 0 | EM91: 0 | EN91: 0 | EO91: 0 | EP91: 0 | EQ91: 2 | ER91: 3 | ES91: 0 | ET91: 0 | EU91: 0 | EV91: 5 | EW91: 0 | EX91: 0 | EY91: 0 | EZ91: 2 | FA91: 0 | FB91: 0 | FC91: 0 | FD91: 0 | FE91: 0 | FF91: 0 | FG91: 1 | FH91: 0 | FI91: 0 | FJ91: 0 | FK91: 2 | FL91: 0 | FM91: 0 | FN91: 0 | FO91: 0 | FP91: 0 | FQ91: 0 | FR91: 0 | FS91: 0 | FT91: 0 | FU91: 0 | FV91: 0 | FW91: 0 | FX91: 4 | FY91: 2 | FZ91: 1 | GA91: 1 | GB91: 1 | GC91: 0 | GD91: 2 | GE91: 0 | GF91: 0 | GG91: 11 | GH91: 3 | GI91: 4 | GJ91: 10 | GK91: 2 | GL91: 3 | GM91: 2 | GN91: 4 | GO91: 5 | GP91: 3 | GQ91: 2 | GR91: 1 | GS91: 9 | GT91: 6 | GU91: 2 | GV91: 2 | GW91: 2 | GX91: 8 | GY91: 2 | GZ91: 2 | HA91: 3 | HB91: 1 | HC91: Bacteria | HD91: Proteobacteria | HE91: Gammaproteobacteria | HF91: GCA-002705445 | HG91: GCA-002716945 | HH91: CACLCV01 | HI91: CACLCV01 sp902605525
A92: Zotu1088 | B92: 0 | C92: 0 | D92: 0 | E92: 0 | F92: 0 | G92: 0 | H92: 0 | I92: 0 | J92: 0 | K92: 0 | L92: 0 | M92: 0 | N92: 0 | O92: 0 | P92: 0 | Q92: 0 | R92: 0 | S92: 0 | T92: 0 | U92: 0 | V92: 0 | W92: 0 | X92: 0 | Y92: 0 | Z92: 0 | AA92: 0 | AB92: 0 | AC92: 0 | AD92: 0 | AE92: 0 | AF92: 0 | AG92: 0 | AH92: 0 | AI92: 0 | AJ92: 0 | AK92: 0 | AL92: 0 | AM92: 0 | AN92: 0 | AO92: 0 | AP92: 0 | AQ92: 0 | AR92: 0 | AS92: 0 | AT92: 0 | AU92: 0 | AV92: 0 | AW92: 0 | AX92: 0 | AY92: 0 | AZ92: 0 | BA92: 0 | BB92: 0 | BC92: 0 | BD92: 0 | BE92: 0 | BF92: 0 | BG92: 0 | BH92: 0 | BI92: 0 | BJ92: 0 | BK92: 0 | BL92: 0 | BM92: 0 | BN92: 0 | BO92: 0 | BP92: 0 | BQ92: 0 | BR92: 0 | BS92: 0 | BT92: 0 | BU92: 0 | BV92: 0 | BW92: 0 | BX92: 0 | BY92: 0 | BZ92: 0 | CA92: 0 | CB92: 0 | CC92: 0 | CD92: 0 | CE92: 0 | CF92: 0 | CG92: 0 | CH92: 0 | CI92: 0 | CJ92: 0 | CK92: 0 | CL92: 0 | CM92: 0 | CN92: 1 | CO92: 0 | CP92: 0 | CQ92: 0 | CR92: 1 | CS92: 0 | CT92: 0 | CU92: 1 | CV92: 1 | CW92: 2 | CX92: 0 | CY92: 0 | CZ92: 1 | DA92: 0 | DB92: 0 | DC92: 1 | DD92: 0 | DE92: 1 | DF92: 1 | DG92: 0 | DH92: 0 | DI92: 2 | DJ92: 1 | DK92: 0 | DL92: 0 | DM92: 0 | DN92: 0 | DO92: 1 | DP92: 0 | DQ92: 1 | DR92: 0 | DS92: 0 | DT92: 0 | DU92: 0 | DV92: 1 | DW92: 2 | DX92: 0 | DY92: 0 | DZ92: 0 | EA92: 0 | EB92: 0 | EC92: 0 | ED92: 0 | EE92: 0 | EF92: 0 | EG92: 0 | EH92: 0 | EI92: 0 | EJ92: 0 | EK92: 0 | EL92: 2 | EM92: 0 | EN92: 0 | EO92: 0 | EP92: 0 | EQ92: 0 | ER92: 0 | ES92: 2 | ET92: 0 | EU92: 0 | EV92: 0 | EW92: 2 | EX92: 0 | EY92: 0 | EZ92: 0 | FA92: 0 | FB92: 0 | FC92: 3 | FD92: 0 | FE92: 0 | FF92: 0 | FG92: 0 | FH92: 0 | FI92: 0 | FJ92: 2 | FK92: 0 | FL92: 0 | FM92: 2 | FN92: 2 | FO92: 0 | FP92: 0 | FQ92: 0 | FR92: 0 | FS92: 0 | FT92: 0 | FU92: 0 | FV92: 0 | FW92: 2 | FX92: 2 | FY92: 0 | FZ92: 2 | GA92: 0 | GB92: 0 | GC92: 0 | GD92: 0 | GE92: 3 | GF92: 0 | GG92: 1 | GH92: 5 | GI92: 2 | GJ92: 4 | GK92: 5 | GL92: 0 | GM92: 1 | GN92: 1 | GO92: 12 | GP92: 8 | GQ92: 1 | GR92: 8 | GS92: 5 | GT92: 3 | GU92: 5 | GV92: 4 | GW92: 6 | GX92: 8 | GY92: 8 | GZ92: 23 | HA92: 16 | HB92: 3 | HC92: Bacteria | HD92: Marinisomatota | HE92: Marinisomatia | HF92: Marinisomatales | HG92: UBA1611 | HH92: TMED80 | HI92: TMED80 sp905478065
A93: Zotu1089 | B93: 0 | C93: 0 | D93: 0 | E93: 0 | F93: 0 | G93: 0 | H93: 0 | I93: 0 | J93: 0 | K93: 0 | L93: 0 | M93: 0 | N93: 0 | O93: 0 | P93: 0 | Q93: 0 | R93: 0 | S93: 0 | T93: 2 | U93: 0 | V93: 0 | W93: 0 | X93: 0 | Y93: 0 | Z93: 0 | AA93: 0 | AB93: 0 | AC93: 0 | AD93: 0 | AE93: 0 | AF93: 0 | AG93: 0 | AH93: 0 | AI93: 0 | AJ93: 0 | AK93: 0 | AL93: 0 | AM93: 0 | AN93: 0 | AO93: 0 | AP93: 0 | AQ93: 0 | AR93: 1 | AS93: 0 | AT93: 0 | AU93: 0 | AV93: 0 | AW93: 0 | AX93: 0 | AY93: 0 | AZ93: 0 | BA93: 0 | BB93: 0 | BC93: 0 | BD93: 0 | BE93: 0 | BF93: 0 | BG93: 0 | BH93: 0 | BI93: 0 | BJ93: 0 | BK93: 0 | BL93: 0 | BM93: 0 | BN93: 0 | BO93: 0 | BP93: 0 | BQ93: 0 | BR93: 0 | BS93: 0 | BT93: 0 | BU93: 0 | BV93: 0 | BW93: 0 | BX93: 0 | BY93: 0 | BZ93: 0 | CA93: 0 | CB93: 0 | CC93: 0 | CD93: 0 | CE93: 0 | CF93: 0 | CG93: 0 | CH93: 0 | CI93: 0 | CJ93: 2 | CK93: 0 | CL93: 0 | CM93: 0 | CN93: 1 | CO93: 0 | CP93: 0 | CQ93: 3 | CR93: 2 | CS93: 3 | CT93: 1 | CU93: 3 | CV93: 0 | CW93: 2 | CX93: 2 | CY93: 0 | CZ93: 2 | DA93: 0 | DB93: 0 | DC93: 1 | DD93: 0 | DE93: 1 | DF93: 0 | DG93: 0 | DH93: 0 | DI93: 0 | DJ93: 2 | DK93: 1 | DL93: 0 | DM93: 0 | DN93: 1 | DO93: 0 | DP93: 1 | DQ93: 1 | DR93: 0 | DS93: 0 | DT93: 0 | DU93: 0 | DV93: 0 | DW93: 0 | DX93: 1 | DY93: 0 | DZ93: 0 | EA93: 0 | EB93: 1 | EC93: 0 | ED93: 0 | EE93: 0 | EF93: 0 | EG93: 0 | EH93: 3 | EI93: 0 | EJ93: 0 | EK93: 0 | EL93: 0 | EM93: 0 | EN93: 0 | EO93: 0 | EP93: 0 | EQ93: 2 | ER93: 0 | ES93: 0 | ET93: 0 | EU93: 2 | EV93: 0 | EW93: 0 | EX93: 0 | EY93: 0 | EZ93: 0 | FA93: 0 | FB93: 3 | FC93: 0 | FD93: 0 | FE93: 2 | FF93: 0 | FG93: 0 | FH93: 0 | FI93: 0 | FJ93: 0 | FK93: 0 | FL93: 0 | FM93: 2 | FN93: 2 | FO93: 0 | FP93: 2 | FQ93: 3 | FR93: 0 | FS93: 0 | FT93: 0 | FU93: 2 | FV93: 0 | FW93: 2 | FX93: 0 | FY93: 0 | FZ93: 1 | GA93: 0 | GB93: 3 | GC93: 0 | GD93: 0 | GE93: 3 | GF93: 4 | GG93: 12 | GH93: 2 | GI93: 2 | GJ93: 7 | GK93: 2 | GL93: 8 | GM93: 5 | GN93: 3 | GO93: 8 | GP93: 1 | GQ93: 2 | GR93: 1 | GS93: 9 | GT93: 6 | GU93: 4 | GV93: 2 | GW93: 5 | GX93: 5 | GY93: 4 | GZ93: 9 | HA93: 5 | HB93: 6 | HC93: Bacteria | HD93: Bacteroidota | HE93: Bacteroidia | HF93: Flavobacteriales | HG93: Flavobacteriaceae | HH93: MS024-2A | HI93: MS024-2A sp902616905
A94: Zotu109 | B94: 127 | C94: 99 | D94: 58 | E94: 48 | F94: 41 | G94: 56 | H94: 109 | I94: 101 | J94: 57 | K94: 155 | L94: 100 | M94: 84 | N94: 57 | O94: 54 | P94: 24 | Q94: 75 | R94: 43 | S94: 57 | T94: 139 | U94: 81 | V94: 62 | W94: 82 | X94: 120 | Y94: 67 | Z94: 76 | AA94: 49 | AB94: 23 | AC94: 125 | AD94: 54 | AE94: 78 | AF94: 98 | AG94: 90 | AH94: 78 | AI94: 74 | AJ94: 86 | AK94: 70 | AL94: 67 | AM94: 63 | AN94: 54 | AO94: 30 | AP94: 30 | AQ94: 18 | AR94: 144 | AS94: 58 | AT94: 81 | AU94: 106 | AV94: 161 | AW94: 94 | AX94: 72 | AY94: 91 | AZ94: 98 | BA94: 151 | BB94: 142 | BC94: 149 | BD94: 220 | BE94: 207 | BF94: 307 | BG94: 228 | BH94: 49 | BI94: 71 | BJ94: 123 | BK94: 113 | BL94: 174 | BM94: 132 | BN94: 123 | BO94: 209 | BP94: 264 | BQ94: 358 | BR94: 431 | BS94: 195 | BT94: 29 | BU94: 33 | BV94: 105 | BW94: 163 | BX94: 220 | BY94: 126 | BZ94: 159 | CA94: 195 | CB94: 246 | CC94: 338 | CD94: 633 | CE94: 272 | CF94: 270 | CG94: 255 | CH94: 59 | CI94: 114 | CJ94: 126 | CK94: 256 | CL94: 325 | CM94: 431 | CN94: 60 | CO94: 150 | CP94: 100 | CQ94: 84 | CR94: 21 | CS94: 49 | CT94: 50 | CU94: 48 | CV94: 12 | CW94: 19 | CX94: 22 | CY94: 44 | CZ94: 32 | DA94: 22 | DB94: 156 | DC94: 19 | DD94: 8 | DE94: 85 | DF94: 58 | DG94: 12 | DH94: 11 | DI94: 15 | DJ94: 8 | DK94: 8 | DL94: 15 | DM94: 22 | DN94: 0 | DO94: 12 | DP94: 1 | DQ94: 25 | DR94: 0 | DS94: 11 | DT94: 3 | DU94: 9 | DV94: 0 | DW94: 0 | DX94: 6 | DY94: 6 | DZ94: 2 | EA94: 0 | EB94: 8 | EC94: 0 | ED94: 3 | EE94: 10 | EF94: 6 | EG94: 6 | EH94: 0 | EI94: 1 | EJ94: 0 | EK94: 2 | EL94: 0 | EM94: 0 | EN94: 32 | EO94: 0 | EP94: 0 | EQ94: 10 | ER94: 12 | ES94: 8 | ET94: 0 | EU94: 0 | EV94: 0 | EW94: 0 | EX94: 5 | EY94: 0 | EZ94: 27 | FA94: 0 | FB94: 3 | FC94: 3 | FD94: 14 | FE94: 3 | FF94: 0 | FG94: 0 | FH94: 0 | FI94: 0 | FJ94: 0 | FK94: 0 | FL94: 0 | FM94: 0 | FN94: 3 | FO94: 0 | FP94: 22 | FQ94: 13 | FR94: 2 | FS94: 0 | FT94: 5 | FU94: 0 | FV94: 0 | FW94: 0 | FX94: 0 | FY94: 14 | FZ94: 11 | GA94: 3 | GB94: 4 | GC94: 1 | GD94: 5 | GE94: 1 | GF94: 0 | GG94: 0 | GH94: 0 | GI94: 0 | GJ94: 0 | GK94: 0 | GL94: 0 | GM94: 0 | GN94: 0 | GO94: 2 | GP94: 0 | GQ94: 0 | GR94: 0 | GS94: 0 | GT94: 0 | GU94: 0 | GV94: 0 | GW94: 0 | GX94: 2 | GY94: 1 | GZ94: 2 | HA94: 0 | HB94: 0 | HC94: Bacteria | HD94: Proteobacteria | HE94: Alphaproteobacteria | HF94: SP197 | HG94: SP197 | HH94: MPMV01 | HI94: MPMV01 sp002238685
A95: Zotu1090 | B95: 0 | C95: 0 | D95: 0 | E95: 0 | F95: 0 | G95: 0 | H95: 0 | I95: 0 | J95: 0 | K95: 0 | L95: 0 | M95: 0 | N95: 0 | O95: 0 | P95: 0 | Q95: 0 | R95: 0 | S95: 0 | T95: 0 | U95: 0 | V95: 0 | W95: 0 | X95: 0 | Y95: 0 | Z95: 0 | AA95: 0 | AB95: 0 | AC95: 0 | AD95: 0 | AE95: 0 | AF95: 0 | AG95: 0 | AH95: 0 | AI95: 0 | AJ95: 0 | AK95: 0 | AL95: 0 | AM95: 0 | AN95: 0 | AO95: 0 | AP95: 0 | AQ95: 0 | AR95: 0 | AS95: 0 | AT95: 0 | AU95: 0 | AV95: 0 | AW95: 0 | AX95: 0 | AY95: 0 | AZ95: 0 | BA95: 0 | BB95: 0 | BC95: 0 | BD95: 0 | BE95: 0 | BF95: 0 | BG95: 0 | BH95: 0 | BI95: 0 | BJ95: 0 | BK95: 0 | BL95: 0 | BM95: 0 | BN95: 0 | BO95: 0 | BP95: 0 | BQ95: 0 | BR95: 0 | BS95: 0 | BT95: 0 | BU95: 0 | BV95: 0 | BW95: 0 | BX95: 0 | BY95: 0 | BZ95: 0 | CA95: 0 | CB95: 0 | CC95: 0 | CD95: 0 | CE95: 0 | CF95: 0 | CG95: 0 | CH95: 0 | CI95: 0 | CJ95: 0 | CK95: 0 | CL95: 0 | CM95: 0 | CN95: 0 | CO95: 0 | CP95: 0 | CQ95: 0 | CR95: 0 | CS95: 0 | CT95: 0 | CU95: 0 | CV95: 0 | CW95: 0 | CX95: 0 | CY95: 0 | CZ95: 0 | DA95: 0 | DB95: 0 | DC95: 0 | DD95: 0 | DE95: 0 | DF95: 0 | DG95: 0 | DH95: 0 | DI95: 1 | DJ95: 0 | DK95: 0 | DL95: 1 | DM95: 0 | DN95: 0 | DO95: 0 | DP95: 1 | DQ95: 0 | DR95: 0 | DS95: 0 | DT95: 0 | DU95: 0 | DV95: 0 | DW95: 0 | DX95: 0 | DY95: 0 | DZ95: 0 | EA95: 0 | EB95: 0 | EC95: 0 | ED95: 0 | EE95: 0 | EF95: 0 | EG95: 0 | EH95: 0 | EI95: 1 | EJ95: 0 | EK95: 0 | EL95: 0 | EM95: 0 | EN95: 0 | EO95: 0 | EP95: 0 | EQ95: 0 | ER95: 0 | ES95: 0 | ET95: 0 | EU95: 0 | EV95: 0 | EW95: 0 | EX95: 0 | EY95: 0 | EZ95: 0 | FA95: 0 | FB95: 2 | FC95: 2 | FD95: 0 | FE95: 0 | FF95: 0 | FG95: 0 | FH95: 0 | FI95: 2 | FJ95: 0 | FK95: 0 | FL95: 0 | FM95: 0 | FN95: 0 | FO95: 0 | FP95: 0 | FQ95: 0 | FR95: 0 | FS95: 0 | FT95: 0 | FU95: 0 | FV95: 3 | FW95: 0 | FX95: 0 | FY95: 0 | FZ95: 0 | GA95: 2 | GB95: 2 | GC95: 3 | GD95: 0 | GE95: 0 | GF95: 1 | GG95: 4 | GH95: 1 | GI95: 2 | GJ95: 2 | GK95: 5 | GL95: 7 | GM95: 2 | GN95: 1 | GO95: 8 | GP95: 8 | GQ95: 3 | GR95: 14 | GS95: 9 | GT95: 6 | GU95: 6 | GV95: 3 | GW95: 5 | GX95: 2 | GY95: 5 | GZ95: 19 | HA95: 9 | HB95: 14 | HC95: Bacteria | HD95: Proteobacteria | HE95: Alphaproteobacteria | HF95: Rhodobacterales | HG95: Rhodobacteraceae | HH95: HIMB11 | HI95: HIMB11 sp003486095
A96: Zotu1091 | B96: 0 | C96: 0 | D96: 0 | E96: 0 | F96: 0 | G96: 0 | H96: 0 | I96: 0 | J96: 0 | K96: 0 | L96: 0 | M96: 0 | N96: 0 | O96: 0 | P96: 0 | Q96: 0 | R96: 0 | S96: 0 | T96: 1 | U96: 0 | V96: 0 | W96: 0 | X96: 0 | Y96: 0 | Z96: 1 | AA96: 0 | AB96: 0 | AC96: 1 | AD96: 0 | AE96: 0 | AF96: 2 | AG96: 0 | AH96: 0 | AI96: 0 | AJ96: 0 | AK96: 0 | AL96: 0 | AM96: 0 | AN96: 0 | AO96: 0 | AP96: 0 | AQ96: 0 | AR96: 2 | AS96: 0 | AT96: 0 | AU96: 0 | AV96: 0 | AW96: 0 | AX96: 0 | AY96: 0 | AZ96: 0 | BA96: 0 | BB96: 0 | BC96: 3 | BD96: 0 | BE96: 0 | BF96: 0 | BG96: 0 | BH96: 0 | BI96: 1 | BJ96: 0 | BK96: 0 | BL96: 0 | BM96: 0 | BN96: 0 | BO96: 2 | BP96: 2 | BQ96: 2 | BR96: 0 | BS96: 0 | BT96: 0 | BU96: 0 | BV96: 0 | BW96: 0 | BX96: 0 | BY96: 0 | BZ96: 0 | CA96: 3 | CB96: 0 | CC96: 0 | CD96: 0 | CE96: 0 | CF96: 0 | CG96: 0 | CH96: 2 | CI96: 0 | CJ96: 0 | CK96: 0 | CL96: 0 | CM96: 2 | CN96: 0 | CO96: 0 | CP96: 0 | CQ96: 0 | CR96: 1 | CS96: 4 | CT96: 4 | CU96: 3 | CV96: 2 | CW96: 1 | CX96: 116 | CY96: 3 | CZ96: 4 | DA96: 3 | DB96: 3 | DC96: 1 | DD96: 3 | DE96: 2 | DF96: 2 | DG96: 4 | DH96: 39 | DI96: 0 | DJ96: 1 | DK96: 1 | DL96: 1 | DM96: 1 | DN96: 0 | DO96: 0 | DP96: 0 | DQ96: 0 | DR96: 0 | DS96: 0 | DT96: 3 | DU96: 0 | DV96: 0 | DW96: 0 | DX96: 20 | DY96: 0 | DZ96: 0 | EA96: 5 | EB96: 1 | EC96: 0 | ED96: 0 | EE96: 0 | EF96: 2 | EG96: 0 | EH96: 0 | EI96: 0 | EJ96: 13 | EK96: 0 | EL96: 0 | EM96: 0 | EN96: 0 | EO96: 0 | EP96: 3 | EQ96: 0 | ER96: 5 | ES96: 2 | ET96: 3 | EU96: 0 | EV96: 17 | EW96: 3 | EX96: 5 | EY96: 0 | EZ96: 0 | FA96: 4 | FB96: 2 | FC96: 0 | FD96: 0 | FE96: 0 | FF96: 2 | FG96: 20 | FH96: 0 | FI96: 3 | FJ96: 3 | FK96: 0 | FL96: 0 | FM96: 0 | FN96: 0 | FO96: 0 | FP96: 0 | FQ96: 2 | FR96: 0 | FS96: 25 | FT96: 0 | FU96: 0 | FV96: 0 | FW96: 0 | FX96: 0 | FY96: 0 | FZ96: 2 | GA96: 0 | GB96: 20 | GC96: 1 | GD96: 2 | GE96: 0 | GF96: 1 | GG96: 0 | GH96: 0 | GI96: 0 | GJ96: 0 | GK96: 0 | GL96: 0 | GM96: 0 | GN96: 0 | GO96: 0 | GP96: 0 | GQ96: 0 | GR96: 0 | GS96: 0 | GT96: 0 | GU96: 0 | GV96: 0 | GW96: 0 | GX96: 0 | GY96: 0 | GZ96: 0 | HA96: 0 | HB96: 0 | HC96: Bacteria | HD96: Proteobacteria | HE96: Alphaproteobacteria | HF96: Dongiales | HG96: Dongiaceae | HH96: Hypericibacter | HI96: Hypericibacter adhaerens
A97: Zotu1092 | B97: 0 | C97: 0 | D97: 0 | E97: 0 | F97: 0 | G97: 0 | H97: 0 | I97: 0 | J97: 0 | K97: 0 | L97: 0 | M97: 0 | N97: 0 | O97: 0 | P97: 0 | Q97: 0 | R97: 0 | S97: 0 | T97: 0 | U97: 0 | V97: 0 | W97: 0 | X97: 0 | Y97: 0 | Z97: 0 | AA97: 0 | AB97: 0 | AC97: 0 | AD97: 0 | AE97: 0 | AF97: 0 | AG97: 0 | AH97: 0 | AI97: 0 | AJ97: 0 | AK97: 0 | AL97: 0 | AM97: 0 | AN97: 0 | AO97: 0 | AP97: 0 | AQ97: 0 | AR97: 0 | AS97: 0 | AT97: 0 | AU97: 0 | AV97: 0 | AW97: 0 | AX97: 0 | AY97: 0 | AZ97: 0 | BA97: 0 | BB97: 0 | BC97: 0 | BD97: 0 | BE97: 0 | BF97: 0 | BG97: 0 | BH97: 0 | BI97: 0 | BJ97: 0 | BK97: 0 | BL97: 0 | BM97: 0 | BN97: 0 | BO97: 0 | BP97: 0 | BQ97: 0 | BR97: 0 | BS97: 0 | BT97: 0 | BU97: 0 | BV97: 0 | BW97: 0 | BX97: 0 | BY97: 0 | BZ97: 0 | CA97: 0 | CB97: 0 | CC97: 0 | CD97: 2 | CE97: 0 | CF97: 0 | CG97: 0 | CH97: 0 | CI97: 0 | CJ97: 0 | CK97: 0 | CL97: 0 | CM97: 0 | CN97: 0 | CO97: 0 | CP97: 2 | CQ97: 2 | CR97: 2 | CS97: 0 | CT97: 0 | CU97: 2 | CV97: 0 | CW97: 0 | CX97: 0 | CY97: 0 | CZ97: 10 | DA97: 0 | DB97: 0 | DC97: 1 | DD97: 0 | DE97: 0 | DF97: 0 | DG97: 0 | DH97: 0 | DI97: 1 | DJ97: 0 | DK97: 0 | DL97: 0 | DM97: 0 | DN97: 1 | DO97: 0 | DP97: 3 | DQ97: 2 | DR97: 5 | DS97: 0 | DT97: 0 | DU97: 0 | DV97: 0 | DW97: 0 | DX97: 3 | DY97: 2 | DZ97: 3 | EA97: 0 | EB97: 0 | EC97: 3 | ED97: 21 | EE97: 2 | EF97: 5 | EG97: 3 | EH97: 3 | EI97: 0 | EJ97: 3 | EK97: 0 | EL97: 202 | EM97: 0 | EN97: 3 | EO97: 0 | EP97: 0 | EQ97: 0 | ER97: 0 | ES97: 0 | ET97: 0 | EU97: 0 | EV97: 0 | EW97: 0 | EX97: 8 | EY97: 0 | EZ97: 0 | FA97: 0 | FB97: 0 | FC97: 0 | FD97: 2 | FE97: 0 | FF97: 3 | FG97: 0 | FH97: 0 | FI97: 0 | FJ97: 2 | FK97: 0 | FL97: 0 | FM97: 0 | FN97: 0 | FO97: 2 | FP97: 0 | FQ97: 0 | FR97: 3 | FS97: 0 | FT97: 3 | FU97: 0 | FV97: 0 | FW97: 0 | FX97: 0 | FY97: 0 | FZ97: 0 | GA97: 0 | GB97: 0 | GC97: 0 | GD97: 0 | GE97: 0 | GF97: 0 | GG97: 0 | GH97: 1 | GI97: 2 | GJ97: 2 | GK97: 1 | GL97: 1 | GM97: 0 | GN97: 2 | GO97: 0 | GP97: 0 | GQ97: 1 | GR97: 2 | GS97: 0 | GT97: 1 | GU97: 1 | GV97: 2 | GW97: 2 | GX97: 1 | GY97: 0 | GZ97: 0 | HA97: 2 | HB97: 3 | HC97: Bacteria | HD97: Cyanobacteria | HE97: Cyanobacteriia | HF97: Cyanobacteriales | HG97: Spirulinaceae | HH97: SIO3F2 | HI97: SIO3F2 sp010672165
A98: Zotu1094 | B98: 0 | C98: 0 | D98: 0 | E98: 0 | F98: 0 | G98: 0 | H98: 0 | I98: 0 | J98: 0 | K98: 0 | L98: 0 | M98: 0 | N98: 0 | O98: 0 | P98: 0 | Q98: 0 | R98: 0 | S98: 0 | T98: 0 | U98: 0 | V98: 0 | W98: 0 | X98: 0 | Y98: 0 | Z98: 0 | AA98: 0 | AB98: 0 | AC98: 0 | AD98: 0 | AE98: 0 | AF98: 0 | AG98: 0 | AH98: 0 | AI98: 0 | AJ98: 0 | AK98: 0 | AL98: 0 | AM98: 0 | AN98: 0 | AO98: 0 | AP98: 0 | AQ98: 0 | AR98: 0 | AS98: 0 | AT98: 0 | AU98: 0 | AV98: 0 | AW98: 0 | AX98: 0 | AY98: 0 | AZ98: 0 | BA98: 0 | BB98: 0 | BC98: 0 | BD98: 0 | BE98: 0 | BF98: 0 | BG98: 0 | BH98: 0 | BI98: 0 | BJ98: 0 | BK98: 0 | BL98: 0 | BM98: 0 | BN98: 0 | BO98: 0 | BP98: 0 | BQ98: 0 | BR98: 0 | BS98: 0 | BT98: 0 | BU98: 0 | BV98: 0 | BW98: 0 | BX98: 0 | BY98: 0 | BZ98: 0 | CA98: 0 | CB98: 0 | CC98: 0 | CD98: 0 | CE98: 0 | CF98: 0 | CG98: 0 | CH98: 0 | CI98: 0 | CJ98: 0 | CK98: 0 | CL98: 0 | CM98: 0 | CN98: 0 | CO98: 0 | CP98: 1 | CQ98: 0 | CR98: 2 | CS98: 3 | CT98: 0 | CU98: 17 | CV98: 2 | CW98: 1 | CX98: 0 | CY98: 2 | CZ98: 16 | DA98: 0 | DB98: 3 | DC98: 0 | DD98: 2 | DE98: 0 | DF98: 0 | DG98: 1 | DH98: 1 | DI98: 3 | DJ98: 10 | DK98: 7 | DL98: 3 | DM98: 0 | DN98: 2 | DO98: 0 | DP98: 0 | DQ98: 11 | DR98: 2 | DS98: 0 | DT98: 0 | DU98: 0 | DV98: 0 | DW98: 0 | DX98: 0 | DY98: 0 | DZ98: 0 | EA98: 0 | EB98: 0 | EC98: 0 | ED98: 0 | EE98: 0 | EF98: 0 | EG98: 0 | EH98: 0 | EI98: 0 | EJ98: 0 | EK98: 0 | EL98: 0 | EM98: 0 | EN98: 0 | EO98: 0 | EP98: 2 | EQ98: 0 | ER98: 0 | ES98: 2 | ET98: 0 | EU98: 0 | EV98: 0 | EW98: 0 | EX98: 0 | EY98: 0 | EZ98: 0 | FA98: 0 | FB98: 0 | FC98: 0 | FD98: 0 | FE98: 0 | FF98: 0 | FG98: 0 | FH98: 0 | FI98: 0 | FJ98: 0 | FK98: 2 | FL98: 0 | FM98: 0 | FN98: 0 | FO98: 0 | FP98: 0 | FQ98: 0 | FR98: 0 | FS98: 0 | FT98: 0 | FU98: 2 | FV98: 0 | FW98: 0 | FX98: 0 | FY98: 0 | FZ98: 2 | GA98: 2 | GB98: 4 | GC98: 0 | GD98: 8 | GE98: 2 | GF98: 3 | GG98: 7 | GH98: 0 | GI98: 1 | GJ98: 7 | GK98: 2 | GL98: 1 | GM98: 1 | GN98: 9 | GO98: 0 | GP98: 1 | GQ98: 0 | GR98: 2 | GS98: 2 | GT98: 0 | GU98: 5 | GV98: 0 | GW98: 0 | GX98: 0 | GY98: 2 | GZ98: 0 | HA98: 0 | HB98: 1 | HC98: Bacteria | HD98: Cyanobacteria | HE98: Cyanobacteriia | HF98: Cyanobacteriales | HG98: Oscillatoriaceae | HH98: Planktothricoides | HI98: Planktothricoides sp001276715
A99: Zotu1095 | B99: 0 | C99: 0 | D99: 0 | E99: 0 | F99: 0 | G99: 0 | H99: 1 | I99: 1 | J99: 2 | K99: 0 | L99: 0 | M99: 1 | N99: 1 | O99: 0 | P99: 1 | Q99: 0 | R99: 0 | S99: 0 | T99: 0 | U99: 0 | V99: 1 | W99: 0 | X99: 0 | Y99: 0 | Z99: 1 | AA99: 0 | AB99: 1 | AC99: 0 | AD99: 0 | AE99: 0 | AF99: 0 | AG99: 0 | AH99: 1 | AI99: 1 | AJ99: 0 | AK99: 1 | AL99: 1 | AM99: 0 | AN99: 0 | AO99: 0 | AP99: 0 | AQ99: 0 | AR99: 2 | AS99: 0 | AT99: 0 | AU99: 0 | AV99: 1 | AW99: 2 | AX99: 2 | AY99: 2 | AZ99: 2 | BA99: 12 | BB99: 4 | BC99: 40 | BD99: 3 | BE99: 3 | BF99: 2 | BG99: 2 | BH99: 1 | BI99: 0 | BJ99: 2 | BK99: 0 | BL99: 0 | BM99: 1 | BN99: 1 | BO99: 2 | BP99: 3 | BQ99: 0 | BR99: 0 | BS99: 2 | BT99: 2 | BU99: 0 | BV99: 0 | BW99: 0 | BX99: 2 | BY99: 0 | BZ99: 3 | CA99: 0 | CB99: 2 | CC99: 3 | CD99: 2 | CE99: 0 | CF99: 0 | CG99: 0 | CH99: 5 | CI99: 3 | CJ99: 0 | CK99: 10 | CL99: 2 | CM99: 14 | CN99: 0 | CO99: 0 | CP99: 0 | CQ99: 1 | CR99: 1 | CS99: 0 | CT99: 0 | CU99: 0 | CV99: 0 | CW99: 0 | CX99: 0 | CY99: 0 | CZ99: 1 | DA99: 0 | DB99: 0 | DC99: 0 | DD99: 0 | DE99: 0 | DF99: 0 | DG99: 0 | DH99: 0 | DI99: 0 | DJ99: 0 | DK99: 0 | DL99: 0 | DM99: 0 | DN99: 0 | DO99: 0 | DP99: 0 | DQ99: 0 | DR99: 0 | DS99: 0 | DT99: 0 | DU99: 0 | DV99: 0 | DW99: 0 | DX99: 0 | DY99: 0 | DZ99: 0 | EA99: 0 | EB99: 0 | EC99: 0 | ED99: 0 | EE99: 0 | EF99: 0 | EG99: 0 | EH99: 0 | EI99: 0 | EJ99: 0 | EK99: 0 | EL99: 0 | EM99: 0 | EN99: 0 | EO99: 0 | EP99: 0 | EQ99: 0 | ER99: 0 | ES99: 0 | ET99: 0 | EU99: 0 | EV99: 0 | EW99: 0 | EX99: 0 | EY99: 0 | EZ99: 0 | FA99: 0 | FB99: 0 | FC99: 0 | FD99: 0 | FE99: 0 | FF99: 0 | FG99: 0 | FH99: 0 | FI99: 0 | FJ99: 0 | FK99: 0 | FL99: 0 | FM99: 0 | FN99: 0 | FO99: 0 | FP99: 0 | FQ99: 0 | FR99: 0 | FS99: 0 | FT99: 0 | FU99: 0 | FV99: 0 | FW99: 0 | FX99: 0 | FY99: 0 | FZ99: 0 | GA99: 0 | GB99: 0 | GC99: 0 | GD99: 0 | GE99: 0 | GF99: 0 | GG99: 0 | GH99: 0 | GI99: 0 | GJ99: 0 | GK99: 0 | GL99: 0 | GM99: 0 | GN99: 0 | GO99: 0 | GP99: 0 | GQ99: 0 | GR99: 0 | GS99: 0 | GT99: 0 | GU99: 0 | GV99: 0 | GW99: 0 | GX99: 0 | GY99: 0 | GZ99: 0 | HA99: 0 | HB99: 0 | HC99: Bacteria | HD99: Proteobacteria | HE99: Gammaproteobacteria | HF99: Pseudomonadales | HG99: Endozoicomonadaceae | HH99: Kistimonas | HI99: Kistimonas sp002084115
A100: Zotu1096 | B100: 0 | C100: 0 | D100: 0 | E100: 0 | F100: 0 | G100: 0 | H100: 0 | I100: 0 | J100: 0 | K100: 0 | L100: 0 | M100: 0 | N100: 0 | O100: 0 | P100: 0 | Q100: 0 | R100: 0 | S100: 0 | T100: 0 | U100: 0 | V100: 0 | W100: 1 | X100: 0 | Y100: 0 | Z100: 0 | AA100: 0 | AB100: 0 | AC100: 0 | AD100: 0 | AE100: 0 | AF100: 0 | AG100: 0 | AH100: 0 | AI100: 0 | AJ100: 0 | AK100: 0 | AL100: 0 | AM100: 0 | AN100: 0 | AO100: 0 | AP100: 0 | AQ100: 0 | AR100: 0 | AS100: 0 | AT100: 0 | AU100: 0 | AV100: 0 | AW100: 0 | AX100: 0 | AY100: 0 | AZ100: 0 | BA100: 0 | BB100: 0 | BC100: 0 | BD100: 0 | BE100: 0 | BF100: 0 | BG100: 0 | BH100: 0 | BI100: 1 | BJ100: 0 | BK100: 0 | BL100: 0 | BM100: 0 | BN100: 0 | BO100: 0 | BP100: 3 | BQ100: 0 | BR100: 0 | BS100: 0 | BT100: 0 | BU100: 0 | BV100: 0 | BW100: 0 | BX100: 0 | BY100: 0 | BZ100: 0 | CA100: 0 | CB100: 0 | CC100: 0 | CD100: 0 | CE100: 0 | CF100: 0 | CG100: 0 | CH100: 0 | CI100: 0 | CJ100: 0 | CK100: 0 | CL100: 0 | CM100: 0 | CN100: 2 | CO100: 5 | CP100: 0 | CQ100: 1 | CR100: 8 | CS100: 0 | CT100: 0 | CU100: 4 | CV100: 1 | CW100: 0 | CX100: 1 | CY100: 0 | CZ100: 7 | DA100: 0 | DB100: 1 | DC100: 4 | DD100: 3 | DE100: 0 | DF100: 7 | DG100: 1 | DH100: 0 | DI100: 2 | DJ100: 1 | DK100: 5 | DL100: 1 | DM100: 0 | DN100: 3 | DO100: 0 | DP100: 6 | DQ100: 0 | DR100: 2 | DS100: 0 | DT100: 0 | DU100: 0 | DV100: 0 | DW100: 0 | DX100: 0 | DY100: 0 | DZ100: 0 | EA100: 0 | EB100: 1 | EC100: 0 | ED100: 2 | EE100: 0 | EF100: 0 | EG100: 2 | EH100: 0 | EI100: 0 | EJ100: 0 | EK100: 0 | EL100: 0 | EM100: 0 | EN100: 2 | EO100: 2 | EP100: 0 | EQ100: 0 | ER100: 3 | ES100: 0 | ET100: 0 | EU100: 0 | EV100: 0 | EW100: 0 | EX100: 2 | EY100: 0 | EZ100: 5 | FA100: 0 | FB100: 0 | FC100: 0 | FD100: 0 | FE100: 0 | FF100: 0 | FG100: 1 | FH100: 0 | FI100: 0 | FJ100: 0 | FK100: 0 | FL100: 0 | FM100: 0 | FN100: 0 | FO100: 2 | FP100: 3 | FQ100: 0 | FR100: 0 | FS100: 0 | FT100: 0 | FU100: 0 | FV100: 0 | FW100: 0 | FX100: 0 | FY100: 0 | FZ100: 4 | GA100: 1 | GB100: 0 | GC100: 1 | GD100: 4 | GE100: 3 | GF100: 0 | GG100: 3 | GH100: 5 | GI100: 6 | GJ100: 7 | GK100: 4 | GL100: 3 | GM100: 6 | GN100: 4 | GO100: 2 | GP100: 4 | GQ100: 6 | GR100: 2 | GS100: 2 | GT100: 3 | GU100: 4 | GV100: 2 | GW100: 3 | GX100: 2 | GY100: 1 | GZ100: 0 | HA100: 6 | HB100: 6 | HC100: Bacteria | HD100: Proteobacteria | HE100: Alphaproteobacteria | HF100: Rhodobacterales | HG100: Rhodobacteraceae | HH100: Mangrovicoccus | HI100: Mangrovicoccus sp005870025
A101: Zotu1097 | B101: 0 | C101: 0 | D101: 0 | E101: 0 | F101: 0 | G101: 0 | H101: 0 | I101: 0 | J101: 0 | K101: 0 | L101: 0 | M101: 0 | N101: 0 | O101: 0 | P101: 0 | Q101: 0 | R101: 0 | S101: 0 | T101: 0 | U101: 0 | V101: 0 | W101: 0 | X101: 0 | Y101: 0 | Z101: 0 | AA101: 0 | AB101: 0 | AC101: 0 | AD101: 0 | AE101: 0 | AF101: 0 | AG101: 0 | AH101: 0 | AI101: 0 | AJ101: 0 | AK101: 0 | AL101: 0 | AM101: 0 | AN101: 0 | AO101: 0 | AP101: 0 | AQ101: 0 | AR101: 0 | AS101: 0 | AT101: 0 | AU101: 0 | AV101: 0 | AW101: 1 | AX101: 1 | AY101: 0 | AZ101: 0 | BA101: 0 | BB101: 0 | BC101: 0 | BD101: 0 | BE101: 0 | BF101: 0 | BG101: 0 | BH101: 0 | BI101: 0 | BJ101: 0 | BK101: 0 | BL101: 0 | BM101: 0 | BN101: 0 | BO101: 0 | BP101: 0 | BQ101: 0 | BR101: 0 | BS101: 0 | BT101: 0 | BU101: 0 | BV101: 0 | BW101: 0 | BX101: 0 | BY101: 0 | BZ101: 0 | CA101: 0 | CB101: 5 | CC101: 0 | CD101: 0 | CE101: 0 | CF101: 0 | CG101: 0 | CH101: 0 | CI101: 0 | CJ101: 0 | CK101: 0 | CL101: 0 | CM101: 0 | CN101: 1 | CO101: 2 | CP101: 0 | CQ101: 0 | CR101: 1 | CS101: 0 | CT101: 0 | CU101: 3 | CV101: 4 | CW101: 1 | CX101: 0 | CY101: 28 | CZ101: 0 | DA101: 3 | DB101: 1 | DC101: 5 | DD101: 2 | DE101: 1 | DF101: 1 | DG101: 0 | DH101: 0 | DI101: 0 | DJ101: 1 | DK101: 1 | DL101: 0 | DM101: 1 | DN101: 0 | DO101: 0 | DP101: 1 | DQ101: 1 | DR101: 0 | DS101: 11 | DT101: 2 | DU101: 0 | DV101: 2 | DW101: 0 | DX101: 1 | DY101: 5 | DZ101: 2 | EA101: 0 | EB101: 12 | EC101: 0 | ED101: 2 | EE101: 0 | EF101: 3 | EG101: 3 | EH101: 2 | EI101: 5 | EJ101: 0 | EK101: 2 | EL101: 5 | EM101: 2 | EN101: 13 | EO101: 0 | EP101: 0 | EQ101: 3 | ER101: 5 | ES101: 2 | ET101: 2 | EU101: 3 | EV101: 0 | EW101: 2 | EX101: 5 | EY101: 2 | EZ101: 2 | FA101: 4 | FB101: 8 | FC101: 2 | FD101: 5 | FE101: 0 | FF101: 2 | FG101: 7 | FH101: 5 | FI101: 0 | FJ101: 0 | FK101: 2 | FL101: 3 | FM101: 3 | FN101: 0 | FO101: 2 | FP101: 3 | FQ101: 0 | FR101: 0 | FS101: 5 | FT101: 3 | FU101: 2 | FV101: 0 | FW101: 0 | FX101: 4 | FY101: 8 | FZ101: 2 | GA101: 0 | GB101: 0 | GC101: 1 | GD101: 2 | GE101: 1 | GF101: 0 | GG101: 0 | GH101: 2 | GI101: 2 | GJ101: 4 | GK101: 1 | GL101: 1 | GM101: 2 | GN101: 1 | GO101: 1 | GP101: 2 | GQ101: 2 | GR101: 1 | GS101: 0 | GT101: 1 | GU101: 0 | GV101: 1 | GW101: 0 | GX101: 2 | GY101: 0 | GZ101: 0 | HA101: 2 | HB101: 0 | HC101: Bacteria | HD101: Proteobacteria | HE101: Gammaproteobacteria | HF101: Pseudomonadales | HG101: Endozoicomonadaceae | HH101: Endozoicomonas | HI101: Endozoicomonas elysicola
A102: Zotu1098 | B102: 0 | C102: 0 | D102: 0 | E102: 0 | F102: 0 | G102: 0 | H102: 1 | I102: 0 | J102: 0 | K102: 0 | L102: 0 | M102: 0 | N102: 0 | O102: 0 | P102: 0 | Q102: 0 | R102: 0 | S102: 0 | T102: 0 | U102: 0 | V102: 0 | W102: 0 | X102: 0 | Y102: 0 | Z102: 0 | AA102: 0 | AB102: 0 | AC102: 0 | AD102: 0 | AE102: 0 | AF102: 0 | AG102: 0 | AH102: 0 | AI102: 0 | AJ102: 0 | AK102: 0 | AL102: 0 | AM102: 0 | AN102: 0 | AO102: 0 | AP102: 0 | AQ102: 0 | AR102: 0 | AS102: 0 | AT102: 0 | AU102: 0 | AV102: 0 | AW102: 0 | AX102: 0 | AY102: 0 | AZ102: 0 | BA102: 0 | BB102: 0 | BC102: 0 | BD102: 0 | BE102: 0 | BF102: 0 | BG102: 0 | BH102: 0 | BI102: 0 | BJ102: 0 | BK102: 0 | BL102: 0 | BM102: 0 | BN102: 0 | BO102: 0 | BP102: 0 | BQ102: 0 | BR102: 2 | BS102: 2 | BT102: 0 | BU102: 0 | BV102: 0 | BW102: 0 | BX102: 0 | BY102: 0 | BZ102: 0 | CA102: 0 | CB102: 0 | CC102: 0 | CD102: 0 | CE102: 0 | CF102: 0 | CG102: 0 | CH102: 0 | CI102: 0 | CJ102: 5 | CK102: 0 | CL102: 0 | CM102: 0 | CN102: 0 | CO102: 0 | CP102: 1 | CQ102: 1 | CR102: 0 | CS102: 0 | CT102: 2 | CU102: 1 | CV102: 1 | CW102: 1 | CX102: 2 | CY102: 3 | CZ102: 0 | DA102: 0 | DB102: 1 | DC102: 1 | DD102: 3 | DE102: 2 | DF102: 1 | DG102: 0 | DH102: 1 | DI102: 2 | DJ102: 2 | DK102: 1 | DL102: 0 | DM102: 0 | DN102: 2 | DO102: 1 | DP102: 2 | DQ102: 0 | DR102: 2 | DS102: 0 | DT102: 0 | DU102: 2 | DV102: 0 | DW102: 2 | DX102: 1 | DY102: 0 | DZ102: 0 | EA102: 0 | EB102: 1 | EC102: 0 | ED102: 3 | EE102: 0 | EF102: 0 | EG102: 2 | EH102: 2 | EI102: 0 | EJ102: 2 | EK102: 0 | EL102: 0 | EM102: 0 | EN102: 0 | EO102: 2 | EP102: 2 | EQ102: 0 | ER102: 0 | ES102: 0 | ET102: 0 | EU102: 0 | EV102: 2 | EW102: 0 | EX102: 0 | EY102: 0 | EZ102: 0 | FA102: 0 | FB102: 2 | FC102: 0 | FD102: 0 | FE102: 2 | FF102: 0 | FG102: 0 | FH102: 0 | FI102: 2 | FJ102: 2 | FK102: 0 | FL102: 0 | FM102: 0 | FN102: 0 | FO102: 0 | FP102: 0 | FQ102: 2 | FR102: 0 | FS102: 2 | FT102: 0 | FU102: 3 | FV102: 0 | FW102: 0 | FX102: 0 | FY102: 2 | FZ102: 2 | GA102: 3 | GB102: 1 | GC102: 2 | GD102: 2 | GE102: 1 | GF102: 0 | GG102: 3 | GH102: 4 | GI102: 3 | GJ102: 5 | GK102: 5 | GL102: 6 | GM102: 2 | GN102: 4 | GO102: 5 | GP102: 5 | GQ102: 12 | GR102: 8 | GS102: 4 | GT102: 5 | GU102: 2 | GV102: 5 | GW102: 2 | GX102: 5 | GY102: 10 | GZ102: 1 | HA102: 2 | HB102: 2 | HC102: Bacteria | HD102: Proteobacteria | HE102: Alphaproteobacteria | HF102: TMED109 | HG102: TMED131 | HH102: TMED62 | HI102: TMED62 sp902614225
A103: Zotu11 | B103: 2329 | C103: 976 | D103: 2875 | E103: 1651 | F103: 742 | G103: 987 | H103: 920 | I103: 2146 | J103: 394 | K103: 3942 | L103: 760 | M103: 2068 | N103: 1092 | O103: 1241 | P103: 866 | Q103: 1254 | R103: 1540 | S103: 1452 | T103: 2985 | U103: 561 | V103: 378 | W103: 2105 | X103: 561 | Y103: 311 | Z103: 2466 | AA103: 1016 | AB103: 1281 | AC103: 1843 | AD103: 11058 | AE103: 2926 | AF103: 1497 | AG103: 608 | AH103: 589 | AI103: 1371 | AJ103: 408 | AK103: 672 | AL103: 2235 | AM103: 589 | AN103: 1431 | AO103: 1243 | AP103: 697 | AQ103: 490 | AR103: 2032 | AS103: 467 | AT103: 454 | AU103: 6775 | AV103: 1428 | AW103: 617 | AX103: 1005 | AY103: 2270 | AZ103: 2354 | BA103: 1750 | BB103: 1460 | BC103: 1108 | BD103: 1748 | BE103: 1914 | BF103: 2143 | BG103: 3109 | BH103: 1454 | BI103: 2426 | BJ103: 1942 | BK103: 874 | BL103: 3087 | BM103: 1524 | BN103: 864 | BO103: 1382 | BP103: 3580 | BQ103: 1635 | BR103: 5250 | BS103: 7944 | BT103: 2788 | BU103: 763 | BV103: 4103 | BW103: 1812 | BX103: 2510 | BY103: 873 | BZ103: 868 | CA103: 910 | CB103: 2712 | CC103: 2206 | CD103: 3317 | CE103: 6858 | CF103: 2688 | CG103: 6067 | CH103: 5594 | CI103: 2652 | CJ103: 4511 | CK103: 7455 | CL103: 6653 | CM103: 2628 | CN103: 266 | CO103: 2368 | CP103: 242 | CQ103: 486 | CR103: 2101 | CS103: 1145 | CT103: 848 | CU103: 364 | CV103: 95 | CW103: 344 | CX103: 222 | CY103: 2425 | CZ103: 586 | DA103: 371 | DB103: 9638 | DC103: 373 | DD103: 133 | DE103: 1424 | DF103: 1271 | DG103: 14515 | DH103: 105 | DI103: 208 | DJ103: 92 | DK103: 157 | DL103: 211 | DM103: 606 | DN103: 8 | DO103: 783 | DP103: 21 | DQ103: 141 | DR103: 68 | DS103: 81 | DT103: 25 | DU103: 23 | DV103: 0 | DW103: 17 | DX103: 3 | DY103: 75 | DZ103: 41 | EA103: 5 | EB103: 109 | EC103: 0 | ED103: 139 | EE103: 26 | EF103: 22 | EG103: 9 | EH103: 2 | EI103: 6 | EJ103: 0 | EK103: 49 | EL103: 18 | EM103: 3 | EN103: 228 | EO103: 0 | EP103: 100 | EQ103: 44 | ER103: 37 | ES103: 13 | ET103: 0 | EU103: 2 | EV103: 2 | EW103: 43 | EX103: 25 | EY103: 9 | EZ103: 344 | FA103: 0 | FB103: 12 | FC103: 20 | FD103: 54 | FE103: 3 | FF103: 309 | FG103: 0 | FH103: 11 | FI103: 0 | FJ103: 0 | FK103: 5 | FL103: 13 | FM103: 0 | FN103: 22 | FO103: 0 | FP103: 58 | FQ103: 32 | FR103: 371 | FS103: 0 | FT103: 8 | FU103: 0 | FV103: 0 | FW103: 6 | FX103: 5 | FY103: 114 | FZ103: 62 | GA103: 273 | GB103: 13 | GC103: 43 | GD103: 19 | GE103: 4 | GF103: 20 | GG103: 1 | GH103: 1 | GI103: 5 | GJ103: 3 | GK103: 2 | GL103: 4 | GM103: 5 | GN103: 4 | GO103: 0 | GP103: 2 | GQ103: 0 | GR103: 3 | GS103: 2 | GT103: 1 | GU103: 1 | GV103: 2 | GW103: 1 | GX103: 5 | GY103: 0 | GZ103: 0 | HA103: 0 | HB103: 0 | HC103: Bacteria | HD103: Bacteroidota | HE103: Bacteroidia | HF103: Chitinophagales | HG103: Saprospiraceae | HH103: RFSX01 | HI103: RFSX01 sp009923745
A104: Zotu110 | B104: 1 | C104: 1 | D104: 0 | E104: 1 | F104: 0 | G104: 0 | H104: 0 | I104: 1 | J104: 0 | K104: 5 | L104: 1 | M104: 0 | N104: 1 | O104: 0 | P104: 1 | Q104: 0 | R104: 0 | S104: 0 | T104: 3 | U104: 0 | V104: 2 | W104: 0 | X104: 1 | Y104: 0 | Z104: 0 | AA104: 0 | AB104: 0 | AC104: 2 | AD104: 0 | AE104: 0 | AF104: 0 | AG104: 1 | AH104: 0 | AI104: 0 | AJ104: 1 | AK104: 0 | AL104: 0 | AM104: 2 | AN104: 0 | AO104: 0 | AP104: 0 | AQ104: 1 | AR104: 0 | AS104: 0 | AT104: 0 | AU104: 1 | AV104: 0 | AW104: 1 | AX104: 7 | AY104: 2 | AZ104: 1 | BA104: 4 | BB104: 2 | BC104: 0 | BD104: 13 | BE104: 12 | BF104: 14 | BG104: 18 | BH104: 1 | BI104: 0 | BJ104: 5 | BK104: 0 | BL104: 2 | BM104: 0 | BN104: 0 | BO104: 2 | BP104: 37 | BQ104: 28 | BR104: 25 | BS104: 12 | BT104: 1 | BU104: 1 | BV104: 4 | BW104: 4 | BX104: 3 | BY104: 3 | BZ104: 3 | CA104: 1 | CB104: 42 | CC104: 23 | CD104: 34 | CE104: 26 | CF104: 17 | CG104: 22 | CH104: 20 | CI104: 30 | CJ104: 33 | CK104: 20 | CL104: 23 | CM104: 25 | CN104: 269 | CO104: 256 | CP104: 279 | CQ104: 218 | CR104: 147 | CS104: 390 | CT104: 138 | CU104: 244 | CV104: 113 | CW104: 235 | CX104: 109 | CY104: 81 | CZ104: 124 | DA104: 48 | DB104: 78 | DC104: 220 | DD104: 54 | DE104: 88 | DF104: 141 | DG104: 139 | DH104: 103 | DI104: 91 | DJ104: 204 | DK104: 240 | DL104: 133 | DM104: 133 | DN104: 232 | DO104: 176 | DP104: 134 | DQ104: 65 | DR104: 29 | DS104: 133 | DT104: 90 | DU104: 135 | DV104: 170 | DW104: 164 | DX104: 32 | DY104: 87 | DZ104: 14 | EA104: 19 | EB104: 120 | EC104: 30 | ED104: 49 | EE104: 40 | EF104: 66 | EG104: 129 | EH104: 63 | EI104: 172 | EJ104: 24 | EK104: 31 | EL104: 31 | EM104: 18 | EN104: 63 | EO104: 66 | EP104: 21 | EQ104: 62 | ER104: 62 | ES104: 87 | ET104: 38 | EU104: 29 | EV104: 40 | EW104: 44 | EX104: 36 | EY104: 65 | EZ104: 34 | FA104: 7 | FB104: 289 | FC104: 109 | FD104: 64 | FE104: 62 | FF104: 67 | FG104: 54 | FH104: 45 | FI104: 54 | FJ104: 68 | FK104: 39 | FL104: 137 | FM104: 214 | FN104: 117 | FO104: 66 | FP104: 89 | FQ104: 71 | FR104: 28 | FS104: 29 | FT104: 79 | FU104: 85 | FV104: 93 | FW104: 45 | FX104: 13 | FY104: 70 | FZ104: 113 | GA104: 165 | GB104: 98 | GC104: 310 | GD104: 247 | GE104: 443 | GF104: 73 | GG104: 1243 | GH104: 833 | GI104: 312 | GJ104: 671 | GK104: 425 | GL104: 280 | GM104: 259 | GN104: 313 | GO104: 1076 | GP104: 630 | GQ104: 311 | GR104: 591 | GS104: 1235 | GT104: 574 | GU104: 841 | GV104: 681 | GW104: 730 | GX104: 413 | GY104: 654 | GZ104: 717 | HA104: 696 | HB104: 487 | HC104: Bacteria | HD104: Actinobacteriota | HE104: Acidimicrobiia | HF104: Actinomarinales | HG104: Actinomarinaceae | HH104: Actinomarina | HI104: Actinomarina sp003213625
A105: Zotu1100 | B105: 0 | C105: 0 | D105: 0 | E105: 0 | F105: 0 | G105: 0 | H105: 0 | I105: 0 | J105: 0 | K105: 0 | L105: 0 | M105: 0 | N105: 0 | O105: 0 | P105: 0 | Q105: 0 | R105: 0 | S105: 0 | T105: 0 | U105: 0 | V105: 0 | W105: 0 | X105: 0 | Y105: 0 | Z105: 0 | AA105: 0 | AB105: 0 | AC105: 0 | AD105: 0 | AE105: 0 | AF105: 0 | AG105: 0 | AH105: 0 | AI105: 0 | AJ105: 0 | AK105: 0 | AL105: 0 | AM105: 0 | AN105: 0 | AO105: 0 | AP105: 0 | AQ105: 0 | AR105: 0 | AS105: 0 | AT105: 0 | AU105: 0 | AV105: 0 | AW105: 0 | AX105: 0 | AY105: 0 | AZ105: 0 | BA105: 0 | BB105: 0 | BC105: 0 | BD105: 2 | BE105: 0 | BF105: 0 | BG105: 0 | BH105: 0 | BI105: 0 | BJ105: 0 | BK105: 0 | BL105: 0 | BM105: 0 | BN105: 0 | BO105: 0 | BP105: 2 | BQ105: 0 | BR105: 0 | BS105: 0 | BT105: 0 | BU105: 0 | BV105: 0 | BW105: 0 | BX105: 0 | BY105: 0 | BZ105: 0 | CA105: 0 | CB105: 0 | CC105: 0 | CD105: 0 | CE105: 0 | CF105: 0 | CG105: 0 | CH105: 0 | CI105: 0 | CJ105: 0 | CK105: 2 | CL105: 0 | CM105: 0 | CN105: 3 | CO105: 0 | CP105: 2 | CQ105: 3 | CR105: 2 | CS105: 3 | CT105: 0 | CU105: 3 | CV105: 0 | CW105: 0 | CX105: 1 | CY105: 0 | CZ105: 0 | DA105: 2 | DB105: 3 | DC105: 0 | DD105: 0 | DE105: 0 | DF105: 0 | DG105: 0 | DH105: 2 | DI105: 0 | DJ105: 2 | DK105: 0 | DL105: 0 | DM105: 1 | DN105: 0 | DO105: 0 | DP105: 1 | DQ105: 0 | DR105: 0 | DS105: 0 | DT105: 0 | DU105: 0 | DV105: 0 | DW105: 0 | DX105: 0 | DY105: 2 | DZ105: 0 | EA105: 0 | EB105: 0 | EC105: 0 | ED105: 0 | EE105: 0 | EF105: 0 | EG105: 0 | EH105: 0 | EI105: 0 | EJ105: 0 | EK105: 0 | EL105: 0 | EM105: 0 | EN105: 0 | EO105: 0 | EP105: 0 | EQ105: 2 | ER105: 0 | ES105: 0 | ET105: 0 | EU105: 0 | EV105: 0 | EW105: 0 | EX105: 0 | EY105: 0 | EZ105: 0 | FA105: 0 | FB105: 2 | FC105: 0 | FD105: 0 | FE105: 0 | FF105: 0 | FG105: 0 | FH105: 2 | FI105: 0 | FJ105: 2 | FK105: 0 | FL105: 0 | FM105: 0 | FN105: 0 | FO105: 0 | FP105: 3 | FQ105: 0 | FR105: 0 | FS105: 0 | FT105: 2 | FU105: 0 | FV105: 0 | FW105: 0 | FX105: 0 | FY105: 0 | FZ105: 2 | GA105: 0 | GB105: 0 | GC105: 1 | GD105: 0 | GE105: 0 | GF105: 0 | GG105: 3 | GH105: 0 | GI105: 2 | GJ105: 3 | GK105: 0 | GL105: 4 | GM105: 2 | GN105: 3 | GO105: 24 | GP105: 3 | GQ105: 4 | GR105: 13 | GS105: 7 | GT105: 17 | GU105: 4 | GV105: 5 | GW105: 9 | GX105: 9 | GY105: 4 | GZ105: 8 | HA105: 6 | HB105: 11 | HC105: Bacteria | HD105: Bacteroidota | HE105: Bacteroidia | HF105: Flavobacteriales | HG105: TMED113 | HH105: GCA-2718035 | HI105: GCA-2718035 sp902533035
A106: Zotu1101 | B106: 0 | C106: 0 | D106: 0 | E106: 0 | F106: 0 | G106: 0 | H106: 0 | I106: 0 | J106: 0 | K106: 0 | L106: 0 | M106: 0 | N106: 0 | O106: 0 | P106: 0 | Q106: 0 | R106: 0 | S106: 0 | T106: 0 | U106: 0 | V106: 0 | W106: 0 | X106: 0 | Y106: 0 | Z106: 0 | AA106: 0 | AB106: 0 | AC106: 0 | AD106: 0 | AE106: 0 | AF106: 0 | AG106: 0 | AH106: 0 | AI106: 0 | AJ106: 0 | AK106: 0 | AL106: 0 | AM106: 0 | AN106: 0 | AO106: 0 | AP106: 0 | AQ106: 0 | AR106: 0 | AS106: 0 | AT106: 0 | AU106: 0 | AV106: 0 | AW106: 0 | AX106: 8 | AY106: 0 | AZ106: 0 | BA106: 0 | BB106: 0 | BC106: 0 | BD106: 0 | BE106: 0 | BF106: 0 | BG106: 0 | BH106: 0 | BI106: 0 | BJ106: 0 | BK106: 0 | BL106: 0 | BM106: 0 | BN106: 0 | BO106: 0 | BP106: 0 | BQ106: 0 | BR106: 0 | BS106: 0 | BT106: 0 | BU106: 0 | BV106: 0 | BW106: 0 | BX106: 0 | BY106: 0 | BZ106: 0 | CA106: 0 | CB106: 0 | CC106: 0 | CD106: 0 | CE106: 0 | CF106: 0 | CG106: 0 | CH106: 0 | CI106: 0 | CJ106: 0 | CK106: 0 | CL106: 0 | CM106: 0 | CN106: 0 | CO106: 0 | CP106: 0 | CQ106: 0 | CR106: 2 | CS106: 2 | CT106: 4 | CU106: 3 | CV106: 3 | CW106: 7 | CX106: 15 | CY106: 2 | CZ106: 8 | DA106: 219 | DB106: 6 | DC106: 0 | DD106: 0 | DE106: 0 | DF106: 0 | DG106: 0 | DH106: 0 | DI106: 0 | DJ106: 0 | DK106: 0 | DL106: 0 | DM106: 0 | DN106: 0 | DO106: 0 | DP106: 1 | DQ106: 0 | DR106: 0 | DS106: 0 | DT106: 0 | DU106: 0 | DV106: 0 | DW106: 0 | DX106: 0 | DY106: 0 | DZ106: 14 | EA106: 24 | EB106: 13 | EC106: 2 | ED106: 2 | EE106: 2 | EF106: 2 | EG106: 0 | EH106: 0 | EI106: 0 | EJ106: 10 | EK106: 0 | EL106: 3 | EM106: 18 | EN106: 0 | EO106: 0 | EP106: 0 | EQ106: 0 | ER106: 2 | ES106: 0 | ET106: 0 | EU106: 0 | EV106: 2 | EW106: 0 | EX106: 0 | EY106: 42 | EZ106: 0 | FA106: 0 | FB106: 0 | FC106: 5 | FD106: 0 | FE106: 0 | FF106: 0 | FG106: 0 | FH106: 0 | FI106: 0 | FJ106: 0 | FK106: 0 | FL106: 0 | FM106: 0 | FN106: 0 | FO106: 0 | FP106: 0 | FQ106: 0 | FR106: 0 | FS106: 0 | FT106: 0 | FU106: 0 | FV106: 0 | FW106: 0 | FX106: 0 | FY106: 0 | FZ106: 1 | GA106: 0 | GB106: 0 | GC106: 0 | GD106: 0 | GE106: 0 | GF106: 0 | GG106: 0 | GH106: 0 | GI106: 0 | GJ106: 0 | GK106: 0 | GL106: 0 | GM106: 0 | GN106: 0 | GO106: 0 | GP106: 0 | GQ106: 0 | GR106: 0 | GS106: 0 | GT106: 0 | GU106: 0 | GV106: 0 | GW106: 0 | GX106: 0 | GY106: 0 | GZ106: 2 | HA106: 0 | HB106: 0 | HC106: Bacteria | HD106: Firmicutes_A | HE106: Clostridia | HF106: Lachnospirales | HG106: Lachnospiraceae | HH106: Roseburia | HI106: Roseburia inulinivorans
A107: Zotu1102 | B107: 0 | C107: 0 | D107: 0 | E107: 0 | F107: 0 | G107: 0 | H107: 0 | I107: 0 | J107: 0 | K107: 0 | L107: 0 | M107: 0 | N107: 0 | O107: 0 | P107: 0 | Q107: 0 | R107: 0 | S107: 0 | T107: 0 | U107: 0 | V107: 0 | W107: 0 | X107: 0 | Y107: 0 | Z107: 0 | AA107: 1 | AB107: 0 | AC107: 0 | AD107: 0 | AE107: 0 | AF107: 0 | AG107: 0 | AH107: 0 | AI107: 0 | AJ107: 0 | AK107: 0 | AL107: 0 | AM107: 0 | AN107: 0 | AO107: 0 | AP107: 0 | AQ107: 0 | AR107: 0 | AS107: 0 | AT107: 0 | AU107: 0 | AV107: 0 | AW107: 0 | AX107: 0 | AY107: 0 | AZ107: 0 | BA107: 0 | BB107: 0 | BC107: 0 | BD107: 2 | BE107: 0 | BF107: 0 | BG107: 0 | BH107: 0 | BI107: 0 | BJ107: 0 | BK107: 0 | BL107: 0 | BM107: 0 | BN107: 0 | BO107: 0 | BP107: 0 | BQ107: 0 | BR107: 0 | BS107: 0 | BT107: 0 | BU107: 0 | BV107: 0 | BW107: 0 | BX107: 0 | BY107: 0 | BZ107: 0 | CA107: 0 | CB107: 0 | CC107: 0 | CD107: 0 | CE107: 0 | CF107: 0 | CG107: 3 | CH107: 0 | CI107: 2 | CJ107: 0 | CK107: 0 | CL107: 0 | CM107: 0 | CN107: 3 | CO107: 2 | CP107: 6 | CQ107: 2 | CR107: 2 | CS107: 3 | CT107: 1 | CU107: 4 | CV107: 3 | CW107: 1 | CX107: 4 | CY107: 0 | CZ107: 0 | DA107: 0 | DB107: 0 | DC107: 0 | DD107: 1 | DE107: 0 | DF107: 0 | DG107: 1 | DH107: 0 | DI107: 1 | DJ107: 0 | DK107: 0 | DL107: 1 | DM107: 1 | DN107: 0 | DO107: 0 | DP107: 0 | DQ107: 0 | DR107: 0 | DS107: 3 | DT107: 0 | DU107: 2 | DV107: 0 | DW107: 5 | DX107: 3 | DY107: 0 | DZ107: 3 | EA107: 0 | EB107: 3 | EC107: 0 | ED107: 2 | EE107: 0 | EF107: 0 | EG107: 5 | EH107: 0 | EI107: 0 | EJ107: 2 | EK107: 0 | EL107: 0 | EM107: 0 | EN107: 0 | EO107: 0 | EP107: 0 | EQ107: 5 | ER107: 0 | ES107: 2 | ET107: 0 | EU107: 0 | EV107: 2 | EW107: 0 | EX107: 0 | EY107: 0 | EZ107: 0 | FA107: 2 | FB107: 0 | FC107: 5 | FD107: 0 | FE107: 0 | FF107: 0 | FG107: 0 | FH107: 0 | FI107: 0 | FJ107: 0 | FK107: 2 | FL107: 3 | FM107: 0 | FN107: 0 | FO107: 2 | FP107: 0 | FQ107: 0 | FR107: 0 | FS107: 0 | FT107: 0 | FU107: 0 | FV107: 0 | FW107: 0 | FX107: 0 | FY107: 0 | FZ107: 0 | GA107: 0 | GB107: 2 | GC107: 0 | GD107: 2 | GE107: 0 | GF107: 2 | GG107: 6 | GH107: 6 | GI107: 7 | GJ107: 10 | GK107: 6 | GL107: 7 | GM107: 3 | GN107: 5 | GO107: 13 | GP107: 3 | GQ107: 4 | GR107: 4 | GS107: 9 | GT107: 6 | GU107: 6 | GV107: 8 | GW107: 5 | GX107: 7 | GY107: 7 | GZ107: 16 | HA107: 8 | HB107: 7 | HC107: Bacteria | HD107: Proteobacteria | HE107: Alphaproteobacteria | HF107: HIMB59 | HG107: GCA-002718135 | HH107: AG-337-I02 | HI107: AG-337-I02 sp902591485
A108: Zotu1103 | B108: 0 | C108: 0 | D108: 0 | E108: 0 | F108: 0 | G108: 0 | H108: 0 | I108: 0 | J108: 0 | K108: 0 | L108: 0 | M108: 0 | N108: 0 | O108: 0 | P108: 0 | Q108: 0 | R108: 0 | S108: 0 | T108: 0 | U108: 0 | V108: 0 | W108: 0 | X108: 0 | Y108: 0 | Z108: 0 | AA108: 0 | AB108: 0 | AC108: 0 | AD108: 0 | AE108: 0 | AF108: 0 | AG108: 0 | AH108: 0 | AI108: 0 | AJ108: 0 | AK108: 0 | AL108: 0 | AM108: 0 | AN108: 0 | AO108: 0 | AP108: 0 | AQ108: 0 | AR108: 0 | AS108: 0 | AT108: 0 | AU108: 0 | AV108: 0 | AW108: 0 | AX108: 0 | AY108: 0 | AZ108: 0 | BA108: 0 | BB108: 0 | BC108: 0 | BD108: 0 | BE108: 0 | BF108: 0 | BG108: 0 | BH108: 0 | BI108: 0 | BJ108: 0 | BK108: 0 | BL108: 0 | BM108: 0 | BN108: 0 | BO108: 0 | BP108: 2 | BQ108: 0 | BR108: 2 | BS108: 0 | BT108: 0 | BU108: 0 | BV108: 0 | BW108: 0 | BX108: 0 | BY108: 0 | BZ108: 0 | CA108: 0 | CB108: 0 | CC108: 0 | CD108: 0 | CE108: 0 | CF108: 0 | CG108: 0 | CH108: 0 | CI108: 0 | CJ108: 3 | CK108: 2 | CL108: 2 | CM108: 0 | CN108: 0 | CO108: 5 | CP108: 1 | CQ108: 1 | CR108: 1 | CS108: 6 | CT108: 1 | CU108: 1 | CV108: 1 | CW108: 1 | CX108: 1 | CY108: 2 | CZ108: 5 | DA108: 6 | DB108: 3 | DC108: 0 | DD108: 1 | DE108: 0 | DF108: 1 | DG108: 0 | DH108: 2 | DI108: 0 | DJ108: 2 | DK108: 1 | DL108: 2 | DM108: 0 | DN108: 1 | DO108: 0 | DP108: 0 | DQ108: 0 | DR108: 0 | DS108: 2 | DT108: 0 | DU108: 3 | DV108: 2 | DW108: 0 | DX108: 0 | DY108: 0 | DZ108: 0 | EA108: 0 | EB108: 0 | EC108: 0 | ED108: 2 | EE108: 0 | EF108: 0 | EG108: 2 | EH108: 2 | EI108: 0 | EJ108: 3 | EK108: 0 | EL108: 2 | EM108: 0 | EN108: 0 | EO108: 0 | EP108: 3 | EQ108: 0 | ER108: 0 | ES108: 0 | ET108: 0 | EU108: 0 | EV108: 0 | EW108: 0 | EX108: 0 | EY108: 0 | EZ108: 0 | FA108: 0 | FB108: 0 | FC108: 0 | FD108: 0 | FE108: 0 | FF108: 0 | FG108: 0 | FH108: 0 | FI108: 0 | FJ108: 0 | FK108: 0 | FL108: 0 | FM108: 0 | FN108: 0 | FO108: 0 | FP108: 0 | FQ108: 0 | FR108: 0 | FS108: 0 | FT108: 2 | FU108: 2 | FV108: 0 | FW108: 2 | FX108: 0 | FY108: 0 | FZ108: 1 | GA108: 1 | GB108: 1 | GC108: 1 | GD108: 1 | GE108: 0 | GF108: 0 | GG108: 4 | GH108: 0 | GI108: 2 | GJ108: 7 | GK108: 8 | GL108: 2 | GM108: 3 | GN108: 5 | GO108: 10 | GP108: 4 | GQ108: 5 | GR108: 8 | GS108: 16 | GT108: 3 | GU108: 9 | GV108: 10 | GW108: 5 | GX108: 11 | GY108: 4 | GZ108: 5 | HA108: 8 | HB108: 3 | HC108: Bacteria | HD108: Proteobacteria | HE108: Gammaproteobacteria | HF108: HTCC5015 | HG108: HTCC5015 | HH108: HTCC5015 | HI108: HTCC5015 sp000155715
A109: Zotu1104 | B109: 0 | C109: 0 | D109: 0 | E109: 0 | F109: 0 | G109: 0 | H109: 0 | I109: 0 | J109: 0 | K109: 0 | L109: 0 | M109: 0 | N109: 0 | O109: 0 | P109: 0 | Q109: 0 | R109: 0 | S109: 0 | T109: 0 | U109: 0 | V109: 0 | W109: 0 | X109: 0 | Y109: 0 | Z109: 0 | AA109: 0 | AB109: 0 | AC109: 0 | AD109: 0 | AE109: 0 | AF109: 0 | AG109: 0 | AH109: 0 | AI109: 0 | AJ109: 0 | AK109: 0 | AL109: 0 | AM109: 0 | AN109: 0 | AO109: 0 | AP109: 0 | AQ109: 0 | AR109: 0 | AS109: 0 | AT109: 0 | AU109: 0 | AV109: 0 | AW109: 0 | AX109: 0 | AY109: 0 | AZ109: 0 | BA109: 0 | BB109: 0 | BC109: 0 | BD109: 0 | BE109: 0 | BF109: 0 | BG109: 0 | BH109: 0 | BI109: 0 | BJ109: 0 | BK109: 0 | BL109: 0 | BM109: 0 | BN109: 0 | BO109: 0 | BP109: 0 | BQ109: 0 | BR109: 0 | BS109: 0 | BT109: 0 | BU109: 0 | BV109: 0 | BW109: 0 | BX109: 0 | BY109: 0 | BZ109: 0 | CA109: 0 | CB109: 0 | CC109: 0 | CD109: 0 | CE109: 0 | CF109: 0 | CG109: 2 | CH109: 0 | CI109: 0 | CJ109: 0 | CK109: 0 | CL109: 2 | CM109: 0 | CN109: 0 | CO109: 0 | CP109: 1 | CQ109: 6 | CR109: 2 | CS109: 1 | CT109: 0 | CU109: 4 | CV109: 2 | CW109: 0 | CX109: 1 | CY109: 0 | CZ109: 3 | DA109: 0 | DB109: 5 | DC109: 1 | DD109: 3 | DE109: 4 | DF109: 3 | DG109: 0 | DH109: 2 | DI109: 3 | DJ109: 2 | DK109: 1 | DL109: 0 | DM109: 5 | DN109: 1 | DO109: 3 | DP109: 0 | DQ109: 4 | DR109: 0 | DS109: 0 | DT109: 0 | DU109: 0 | DV109: 1 | DW109: 0 | DX109: 0 | DY109: 2 | DZ109: 2 | EA109: 0 | EB109: 0 | EC109: 0 | ED109: 6 | EE109: 0 | EF109: 2 | EG109: 0 | EH109: 0 | EI109: 0 | EJ109: 0 | EK109: 0 | EL109: 0 | EM109: 0 | EN109: 0 | EO109: 0 | EP109: 2 | EQ109: 0 | ER109: 3 | ES109: 2 | ET109: 0 | EU109: 0 | EV109: 0 | EW109: 0 | EX109: 0 | EY109: 2 | EZ109: 0 | FA109: 0 | FB109: 0 | FC109: 0 | FD109: 2 | FE109: 2 | FF109: 0 | FG109: 0 | FH109: 0 | FI109: 0 | FJ109: 3 | FK109: 2 | FL109: 2 | FM109: 0 | FN109: 0 | FO109: 0 | FP109: 2 | FQ109: 0 | FR109: 0 | FS109: 0 | FT109: 2 | FU109: 0 | FV109: 2 | FW109: 0 | FX109: 0 | FY109: 0 | FZ109: 4 | GA109: 0 | GB109: 1 | GC109: 0 | GD109: 2 | GE109: 1 | GF109: 1 | GG109: 8 | GH109: 1 | GI109: 6 | GJ109: 7 | GK109: 6 | GL109: 6 | GM109: 5 | GN109: 4 | GO109: 7 | GP109: 8 | GQ109: 13 | GR109: 11 | GS109: 5 | GT109: 13 | GU109: 7 | GV109: 2 | GW109: 5 | GX109: 17 | GY109: 3 | GZ109: 2 | HA109: 6 | HB109: 13 | HC109: Bacteria | HD109: Proteobacteria | HE109: Gammaproteobacteria | HF109: Enterobacterales | HG109: Vibrionaceae | HH109: Vibrio | HI109: Vibrio aquimaris
A110: Zotu1105 | B110: 0 | C110: 0 | D110: 0 | E110: 0 | F110: 0 | G110: 0 | H110: 0 | I110: 0 | J110: 0 | K110: 0 | L110: 0 | M110: 0 | N110: 0 | O110: 0 | P110: 0 | Q110: 0 | R110: 0 | S110: 0 | T110: 0 | U110: 0 | V110: 0 | W110: 0 | X110: 0 | Y110: 0 | Z110: 0 | AA110: 0 | AB110: 0 | AC110: 0 | AD110: 0 | AE110: 0 | AF110: 0 | AG110: 0 | AH110: 0 | AI110: 0 | AJ110: 0 | AK110: 0 | AL110: 0 | AM110: 0 | AN110: 0 | AO110: 0 | AP110: 0 | AQ110: 0 | AR110: 0 | AS110: 0 | AT110: 0 | AU110: 0 | AV110: 0 | AW110: 0 | AX110: 0 | AY110: 0 | AZ110: 0 | BA110: 0 | BB110: 0 | BC110: 0 | BD110: 0 | BE110: 0 | BF110: 0 | BG110: 0 | BH110: 0 | BI110: 0 | BJ110: 0 | BK110: 0 | BL110: 0 | BM110: 0 | BN110: 0 | BO110: 0 | BP110: 0 | BQ110: 0 | BR110: 0 | BS110: 0 | BT110: 0 | BU110: 0 | BV110: 0 | BW110: 0 | BX110: 0 | BY110: 0 | BZ110: 0 | CA110: 0 | CB110: 0 | CC110: 0 | CD110: 0 | CE110: 0 | CF110: 0 | CG110: 0 | CH110: 0 | CI110: 3 | CJ110: 0 | CK110: 0 | CL110: 0 | CM110: 0 | CN110: 10 | CO110: 0 | CP110: 1 | CQ110: 3 | CR110: 2 | CS110: 2 | CT110: 1 | CU110: 6 | CV110: 2 | CW110: 3 | CX110: 0 | CY110: 0 | CZ110: 4 | DA110: 0 | DB110: 0 | DC110: 0 | DD110: 0 | DE110: 0 | DF110: 4 | DG110: 0 | DH110: 1 | DI110: 2 | DJ110: 3 | DK110: 0 | DL110: 2 | DM110: 0 | DN110: 1 | DO110: 3 | DP110: 1 | DQ110: 1 | DR110: 0 | DS110: 0 | DT110: 0 | DU110: 0 | DV110: 0 | DW110: 0 | DX110: 1 | DY110: 0 | DZ110: 0 | EA110: 0 | EB110: 3 | EC110: 0 | ED110: 0 | EE110: 0 | EF110: 0 | EG110: 3 | EH110: 2 | EI110: 0 | EJ110: 0 | EK110: 0 | EL110: 2 | EM110: 0 | EN110: 0 | EO110: 0 | EP110: 0 | EQ110: 0 | ER110: 0 | ES110: 0 | ET110: 0 | EU110: 0 | EV110: 0 | EW110: 0 | EX110: 0 | EY110: 0 | EZ110: 0 | FA110: 0 | FB110: 0 | FC110: 0 | FD110: 0 | FE110: 0 | FF110: 0 | FG110: 0 | FH110: 0 | FI110: 0 | FJ110: 0 | FK110: 0 | FL110: 0 | FM110: 2 | FN110: 0 | FO110: 0 | FP110: 0 | FQ110: 0 | FR110: 0 | FS110: 0 | FT110: 0 | FU110: 0 | FV110: 0 | FW110: 0 | FX110: 0 | FY110: 0 | FZ110: 1 | GA110: 1 | GB110: 0 | GC110: 0 | GD110: 7 | GE110: 0 | GF110: 0 | GG110: 0 | GH110: 0 | GI110: 0 | GJ110: 4 | GK110: 7 | GL110: 2 | GM110: 1 | GN110: 4 | GO110: 12 | GP110: 4 | GQ110: 9 | GR110: 2 | GS110: 9 | GT110: 2 | GU110: 8 | GV110: 12 | GW110: 4 | GX110: 7 | GY110: 12 | GZ110: 13 | HA110: 4 | HB110: 2 | HC110: Bacteria | HD110: Cyanobacteria | HE110: Cyanobacteriia | HF110: PCC-7407 | HG110: PCC-7407 | HH110: PCC-7407 | HI110: PCC-7407 sp000317045
A111: Zotu1106 | B111: 0 | C111: 0 | D111: 0 | E111: 0 | F111: 0 | G111: 0 | H111: 0 | I111: 0 | J111: 0 | K111: 0 | L111: 0 | M111: 0 | N111: 0 | O111: 0 | P111: 0 | Q111: 0 | R111: 0 | S111: 0 | T111: 0 | U111: 0 | V111: 0 | W111: 0 | X111: 0 | Y111: 0 | Z111: 0 | AA111: 0 | AB111: 0 | AC111: 0 | AD111: 0 | AE111: 0 | AF111: 0 | AG111: 0 | AH111: 0 | AI111: 0 | AJ111: 0 | AK111: 0 | AL111: 0 | AM111: 0 | AN111: 0 | AO111: 0 | AP111: 0 | AQ111: 0 | AR111: 0 | AS111: 0 | AT111: 0 | AU111: 0 | AV111: 0 | AW111: 0 | AX111: 0 | AY111: 0 | AZ111: 0 | BA111: 0 | BB111: 0 | BC111: 0 | BD111: 0 | BE111: 0 | BF111: 0 | BG111: 0 | BH111: 0 | BI111: 0 | BJ111: 0 | BK111: 0 | BL111: 0 | BM111: 0 | BN111: 0 | BO111: 0 | BP111: 0 | BQ111: 0 | BR111: 0 | BS111: 0 | BT111: 0 | BU111: 0 | BV111: 0 | BW111: 0 | BX111: 0 | BY111: 0 | BZ111: 0 | CA111: 0 | CB111: 0 | CC111: 0 | CD111: 0 | CE111: 0 | CF111: 0 | CG111: 0 | CH111: 0 | CI111: 0 | CJ111: 0 | CK111: 0 | CL111: 0 | CM111: 0 | CN111: 12 | CO111: 6 | CP111: 7 | CQ111: 10 | CR111: 6 | CS111: 1 | CT111: 0 | CU111: 3 | CV111: 3 | CW111: 3 | CX111: 0 | CY111: 0 | CZ111: 3 | DA111: 2 | DB111: 3 | DC111: 0 | DD111: 1 | DE111: 2 | DF111: 1 | DG111: 0 | DH111: 1 | DI111: 0 | DJ111: 4 | DK111: 0 | DL111: 2 | DM111: 0 | DN111: 1 | DO111: 0 | DP111: 0 | DQ111: 1 | DR111: 0 | DS111: 0 | DT111: 0 | DU111: 0 | DV111: 0 | DW111: 0 | DX111: 0 | DY111: 0 | DZ111: 0 | EA111: 0 | EB111: 0 | EC111: 0 | ED111: 0 | EE111: 0 | EF111: 0 | EG111: 0 | EH111: 0 | EI111: 0 | EJ111: 0 | EK111: 0 | EL111: 2 | EM111: 0 | EN111: 0 | EO111: 0 | EP111: 0 | EQ111: 0 | ER111: 0 | ES111: 0 | ET111: 0 | EU111: 0 | EV111: 0 | EW111: 2 | EX111: 0 | EY111: 0 | EZ111: 0 | FA111: 0 | FB111: 2 | FC111: 0 | FD111: 0 | FE111: 0 | FF111: 0 | FG111: 0 | FH111: 0 | FI111: 0 | FJ111: 0 | FK111: 0 | FL111: 0 | FM111: 0 | FN111: 0 | FO111: 0 | FP111: 2 | FQ111: 0 | FR111: 0 | FS111: 0 | FT111: 0 | FU111: 0 | FV111: 2 | FW111: 3 | FX111: 0 | FY111: 0 | FZ111: 2 | GA111: 1 | GB111: 0 | GC111: 0 | GD111: 0 | GE111: 0 | GF111: 0 | GG111: 0 | GH111: 1 | GI111: 1 | GJ111: 1 | GK111: 0 | GL111: 2 | GM111: 1 | GN111: 2 | GO111: 3 | GP111: 4 | GQ111: 5 | GR111: 5 | GS111: 16 | GT111: 4 | GU111: 3 | GV111: 6 | GW111: 6 | GX111: 4 | GY111: 2 | GZ111: 9 | HA111: 8 | HB111: 12 | HC111: Archaea | HD111: Asgardarchaeota | HE111: Lokiarchaeia | HF111: CR-4 | HG111: SOKP01 | HH111: SOKP01 | HI111: SOKP01 sp013375475
A112: Zotu1107 | B112: 0 | C112: 0 | D112: 0 | E112: 0 | F112: 0 | G112: 0 | H112: 0 | I112: 0 | J112: 0 | K112: 0 | L112: 0 | M112: 0 | N112: 0 | O112: 0 | P112: 0 | Q112: 0 | R112: 0 | S112: 0 | T112: 0 | U112: 0 | V112: 0 | W112: 0 | X112: 0 | Y112: 0 | Z112: 0 | AA112: 0 | AB112: 0 | AC112: 0 | AD112: 0 | AE112: 0 | AF112: 0 | AG112: 0 | AH112: 0 | AI112: 0 | AJ112: 0 | AK112: 0 | AL112: 0 | AM112: 0 | AN112: 0 | AO112: 0 | AP112: 0 | AQ112: 0 | AR112: 0 | AS112: 0 | AT112: 0 | AU112: 0 | AV112: 0 | AW112: 0 | AX112: 0 | AY112: 0 | AZ112: 0 | BA112: 0 | BB112: 0 | BC112: 0 | BD112: 0 | BE112: 0 | BF112: 0 | BG112: 0 | BH112: 0 | BI112: 0 | BJ112: 0 | BK112: 0 | BL112: 0 | BM112: 0 | BN112: 0 | BO112: 0 | BP112: 0 | BQ112: 0 | BR112: 0 | BS112: 0 | BT112: 0 | BU112: 0 | BV112: 0 | BW112: 0 | BX112: 0 | BY112: 0 | BZ112: 0 | CA112: 0 | CB112: 0 | CC112: 0 | CD112: 0 | CE112: 0 | CF112: 0 | CG112: 0 | CH112: 0 | CI112: 0 | CJ112: 0 | CK112: 0 | CL112: 0 | CM112: 0 | CN112: 0 | CO112: 0 | CP112: 0 | CQ112: 0 | CR112: 0 | CS112: 0 | CT112: 0 | CU112: 0 | CV112: 0 | CW112: 0 | CX112: 0 | CY112: 0 | CZ112: 0 | DA112: 0 | DB112: 0 | DC112: 0 | DD112: 0 | DE112: 0 | DF112: 0 | DG112: 0 | DH112: 0 | DI112: 0 | DJ112: 0 | DK112: 0 | DL112: 0 | DM112: 0 | DN112: 0 | DO112: 0 | DP112: 0 | DQ112: 0 | DR112: 0 | DS112: 0 | DT112: 0 | DU112: 0 | DV112: 0 | DW112: 0 | DX112: 0 | DY112: 0 | DZ112: 0 | EA112: 0 | EB112: 0 | EC112: 0 | ED112: 0 | EE112: 0 | EF112: 0 | EG112: 0 | EH112: 0 | EI112: 0 | EJ112: 0 | EK112: 0 | EL112: 0 | EM112: 0 | EN112: 0 | EO112: 0 | EP112: 0 | EQ112: 0 | ER112: 0 | ES112: 0 | ET112: 0 | EU112: 0 | EV112: 0 | EW112: 0 | EX112: 0 | EY112: 0 | EZ112: 0 | FA112: 0 | FB112: 0 | FC112: 0 | FD112: 0 | FE112: 0 | FF112: 0 | FG112: 0 | FH112: 0 | FI112: 0 | FJ112: 0 | FK112: 0 | FL112: 0 | FM112: 0 | FN112: 0 | FO112: 0 | FP112: 0 | FQ112: 0 | FR112: 0 | FS112: 0 | FT112: 0 | FU112: 0 | FV112: 0 | FW112: 0 | FX112: 0 | FY112: 0 | FZ112: 0 | GA112: 0 | GB112: 0 | GC112: 0 | GD112: 0 | GE112: 0 | GF112: 0 | GG112: 1 | GH112: 1 | GI112: 0 | GJ112: 1 | GK112: 0 | GL112: 4 | GM112: 1 | GN112: 2 | GO112: 10 | GP112: 2 | GQ112: 4 | GR112: 11 | GS112: 22 | GT112: 5 | GU112: 6 | GV112: 12 | GW112: 8 | GX112: 8 | GY112: 9 | GZ112: 9 | HA112: 13 | HB112: 9 | HC112: Archaea | HD112: Asgardarchaeota | HE112: Lokiarchaeia | HF112: CR-4 | HG112: SOKP01 | HH112: SOKP01 | HI112: SOKP01 sp013375475
A113: Zotu1108 | B113: 0 | C113: 0 | D113: 0 | E113: 0 | F113: 0 | G113: 0 | H113: 0 | I113: 0 | J113: 0 | K113: 0 | L113: 0 | M113: 0 | N113: 0 | O113: 0 | P113: 0 | Q113: 0 | R113: 0 | S113: 0 | T113: 0 | U113: 0 | V113: 0 | W113: 0 | X113: 0 | Y113: 0 | Z113: 0 | AA113: 1 | AB113: 0 | AC113: 0 | AD113: 0 | AE113: 0 | AF113: 0 | AG113: 0 | AH113: 0 | AI113: 0 | AJ113: 0 | AK113: 0 | AL113: 0 | AM113: 0 | AN113: 0 | AO113: 0 | AP113: 0 | AQ113: 0 | AR113: 0 | AS113: 0 | AT113: 0 | AU113: 0 | AV113: 0 | AW113: 0 | AX113: 0 | AY113: 0 | AZ113: 0 | BA113: 0 | BB113: 0 | BC113: 0 | BD113: 0 | BE113: 0 | BF113: 2 | BG113: 0 | BH113: 0 | BI113: 0 | BJ113: 0 | BK113: 0 | BL113: 0 | BM113: 0 | BN113: 0 | BO113: 0 | BP113: 2 | BQ113: 2 | BR113: 0 | BS113: 3 | BT113: 0 | BU113: 0 | BV113: 0 | BW113: 0 | BX113: 0 | BY113: 0 | BZ113: 0 | CA113: 0 | CB113: 0 | CC113: 0 | CD113: 0 | CE113: 2 | CF113: 0 | CG113: 0 | CH113: 0 | CI113: 0 | CJ113: 3 | CK113: 0 | CL113: 0 | CM113: 0 | CN113: 2 | CO113: 5 | CP113: 6 | CQ113: 4 | CR113: 3 | CS113: 3 | CT113: 4 | CU113: 3 | CV113: 3 | CW113: 1 | CX113: 4 | CY113: 0 | CZ113: 4 | DA113: 2 | DB113: 1 | DC113: 1 | DD113: 3 | DE113: 4 | DF113: 0 | DG113: 0 | DH113: 0 | DI113: 4 | DJ113: 0 | DK113: 1 | DL113: 1 | DM113: 0 | DN113: 1 | DO113: 0 | DP113: 0 | DQ113: 1 | DR113: 0 | DS113: 0 | DT113: 0 | DU113: 0 | DV113: 1 | DW113: 0 | DX113: 0 | DY113: 0 | DZ113: 0 | EA113: 0 | EB113: 1 | EC113: 0 | ED113: 0 | EE113: 3 | EF113: 0 | EG113: 0 | EH113: 2 | EI113: 1 | EJ113: 0 | EK113: 2 | EL113: 0 | EM113: 0 | EN113: 2 | EO113: 0 | EP113: 0 | EQ113: 0 | ER113: 5 | ES113: 3 | ET113: 5 | EU113: 0 | EV113: 0 | EW113: 0 | EX113: 0 | EY113: 0 | EZ113: 0 | FA113: 0 | FB113: 2 | FC113: 0 | FD113: 2 | FE113: 0 | FF113: 0 | FG113: 0 | FH113: 0 | FI113: 2 | FJ113: 0 | FK113: 2 | FL113: 0 | FM113: 0 | FN113: 0 | FO113: 2 | FP113: 2 | FQ113: 0 | FR113: 0 | FS113: 0 | FT113: 0 | FU113: 0 | FV113: 0 | FW113: 3 | FX113: 0 | FY113: 2 | FZ113: 3 | GA113: 0 | GB113: 1 | GC113: 2 | GD113: 0 | GE113: 0 | GF113: 1 | GG113: 3 | GH113: 4 | GI113: 1 | GJ113: 2 | GK113: 1 | GL113: 2 | GM113: 1 | GN113: 1 | GO113: 2 | GP113: 1 | GQ113: 0 | GR113: 4 | GS113: 5 | GT113: 1 | GU113: 2 | GV113: 3 | GW113: 5 | GX113: 1 | GY113: 1 | GZ113: 2 | HA113: 1 | HB113: 2 | HC113: Bacteria | HD113: Proteobacteria | HE113: Gammaproteobacteria | HF113: Ga0077536_A | HG113: Ga0077536_A | HH113: TMED69 | HI113: TMED69 sp002170535
A114: Zotu1109 | B114: 0 | C114: 0 | D114: 0 | E114: 0 | F114: 0 | G114: 0 | H114: 0 | I114: 0 | J114: 0 | K114: 0 | L114: 0 | M114: 0 | N114: 0 | O114: 0 | P114: 0 | Q114: 0 | R114: 0 | S114: 0 | T114: 0 | U114: 0 | V114: 0 | W114: 0 | X114: 0 | Y114: 0 | Z114: 0 | AA114: 0 | AB114: 0 | AC114: 0 | AD114: 0 | AE114: 0 | AF114: 0 | AG114: 0 | AH114: 0 | AI114: 0 | AJ114: 0 | AK114: 0 | AL114: 0 | AM114: 0 | AN114: 0 | AO114: 0 | AP114: 0 | AQ114: 0 | AR114: 0 | AS114: 0 | AT114: 0 | AU114: 0 | AV114: 0 | AW114: 0 | AX114: 0 | AY114: 0 | AZ114: 0 | BA114: 0 | BB114: 0 | BC114: 0 | BD114: 0 | BE114: 0 | BF114: 0 | BG114: 0 | BH114: 0 | BI114: 0 | BJ114: 0 | BK114: 0 | BL114: 0 | BM114: 0 | BN114: 0 | BO114: 0 | BP114: 0 | BQ114: 0 | BR114: 0 | BS114: 0 | BT114: 0 | BU114: 0 | BV114: 0 | BW114: 0 | BX114: 0 | BY114: 0 | BZ114: 0 | CA114: 0 | CB114: 2 | CC114: 0 | CD114: 0 | CE114: 0 | CF114: 0 | CG114: 0 | CH114: 0 | CI114: 2 | CJ114: 0 | CK114: 0 | CL114: 0 | CM114: 2 | CN114: 3 | CO114: 3 | CP114: 2 | CQ114: 4 | CR114: 6 | CS114: 2 | CT114: 2 | CU114: 3 | CV114: 1 | CW114: 2 | CX114: 1 | CY114: 0 | CZ114: 4 | DA114: 0 | DB114: 1 | DC114: 0 | DD114: 1 | DE114: 1 | DF114: 0 | DG114: 0 | DH114: 0 | DI114: 0 | DJ114: 6 | DK114: 2 | DL114: 0 | DM114: 0 | DN114: 5 | DO114: 0 | DP114: 1 | DQ114: 0 | DR114: 0 | DS114: 0 | DT114: 0 | DU114: 2 | DV114: 0 | DW114: 0 | DX114: 0 | DY114: 0 | DZ114: 0 | EA114: 0 | EB114: 0 | EC114: 0 | ED114: 0 | EE114: 3 | EF114: 0 | EG114: 0 | EH114: 0 | EI114: 0 | EJ114: 0 | EK114: 0 | EL114: 0 | EM114: 0 | EN114: 0 | EO114: 0 | EP114: 0 | EQ114: 0 | ER114: 0 | ES114: 0 | ET114: 0 | EU114: 0 | EV114: 0 | EW114: 0 | EX114: 0 | EY114: 0 | EZ114: 0 | FA114: 0 | FB114: 0 | FC114: 0 | FD114: 0 | FE114: 0 | FF114: 0 | FG114: 0 | FH114: 0 | FI114: 0 | FJ114: 0 | FK114: 0 | FL114: 0 | FM114: 2 | FN114: 0 | FO114: 0 | FP114: 0 | FQ114: 0 | FR114: 0 | FS114: 0 | FT114: 0 | FU114: 0 | FV114: 0 | FW114: 0 | FX114: 0 | FY114: 0 | FZ114: 1 | GA114: 0 | GB114: 0 | GC114: 0 | GD114: 0 | GE114: 0 | GF114: 0 | GG114: 0 | GH114: 0 | GI114: 2 | GJ114: 2 | GK114: 2 | GL114: 2 | GM114: 7 | GN114: 4 | GO114: 6 | GP114: 3 | GQ114: 2 | GR114: 3 | GS114: 2 | GT114: 1 | GU114: 2 | GV114: 6 | GW114: 9 | GX114: 7 | GY114: 11 | GZ114: 5 | HA114: 12 | HB114: 1 | HC114: Bacteria | HD114: Proteobacteria | HE114: Alphaproteobacteria | HF114: Rhodobacterales | HG114: Rhodobacteraceae | HH114: Maritimibacter | HI114: Thalassobius autumnalis
A115: Zotu111 | B115: 0 | C115: 0 | D115: 0 | E115: 1 | F115: 0 | G115: 0 | H115: 0 | I115: 0 | J115: 0 | K115: 0 | L115: 1 | M115: 0 | N115: 0 | O115: 0 | P115: 0 | Q115: 0 | R115: 0 | S115: 0 | T115: 0 | U115: 0 | V115: 0 | W115: 0 | X115: 0 | Y115: 0 | Z115: 1 | AA115: 0 | AB115: 0 | AC115: 0 | AD115: 0 | AE115: 0 | AF115: 0 | AG115: 0 | AH115: 0 | AI115: 0 | AJ115: 0 | AK115: 0 | AL115: 0 | AM115: 0 | AN115: 0 | AO115: 0 | AP115: 0 | AQ115: 0 | AR115: 1 | AS115: 0 | AT115: 0 | AU115: 0 | AV115: 0 | AW115: 0 | AX115: 1 | AY115: 0 | AZ115: 0 | BA115: 1 | BB115: 0 | BC115: 0 | BD115: 7 | BE115: 0 | BF115: 2 | BG115: 8 | BH115: 0 | BI115: 1 | BJ115: 0 | BK115: 2 | BL115: 0 | BM115: 1 | BN115: 0 | BO115: 0 | BP115: 10 | BQ115: 3 | BR115: 3 | BS115: 2 | BT115: 0 | BU115: 1 | BV115: 0 | BW115: 0 | BX115: 1 | BY115: 0 | BZ115: 1 | CA115: 0 | CB115: 14 | CC115: 8 | CD115: 3 | CE115: 2 | CF115: 0 | CG115: 5 | CH115: 7 | CI115: 6 | CJ115: 6 | CK115: 8 | CL115: 3 | CM115: 13 | CN115: 50 | CO115: 21 | CP115: 67 | CQ115: 40 | CR115: 38 | CS115: 59 | CT115: 43 | CU115: 57 | CV115: 37 | CW115: 111 | CX115: 33 | CY115: 14 | CZ115: 80 | DA115: 17 | DB115: 35 | DC115: 95 | DD115: 106 | DE115: 72 | DF115: 94 | DG115: 42 | DH115: 73 | DI115: 80 | DJ115: 65 | DK115: 123 | DL115: 107 | DM115: 74 | DN115: 49 | DO115: 80 | DP115: 75 | DQ115: 69 | DR115: 5 | DS115: 17 | DT115: 9 | DU115: 44 | DV115: 28 | DW115: 24 | DX115: 14 | DY115: 31 | DZ115: 5 | EA115: 6 | EB115: 22 | EC115: 5 | ED115: 11 | EE115: 9 | EF115: 24 | EG115: 14 | EH115: 15 | EI115: 22 | EJ115: 18 | EK115: 8 | EL115: 11 | EM115: 3 | EN115: 11 | EO115: 3 | EP115: 13 | EQ115: 29 | ER115: 12 | ES115: 13 | ET115: 13 | EU115: 10 | EV115: 11 | EW115: 21 | EX115: 15 | EY115: 14 | EZ115: 14 | FA115: 2 | FB115: 34 | FC115: 30 | FD115: 40 | FE115: 26 | FF115: 29 | FG115: 28 | FH115: 30 | FI115: 17 | FJ115: 35 | FK115: 28 | FL115: 17 | FM115: 34 | FN115: 32 | FO115: 21 | FP115: 27 | FQ115: 22 | FR115: 16 | FS115: 15 | FT115: 20 | FU115: 6 | FV115: 20 | FW115: 30 | FX115: 4 | FY115: 32 | FZ115: 89 | GA115: 101 | GB115: 72 | GC115: 94 | GD115: 58 | GE115: 113 | GF115: 68 | GG115: 497 | GH115: 216 | GI115: 173 | GJ115: 195 | GK115: 144 | GL115: 152 | GM115: 140 | GN115: 156 | GO115: 596 | GP115: 341 | GQ115: 308 | GR115: 412 | GS115: 419 | GT115: 413 | GU115: 351 | GV115: 404 | GW115: 439 | GX115: 464 | GY115: 426 | GZ115: 552 | HA115: 586 | HB115: 368 | HC115: Bacteria | HD115: Bacteroidota | HE115: Bacteroidia | HF115: Flavobacteriales | HG115: Schleiferiaceae | HH115: UBA10364 | HI115: UBA10364 sp003385605
A116: Zotu1110 | B116: 0 | C116: 0 | D116: 0 | E116: 0 | F116: 0 | G116: 0 | H116: 0 | I116: 0 | J116: 0 | K116: 0 | L116: 0 | M116: 0 | N116: 0 | O116: 0 | P116: 0 | Q116: 0 | R116: 0 | S116: 0 | T116: 0 | U116: 0 | V116: 0 | W116: 0 | X116: 0 | Y116: 0 | Z116: 0 | AA116: 0 | AB116: 0 | AC116: 0 | AD116: 0 | AE116: 0 | AF116: 0 | AG116: 0 | AH116: 0 | AI116: 0 | AJ116: 0 | AK116: 0 | AL116: 0 | AM116: 0 | AN116: 0 | AO116: 0 | AP116: 0 | AQ116: 0 | AR116: 0 | AS116: 0 | AT116: 0 | AU116: 0 | AV116: 0 | AW116: 0 | AX116: 0 | AY116: 0 | AZ116: 0 | BA116: 0 | BB116: 0 | BC116: 0 | BD116: 0 | BE116: 0 | BF116: 0 | BG116: 0 | BH116: 0 | BI116: 0 | BJ116: 0 | BK116: 0 | BL116: 0 | BM116: 0 | BN116: 0 | BO116: 0 | BP116: 2 | BQ116: 0 | BR116: 0 | BS116: 0 | BT116: 0 | BU116: 0 | BV116: 0 | BW116: 0 | BX116: 0 | BY116: 0 | BZ116: 0 | CA116: 0 | CB116: 0 | CC116: 0 | CD116: 0 | CE116: 0 | CF116: 0 | CG116: 0 | CH116: 0 | CI116: 0 | CJ116: 0 | CK116: 0 | CL116: 0 | CM116: 0 | CN116: 6 | CO116: 2 | CP116: 2 | CQ116: 2 | CR116: 6 | CS116: 1 | CT116: 0 | CU116: 3 | CV116: 1 | CW116: 1 | CX116: 1 | CY116: 0 | CZ116: 1 | DA116: 0 | DB116: 1 | DC116: 0 | DD116: 3 | DE116: 4 | DF116: 1 | DG116: 7 | DH116: 0 | DI116: 4 | DJ116: 5 | DK116: 3 | DL116: 1 | DM116: 0 | DN116: 3 | DO116: 4 | DP116: 2 | DQ116: 1 | DR116: 0 | DS116: 0 | DT116: 0 | DU116: 0 | DV116: 0 | DW116: 3 | DX116: 0 | DY116: 2 | DZ116: 0 | EA116: 0 | EB116: 4 | EC116: 0 | ED116: 2 | EE116: 0 | EF116: 0 | EG116: 0 | EH116: 0 | EI116: 0 | EJ116: 0 | EK116: 0 | EL116: 0 | EM116: 0 | EN116: 0 | EO116: 0 | EP116: 0 | EQ116: 0 | ER116: 0 | ES116: 0 | ET116: 0 | EU116: 0 | EV116: 0 | EW116: 0 | EX116: 0 | EY116: 0 | EZ116: 0 | FA116: 0 | FB116: 0 | FC116: 0 | FD116: 0 | FE116: 0 | FF116: 0 | FG116: 0 | FH116: 2 | FI116: 0 | FJ116: 0 | FK116: 0 | FL116: 0 | FM116: 0 | FN116: 5 | FO116: 0 | FP116: 2 | FQ116: 0 | FR116: 0 | FS116: 0 | FT116: 0 | FU116: 0 | FV116: 2 | FW116: 2 | FX116: 0 | FY116: 0 | FZ116: 2 | GA116: 1 | GB116: 2 | GC116: 3 | GD116: 4 | GE116: 1 | GF116: 0 | GG116: 1 | GH116: 4 | GI116: 5 | GJ116: 3 | GK116: 2 | GL116: 4 | GM116: 6 | GN116: 8 | GO116: 2 | GP116: 6 | GQ116: 3 | GR116: 2 | GS116: 2 | GT116: 2 | GU116: 2 | GV116: 2 | GW116: 3 | GX116: 1 | GY116: 1 | GZ116: 2 | HA116: 1 | HB116: 2 | HC116: Bacteria | HD116: Proteobacteria | HE116: Alphaproteobacteria | HF116: Rhodobacterales | HG116: Rhodobacteraceae | HH116: Mameliella | HI116: Mameliella alba
A117: Zotu1111 | B117: 0 | C117: 0 | D117: 0 | E117: 0 | F117: 0 | G117: 0 | H117: 0 | I117: 0 | J117: 0 | K117: 0 | L117: 0 | M117: 0 | N117: 0 | O117: 0 | P117: 0 | Q117: 0 | R117: 0 | S117: 0 | T117: 0 | U117: 0 | V117: 0 | W117: 0 | X117: 0 | Y117: 0 | Z117: 1 | AA117: 0 | AB117: 0 | AC117: 0 | AD117: 0 | AE117: 0 | AF117: 0 | AG117: 0 | AH117: 0 | AI117: 0 | AJ117: 0 | AK117: 0 | AL117: 0 | AM117: 0 | AN117: 0 | AO117: 0 | AP117: 0 | AQ117: 0 | AR117: 0 | AS117: 0 | AT117: 0 | AU117: 0 | AV117: 0 | AW117: 0 | AX117: 0 | AY117: 0 | AZ117: 0 | BA117: 0 | BB117: 0 | BC117: 0 | BD117: 0 | BE117: 0 | BF117: 2 | BG117: 0 | BH117: 0 | BI117: 0 | BJ117: 1 | BK117: 0 | BL117: 0 | BM117: 0 | BN117: 0 | BO117: 0 | BP117: 2 | BQ117: 0 | BR117: 0 | BS117: 0 | BT117: 0 | BU117: 0 | BV117: 0 | BW117: 0 | BX117: 0 | BY117: 0 | BZ117: 0 | CA117: 0 | CB117: 0 | CC117: 0 | CD117: 0 | CE117: 0 | CF117: 0 | CG117: 0 | CH117: 0 | CI117: 2 | CJ117: 0 | CK117: 0 | CL117: 0 | CM117: 0 | CN117: 6 | CO117: 0 | CP117: 4 | CQ117: 2 | CR117: 3 | CS117: 4 | CT117: 2 | CU117: 2 | CV117: 1 | CW117: 1 | CX117: 0 | CY117: 0 | CZ117: 0 | DA117: 0 | DB117: 0 | DC117: 0 | DD117: 1 | DE117: 0 | DF117: 0 | DG117: 0 | DH117: 0 | DI117: 1 | DJ117: 1 | DK117: 0 | DL117: 1 | DM117: 0 | DN117: 3 | DO117: 8 | DP117: 2 | DQ117: 1 | DR117: 0 | DS117: 0 | DT117: 0 | DU117: 5 | DV117: 1 | DW117: 0 | DX117: 1 | DY117: 5 | DZ117: 0 | EA117: 0 | EB117: 1 | EC117: 3 | ED117: 2 | EE117: 2 | EF117: 2 | EG117: 5 | EH117: 2 | EI117: 5 | EJ117: 0 | EK117: 0 | EL117: 3 | EM117: 0 | EN117: 0 | EO117: 0 | EP117: 0 | EQ117: 0 | ER117: 0 | ES117: 0 | ET117: 0 | EU117: 0 | EV117: 2 | EW117: 0 | EX117: 0 | EY117: 0 | EZ117: 0 | FA117: 0 | FB117: 2 | FC117: 0 | FD117: 0 | FE117: 0 | FF117: 3 | FG117: 0 | FH117: 0 | FI117: 0 | FJ117: 0 | FK117: 2 | FL117: 0 | FM117: 0 | FN117: 0 | FO117: 2 | FP117: 0 | FQ117: 2 | FR117: 0 | FS117: 3 | FT117: 0 | FU117: 0 | FV117: 0 | FW117: 0 | FX117: 2 | FY117: 0 | FZ117: 2 | GA117: 5 | GB117: 4 | GC117: 6 | GD117: 0 | GE117: 3 | GF117: 2 | GG117: 29 | GH117: 12 | GI117: 1 | GJ117: 2 | GK117: 4 | GL117: 5 | GM117: 5 | GN117: 1 | GO117: 5 | GP117: 4 | GQ117: 2 | GR117: 4 | GS117: 7 | GT117: 2 | GU117: 2 | GV117: 3 | GW117: 3 | GX117: 4 | GY117: 5 | GZ117: 9 | HA117: 5 | HB117: 5 | HC117: Bacteria | HD117: Bacteroidota | HE117: Bacteroidia | HF117: Flavobacteriales | HG117: Flavobacteriaceae | HH117: MED-G14 | HI117: MED-G14 sp902554655
A118: Zotu1112 | B118: 0 | C118: 0 | D118: 0 | E118: 0 | F118: 0 | G118: 0 | H118: 0 | I118: 0 | J118: 0 | K118: 0 | L118: 0 | M118: 0 | N118: 0 | O118: 0 | P118: 0 | Q118: 0 | R118: 1 | S118: 0 | T118: 0 | U118: 0 | V118: 0 | W118: 0 | X118: 0 | Y118: 0 | Z118: 0 | AA118: 0 | AB118: 0 | AC118: 0 | AD118: 0 | AE118: 0 | AF118: 0 | AG118: 0 | AH118: 0 | AI118: 0 | AJ118: 0 | AK118: 0 | AL118: 0 | AM118: 0 | AN118: 0 | AO118: 0 | AP118: 0 | AQ118: 0 | AR118: 0 | AS118: 0 | AT118: 0 | AU118: 0 | AV118: 0 | AW118: 0 | AX118: 0 | AY118: 0 | AZ118: 0 | BA118: 0 | BB118: 0 | BC118: 0 | BD118: 0 | BE118: 0 | BF118: 0 | BG118: 0 | BH118: 0 | BI118: 0 | BJ118: 0 | BK118: 0 | BL118: 0 | BM118: 0 | BN118: 0 | BO118: 0 | BP118: 0 | BQ118: 0 | BR118: 0 | BS118: 0 | BT118: 0 | BU118: 0 | BV118: 0 | BW118: 0 | BX118: 0 | BY118: 0 | BZ118: 0 | CA118: 0 | CB118: 0 | CC118: 0 | CD118: 0 | CE118: 0 | CF118: 0 | CG118: 0 | CH118: 0 | CI118: 0 | CJ118: 0 | CK118: 0 | CL118: 0 | CM118: 0 | CN118: 0 | CO118: 0 | CP118: 0 | CQ118: 0 | CR118: 0 | CS118: 0 | CT118: 0 | CU118: 0 | CV118: 0 | CW118: 1 | CX118: 1 | CY118: 6 | CZ118: 4 | DA118: 0 | DB118: 0 | DC118: 1 | DD118: 0 | DE118: 1 | DF118: 1 | DG118: 1 | DH118: 0 | DI118: 1 | DJ118: 0 | DK118: 0 | DL118: 0 | DM118: 0 | DN118: 0 | DO118: 0 | DP118: 0 | DQ118: 0 | DR118: 12 | DS118: 14 | DT118: 8 | DU118: 17 | DV118: 2 | DW118: 6 | DX118: 1 | DY118: 8 | DZ118: 5 | EA118: 3 | EB118: 5 | EC118: 3 | ED118: 5 | EE118: 2 | EF118: 3 | EG118: 2 | EH118: 0 | EI118: 1 | EJ118: 0 | EK118: 5 | EL118: 8 | EM118: 8 | EN118: 2 | EO118: 0 | EP118: 8 | EQ118: 5 | ER118: 9 | ES118: 10 | ET118: 3 | EU118: 7 | EV118: 6 | EW118: 5 | EX118: 7 | EY118: 19 | EZ118: 10 | FA118: 2 | FB118: 2 | FC118: 0 | FD118: 6 | FE118: 0 | FF118: 0 | FG118: 0 | FH118: 2 | FI118: 2 | FJ118: 0 | FK118: 5 | FL118: 2 | FM118: 0 | FN118: 0 | FO118: 2 | FP118: 0 | FQ118: 0 | FR118: 0 | FS118: 0 | FT118: 2 | FU118: 0 | FV118: 2 | FW118: 2 | FX118: 5 | FY118: 0 | FZ118: 0 | GA118: 0 | GB118: 0 | GC118: 0 | GD118: 0 | GE118: 0 | GF118: 3 | GG118: 0 | GH118: 0 | GI118: 0 | GJ118: 0 | GK118: 0 | GL118: 0 | GM118: 1 | GN118: 0 | GO118: 1 | GP118: 0 | GQ118: 0 | GR118: 1 | GS118: 0 | GT118: 0 | GU118: 0 | GV118: 0 | GW118: 0 | GX118: 0 | GY118: 1 | GZ118: 0 | HA118: 0 | HB118: 0 | HC118: Bacteria | HD118: Proteobacteria | HE118: Gammaproteobacteria | HF118: Pseudomonadales | HG118: Endozoicomonadaceae | HH118: Endozoicomonas | HI118: Endozoicomonas elysicola
A119: Zotu1113 | B119: 0 | C119: 0 | D119: 0 | E119: 0 | F119: 0 | G119: 0 | H119: 0 | I119: 0 | J119: 0 | K119: 0 | L119: 0 | M119: 0 | N119: 0 | O119: 0 | P119: 0 | Q119: 0 | R119: 0 | S119: 0 | T119: 0 | U119: 0 | V119: 0 | W119: 0 | X119: 0 | Y119: 0 | Z119: 0 | AA119: 0 | AB119: 0 | AC119: 0 | AD119: 0 | AE119: 0 | AF119: 0 | AG119: 0 | AH119: 0 | AI119: 0 | AJ119: 0 | AK119: 0 | AL119: 0 | AM119: 0 | AN119: 0 | AO119: 0 | AP119: 0 | AQ119: 0 | AR119: 0 | AS119: 0 | AT119: 0 | AU119: 0 | AV119: 0 | AW119: 0 | AX119: 0 | AY119: 0 | AZ119: 0 | BA119: 0 | BB119: 0 | BC119: 0 | BD119: 2 | BE119: 0 | BF119: 0 | BG119: 0 | BH119: 0 | BI119: 0 | BJ119: 0 | BK119: 0 | BL119: 0 | BM119: 0 | BN119: 0 | BO119: 0 | BP119: 2 | BQ119: 0 | BR119: 0 | BS119: 0 | BT119: 0 | BU119: 0 | BV119: 0 | BW119: 0 | BX119: 0 | BY119: 0 | BZ119: 0 | CA119: 0 | CB119: 0 | CC119: 0 | CD119: 0 | CE119: 0 | CF119: 0 | CG119: 0 | CH119: 2 | CI119: 0 | CJ119: 0 | CK119: 0 | CL119: 0 | CM119: 0 | CN119: 3 | CO119: 3 | CP119: 1 | CQ119: 2 | CR119: 4 | CS119: 8 | CT119: 0 | CU119: 3 | CV119: 3 | CW119: 3 | CX119: 0 | CY119: 0 | CZ119: 4 | DA119: 5 | DB119: 3 | DC119: 6 | DD119: 6 | DE119: 6 | DF119: 7 | DG119: 5 | DH119: 3 | DI119: 7 | DJ119: 5 | DK119: 17 | DL119: 6 | DM119: 9 | DN119: 13 | DO119: 8 | DP119: 17 | DQ119: 14 | DR119: 0 | DS119: 0 | DT119: 0 | DU119: 3 | DV119: 1 | DW119: 0 | DX119: 0 | DY119: 0 | DZ119: 0 | EA119: 0 | EB119: 1 | EC119: 0 | ED119: 0 | EE119: 0 | EF119: 0 | EG119: 3 | EH119: 0 | EI119: 0 | EJ119: 0 | EK119: 0 | EL119: 0 | EM119: 0 | EN119: 0 | EO119: 0 | EP119: 0 | EQ119: 0 | ER119: 2 | ES119: 0 | ET119: 0 | EU119: 2 | EV119: 0 | EW119: 0 | EX119: 0 | EY119: 0 | EZ119: 0 | FA119: 0 | FB119: 2 | FC119: 0 | FD119: 2 | FE119: 0 | FF119: 0 | FG119: 0 | FH119: 0 | FI119: 0 | FJ119: 2 | FK119: 0 | FL119: 0 | FM119: 0 | FN119: 0 | FO119: 0 | FP119: 0 | FQ119: 2 | FR119: 0 | FS119: 0 | FT119: 0 | FU119: 0 | FV119: 0 | FW119: 2 | FX119: 0 | FY119: 5 | FZ119: 6 | GA119: 1 | GB119: 3 | GC119: 4 | GD119: 2 | GE119: 9 | GF119: 5 | GG119: 0 | GH119: 0 | GI119: 4 | GJ119: 1 | GK119: 0 | GL119: 0 | GM119: 2 | GN119: 0 | GO119: 1 | GP119: 0 | GQ119: 0 | GR119: 2 | GS119: 0 | GT119: 1 | GU119: 0 | GV119: 1 | GW119: 0 | GX119: 0 | GY119: 0 | GZ119: 0 | HA119: 0 | HB119: 0 | HC119: Bacteria | HD119: Proteobacteria | HE119: Alphaproteobacteria | HF119: Rhodobacterales | HG119: Rhodobacteraceae | HH119: Donghicola | HI119: Donghicola mangrovi
A120: Zotu1114 | B120: 0 | C120: 0 | D120: 0 | E120: 0 | F120: 0 | G120: 0 | H120: 0 | I120: 0 | J120: 0 | K120: 0 | L120: 0 | M120: 0 | N120: 0 | O120: 0 | P120: 0 | Q120: 0 | R120: 0 | S120: 0 | T120: 0 | U120: 0 | V120: 0 | W120: 0 | X120: 0 | Y120: 0 | Z120: 0 | AA120: 0 | AB120: 0 | AC120: 0 | AD120: 0 | AE120: 0 | AF120: 0 | AG120: 0 | AH120: 0 | AI120: 0 | AJ120: 0 | AK120: 0 | AL120: 0 | AM120: 0 | AN120: 0 | AO120: 0 | AP120: 0 | AQ120: 0 | AR120: 0 | AS120: 0 | AT120: 0 | AU120: 0 | AV120: 0 | AW120: 0 | AX120: 1 | AY120: 0 | AZ120: 0 | BA120: 0 | BB120: 0 | BC120: 0 | BD120: 0 | BE120: 0 | BF120: 0 | BG120: 0 | BH120: 0 | BI120: 0 | BJ120: 0 | BK120: 0 | BL120: 0 | BM120: 0 | BN120: 0 | BO120: 0 | BP120: 0 | BQ120: 3 | BR120: 0 | BS120: 0 | BT120: 0 | BU120: 0 | BV120: 0 | BW120: 0 | BX120: 0 | BY120: 0 | BZ120: 0 | CA120: 0 | CB120: 0 | CC120: 0 | CD120: 0 | CE120: 0 | CF120: 0 | CG120: 3 | CH120: 0 | CI120: 0 | CJ120: 0 | CK120: 0 | CL120: 0 | CM120: 0 | CN120: 3 | CO120: 2 | CP120: 2 | CQ120: 2 | CR120: 3 | CS120: 3 | CT120: 3 | CU120: 1 | CV120: 1 | CW120: 1 | CX120: 0 | CY120: 0 | CZ120: 5 | DA120: 0 | DB120: 4 | DC120: 1 | DD120: 3 | DE120: 4 | DF120: 6 | DG120: 0 | DH120: 3 | DI120: 4 | DJ120: 7 | DK120: 1 | DL120: 3 | DM120: 0 | DN120: 1 | DO120: 0 | DP120: 1 | DQ120: 1 | DR120: 0 | DS120: 2 | DT120: 0 | DU120: 0 | DV120: 0 | DW120: 0 | DX120: 1 | DY120: 0 | DZ120: 0 | EA120: 0 | EB120: 0 | EC120: 0 | ED120: 3 | EE120: 2 | EF120: 2 | EG120: 0 | EH120: 0 | EI120: 0 | EJ120: 2 | EK120: 0 | EL120: 2 | EM120: 0 | EN120: 0 | EO120: 0 | EP120: 0 | EQ120: 0 | ER120: 0 | ES120: 0 | ET120: 0 | EU120: 2 | EV120: 0 | EW120: 2 | EX120: 0 | EY120: 0 | EZ120: 0 | FA120: 0 | FB120: 0 | FC120: 0 | FD120: 2 | FE120: 0 | FF120: 0 | FG120: 0 | FH120: 0 | FI120: 5 | FJ120: 0 | FK120: 2 | FL120: 2 | FM120: 0 | FN120: 0 | FO120: 0 | FP120: 0 | FQ120: 0 | FR120: 0 | FS120: 0 | FT120: 0 | FU120: 3 | FV120: 0 | FW120: 0 | FX120: 0 | FY120: 5 | FZ120: 2 | GA120: 3 | GB120: 1 | GC120: 4 | GD120: 1 | GE120: 1 | GF120: 2 | GG120: 1 | GH120: 4 | GI120: 3 | GJ120: 6 | GK120: 6 | GL120: 5 | GM120: 3 | GN120: 8 | GO120: 3 | GP120: 1 | GQ120: 8 | GR120: 8 | GS120: 5 | GT120: 3 | GU120: 6 | GV120: 5 | GW120: 2 | GX120: 2 | GY120: 0 | GZ120: 3 | HA120: 12 | HB120: 8 | HC120: Bacteria | HD120: Proteobacteria | HE120: Gammaproteobacteria | HF120: Enterobacterales | HG120: Alteromonadaceae | HH120: Alteromonas | HI120: Cellulosimicrobium cellulans_A
A121: Zotu1115 | B121: 0 | C121: 0 | D121: 0 | E121: 0 | F121: 0 | G121: 0 | H121: 0 | I121: 0 | J121: 0 | K121: 0 | L121: 0 | M121: 0 | N121: 0 | O121: 0 | P121: 0 | Q121: 0 | R121: 0 | S121: 0 | T121: 0 | U121: 0 | V121: 0 | W121: 0 | X121: 0 | Y121: 0 | Z121: 0 | AA121: 0 | AB121: 0 | AC121: 0 | AD121: 0 | AE121: 0 | AF121: 0 | AG121: 0 | AH121: 0 | AI121: 0 | AJ121: 0 | AK121: 0 | AL121: 0 | AM121: 0 | AN121: 0 | AO121: 0 | AP121: 0 | AQ121: 0 | AR121: 0 | AS121: 0 | AT121: 0 | AU121: 0 | AV121: 0 | AW121: 0 | AX121: 0 | AY121: 0 | AZ121: 0 | BA121: 0 | BB121: 0 | BC121: 0 | BD121: 0 | BE121: 0 | BF121: 0 | BG121: 0 | BH121: 0 | BI121: 0 | BJ121: 0 | BK121: 0 | BL121: 0 | BM121: 0 | BN121: 0 | BO121: 0 | BP121: 0 | BQ121: 0 | BR121: 0 | BS121: 0 | BT121: 0 | BU121: 0 | BV121: 0 | BW121: 0 | BX121: 0 | BY121: 0 | BZ121: 0 | CA121: 0 | CB121: 0 | CC121: 0 | CD121: 0 | CE121: 0 | CF121: 0 | CG121: 0 | CH121: 0 | CI121: 2 | CJ121: 5 | CK121: 0 | CL121: 0 | CM121: 0 | CN121: 0 | CO121: 0 | CP121: 0 | CQ121: 2 | CR121: 23 | CS121: 3 | CT121: 1 | CU121: 3 | CV121: 0 | CW121: 1 | CX121: 2 | CY121: 3 | CZ121: 0 | DA121: 3 | DB121: 4 | DC121: 2 | DD121: 3 | DE121: 7 | DF121: 10 | DG121: 3 | DH121: 0 | DI121: 3 | DJ121: 5 | DK121: 1 | DL121: 0 | DM121: 7 | DN121: 11 | DO121: 8 | DP121: 10 | DQ121: 4 | DR121: 2 | DS121: 0 | DT121: 0 | DU121: 3 | DV121: 0 | DW121: 2 | DX121: 4 | DY121: 0 | DZ121: 0 | EA121: 0 | EB121: 0 | EC121: 0 | ED121: 5 | EE121: 0 | EF121: 0 | EG121: 3 | EH121: 0 | EI121: 0 | EJ121: 0 | EK121: 2 | EL121: 0 | EM121: 0 | EN121: 0 | EO121: 0 | EP121: 3 | EQ121: 0 | ER121: 0 | ES121: 0 | ET121: 0 | EU121: 0 | EV121: 0 | EW121: 0 | EX121: 0 | EY121: 0 | EZ121: 0 | FA121: 0 | FB121: 0 | FC121: 0 | FD121: 3 | FE121: 2 | FF121: 0 | FG121: 1 | FH121: 0 | FI121: 0 | FJ121: 2 | FK121: 0 | FL121: 2 | FM121: 2 | FN121: 0 | FO121: 3 | FP121: 2 | FQ121: 2 | FR121: 2 | FS121: 0 | FT121: 0 | FU121: 3 | FV121: 0 | FW121: 0 | FX121: 0 | FY121: 5 | FZ121: 6 | GA121: 3 | GB121: 1 | GC121: 0 | GD121: 4 | GE121: 3 | GF121: 1 | GG121: 0 | GH121: 1 | GI121: 1 | GJ121: 1 | GK121: 2 | GL121: 2 | GM121: 1 | GN121: 1 | GO121: 0 | GP121: 1 | GQ121: 5 | GR121: 6 | GS121: 0 | GT121: 0 | GU121: 2 | GV121: 0 | GW121: 1 | GX121: 7 | GY121: 0 | GZ121: 0 | HA121: 1 | HB121: 0 | HC121: Bacteria | HD121: Proteobacteria | HE121: Gammaproteobacteria | HF121: Pseudomonadales | HG121: Endozoicomonadaceae | HH121: Endozoicomonas | HI121: Endozoicomonas montiporae
A122: Zotu1116 | B122: 0 | C122: 0 | D122: 0 | E122: 0 | F122: 0 | G122: 0 | H122: 0 | I122: 0 | J122: 0 | K122: 0 | L122: 0 | M122: 0 | N122: 0 | O122: 0 | P122: 0 | Q122: 0 | R122: 0 | S122: 0 | T122: 0 | U122: 0 | V122: 0 | W122: 0 | X122: 0 | Y122: 0 | Z122: 0 | AA122: 0 | AB122: 0 | AC122: 0 | AD122: 0 | AE122: 0 | AF122: 0 | AG122: 0 | AH122: 0 | AI122: 0 | AJ122: 0 | AK122: 0 | AL122: 0 | AM122: 0 | AN122: 0 | AO122: 0 | AP122: 0 | AQ122: 0 | AR122: 0 | AS122: 0 | AT122: 0 | AU122: 0 | AV122: 0 | AW122: 0 | AX122: 0 | AY122: 0 | AZ122: 0 | BA122: 0 | BB122: 0 | BC122: 0 | BD122: 0 | BE122: 0 | BF122: 0 | BG122: 2 | BH122: 0 | BI122: 0 | BJ122: 0 | BK122: 0 | BL122: 0 | BM122: 0 | BN122: 0 | BO122: 0 | BP122: 2 | BQ122: 0 | BR122: 2 | BS122: 0 | BT122: 0 | BU122: 0 | BV122: 0 | BW122: 0 | BX122: 0 | BY122: 0 | BZ122: 0 | CA122: 0 | CB122: 0 | CC122: 0 | CD122: 0 | CE122: 0 | CF122: 0 | CG122: 0 | CH122: 2 | CI122: 2 | CJ122: 0 | CK122: 0 | CL122: 2 | CM122: 2 | CN122: 1 | CO122: 0 | CP122: 3 | CQ122: 2 | CR122: 2 | CS122: 1 | CT122: 3 | CU122: 2 | CV122: 2 | CW122: 0 | CX122: 1 | CY122: 2 | CZ122: 3 | DA122: 0 | DB122: 3 | DC122: 0 | DD122: 2 | DE122: 0 | DF122: 1 | DG122: 0 | DH122: 0 | DI122: 3 | DJ122: 2 | DK122: 1 | DL122: 3 | DM122: 0 | DN122: 0 | DO122: 5 | DP122: 1 | DQ122: 2 | DR122: 2 | DS122: 2 | DT122: 0 | DU122: 0 | DV122: 0 | DW122: 0 | DX122: 1 | DY122: 0 | DZ122: 2 | EA122: 2 | EB122: 0 | EC122: 0 | ED122: 2 | EE122: 0 | EF122: 2 | EG122: 3 | EH122: 2 | EI122: 0 | EJ122: 0 | EK122: 2 | EL122: 2 | EM122: 0 | EN122: 0 | EO122: 2 | EP122: 3 | EQ122: 2 | ER122: 0 | ES122: 3 | ET122: 2 | EU122: 0 | EV122: 0 | EW122: 0 | EX122: 0 | EY122: 2 | EZ122: 0 | FA122: 0 | FB122: 0 | FC122: 2 | FD122: 0 | FE122: 0 | FF122: 0 | FG122: 1 | FH122: 0 | FI122: 3 | FJ122: 0 | FK122: 0 | FL122: 2 | FM122: 2 | FN122: 0 | FO122: 0 | FP122: 0 | FQ122: 0 | FR122: 0 | FS122: 0 | FT122: 0 | FU122: 0 | FV122: 0 | FW122: 0 | FX122: 0 | FY122: 0 | FZ122: 5 | GA122: 1 | GB122: 0 | GC122: 2 | GD122: 2 | GE122: 1 | GF122: 1 | GG122: 11 | GH122: 4 | GI122: 1 | GJ122: 9 | GK122: 9 | GL122: 6 | GM122: 6 | GN122: 5 | GO122: 3 | GP122: 6 | GQ122: 6 | GR122: 5 | GS122: 5 | GT122: 2 | GU122: 5 | GV122: 6 | GW122: 2 | GX122: 4 | GY122: 0 | GZ122: 4 | HA122: 3 | HB122: 2 | HC122: Bacteria | HD122: Proteobacteria | HE122: Alphaproteobacteria | HF122: TMED109 | HG122: TMED131 | HH122: TMED62 | HI122: TMED62 sp902614225
A123: Zotu1117 | B123: 0 | C123: 0 | D123: 0 | E123: 0 | F123: 0 | G123: 0 | H123: 0 | I123: 0 | J123: 0 | K123: 0 | L123: 0 | M123: 0 | N123: 0 | O123: 0 | P123: 0 | Q123: 0 | R123: 0 | S123: 0 | T123: 0 | U123: 0 | V123: 0 | W123: 0 | X123: 0 | Y123: 0 | Z123: 0 | AA123: 0 | AB123: 0 | AC123: 0 | AD123: 0 | AE123: 0 | AF123: 0 | AG123: 0 | AH123: 0 | AI123: 0 | AJ123: 0 | AK123: 0 | AL123: 0 | AM123: 0 | AN123: 0 | AO123: 0 | AP123: 0 | AQ123: 0 | AR123: 0 | AS123: 0 | AT123: 0 | AU123: 0 | AV123: 0 | AW123: 0 | AX123: 0 | AY123: 0 | AZ123: 0 | BA123: 0 | BB123: 0 | BC123: 0 | BD123: 0 | BE123: 0 | BF123: 2 | BG123: 2 | BH123: 0 | BI123: 0 | BJ123: 0 | BK123: 0 | BL123: 0 | BM123: 0 | BN123: 0 | BO123: 0 | BP123: 0 | BQ123: 0 | BR123: 0 | BS123: 0 | BT123: 0 | BU123: 0 | BV123: 0 | BW123: 0 | BX123: 0 | BY123: 0 | BZ123: 0 | CA123: 0 | CB123: 0 | CC123: 0 | CD123: 2 | CE123: 0 | CF123: 0 | CG123: 0 | CH123: 0 | CI123: 2 | CJ123: 0 | CK123: 0 | CL123: 0 | CM123: 0 | CN123: 20 | CO123: 5 | CP123: 20 | CQ123: 46 | CR123: 2 | CS123: 4 | CT123: 2 | CU123: 11 | CV123: 5 | CW123: 4 | CX123: 0 | CY123: 0 | CZ123: 4 | DA123: 0 | DB123: 3 | DC123: 0 | DD123: 0 | DE123: 0 | DF123: 0 | DG123: 0 | DH123: 0 | DI123: 0 | DJ123: 0 | DK123: 0 | DL123: 0 | DM123: 0 | DN123: 0 | DO123: 0 | DP123: 0 | DQ123: 0 | DR123: 0 | DS123: 0 | DT123: 2 | DU123: 0 | DV123: 0 | DW123: 0 | DX123: 0 | DY123: 0 | DZ123: 0 | EA123: 0 | EB123: 0 | EC123: 0 | ED123: 0 | EE123: 0 | EF123: 0 | EG123: 3 | EH123: 0 | EI123: 1 | EJ123: 0 | EK123: 0 | EL123: 2 | EM123: 0 | EN123: 0 | EO123: 0 | EP123: 0 | EQ123: 0 | ER123: 0 | ES123: 2 | ET123: 0 | EU123: 0 | EV123: 0 | EW123: 0 | EX123: 0 | EY123: 0 | EZ123: 0 | FA123: 0 | FB123: 0 | FC123: 0 | FD123: 0 | FE123: 0 | FF123: 0 | FG123: 0 | FH123: 0 | FI123: 0 | FJ123: 0 | FK123: 0 | FL123: 0 | FM123: 2 | FN123: 0 | FO123: 0 | FP123: 0 | FQ123: 2 | FR123: 0 | FS123: 0 | FT123: 2 | FU123: 0 | FV123: 0 | FW123: 0 | FX123: 0 | FY123: 0 | FZ123: 0 | GA123: 0 | GB123: 1 | GC123: 0 | GD123: 0 | GE123: 0 | GF123: 0 | GG123: 0 | GH123: 0 | GI123: 0 | GJ123: 0 | GK123: 0 | GL123: 0 | GM123: 0 | GN123: 0 | GO123: 3 | GP123: 2 | GQ123: 1 | GR123: 2 | GS123: 1 | GT123: 2 | GU123: 2 | GV123: 2 | GW123: 9 | GX123: 2 | GY123: 1 | GZ123: 2 | HA123: 3 | HB123: 1 | HC123: Archaea | HD123: Thermoplasmatota | HE123: Poseidoniia | HF123: Poseidoniales | HG123: Thalassarchaeaceae | HH123: MGIIb-P | HI123: MGIIb-P sp002457195
A124: Zotu1118 | B124: 0 | C124: 0 | D124: 0 | E124: 0 | F124: 0 | G124: 0 | H124: 0 | I124: 0 | J124: 0 | K124: 0 | L124: 0 | M124: 0 | N124: 0 | O124: 0 | P124: 0 | Q124: 0 | R124: 0 | S124: 0 | T124: 0 | U124: 0 | V124: 0 | W124: 0 | X124: 0 | Y124: 0 | Z124: 0 | AA124: 0 | AB124: 0 | AC124: 0 | AD124: 0 | AE124: 0 | AF124: 0 | AG124: 0 | AH124: 0 | AI124: 0 | AJ124: 0 | AK124: 0 | AL124: 0 | AM124: 0 | AN124: 0 | AO124: 0 | AP124: 0 | AQ124: 0 | AR124: 0 | AS124: 0 | AT124: 0 | AU124: 0 | AV124: 0 | AW124: 0 | AX124: 0 | AY124: 0 | AZ124: 0 | BA124: 0 | BB124: 0 | BC124: 0 | BD124: 0 | BE124: 0 | BF124: 0 | BG124: 0 | BH124: 0 | BI124: 0 | BJ124: 0 | BK124: 0 | BL124: 0 | BM124: 0 | BN124: 0 | BO124: 0 | BP124: 0 | BQ124: 0 | BR124: 0 | BS124: 0 | BT124: 0 | BU124: 0 | BV124: 0 | BW124: 0 | BX124: 0 | BY124: 0 | BZ124: 0 | CA124: 0 | CB124: 0 | CC124: 0 | CD124: 0 | CE124: 0 | CF124: 0 | CG124: 0 | CH124: 0 | CI124: 0 | CJ124: 0 | CK124: 0 | CL124: 0 | CM124: 2 | CN124: 2 | CO124: 0 | CP124: 1 | CQ124: 1 | CR124: 2 | CS124: 1 | CT124: 2 | CU124: 3 | CV124: 2 | CW124: 0 | CX124: 0 | CY124: 0 | CZ124: 1 | DA124: 2 | DB124: 1 | DC124: 0 | DD124: 0 | DE124: 0 | DF124: 1 | DG124: 0 | DH124: 0 | DI124: 0 | DJ124: 0 | DK124: 0 | DL124: 0 | DM124: 0 | DN124: 0 | DO124: 0 | DP124: 0 | DQ124: 0 | DR124: 0 | DS124: 0 | DT124: 0 | DU124: 2 | DV124: 0 | DW124: 0 | DX124: 0 | DY124: 0 | DZ124: 0 | EA124: 0 | EB124: 0 | EC124: 0 | ED124: 2 | EE124: 0 | EF124: 0 | EG124: 0 | EH124: 0 | EI124: 0 | EJ124: 0 | EK124: 0 | EL124: 0 | EM124: 0 | EN124: 0 | EO124: 0 | EP124: 0 | EQ124: 2 | ER124: 0 | ES124: 0 | ET124: 0 | EU124: 0 | EV124: 0 | EW124: 3 | EX124: 0 | EY124: 0 | EZ124: 0 | FA124: 0 | FB124: 0 | FC124: 0 | FD124: 0 | FE124: 0 | FF124: 0 | FG124: 0 | FH124: 0 | FI124: 0 | FJ124: 0 | FK124: 0 | FL124: 0 | FM124: 0 | FN124: 0 | FO124: 0 | FP124: 0 | FQ124: 0 | FR124: 0 | FS124: 0 | FT124: 0 | FU124: 0 | FV124: 0 | FW124: 2 | FX124: 0 | FY124: 0 | FZ124: 2 | GA124: 0 | GB124: 0 | GC124: 0 | GD124: 2 | GE124: 0 | GF124: 1 | GG124: 4 | GH124: 0 | GI124: 4 | GJ124: 5 | GK124: 4 | GL124: 2 | GM124: 2 | GN124: 2 | GO124: 16 | GP124: 3 | GQ124: 5 | GR124: 15 | GS124: 9 | GT124: 5 | GU124: 9 | GV124: 12 | GW124: 7 | GX124: 8 | GY124: 5 | GZ124: 8 | HA124: 10 | HB124: 6 | HC124: Bacteria | HD124: Bacteroidota | HE124: Bacteroidia | HF124: Flavobacteriales | HG124: Flavobacteriaceae | HH124: Tenacibaculum | HI124: Tenacibaculum jejuense
A125: Zotu1119 | B125: 0 | C125: 0 | D125: 0 | E125: 0 | F125: 0 | G125: 0 | H125: 0 | I125: 0 | J125: 0 | K125: 0 | L125: 0 | M125: 0 | N125: 0 | O125: 0 | P125: 0 | Q125: 0 | R125: 0 | S125: 0 | T125: 0 | U125: 0 | V125: 0 | W125: 0 | X125: 0 | Y125: 0 | Z125: 0 | AA125: 1 | AB125: 0 | AC125: 1 | AD125: 0 | AE125: 0 | AF125: 0 | AG125: 0 | AH125: 0 | AI125: 0 | AJ125: 0 | AK125: 0 | AL125: 0 | AM125: 0 | AN125: 0 | AO125: 0 | AP125: 0 | AQ125: 0 | AR125: 0 | AS125: 0 | AT125: 0 | AU125: 0 | AV125: 0 | AW125: 0 | AX125: 0 | AY125: 0 | AZ125: 0 | BA125: 0 | BB125: 0 | BC125: 0 | BD125: 0 | BE125: 0 | BF125: 0 | BG125: 0 | BH125: 0 | BI125: 0 | BJ125: 0 | BK125: 0 | BL125: 0 | BM125: 0 | BN125: 0 | BO125: 0 | BP125: 0 | BQ125: 0 | BR125: 0 | BS125: 0 | BT125: 0 | BU125: 0 | BV125: 0 | BW125: 0 | BX125: 0 | BY125: 0 | BZ125: 0 | CA125: 0 | CB125: 0 | CC125: 0 | CD125: 0 | CE125: 0 | CF125: 0 | CG125: 0 | CH125: 0 | CI125: 0 | CJ125: 0 | CK125: 0 | CL125: 2 | CM125: 0 | CN125: 0 | CO125: 2 | CP125: 0 | CQ125: 2 | CR125: 1 | CS125: 3 | CT125: 1 | CU125: 2 | CV125: 4 | CW125: 0 | CX125: 0 | CY125: 0 | CZ125: 1 | DA125: 2 | DB125: 0 | DC125: 1 | DD125: 0 | DE125: 1 | DF125: 0 | DG125: 1 | DH125: 0 | DI125: 0 | DJ125: 1 | DK125: 0 | DL125: 0 | DM125: 3 | DN125: 1 | DO125: 0 | DP125: 1 | DQ125: 1 | DR125: 0 | DS125: 0 | DT125: 0 | DU125: 3 | DV125: 0 | DW125: 0 | DX125: 1 | DY125: 0 | DZ125: 0 | EA125: 0 | EB125: 1 | EC125: 0 | ED125: 2 | EE125: 2 | EF125: 2 | EG125: 0 | EH125: 3 | EI125: 2 | EJ125: 0 | EK125: 0 | EL125: 5 | EM125: 0 | EN125: 0 | EO125: 0 | EP125: 0 | EQ125: 2 | ER125: 0 | ES125: 0 | ET125: 0 | EU125: 0 | EV125: 6 | EW125: 2 | EX125: 0 | EY125: 0 | EZ125: 2 | FA125: 0 | FB125: 0 | FC125: 0 | FD125: 0 | FE125: 2 | FF125: 0 | FG125: 0 | FH125: 5 | FI125: 0 | FJ125: 0 | FK125: 0 | FL125: 0 | FM125: 0 | FN125: 0 | FO125: 2 | FP125: 0 | FQ125: 2 | FR125: 0 | FS125: 0 | FT125: 3 | FU125: 0 | FV125: 0 | FW125: 0 | FX125: 0 | FY125: 0 | FZ125: 0 | GA125: 0 | GB125: 1 | GC125: 1 | GD125: 0 | GE125: 1 | GF125: 0 | GG125: 12 | GH125: 6 | GI125: 2 | GJ125: 5 | GK125: 3 | GL125: 4 | GM125: 2 | GN125: 3 | GO125: 2 | GP125: 6 | GQ125: 5 | GR125: 3 | GS125: 9 | GT125: 2 | GU125: 3 | GV125: 3 | GW125: 6 | GX125: 2 | GY125: 1 | GZ125: 2 | HA125: 11 | HB125: 4 | HC125: Bacteria | HD125: Proteobacteria | HE125: Gammaproteobacteria | HF125: GCA-002705445 | HG125: GCA-002716945 | HH125: CACLCV01 | HI125: CACLCV01 sp902521725
... 156 more rows

Sheet Table S2
A1: Table S2: Relative abundance of BMC strains in sponges and seawater samples. CC = Callyspongia crassa; SC = Stylissa carteri; SW = seawater; C = control; 1X = BMC1x; 3X = BMC3x; T0 = before the experiment; T1 = after the 4-week experiment; R = replica; TOP = top part of the sponge body; MID = middle part of the sponge body; BAS = base part of the sponge body
B2: Callyspongia crassa - Control - T0 - Sponge | Q2: Callyspongia crassa - BMC 1x - T0 - Sponge | AF2: Callyspongia crassa - BMC 3x - T0 - Sponge | AU2: Callyspongia crassa - Control - T1 - Sponge | BJ2: Callyspongia crassa - BMC 1x - T1 - Sponge | BY2: Callyspongia crassa - BMC 3x - T1 - Sponge | CN2: Callyspongia crassa - Control - T0 - Seawater | CS2: Callyspongia crassa - BMC 1x - T0 - Seawater | CX2: Callyspongia crassa - BMC 3x - T0 - Seawater | DC2: Callyspongia crassa - Control - T1 - Seawater | DH2: Callyspongia crassa - BMC 1x - T1 - Seawater | DM2: Callyspongia crassa - BMC 3x - T1 - Seawater | DR2: Stylissa carteri - Control - T0 - Sponge | EB2: Stylissa carteri - BMC 1x - T0 - Sponge | EL2: Stylissa carteri - BMC 3x - T0 - Sponge | EV2: Stylissa carteri - Control - T1 - Sponge | FF2: Stylissa carteri - BMC 1x - T1 - Sponge | FP2: Stylissa carteri - BMC 3x - T1 - Sponge | FZ2: Stylissa carteri - Control - T0 - Seawater | GE2: Stylissa carteri - BMC 1x - T0 - Seawater | GJ2: Stylissa carteri - BMC 3x - T0 - Seawater | GO2: Stylissa carteri - Control - T1 - Seawater | GT2: Stylissa carteri - BMC 1x - T1 - Seawater | GY2: Stylissa carteri - BMC 3x - T1 - Seawater
B3: CCCT0R1TOP | C3: CCCT0R1MID | D3: CCCT0R1BAS | E3: CCCT0R2TOP | F3: CCCT0R2MID | G3: CCCT0R2BAS | H3: CCCT0R3TOP | I3: CCCT0R3MID | J3: CCCT0R3BAS | K3: CCCT0R4TOP | L3: CCCT0R4MID | M3: CCCT0R4BAS | N3: CCCT0R5TOP | O3: CCCT0R5MID | P3: CCCT0R5BAS | Q3: CC1xT0R1TOP | R3: CC1xT0R1MID | S3: CC1xT0R1BAS | T3: CC1xT0R2TOP | U3: CC1xT0R2MID | V3: CC1xT0R2BAS | W3: CC1xT0R3TOP | X3: CC1xT0R3MID | Y3: CC1xT0R3BAS | Z3: CC1xT0R4TOP | AA3: CC1xT0R4MID | AB3: CC1xT0R4BAS | AC3: CC1xT0R5TOP | AD3: CC1xT0R5MID | AE3: CC1xT0R5BAS | AF3: CC3xT0R1TOP | AG3: CC3xT0R1MID | AH3: CC3xT0R1BAS | AI3: CC3xT0R2TOP | AJ3: CC3xT0R2MID | AK3: CC3xT0R2BAS | AL3: CC3xT0R3TOP | AM3: CC3xT0R3MID | AN3: CC3xT0R3BAS | AO3: CC3xT0R4TOP | AP3: CC3xT0R4MID | AQ3: CC3xT0R4BAS | AR3: CC3xT0R5TOP | AS3: CC3xT0R5MID | AT3: CC3xT0R5BAS | AU3: CCCT1R1TOP | AV3: CCCT1R1MID | AW3: CCCT1R1BAS | AX3: CCCT1R2TOP | AY3: CCCT1R2MID | AZ3: CCCT1R2BAS | BA3: CCCT1R3TOP | BB3: CCCT1R3MID | BC3: CCCT1R3BAS | BD3: CCCT1R4TOP | BE3: CCCT1R4MID | BF3: CCCT1R4BAS | BG3: CCCT1R5TOP | BH3: CCCT1R5MID | BI3: CCCT1R5BAS | BJ3: CC1xT1R1TOP | BK3: CC1xT1R1MID | BL3: CC1xT1R1BAS | BM3: CC1xT1R2TOP | BN3: CC1xT1R2MID | BO3: CC1xT1R2BAS | BP3: CC1xT1R3TOP | BQ3: CC1xT1R3MID | BR3: CC1xT1R3BAS | BS3: CC1xT1R4TOP | BT3: CC1xT1R4MID | BU3: CC1xT1R4BAS | BV3: CC1xT1R5TOP | BW3: CC1xT1R5MID | BX3: CC1xT1R5BAS | BY3: CC3xT1R1TOP | BZ3: CC3xT1R1MID | CA3: CC3xT1R1BAS | CB3: CC3xT1R2TOP | CC3: CC3xT1R2MID | CD3: CC3xT1R2BAS | CE3: CC3xT1R3TOP | CF3: CC3xT1R3MID | CG3: CC3xT1R3BAS | CH3: CC3xT1R4TOP | CI3: CC3xT1R4MID | CJ3: CC3xT1R4BAS | CK3: CC3xT1R5TOP | CL3: CC3xT1R5MID | CM3: CC3xT1R5BAS | CN3: CCCT0R1SW | CO3: CCCT0R2SW | CP3: CCCT0R3SW | CQ3: CCCT0R4SW | CR3: CCCT0R5SW | CS3: CC1xT0R1SW | CT3: CC1xT0R2SW | CU3: CC1xT0R3SW | CV3: CC1xT0R4SW | CW3: CC1xT0R5SW | CX3: CC3xT0R1SW | CY3: CC3xT0R2SW | CZ3: CC3xT0R3SW | DA3: CC3xT0R4SW | DB3: CC3xT0R5SW | DC3: CCCT1R1SW | DD3: CCCT1R2SW | DE3: CCCT1R3SW | DF3: CCCT1R4SW | DG3: CCCT1R5SW | DH3: CC1xT1R1SW | DI3: CC1xT1R2SW | DJ3: CC1xT1R3SW | DK3: CC1xT1R4SW | DL3: CC1xT1R5SW | DM3: CC3xT1R1SW | DN3: CC3xT1R2SW | DO3: CC3xT1R3SW | DP3: CC3xT1R4SW | DQ3: CC3xT1R5SW | DR3: SCCT0R1TOP | DS3: SCCT0R1MID | DT3: SCCT0R2TOP | DU3: SCCT0R2MID | DV3: SCCT0R3TOP | DW3: SCCT0R3MID | DX3: SCCT0R4TOP | DY3: SCCT0R4MID | DZ3: SCCT0R5TOP | EA3: SCCT0R5MID | EB3: SC1xT0R1TOP | EC3: SC1xT0R1MID | ED3: SC1xT0R2TOP | EE3: SC1xT0R2MID | EF3: SC1xT0R3TOP | EG3: SC1xT0R3MID | EH3: SC1xT0R4TOP | EI3: SC1xT0R4MID | EJ3: SC1xT0R5TOP | EK3: SC1xT0R5MID | EL3: SC3xT0R1TOP | EM3: SC3xT0R1MID | EN3: SC3xT0R2TOP | EO3: SC3xT0R2MID | EP3: SC3xT0R3TOP | EQ3: SC3xT0R3MID | ER3: SC3xT0R4TOP | ES3: SC3xT0R4MID | ET3: SC3xT0R5TOP | EU3: SC3xT0R5MID | EV3: SCCT1R1TOP | EW3: SCCT1R1MID | EX3: SCCT1R2TOP | EY3: SCCT1R2MID | EZ3: SCCT1R3TOP | FA3: SCCT1R3MID | FB3: SCCT1R4TOP | FC3: SCCT1R4MID | FD3: SCCT1R5TOP | FE3: SCCT1R5MID | FF3: SC1xT1R1TOP | FG3: SC1xT1R1MID | FH3: SC1xT1R2TOP | FI3: SC1xT1R2MID | FJ3: SC1xT1R3TOP | FK3: SC1xT1R3MID | FL3: SC1xT1R4TOP | FM3: SC1xT1R4MID | FN3: SC1xT1R5TOP | FO3: SC1xT1R5MID | FP3: SC3xT1R1TOP | FQ3: SC3xT1R1MID | FR3: SC3xT1R2TOP | FS3: SC3xT1R2MID | FT3: SC3xT1R3TOP | FU3: SC3xT1R3MID | FV3: SC3xT1R4TOP | FW3: SC3xT1R4MID | FX3: SC3xT1R5TOP | FY3: SC3xT1R5MID | FZ3: SCCT0R1SW | GA3: SCCT0R2SW | GB3: SCCT0R3SW | GC3: SCCT0R4SW | GD3: SCCT0R5SW | GE3: SC1xT0R1SW | GF3: SC1xT0R2SW | GG3: SC1xT0R3SW | GH3: SC1xT0R4SW | GI3: SC1xT0R5SW | GJ3: SC3xT0R1SW | GK3: SC3xT0R2SW | GL3: SC3xT0R3SW | GM3: SC3xT0R4SW | GN3: SC3xT0R5SW | GO3: SCCT1R1SW | GP3: SCCT1R2SW | GQ3: SCCT1R3SW | GR3: SCCT1R4SW | GS3: SCCT1R5SW | GT3: SC1xT1R1SW | GU3: SC1xT1R2SW | GV3: SC1xT1R3SW | GW3: SC1xT1R4SW | GX3: SC1xT1R5SW | GY3: SC3xT1R1SW | GZ3: SC3xT1R2SW | HA3: SC3xT1R3SW | HB3: SC3xT1R5SW
A4: TOTAL READS | B4: 91490 | C4: 100073 | D4: 75664 | E4: 75931 | F4: 85363 | G4: 78650 | H4: 77202 | I4: 98294 | J4: 97166 | K4: 97296 | L4: 90984 | M4: 80166 | N4: 77290 | O4: 85309 | P4: 78690 | Q4: 84816 | R4: 87040 | S4: 82703 | T4: 72851 | U4: 95267 | V4: 85281 | W4: 95415 | X4: 87695 | Y4: 80184 | Z4: 85719 | AA4: 73184 | AB4: 73910 | AC4: 93626 | AD4: 83529 | AE4: 93126 | AF4: 84241 | AG4: 78961 | AH4: 80203 | AI4: 88464 | AJ4: 98155 | AK4: 97846 | AL4: 84203 | AM4: 89425 | AN4: 95562 | AO4: 89013 | AP4: 95450 | AQ4: 94600 | AR4: 88597 | AS4: 76284 | AT4: 94277 | AU4: 86967 | AV4: 88672 | AW4: 83827 | AX4: 84351 | AY4: 92605 | AZ4: 82951 | BA4: 85153 | BB4: 90202 | BC4: 101988 | BD4: 82819 | BE4: 87786 | BF4: 84485 | BG4: 76351 | BH4: 93877 | BI4: 97969 | BJ4: 100986 | BK4: 91059 | BL4: 99428 | BM4: 93482 | BN4: 82480 | BO4: 96218 | BP4: 101708 | BQ4: 109091 | BR4: 97673 | BS4: 93699 | BT4: 88685 | BU4: 88121 | BV4: 100601 | BW4: 90072 | BX4: 92421 | BY4: 91982 | BZ4: 81967 | CA4: 98993 | CB4: 106755 | CC4: 102824 | CD4: 109460 | CE4: 103126 | CF4: 89413 | CG4: 99596 | CH4: 92977 | CI4: 80986 | CJ4: 91043 | CK4: 79764 | CL4: 79849 | CM4: 82801 | CN4: 81602 | CO4: 49394 | CP4: 89006 | CQ4: 102453 | CR4: 63103 | CS4: 72678 | CT4: 39452 | CU4: 68448 | CV4: 40224 | CW4: 65261 | CX4: 60804 | CY4: 74692 | CZ4: 48303 | DA4: 30719 | DB4: 76305 | DC4: 66715 | DD4: 69198 | DE4: 75818 | DF4: 73191 | DG4: 72712 | DH4: 73504 | DI4: 64398 | DJ4: 67620 | DK4: 79693 | DL4: 78780 | DM4: 51233 | DN4: 81433 | DO4: 59555 | DP4: 71096 | DQ4: 77921 | DR4: 86831 | DS4: 83985 | DT4: 62662 | DU4: 91837 | DV4: 66260 | DW4: 73867 | DX4: 82447 | DY4: 81553 | DZ4: 72342 | EA4: 71732 | EB4: 71845 | EC4: 64995 | ED4: 68918 | EE4: 73958 | EF4: 67246 | EG4: 87337 | EH4: 70935 | EI4: 75524 | EJ4: 73144 | EK4: 83012 | EL4: 81884 | EM4: 63060 | EN4: 88943 | EO4: 75593 | EP4: 81509 | EQ4: 84146 | ER4: 84241 | ES4: 78784 | ET4: 80977 | EU4: 74083 | EV4: 80839 | EW4: 83969 | EX4: 92213 | EY4: 85198 | EZ4: 83782 | FA4: 84848 | FB4: 74843 | FC4: 71621 | FD4: 79332 | FE4: 79644 | FF4: 72811 | FG4: 62813 | FH4: 84714 | FI4: 79335 | FJ4: 88785 | FK4: 86020 | FL4: 63552 | FM4: 89500 | FN4: 81085 | FO4: 75492 | FP4: 92018 | FQ4: 98207 | FR4: 83802 | FS4: 79453 | FT4: 82885 | FU4: 92181 | FV4: 89891 | FW4: 80062 | FX4: 82524 | FY4: 84457 | FZ4: 78663 | GA4: 77401 | GB4: 69843 | GC4: 80498 | GD4: 72578 | GE4: 96910 | GF4: 80305 | GG4: 105474 | GH4: 90047 | GI4: 110303 | GJ4: 88230 | GK4: 82016 | GL4: 76902 | GM4: 109540 | GN4: 83063 | GO4: 113150 | GP4: 109239 | GQ4: 75245 | GR4: 91655 | GS4: 111907 | GT4: 90736 | GU4: 90256 | GV4: 91814 | GW4: 100953 | GX4: 106340 | GY4: 92396 | GZ4: 102677 | HA4: 110255 | HB4: 82843
A5: Zotu1346_BMC-Pseudoalteromonas | B5: 0.000 | C5: 0.000 | D5: 0.000 | E5: 0.000 | F5: 0.000 | G5: 0.000 | H5: 0.000 | I5: 0.000 | J5: 0.000 | K5: 0.000 | L5: 0.000 | M5: 0.000 | N5: 0.000 | O5: 0.000 | P5: 0.000 | Q5: 0.000 | R5: 0.000 | S5: 0.000 | T5: 0.000 | U5: 0.000 | V5: 0.000 | W5: 0.000 | X5: 0.000 | Y5: 0.000 | Z5: 0.000 | AA5: 0.000 | AB5: 0.000 | AC5: 0.000 | AD5: 0.000 | AE5: 0.000 | AF5: 0.000 | AG5: 0.000 | AH5: 0.000 | AI5: 0.000 | AJ5: 0.000 | AK5: 0.000 | AL5: 0.000 | AM5: 0.000 | AN5: 0.000 | AO5: 0.000 | AP5: 0.000 | AQ5: 0.000 | AR5: 0.000 | AS5: 0.000 | AT5: 0.000 | AU5: 0.000 | AV5: 0.000 | AW5: 0.000 | AX5: 0.000 | AY5: 0.000 | AZ5: 0.000 | BA5: 0.000 | BB5: 0.000 | BC5: 0.000 | BD5: 0.000 | BE5: 0.000 | BF5: 0.000 | BG5: 0.000 | BH5: 0.000 | BI5: 0.000 | BJ5: 0.000 | BK5: 0.000 | BL5: 0.000 | BM5: 0.000 | BN5: 0.000 | BO5: 0.000 | BP5: 0.000 | BQ5: 0.002 | BR5: 0.000 | BS5: 0.000 | BT5: 0.000 | BU5: 0.000 | BV5: 0.000 | BW5: 0.000 | BX5: 0.000 | BY5: 0.000 | BZ5: 0.000 | CA5: 0.000 | CB5: 0.000 | CC5: 0.000 | CD5: 0.000 | CE5: 0.000 | CF5: 0.000 | CG5: 0.000 | CH5: 0.000 | CI5: 0.000 | CJ5: 0.000 | CK5: 0.000 | CL5: 0.000 | CM5: 0.002 | CN5: 0.001 | CO5: 0.004 | CP5: 0.000 | CQ5: 0.000 | CR5: 0.002 | CS5: 0.000 | CT5: 0.000 | CU5: 0.001 | CV5: 0.002 | CW5: 0.000 | CX5: 0.002 | CY5: 0.000 | CZ5: 0.000 | DA5: 0.000 | DB5: 0.000 | DC5: 0.001 | DD5: 0.000 | DE5: 0.001 | DF5: 0.001 | DG5: 0.001 | DH5: 0.000 | DI5: 0.000 | DJ5: 0.006 | DK5: 0.000 | DL5: 0.004 | DM5: 0.006 | DN5: 0.000 | DO5: 0.005 | DP5: 0.001 | DQ5: 0.000 | DR5: 0.002 | DS5: 0.000 | DT5: 0.000 | DU5: 0.000 | DV5: 0.000 | DW5: 0.000 | DX5: 0.000 | DY5: 0.000 | DZ5: 0.000 | EA5: 0.000 | EB5: 0.000 | EC5: 0.000 | ED5: 0.003 | EE5: 0.000 | EF5: 0.000 | EG5: 0.000 | EH5: 0.000 | EI5: 0.000 | EJ5: 0.000 | EK5: 0.000 | EL5: 0.000 | EM5: 0.000 | EN5: 0.000 | EO5: 0.000 | EP5: 0.002 | EQ5: 0.000 | ER5: 0.000 | ES5: 0.000 | ET5: 0.000 | EU5: 0.000 | EV5: 0.000 | EW5: 0.000 | EX5: 0.000 | EY5: 0.000 | EZ5: 0.000 | FA5: 0.000 | FB5: 0.000 | FC5: 0.000 | FD5: 0.000 | FE5: 0.000 | FF5: 0.000 | FG5: 0.005 | FH5: 0.000 | FI5: 0.008 | FJ5: 0.000 | FK5: 0.000 | FL5: 0.009 | FM5: 0.002 | FN5: 0.004 | FO5: 0.015 | FP5: 0.000 | FQ5: 0.005 | FR5: 0.011 | FS5: 0.010 | FT5: 0.000 | FU5: 0.002 | FV5: 0.003 | FW5: 0.004 | FX5: 0.000 | FY5: 0.004 | FZ5: 0.004 | GA5: 0.000 | GB5: 0.001 | GC5: 0.002 | GD5: 0.003 | GE5: 0.000 | GF5: 0.000 | GG5: 0.001 | GH5: 0.000 | GI5: 0.002 | GJ5: 0.002 | GK5: 0.006 | GL5: 0.004 | GM5: 0.002 | GN5: 0.004 | GO5: 0.002 | GP5: 0.002 | GQ5: 0.004 | GR5: 0.003 | GS5: 0.001 | GT5: 0.001 | GU5: 0.002 | GV5: 0.004 | GW5: 0.000 | GX5: 0.002 | GY5: 0.001 | GZ5: 0.003 | HA5: 0.000 | HB5: 0.001
A6: Zotu4551_BMC-Cobetia | B6: 0.000 | C6: 0.000 | D6: 0.000 | E6: 0.000 | F6: 0.000 | G6: 0.000 | H6: 0.000 | I6: 0.000 | J6: 0.000 | K6: 0.000 | L6: 0.000 | M6: 0.000 | N6: 0.000 | O6: 0.000 | P6: 0.000 | Q6: 0.000 | R6: 0.000 | S6: 0.000 | T6: 0.000 | U6: 0.000 | V6: 0.000 | W6: 0.000 | X6: 0.000 | Y6: 0.000 | Z6: 0.000 | AA6: 0.000 | AB6: 0.000 | AC6: 0.000 | AD6: 0.000 | AE6: 0.000 | AF6: 0.000 | AG6: 0.000 | AH6: 0.000 | AI6: 0.000 | AJ6: 0.000 | AK6: 0.000 | AL6: 0.000 | AM6: 0.000 | AN6: 0.000 | AO6: 0.000 | AP6: 0.000 | AQ6: 0.000 | AR6: 0.000 | AS6: 0.000 | AT6: 0.000 | AU6: 0.000 | AV6: 0.000 | AW6: 0.000 | AX6: 0.000 | AY6: 0.000 | AZ6: 0.000 | BA6: 0.000 | BB6: 0.000 | BC6: 0.000 | BD6: 0.000 | BE6: 0.000 | BF6: 0.000 | BG6: 0.000 | BH6: 0.000 | BI6: 0.000 | BJ6: 0.000 | BK6: 0.000 | BL6: 0.000 | BM6: 0.000 | BN6: 0.000 | BO6: 0.000 | BP6: 0.000 | BQ6: 0.000 | BR6: 0.000 | BS6: 0.000 | BT6: 0.000 | BU6: 0.000 | BV6: 0.000 | BW6: 0.000 | BX6: 0.000 | BY6: 0.000 | BZ6: 0.000 | CA6: 0.000 | CB6: 0.000 | CC6: 0.000 | CD6: 0.000 | CE6: 0.000 | CF6: 0.000 | CG6: 0.000 | CH6: 0.000 | CI6: 0.000 | CJ6: 0.000 | CK6: 0.000 | CL6: 0.000 | CM6: 0.000 | CN6: 0.000 | CO6: 0.000 | CP6: 0.000 | CQ6: 0.000 | CR6: 0.000 | CS6: 0.000 | CT6: 0.000 | CU6: 0.000 | CV6: 0.000 | CW6: 0.000 | CX6: 0.000 | CY6: 0.000 | CZ6: 0.000 | DA6: 0.000 | DB6: 0.000 | DC6: 0.000 | DD6: 0.000 | DE6: 0.001 | DF6: 0.000 | DG6: 0.000 | DH6: 0.000 | DI6: 0.000 | DJ6: 0.000 | DK6: 0.000 | DL6: 0.000 | DM6: 0.002 | DN6: 0.000 | DO6: 0.000 | DP6: 0.000 | DQ6: 0.000 | DR6: 0.000 | DS6: 0.000 | DT6: 0.000 | DU6: 0.000 | DV6: 0.000 | DW6: 0.000 | DX6: 0.000 | DY6: 0.000 | DZ6: 0.000 | EA6: 0.000 | EB6: 0.000 | EC6: 0.000 | ED6: 0.000 | EE6: 0.000 | EF6: 0.000 | EG6: 0.000 | EH6: 0.000 | EI6: 0.000 | EJ6: 0.000 | EK6: 0.000 | EL6: 0.000 | EM6: 0.003 | EN6: 0.000 | EO6: 0.000 | EP6: 0.000 | EQ6: 0.000 | ER6: 0.000 | ES6: 0.000 | ET6: 0.000 | EU6: 0.000 | EV6: 0.000 | EW6: 0.000 | EX6: 0.000 | EY6: 0.000 | EZ6: 0.000 | FA6: 0.000 | FB6: 0.000 | FC6: 0.000 | FD6: 0.000 | FE6: 0.003 | FF6: 0.004 | FG6: 0.000 | FH6: 0.000 | FI6: 0.000 | FJ6: 0.000 | FK6: 0.000 | FL6: 0.003 | FM6: 0.003 | FN6: 0.000 | FO6: 0.000 | FP6: 0.002 | FQ6: 0.003 | FR6: 0.000 | FS6: 0.010 | FT6: 0.002 | FU6: 0.002 | FV6: 0.003 | FW6: 0.002 | FX6: 0.000 | FY6: 0.002 | FZ6: 0.000 | GA6: 0.001 | GB6: 0.000 | GC6: 0.000 | GD6: 0.000 | GE6: 0.000 | GF6: 0.000 | GG6: 0.000 | GH6: 0.000 | GI6: 0.000 | GJ6: 0.002 | GK6: 0.004 | GL6: 0.001 | GM6: 0.001 | GN6: 0.000 | GO6: 0.000 | GP6: 0.001 | GQ6: 0.000 | GR6: 0.000 | GS6: 0.000 | GT6: 0.000 | GU6: 0.000 | GV6: 0.001 | GW6: 0.000 | GX6: 0.000 | GY6: 0.000 | GZ6: 0.000 | HA6: 0.000 | HB6: 0.000
